{"text_format":"1","workbook":"xlsx","n_sheets":15,"sheets":["Inicio","Resumen","CNT E.P.","ETAPA.EP","Linkotel S.A.","Setel S.A.","Ecuadortelecom S.A","Level 3Ecuador","Gráfico1","Gráfico2","Gráfico3","Gráfico4","Gráfico5","Gráfico6","Gráfico7"],"not_rendered":{"charts":7,"images":25,"macros":1,"external_links":0,"defined_names":0,"comments":0,"pivot_tables":0},"unopened":[],"bounds":{"document_bytes":16777216,"sheet_cells":100000,"rows_first":2000,"rows_last":500,"rows_between":2000,"halvings":0,"cell_chars":16384,"cell_head_chars":4096},"cells_cut":0,"cells_raw":0,"read":"whole","date_system":"1900"}

{"sheet":"Inicio","index":0,"n_rows":27,"n_cols":3,"rows_kept":27,"cut":false,"hidden":false,"merged":[]}
[]
[null,"    Servicio de Telefonía Fija"]
[null,"      Planes Tarifarios"]
[]
[]
[]
[]
[null,"      Fecha de publicación: mayo de 2013"]
[]
[]
[]
[]
[]
[]
[null,null,"En los planes tarifarios se encuentran detalladas las tarifas que  los operadores van a cobrar a sus usuarios por cada uno de los servicios de telecomunicaciones. "]
[]
[null,null,"Los operadores podrán establecer o modificar libremente las tarifas a los abonados por los servicios que prestan, de forma que se asegure la operación y prestación eficiente, conla debida calidad."]
[]
[null,null,"Las tarifas serán reguladas por el CONATEL cuando existan distorsiones en le mercado."]
[]
[null,null,"1. Tabla Resumen y Comparativa de las tarifas de todas las empresas"]
[null,null,"2. Plan Tarifario de CNT E.P. "]
[null,null,"3.  Plan Tarifario de Etapa E.P."]
[null,null,"4. Plan Tarifario de Linkotel S.A."]
[null,null,"5. Plan Tarifario de Setel S.A."]
[null,null,"6. Plan Tarifario de Ecuadortelecom S.A."]
[null,null,"7. Plan Tarifario de Level 3 Ecuador S.A."]

{"sheet":"Resumen","index":1,"n_rows":127,"n_cols":10,"rows_kept":127,"cut":false,"hidden":false,"merged":[[120,0,120,8],[92,0,92,8],[118,0,118,8],[119,0,119,8],[96,0,96,7],[93,0,93,8],[94,0,94,8],[13,0,17,0],[18,0,22,0],[24,0,24,8],[71,2,71,4],[26,2,26,3],[26,4,26,5],[70,0,70,8],[50,0,52,0],[47,0,47,9],[56,0,56,9],[37,0,37,9]]}
[]
["    Servicio de Telefonía Fija"]
["      Planes Tarifarios"]
[]
[]
[]
[]
["      Fecha de publicación: mayo de 2013"]
[]
[]
[]
[]
[null,null,"CNT E.P. ","Etapa E.P. ","Setel S.A.","Linkotel S.A.","Ecuadortelecom S.A.","Level 3 Ecuador S.A."]
["LOCAL","Categoría A",2.3E-3,2E-3,null,null,null,1.9E-2]
[null,"Categoría B",0.01,5.0000000000000001E-3,0.01,1.8499999999999999E-2,0.01,1.9E-2]
[null,"Residencial Off Net",1.7000000000000001E-2]
[null,"Categoría C",2.4E-2,2.1999999999999999E-2,2.1999999999999999E-2,1.8499999999999999E-2,0.02,2.5000000000000001E-2]
[null,"Comercial Off Net",2.8000000000000001E-2]
["NACIONAL","Categoría A",6.0000000000000001E-3,null,null,null,null,0.02]
[null,"Categoría B",0.02,null,2.1999999999999999E-2,3.5000000000000003E-2,0.02,0.04]
[null,"Residencial Off Net",0.04]
[null,"Categoría C",5.6000000000000001E-2,null,0.09,0.08,0.02,2.5000000000000001E-2]
[null,"Comercial Off Net",1.12E-2]
[]
["GRÁFICO 1.- COMPARATIVO POR EMPRESA"]
[]
[null,null,"LOCAL",null,"NACIONAL"]
[null,"Empresa","Residencial\n Local","Comercial \nLocal","Residencial\n Nacional","Comercial \nNacional","Promedio"]
[null,"CNT E.P. ",0.01,2.4E-2,0.02,5.6000000000000001E-2,2.7500000000000004E-2]
[null,"Etapa E.P. ",5.0000000000000001E-3,2.1999999999999999E-2,0,0,6.7499999999999999E-3]
[null,"Setel S.A.",0.01,2.1999999999999999E-2,2.1999999999999999E-2,0.09,3.5999999999999997E-2]
[null,"Linkotel S.A.",1.8499999999999999E-2,1.8499999999999999E-2,3.5000000000000003E-2,0.08,3.8000000000000006E-2]
[null,"Ecuadortelecom S.A.",0.01,0.02,0.02,0.02,1.7500000000000002E-2]
[null,"Level 3 Ecuador S.A.",1.9E-2,2.5000000000000001E-2,0.04,2.5000000000000001E-2,2.7249999999999996E-2]
[]
["* Tarifas no incluyen impuestos ni cargos de interconexión"]
[]
["GRÁFICO 2.- COMPARATIVO POR CATEGORÍA"]
[]
[null,null,"CNT E.P. ","Etapa EP. ","Setel S.A.","Linkotel S.A.","Ecuadortelecom S.A.","Level 3 Ecuador S.A.","Promedio"]
[null,"Residencial Local",0.01,5.0000000000000001E-3,0.01,1.8499999999999999E-2,0.01,1.9E-2,1.2083333333333333E-2]
[null,"Comercial Local",2.4E-2,2.1999999999999999E-2,2.1999999999999999E-2,1.8499999999999999E-2,0.02,2.5000000000000001E-2,2.1916666666666668E-2]
[null,"Residencial Nacional",0.02,0,2.1999999999999999E-2,3.5000000000000003E-2,0.02,0.04,2.2833333333333334E-2]
[null,"Comercial Nacional",5.6000000000000001E-2,0,0.09,0.08,0.02,2.5000000000000001E-2,4.5166666666666661E-2]
[]
["* Tarifas no incluyen impuestos ni cargos de interconexión"]
[]
["GRÁFICO 3.- COMPARATIVO DE  PENSIÓN BÁSICA"]
[]
[null,null,"CNT E.P. ","Etapa EP. ","Setel S.A.","Linkotel S.A.","Ecuadortelecom S.A.","Level 3 Ecuador S.A."]
["Pensión Básica Mensual","Categoría A",0.93,0.8,null,null,null,5.7]
[null,"Residencial",6.2,3.59,9,7.48,5.99,8.5]
[null,"Comercial",12,9.99,12,11.38,12]
[]
["* Tarifas no incluyen impuestos ni cargos de interconexión"]
[]
["GRÁFICO 4.- COMPARATIVO TARIFAS FIJO- MÓVIL"]
[]
[]
[null,null,2006,2007,2008,2009,2010,2011,2012,"2013 (may.)"]
[null,"CNT E.P.",0.17,0.14000000000000001,0.14000000000000001,0.14000000000000001,0.14000000000000001,0.12,0.12,0.04]
[null,"Etapa E.P.",0.17,0.17,0.14000000000000001,0.14000000000000001,0.14000000000000001,0.14000000000000001,0.14000000000000001,0.14000000000000001]
[null,"Setel S.A.",0.25,0.25,0.25,0.25,0.25,0.25,0.13500000000000001,0.13500000000000001]
[null,"Linkotel S.A.",0.28999999999999998,0.28999999999999998,0.28999999999999998,0.28999999999999998,0.28999999999999998,0.18,0.18,0.18]
[null,"Ecuadortelecom S.A.",null,0.15,0.14000000000000001,0.14000000000000001,0.14000000000000001,0.13500000000000001,0.13500000000000001,0.13500000000000001]
[null,"Level 3 Ecuador S.A.",null,null,null,null,null,0.125,0.125,0.125]
[null,"Promedio",0.22000000000000003,0.2,0.192,0.192,0.192,0.15833333333333333,0.13916666666666666,0.12583333333333335]
["* Tarifas no incluyen impuestos"]
["1/- Tarifa CNT EP., 2013 (mayo) solo pa llamadas a CNT EP. Móvil, a otras operadoras móviles USD 0,15"]
[]
["GRÁFICO 5.- Derecho de Inscripción Promedio Residencial Fijo"]
[]
[null,null,null,"Años","Valor USD"]
[null,null,null,2000,75.075839136193096]
[null,null,null,2001,63.669030933492522]
[null,null,null,2002,61.577261989966566]
[null,null,null,2003,67.565849297818957]
[null,null,null,2004,75.974163043952373]
[null,null,null,2005,70.083912752127588]
[null,null,null,2006,73.242530591867308]
[null,null,null,2007,79.504278513067987]
[null,null,null,2008,81.426476431871137]
[null,null,null,2009,65.832271875665313]
[null,null,null,2010,69.96682870312695]
[null,null,null,2011,69.579008585637439]
[null,null,null,2012,65.637822508380069]
[null,null,null,"2013-01-01",66.372551655312179]
[null,null,null,"2013-02-01",66.790808329430732]
[null,null,null,"2013-03-01",67.820890958362995]
[null,null,null,"2013-04-01",60.889488451900412]
[null,null,null,"2013-05-01",66.687492285873091]
[]
["Nota: Para el cálculo de Derecho de Inscripción Promedio Residencial Fijo se realizó un promedio ponderado de la tarifa de derecho de inscripción de cada una de las empresas de telefonía fija con el número de abonados residenciales. Se ha ido incluyéndo a las empresas nuevas desde el inicio de su operación: Linkotel desde 2004 y Setel, Ecuadortelecom y Etapatelecom desde 2006; Level 3 Ecuador S.A. desde 2008."]
["La variación de estos valores en algunos casos se ve reflejada por el incremento porcentual significativo del número de usuarios (sobre todo en las nuevas operadoras) aún cuando los costos que ofrecen cada una de éstas siguen siendo los mismos."]
["El valor de mayo de 2013 del Derecho de Inscripción Promedio Residencial Fijo, está determinado en base a los reportes mensuales de mayo de  todas las prestadoras, a excepción de Linkotel que corresponde al mes de abril de 2013"]
[]
["GRÁFICO 5.- Tarifa llamada local residencial Fija  (3 minutos Promedio)"]
[]
[null,null,null,"Años","Valor USD"]
[null,null,null,2000,1.4412786415776617E-2]
[null,null,null,2001,2.880845734807241E-2]
[null,null,null,2002,2.8643816346037458E-2]
[null,null,null,2003,2.8941797314313726E-2]
[null,null,null,2004,2.8941212288634617E-2]
[null,null,null,2005,2.9953589760771969E-2]
[null,null,null,2006,3.0150744291725678E-2]
[null,null,null,2007,3.2225955850733436E-2]
[null,null,null,2008,2.7515202158538088E-2]
[null,null,null,2009,2.9499999999999998E-2]
[null,null,null,2010,2.9600000000000001E-2]
[null,null,null,2011,2.936828709495809E-2]
[null,null,null,2012,2.9212986625070526E-2]
[null,null,null,"2013-01-01",2.9230318027678493E-2]
[null,null,null,"2013-02-01",2.9181852339929645E-2]
[null,null,null,"2013-03-01",2.9136732655076592E-2]
[null,null,null,"2013-04-01",2.9056308558308333E-2]
[null,null,null,"2013-05-01",2.9339723441363055E-2]
[null,null,null,null,"                                     "]
["Nota: Para el cálculo de la Tarifa de una llamada Local Residencial Fija de tres minutos se realizó un promedio ponderado de la tarifa local residencial de cada una de las empresas de telefonía fija con el número de abonados residenciales Se ha ido incluyéndo a las empresas nuevas desde el inicio de su operación: Linkotel desde 2004 y Setel, Ecuadortelecom y Etapatelecom desde 2006 y Level 3 Ecuador S.A."]
["La variación de estos valores en algunos casos se ve reflejada por el incremento porcentual significativo del número de usuarios (sobretodo en las nuevas operadoras) aún cuando los costos que ofrecen cada una de éstas siguen siendo los mismos."]
["El valor de mayo de 2013 de la Tarifa de una llamada local residencial Fija, está determinado en base a los reportes mensuales de mayo de  todas las  prestadoras, a excepción de Linkotel que corresponde al mes de abril de 2013."]
[]
["Notas:"]
[]
["1. No se incluye valor de los impuestos"]
["2. * ETAPA E.P. tiene tres valores de Pensión Básica para la Categoría B, según el rango de consumo del cliente. Aquí se ha señalado un promedio de estos tres valores."]
["Elaborado: SENATEL-DGP, Publicación:  mayo  2013"]

{"sheet":"CNT E.P.","index":2,"n_rows":1574,"n_cols":16,"rows_kept":1574,"cut":false,"hidden":false,"merged":[[11,11,11,15],[652,0,652,3],[653,0,653,3],[654,0,654,3],[655,0,655,3],[656,0,656,3],[639,0,639,1],[641,0,641,3],[642,0,642,3],[643,0,643,3],[644,0,644,1],[623,0,623,3],[624,0,624,3],[625,0,625,3],[626,0,626,3],[627,0,627,3],[628,0,628,3],[645,0,645,1],[629,0,629,3],[632,0,632,3],[633,0,633,3],[635,0,635,3],[636,0,636,3],[637,0,637,1],[609,0,609,3],[611,1,611,3],[612,1,612,3],[613,1,613,3],[614,1,614,3],[619,0,619,1],[620,0,620,3],[621,0,621,3],[622,0,622,3],[596,0,596,2],[597,0,597,2],[598,0,598,2],[599,0,599,2],[600,0,600,2],[604,0,604,3],[605,0,605,3],[607,0,607,3],[608,0,608,3],[562,0,562,2],[563,0,563,2],[565,0,565,2],[567,0,567,2],[579,0,579,1],[581,0,581,1],[592,0,592,1],[594,0,594,2],[595,0,595,2],[549,0,549,3],[550,0,550,3],[551,0,551,3],[552,0,552,3],[555,0,555,3],[556,0,556,3],[557,0,557,3],[558,0,558,3],[559,0,559,3],[199,0,199,1],[11,2,11,10],[158,0,158,2],[298,0,298,5],[305,0,305,5],[226,0,226,4],[254,0,254,4],[228,1,228,4],[227,0,227,4],[228,0,229,0],[234,0,234,4],[242,0,243,0],[235,0,236,0],[235,1,235,4],[242,1,242,4],[287,0,287,3],[294,0,294,3],[277,0,277,3],[278,0,278,3],[279,0,280,0],[279,1,279,2],[279,3,280,3],[241,0,241,4],[263,0,263,3],[264,0,264,3],[266,0,267,0],[266,1,266,2],[266,3,267,3],[321,0,321,6],[307,0,309,0],[307,1,307,4],[307,5,309,5],[308,1,308,3],[308,4,309,4],[300,1,300,2],[300,3,300,4],[316,0,316,5],[301,1,301,2],[301,3,301,4],[302,1,302,2],[302,3,302,4],[303,1,303,2],[303,3,303,4],[315,0,315,5],[327,0,327,4],[329,0,331,0],[329,1,329,4],[330,1,330,3],[330,4,331,4],[324,1,324,2],[325,1,325,2],[323,1,323,2],[352,0,352,5],[356,0,356,4],[357,0,357,4],[358,0,358,4],[359,0,359,4],[364,0,364,3],[355,0,355,4],[336,0,337,0],[336,1,336,3],[342,0,343,0],[342,1,342,3],[348,0,348,5],[351,0,351,5],[378,0,378,3],[407,0,407,3],[408,0,408,3],[409,2,409,3],[392,0,392,3],[393,0,393,3],[405,0,405,3],[406,0,406,3],[365,0,365,3],[366,0,366,3],[379,0,379,3],[380,0,380,3],[381,0,382,0],[381,1,381,2],[381,3,382,3],[367,0,368,0],[367,1,367,2],[367,3,368,3],[424,0,424,5],[418,0,418,5],[419,0,419,5],[420,0,420,5],[421,0,421,5],[412,0,412,5],[413,0,413,5],[414,0,414,5],[417,0,417,5],[439,0,439,2],[440,0,440,4],[443,0,443,4],[444,0,444,4],[445,0,445,4],[448,0,448,6],[428,0,428,4],[429,0,429,4],[431,0,431,4],[432,0,432,4],[433,0,433,4],[434,0,434,1],[470,0,470,3],[471,0,471,3],[457,0,458,0],[459,0,460,0],[465,0,465,1],[466,0,466,6],[468,0,468,3],[469,0,469,6],[449,0,449,3],[450,0,450,6],[452,2,452,3],[453,2,453,3],[454,2,454,3],[455,0,455,3],[488,0,488,3],[489,0,489,4],[490,0,490,4],[484,0,484,2],[485,0,485,2],[486,0,486,2],[546,0,546,7],[543,1,543,5],[536,1,536,3],[537,1,537,3],[538,1,538,3],[539,1,539,3],[540,1,540,3],[541,1,541,3],[542,1,542,4],[544,1,544,5],[659,0,659,3],[660,0,660,3],[661,0,661,3],[662,0,662,3],[663,0,663,3],[664,0,664,3],[213,0,213,1],[491,0,491,4],[495,1,495,4],[499,1,499,7],[535,1,535,5],[492,1,492,4],[493,1,493,4],[494,1,494,4],[475,0,475,4],[477,0,477,4],[479,0,479,2],[479,3,479,4],[481,0,481,4],[487,0,487,2],[478,0,478,2],[478,3,478,4],[482,0,482,2],[483,0,483,2],[853,0,853,3],[671,0,671,3],[672,0,672,3],[673,0,673,3],[674,0,674,3],[675,0,675,3],[852,0,852,3],[665,0,665,3],[666,0,666,3],[667,0,667,3],[668,0,668,3],[669,0,669,3],[670,0,670,3],[156,0,156,7],[1480,0,1480,1],[1272,0,1272,1],[1373,0,1373,1],[1115,0,1115,2],[1192,0,1192,1],[932,0,932,1],[953,0,953,1],[1033,0,1033,1],[877,0,877,1],[872,0,872,3],[873,0,873,3],[874,0,874,3],[875,0,875,3],[876,0,876,3],[856,0,856,3],[857,0,857,3],[858,0,858,3],[859,0,859,3],[867,0,867,3],[868,0,868,3],[869,0,869,3],[870,0,870,3],[871,0,871,3]]}
[]
["    Servicio de Telefonía Fija"]
["      Plan Tarifario CNT E.P."]
[]
[]
[]
[]
["      Fecha de publicación: mayo de 2013"]
[]
[]
[]
[null,null,"ANDINATEL S,A,",null,null,null,null,null,null,null,null,"CNT E.P."]
["SERVICIO","Medición","2000","2001","2002","2003","2004","2005","2006","2007","2008",2009,2010,2011,2012,"2013*"]
["I  TELEFONÍA BÁSICA "]
["1. DERECHO DE INSCRIPCIÓN "]
["CATEGORIA A",null,32,30,30,30,30,30,30,30,30,30,30,30,30,30]
["CATEGORIA B",null,64,60,60,60,60,60,60,60,60,60,60,60,60,60]
["CATEGORIA C",null,140,60,60,60,60,60,60,60,60,60,60,60,60,60]
["2. PENSIÓN BÁSICA","(Mensual)"]
["CATEGORIA A",null,0.8,0.93,0.93,0.93,0.93,0.93,0.93,0.93,0.93,0.93,0.93,0.93,3,3]
["CATEGORIA B",null,2,6.2,6.2,6.2,6.2,6.2,6.2,6.2,6.2,6.2,6.2,6.2,6.2,6.2]
["CATEGORIA C",null,4,12,12,12,12,12,12,12,12,12,12,12,12,12]
["3. TARIFAS DE USO AUTOMÁTICO","(Por Minuto)"]
["3.1 USO LOCAL"]
["CATEGORIA A",null,2E-3,2.3E-3,2.3E-3,2.3E-3,2.3E-3,2.3E-3,2.3E-3,2.3E-3,2.3E-3,2.3E-3,2.3E-3,2.3E-3]
["Plan Social  On Net",null,null,null,null,null,null,null,null,null,null,null,null,null,8.0000000000000002E-3,8.0000000000000002E-3]
["Plan Social  OFF Net",null,null,null,null,null,null,null,null,null,null,null,null,null,2.8000000000000001E-2,2.8000000000000001E-2]
["CATEGORIA B",null,2E-3,0.01,0.01,0.01,0.01,0.01,0.01,0.01,0.01,0.01,0.01,0.01]
["Plan Residencial On Net",null,null,null,null,null,null,null,null,null,null,null,null,null,0.01,0.01]
["Plan Residencial Off Net",null,null,null,null,null,null,null,null,null,null,null,null,null,1.7000000000000001E-2,1.7000000000000001E-2]
["CATEGORIA C",null,0.01,2.4E-2,2.4E-2,2.4E-2,2.4E-2,2.4E-2,2.4E-2,2.4E-2,2.4E-2,2.4E-2,2.4E-2,2.4E-2]
["Plan Comercial On Net",null,null,null,null,null,null,null,null,null,null,null,null,null,2.4E-2,2.4E-2]
["Plan Comercial Off Net",null,null,null,null,null,null,null,null,null,null,null,2.8000000000000001E-2,2.8000000000000001E-2,2.8000000000000001E-2,2.8000000000000001E-2]
["3.2 USO DE LARGA DISTANCIA REGIONAL","(Por Minuto)"]
["CATEGORIA A",null,4.0000000000000001E-3,6.0000000000000001E-3,6.0000000000000001E-3,6.0000000000000001E-3,6.0000000000000001E-3,6.0000000000000001E-3,6.0000000000000001E-3,6.0000000000000001E-3,6.0000000000000001E-3,6.0000000000000001E-3,6.0000000000000001E-3,6.0000000000000001E-3]
["CATEGORIA B",null,4.0000000000000001E-3,0.02,0.02,0.02,0.02,0.02,0.02,0.02,0.02,0.02,0.02,0.02]
["CATEGORIA C",null,0.02,5.6000000000000001E-2,5.6000000000000001E-2,5.6000000000000001E-2,5.6000000000000001E-2,5.6000000000000001E-2,5.6000000000000001E-2,5.6000000000000001E-2,5.6000000000000001E-2,5.6000000000000001E-2,5.6000000000000001E-2,5.6000000000000001E-2]
["3.3 USO DE LARGA DISTANCIA NACIONAL","(Por Minuto)"]
["CATEGORIA A",null,8.0000000000000002E-3,9.2999999999999992E-3,9.2999999999999992E-3,9.2999999999999992E-3,9.2999999999999992E-3,9.2999999999999992E-3,9.2999999999999992E-3,9.2999999999999992E-3,9.2999999999999992E-3,9.2999999999999992E-3,6.0000000000000001E-3,6.0000000000000001E-3]
["Plan Social  On Net",null,null,null,null,null,null,null,null,null,null,null,null,null,8.0000000000000002E-3,8.0000000000000002E-3]
["Plan Social  OFF Net",null,null,null,null,null,null,null,null,null,null,null,null,null,2.8000000000000001E-2,2.8000000000000001E-2]
["CATEGORIA B",null,8.0000000000000002E-3,0.04,0.04,0.04,0.04,0.04,0.04,0.04,0.04,0.04,0.02,0.02]
["Plan Residencial On Net",null,null,null,null,null,null,null,null,null,null,null,null,null,0.02,0.02]
["Plan Residencial Off Net",null,null,null,null,null,null,null,null,null,null,null,null,null,0.04,0.04]
["CATEGORIA C",null,0.04,0.112,0.112,0.112,0.112,0.112,0.112,0.112,0.112,0.112,5.6000000000000001E-2,5.6000000000000001E-2]
["Plan Comercial On Net",null,null,null,null,null,null,null,null,null,null,null,null,null,5.6000000000000001E-2,5.6000000000000001E-2]
["Plan Comercial Off Net",null,null,null,null,null,null,null,null,null,null,null,null,null,0.112,0.112]
["3.4 USO HACIA CELULAR","(Por Minuto)"]
["CATEGORIAS A, B y C",null,0.28999999999999998,0.28999999999999998,0.28999999999999998,0.28999999999999998,0.2,0.17,0.17]
["OTECEL y CONECEL",null,null,null,null,null,null,null,null,0.14499999999999999,0.14499999999999999,0.14499999999999999,0.14499999999999999,0.14499999999999999,0.14499999999999999,0.14499999999999999]
["Plan Residencial  Off Net  Nacional Móviles (Claro y Movistar)",null,null,null,null,null,null,null,null,null,null,null,null,null,0.14499999999999999,0.14499999999999999]
["Plan Comercial  Off Net  Nacional Móviles (Claro y Movistar)",null,null,null,null,null,null,null,null,null,null,null,null,null,0.14499999999999999,0.14499999999999999]
["TELECSA",null,null,null,null,null,null,null,null,0.18099999999999999,0.18099999999999999,0.18099999999999999,0.12,0.12,0.12,0.12]
["Plan Residencial  Off Net  Nacional Móviles (Telecsa)",null,null,null,null,null,null,null,null,null,null,null,null,null,0.12,0.12]
["Plan Comercial  Off Net  Nacional Móviles (Telecsa)",null,null,null,null,null,null,null,null,null,null,null,null,null,0.12,0.12]
["3.5 USO INTERNACIONAL","(Por Minuto)"]
["Grupo 1 (Pacto Andino)",null,0.8,0.42,0.42,0.42,0.42,0.31]
["Grupo 2 (EE.UU, Canadá y México)",null,0.8,0.42,0.42,0.42,0.42,0.27]
["Grupo 3 (Cuba)"]
["Grupo 4 (Resto de América)",null,1,0.52,0.52,0.52,0.52,0.28999999999999998]
["Grupo 5  (Europa) ",null,1.28,0.52,0.52,0.52,0.52,0.52]
["Grupo 6 (Japón)",null,1.52,0.65,0.65,0.65,0.65,0.52]
["Grupo 7 (Resto del Mundo) ",null,1.52,0.65,0.65,0.65,0.65,0.65]
["Móvil Marítimo ",null,6,null,null,null,null,6.8,6.8,6.8,6.8,6.8,6.8,6.8,6.8,6.8]
["3.6 SERVICIO FRONTERIZO","(Por Minuto)"]
["De zona fronteriza a zona fronteriza",null,0.08,0.08,0.08,0.08,0.08,0.08,0.08,0.08,0.08,0.08,0.08,0.08,0.08,0.08]
["Fronterizo Tulcán - Ipiales",null,0.04,0.04,0.04,0.04,0.04,0.04,0.04,0.04,0.04,0.04,0.04,0.04,0.04,0.04]
["3.5 USO INTERNACIONAL: LDI","(Por Minuto)"]
["Argentina Fijo",null,null,null,null,null,null,null,0.29699999999999999,0.29699999999999999,0.29699999999999999,0.29699999999999999,0.29699999999999999,0.29699999999999999,0.29699999999999999,0.29699999999999999]
["Argentina (Móvil)",null,null,null,null,null,null,null,0.39600000000000002,0.39600000000000002,0.39600000000000002,0.39600000000000002,0.39600000000000002,0.39600000000000002,0.39600000000000002,0.39600000000000002]
["Colombia Resto País",null,null,null,null,null,null,null,0.20499999999999999,0.20499999999999999,0.20499999999999999,0.20499999999999999,0.20499999999999999,0.20499999999999999,0.20499999999999999,0.20499999999999999]
["Colombia Principales ciudades (Bogotá, Cali, Barranquilla, Medellín)",null,null,null,null,null,null,null,0.19,0.19,0.19,0.19,0.19,0.19,0.19,0.19]
["Colombia (Móvil)",null,null,null,null,null,null,null,0.23599999999999999,0.23599999999999999,0.23599999999999999,0.23599999999999999,0.23599999999999999,0.23599999999999999,0.23599999999999999,0.23599999999999999]
["España",null,null,null,null,null,null,null,0.23300000000000001,0.23300000000000001,0.23300000000000001,0.23300000000000001,0.23300000000000001,0.23300000000000001,0.23300000000000001,0.23300000000000001]
["España (Móvil)",null,null,null,null,null,null,null,0.3,0.3,0.3,0.3,0.3,0.3,0.3,0.3]
["Estados Unidos (Incluye Alaska, Hawai, Puerto Rico, Islas Vírgenes Americanas)",null,null,null,null,null,null,null,0.16,0.16,0.16,0.16,0.16,0.16,0.16,0.16]
["Italia",null,null,null,null,null,null,null,0.23300000000000001,0.23300000000000001,0.23300000000000001,0.23300000000000001,0.23300000000000001,0.23300000000000001,0.23300000000000001,0.23300000000000001]
["Italia (Móvil)",null,null,null,null,null,null,null,0.35,0.35,0.35,0.35,0.35,0.35,0.35,0.35]
["Perú",null,null,null,null,null,null,null,0.19,0.19,0.19,0.19,0.19,0.19,0.19,0.19]
["Perú (Móvil)",null,null,null,null,null,null,null,0.31,0.31,0.31,0.31,0.31,0.31,0.31,0.31]
["Canadá (Redes Fijas y Móviles)",null,null,null,null,null,null,null,null,0.27,0.27,0.27,0.27,0.27,0.27,0.27]
["Venezuela(Redes Fijas y  Móviles)",null,null,null,null,null,null,null,null,0.31,0.31,0.31,0.31,0.31,0.31,0.31]
["Bolivia y  Chile (Redes Fijas y Móviles)",null,null,null,null,null,null,null,null,0.31,0.31,0.31,0.31,0.31,0.31,0.31]
["Cuba (Redes Fijas y Móviles)",null,null,null,null,null,null,null,null,1.24]
["Resto de América (Redes Fijas y Móviles)",null,null,null,null,null,null,null,null,0.47,0.47,0.47,0.47,0.47,0.47,0.47]
["Resto del Mundo (Redes Fijas y  Móviles)",null,null,null,null,null,null,null,null,0.5,0.5,0.5,0.5,0.5,0.5,0.5]
["INMARSAT (Móvil marítimo) e IIRIDIUM",null,null,null,null,null,null,null,null,13.53]
["Excepciones 1*",null,null,null,null,null,null,null,null,1.89]
["Excepciones 2 **",null,null,null,null,null,null,null,null,6.31]
["TARIFA NOCTURNA"]
["Argentina Fijo",null,null,null,null,null,null,null,null,null,0.15,0.15,0.15,0.15,0.15,0.15]
["Argentina (Móvil)",null,null,null,null,null,null,null,null,null,0.15,0.15,0.15,0.15,0.15,0.15]
["Colombia Resto País",null,null,null,null,null,null,null,null,null,0.15,0.15,0.15,0.15,0.15,0.15]
["Colombia Principales ciudades (Bogotá, Cali, Barranquilla, Medellín)",null,null,null,null,null,null,null,null,null,0.15,0.15,0.15,0.15,0.15,0.15]
["Colombia (Móvil)",null,null,null,null,null,null,null,null,null,0.15,0.15,0.15,0.15,0.15,0.15]
["España",null,null,null,null,null,null,null,null,null,0.15,0.15,0.15,0.15,0.15,0.15]
["España (Móvil)",null,null,null,null,null,null,null,null,null,0.15,0.15,0.15,0.15,0.15,0.15]
["Estados Unidos (Incluye Alaska, Hawai, Puerto Rico, Islas Vírgenes Americanas)",null,null,null,null,null,null,null,null,null,0.1,0.1,0.1,0.1,0.1,0.1]
["Italia",null,null,null,null,null,null,null,null,null,0.15,0.15,0.15,0.15,0.15,0.15]
["Italia (Móvil)",null,null,null,null,null,null,null,null,null,0.15,0.15,0.15,0.15,0.15,0.15]
["Perú",null,null,null,null,null,null,null,null,null,0.15,0.15,0.15,0.15,0.15,0.15]
["Perú (Móvil)",null,null,null,null,null,null,null,null,null,0.15,0.15,0.15,0.15,0.15,0.15]
["Canadá (Redes Fijas y Móviles)",null,null,null,null,null,null,null,null,null,0.15,0.15,0.15,0.15,0.15,0.15]
["Venezuela(Redes Fijas y  Móviles)",null,null,null,null,null,null,null,null,null,0.15,0.15,0.15,0.15,0.15,0.15]
["Bolivia y  Chile (Redes Fijas y Móviles)",null,null,null,null,null,null,null,null,null,0.248,0.248,0.248,0.248,0.248,0.248]
["Cuba (Redes Fijas y Móviles)"]
["Resto de América (Redes Fijas y Móviles)",null,null,null,null,null,null,null,null,null,0.376,0.376,0.376,0.376,0.376,0.376]
["Resto del Mundo (Redes Fijas y  Móviles)",null,null,null,null,null,null,null,null,null,0.4,0.4,0.4,0.4,0.4,0.4]
["3.5 USO INTERNACIONAL POR OPERADORA","(Por Minuto)"]
["Argentina Fijo",null,null,null,null,null,null,null,null,null,{"$f":"+K69*1.3","v":0.3861},0.3861,0.3861,0.3861,0.3861,0.3861]
["Argentina (Móvil)",null,null,null,null,null,null,null,null,null,{"$f":"+K70*1.3","v":0.51480000000000004},{"$f":"+L70*1.3","v":0.51480000000000004},0.51480000000000004,{"$f":"+N70*1.3","v":0.51480000000000004},{"$f":"+O70*1.3","v":0.51480000000000004},0.51480000000000004]
["Colombia Resto País",null,null,null,null,null,null,null,null,null,0.26650000000000001,0.26650000000000001,0.26650000000000001,0.26650000000000001,0.26650000000000001,0.26650000000000001]
["Colombia Principales ciudades (Bogotá, Cali, Barranquilla, Medellín)",null,null,null,null,null,null,null,null,null,0.24700000000000003,0.24700000000000003,0.24700000000000003,0.24700000000000003,0.24700000000000003,0.24700000000000003]
["Colombia (Móvil)",null,null,null,null,null,null,null,null,null,0.30680000000000002,0.30680000000000002,0.30680000000000002,0.30680000000000002,0.30680000000000002,0.30680000000000002]
["España",null,null,null,null,null,null,null,null,null,0.3029,0.3029,0.3029,0.3029,0.3029,0.3029]
["España (Móvil)",null,null,null,null,null,null,null,null,null,0.39,0.39,0.39,0.39,0.39,0.39]
["Estados Unidos (Incluye Alaska, Hawai, Puerto Rico, Islas Vírgenes Americanas)",null,null,null,null,null,null,null,null,null,0.20800000000000002,0.20800000000000002,0.20800000000000002,0.20800000000000002,0.20800000000000002,0.20800000000000002]
["Italia",null,null,null,null,null,null,null,null,null,0.3029,0.3029,0.3029,0.3029,0.3029,0.3029]
["Italia (Móvil)",null,null,null,null,null,null,null,null,null,0.45499999999999996,0.45499999999999996,0.45499999999999996,0.45499999999999996,0.45499999999999996,0.45499999999999996]
["Perú",null,null,null,null,null,null,null,null,null,0.24700000000000003,0.24700000000000003,0.24700000000000003,0.24700000000000003,0.24700000000000003,0.24700000000000003]
["Perú (Móvil)",null,null,null,null,null,null,null,null,null,0.40300000000000002,0.40300000000000002,0.40300000000000002,0.40300000000000002,0.40300000000000002,0.40300000000000002]
["Canadá (Redes Fijas y Móviles)",null,null,null,null,null,null,null,null,null,0.35100000000000003,0.35100000000000003,0.35100000000000003,0.35100000000000003,0.35100000000000003,0.35100000000000003]
["Venezuela(Redes Fijas y  Móviles)",null,null,null,null,null,null,null,null,null,0.40300000000000002,0.40300000000000002,0.40300000000000002,0.40300000000000002,0.40300000000000002,0.40300000000000002]
["Bolivia y  Chile (Redes Fijas y Móviles)",null,null,null,null,null,null,null,null,null,0.40300000000000002,0.40300000000000002,0.40300000000000002,0.40300000000000002,0.40300000000000002,0.40300000000000002]
["Resto de América (Redes Fijas y Móviles)",null,null,null,null,null,null,null,null,null,{"$f":"+K85*1.3","v":0.61099999999999999},0.61099999999999999,0.61099999999999999,{"$f":"+N85*1.3","v":0.61099999999999999},0.61099999999999999,0.61099999999999999]
["Resto del Mundo (Redes Fijas y  Móviles)",null,null,null,null,null,null,null,null,null,0.65,0.65,0.65,0.65,0.65,0.65]
["LDI. POR OPERADORA:TARIFA NOCTURNA"]
["Argentina Fijo",null,null,null,null,null,null,null,null,null,{"$f":"+K91*1.3","v":0.19500000000000001},0.19500000000000001,0.19500000000000001,0.19500000000000001,0.19500000000000001,0.19500000000000001]
["Argentina (Móvil)",null,null,null,null,null,null,null,null,null,{"$f":"+K92*1.3","v":0.19500000000000001},{"$f":"+L92*1.3","v":0.19500000000000001},0.19500000000000001,{"$f":"+N92*1.3","v":0.19500000000000001},{"$f":"+O92*1.3","v":0.19500000000000001},0.19500000000000001]
["Colombia Resto País",null,null,null,null,null,null,null,null,null,0.19500000000000001,0.19500000000000001,0.19500000000000001,0.19500000000000001,0.19500000000000001,0.19500000000000001]
["Colombia Principales ciudades (Bogotá, Cali, Barranquilla, Medellín)",null,null,null,null,null,null,null,null,null,0.19500000000000001,0.19500000000000001,0.19500000000000001,0.19500000000000001,0.19500000000000001,0.19500000000000001]
["Colombia (Móvil)",null,null,null,null,null,null,null,null,null,0.19500000000000001,0.19500000000000001,0.19500000000000001,0.19500000000000001,0.19500000000000001,0.19500000000000001]
["España",null,null,null,null,null,null,null,null,null,0.19500000000000001,0.19500000000000001,0.19500000000000001,0.19500000000000001,0.19500000000000001,0.19500000000000001]
["España (Móvil)",null,null,null,null,null,null,null,null,null,0.19500000000000001,0.19500000000000001,0.19500000000000001,0.19500000000000001,0.19500000000000001,0.19500000000000001]
["Estados Unidos (Incluye Alaska, Hawai, Puerto Rico, Islas Vírgenes Americanas)",null,null,null,null,null,null,null,null,null,0.13,0.13,0.13,0.13,0.13,0.13]
["Italia",null,null,null,null,null,null,null,null,null,0.19500000000000001,0.19500000000000001,0.19500000000000001,0.19500000000000001,0.19500000000000001,0.19500000000000001]
["Italia (Móvil)",null,null,null,null,null,null,null,null,null,0.19500000000000001,0.19500000000000001,0.19500000000000001,0.19500000000000001,0.19500000000000001,0.19500000000000001]
["Perú",null,null,null,null,null,null,null,null,null,0.19500000000000001,0.19500000000000001,0.19500000000000001,0.19500000000000001,0.19500000000000001,0.19500000000000001]
["Perú (Móvil)",null,null,null,null,null,null,null,null,null,0.19500000000000001,0.19500000000000001,0.19500000000000001,0.19500000000000001,0.19500000000000001,0.19500000000000001]
["Canadá (Redes Fijas y Móviles)",null,null,null,null,null,null,null,null,null,0.19500000000000001,0.19500000000000001,0.19500000000000001,0.19500000000000001,0.19500000000000001,0.19500000000000001]
["Venezuela(Redes Fijas y  Móviles)",null,null,null,null,null,null,null,null,null,0.19500000000000001,0.19500000000000001,0.19500000000000001,0.19500000000000001,0.19500000000000001,0.19500000000000001]
["Bolivia y  Chile (Redes Fijas y Móviles)",null,null,null,null,null,null,null,null,null,0.32240000000000002,0.32240000000000002,0.32240000000000002,0.32240000000000002,0.32240000000000002,0.32240000000000002]
["Resto de América (Redes Fijas y Móviles)",null,null,null,null,null,null,null,null,null,{"$f":"+K107*1.3","v":0.48880000000000001},0.48880000000000001,0.48880000000000001,{"$f":"+N107*1.3","v":0.48880000000000001},0.48880000000000001,0.48880000000000001]
["Resto del Mundo (Redes Fijas y  Móviles)",null,null,null,null,null,null,null,null,null,0.52,0.52,0.52,0.52,0.52,0.52]
[]
["Notas:"]
[]
["1. Se define CATEGORIA A:  Residencial Popular"]
["2. Se define  CATEGORIA B: Residencial, Educación Sector Público"]
["3. Se define CATEGORÍA C: Industrial, Comercial, Profesionales"]
["4. Fuente:  CNT E.P."]
["5. Períodos: al 31 de diciembre de cada año"]
["7. No se incluye valor de los impuestos"]
["* Tarifas aplicadas al público a  mayo  2013"]
[{"$f":"+Resumen!A127","v":"Elaborado: SENATEL-DGP, Publicación:  mayo  2013"}]
[]
["CNT E.P."]
["SERVICIO","Medición","2008",2009,2010,2011,2012,"2013*"]
["SERVICIO TELEFONICO POR OPERADORA"]
["USO LOCAL","(Por Minuto)"]
["CATEGORIA A",null,3.0000000000000001E-3,3.0000000000000001E-3,3.0000000000000001E-3,3.0000000000000001E-3,3.0000000000000001E-3,3.0000000000000001E-3]
["CATEGORIA B",null,2.1999999999999999E-2,2.1999999999999999E-2,2.1999999999999999E-2,2.1999999999999999E-2,2.1999999999999999E-2,2.1999999999999999E-2]
["CATEGORIA C",null,3.5999999999999997E-2,3.5999999999999997E-2,3.5999999999999997E-2,3.5999999999999997E-2,3.5999999999999997E-2,3.5999999999999997E-2]
["USO DE LARGA DISTANCIA NACIONAL","(Por Minuto)"]
["CATEGORIA A",null,null,8.0000000000000002E-3,8.0000000000000002E-3,8.0000000000000002E-3,8.0000000000000002E-3,8.0000000000000002E-3]
["CATEGORIA B",null,null,2.5999999999999999E-2,2.5999999999999999E-2,2.5999999999999999E-2,2.5999999999999999E-2,2.5999999999999999E-2]
["CATEGORIA C",null,null,7.2999999999999995E-2,7.2999999999999995E-2,7.2999999999999995E-2,7.2999999999999995E-2,7.2999999999999995E-2]
["CATEGORIA D",null,null,0.13500000000000001,0.13500000000000001,0.13500000000000001,0.13500000000000001,0.13500000000000001]
["SERVICIO TELEFONICO POR OPERADORA DENTRO DE LA RED DE CNT E.P."]
["USO LOCAL","(Por Minuto)"]
["CATEGORIA A",null,3.0000000000000001E-3,3.0000000000000001E-3,3.0000000000000001E-3,3.0000000000000001E-3,3.0000000000000001E-3,3.0000000000000001E-3]
["CATEGORIA B",null,1.2999999999999999E-2,1.2999999999999999E-2,1.2999999999999999E-2,1.2999999999999999E-2,1.2999999999999999E-2,1.2999999999999999E-2]
["CATEGORIA C",null,3.1E-2,3.1E-2,3.1E-2,3.1E-2,3.1E-2,3.1E-2]
["USO DE LARGA DISTANCIA REGIONAL","(Por Minuto)"]
["CATEGORIA A",null,8.0000000000000002E-3,8.0000000000000002E-3,8.0000000000000002E-3,8.0000000000000002E-3,8.0000000000000002E-3,8.0000000000000002E-3]
["CATEGORIA B",null,2.5999999999999999E-2,2.5999999999999999E-2,2.5999999999999999E-2,2.5999999999999999E-2,2.5999999999999999E-2,2.5999999999999999E-2]
["CATEGORIA C",null,7.2999999999999995E-2,7.2999999999999995E-2,7.2999999999999995E-2,7.2999999999999995E-2,7.2999999999999995E-2,7.2999999999999995E-2]
["USO DE LARGA DISTANCIA NACIONAL","(Por Minuto)"]
["CATEGORIA A",null,1.2E-2,1.2E-2,1.2E-2,1.2E-2,1.2E-2,1.2E-2]
["CATEGORIA B",null,5.1999999999999998E-2,5.1999999999999998E-2,5.1999999999999998E-2,5.1999999999999998E-2,5.1999999999999998E-2,5.1999999999999998E-2]
["CATEGORIA C",null,0.14599999999999999,0.14599999999999999,0.14599999999999999,0.14599999999999999,0.14599999999999999,0.14599999999999999]
["USO HACIA CELULAR PORTA y MOVISTAR","(Por Minuto)"]
["CATEGORIA A",null,0.189,0.189,0.189,0.189,0.189,0.189]
["CATEGORIA B",null,0.189,0.189,0.189,0.189,0.189,0.189]
["CATEGORIA C",null,0.189,0.189,0.189,0.189,0.189,0.189]
["USO HACIA CELULAR ALEGRO","(Por Minuto)"]
["CATEGORIA A",null,0.23499999999999999,0.15,0.15,0.15,0.15,0.15]
["CATEGORIA B",null,0.23499999999999999,0.15,0.15,0.15,0.15,0.15]
["CATEGORIA C",null,0.23499999999999999,0.15,0.15,0.15,0.15,0.15]
[]
["Notas:"]
[]
["1. Fuente: CNT E.P."]
["2. Períodos: al 31 de Diciembre de cada año"]
["3. No se incluye valor de los impuestos"]
[{"$f":"+A154","v":"* Tarifas aplicadas al público a  mayo  2013"}]
[{"$f":"+A155","v":"Elaborado: SENATEL-DGP, Publicación:  mayo  2013"}]
[]
[]
["Tarifas para Locutorios"]
["Destino","Tarifa de PVP  CNT E.P. sin IVA"]
["Llamada Internacional",1.04]
["Llamada Internacional Móvil Marítima",8.8010000000000002]
["Local On Net",0.1]
["Local Off Net",0.1]
["Regional On Net",0.13500000000000001]
["Regional Off Net",0.13500000000000001]
["Nacional On Net",0.13500000000000001]
["Nacional Off Net",0.13500000000000001]
["Notas:"]
["Fuente: CNT E.P."]
[{"$f":"+A197","v":"Elaborado: SENATEL-DGP, Publicación:  mayo  2013"}]
[]
["Tarifas a ALEGRO S.A."]
["Llamadas a Alegro"]
["Popular",0.12]
["Residencial",0.12]
["Comercial",0.12]
["Telefonia Pública",0.22]
["Tarifas no incluyen impuestos"]
[]
["Notas:"]
["Fuente: CNT E.P."]
[{"$f":"+A212","v":"Elaborado: SENATEL-DGP, Publicación:  mayo  2013"}]
[]
[]
["TARIFAS LARGA DISTANCIA INTERNACIONAL"]
["EVO I    $ 5,00"]
["País","Tarifa USD"]
[null,"Fijo","minutos","Móvil","Minutos"]
["Estados Unidos",0.17,29.41,0.17,29.41]
["Colombia",0.17,29.41,0.22,22.73]
["España",0.17,29.41,0.28999999999999998,17.239999999999998]
["Italia",0.17,29.41,0.28999999999999998,17.239999999999998]
["EVO II  $ 10,00"]
["País","Tarifa USD"]
[null,"Fijo","minutos","Móvil","Minutos"]
["Estados Unidos",0.16,62.5,0.16,62.5]
["Colombia",0.16,62.5,0.21,47.62]
["España",0.16,62.5,0.28000000000000003,35.71]
["Italia",0.16,62.5,0.28000000000000003,35.71]
["EVO III   $ 15,00"]
["País","Tarifa USD"]
[null,"Fijo","minutos","Móvil","Minutos"]
["Estados Unidos",0.15,100,0.15,100]
["Colombia",0.15,100,0.2,75]
["España",0.15,100,0.27,55.56]
["Italia",0.15,100,0.27,55.56]
["No está incluido el valor de impuestos"]
["Resto de Países aplica tarifas actuales para fijos y móviles según el tarifario vigente"]
[{"$f":"+A224","v":"Elaborado: SENATEL-DGP, Publicación:  mayo  2013"}]
[]
[]
[]
["Tarifas para el Servicio de Red Inteleginte 1-700 y 1-800 CNT"]
[]
["Servicio","Inscripción USD.","Pensión Básica USD.","Cobertura","Condiciones de Facturación del Tráfico"]
["1800 CNT",150,30,"Nacional","100% al cliente contratante; 0% al usuario llamante"]
["1700 CNT",150,30,"Nacional","99% al  usuario llamante y 1% cliente contratante"]
[]
[{"$f":"+A251","v":"Elaborado: SENATEL-DGP, Publicación:  mayo  2013"}]
[]
[]
["PLANES NUEVOS DE INTERNET BANDA ANCHA RESIDENCIAL "]
["FAST BOY"]
[]
["Plan","Precios",null,"Cobertura"]
[null,"Inscripción USD","Pensión Básica Mensual USD"]
["300/150 Kbbs",50,18,"Nacional"]
["500/150 Kbbs",50,24.9,"Nacional"]
["600/250 Kbbs",50,29.9,"Nacional"]
["768/256 Kbbs",50,39.9,"Nacional"]
["1600/256 Kbbs",50,65,"Nacional"]
["3000/512 Kbbs",50,107,"Nacional"]
["4000/512 Kbbs",50,131,"Nacional"]
["Precios antes de impuestos "]
[]
["PLANES ACTUALES DE INTERNET BANDA ANCHA RESIDENCIAL "]
["FAST BOY- modificación de precios"]
["Plan","Precios",null,"Cobertura"]
[null,"Inscripción USD","Pensión Básica Mensual USD"]
["1024/256 Kbbs",50,49.9,"Nacional"]
["2048/512 Kbbs",50,84.9,"Nacional"]
["Precios antes de impuestos "]
[]
["0bservaciones:"]
["Planes aplicables a servicio residencial"]
["Los usuarios de servicios actuales serán migrados, previsto durante los siguientes 60 días, a los nuevos planes en base al siguiente esquema:"]
["* 128/64 Kbbs","migran a","300/150 Kbbs"]
["* 256/128 Kbbs","migran a","500/150 Kbbs"]
["* 512/128 Kbbs","migran a","600/250 Kbbs"]
["* 1024/256 Kbbs","migran a","768/256 Kbbs"]
["* 2048/512 Kbbs","migran a","1600/256 Kbbs"]
["* 3000/512 Kbbs","migran a","3000/512 Kbbs"]
["Todos los servicios o paquetes de servicios que incluyan los planes de internet Banda Ancha residencial 128/64 Kbps;256/128 Kbps;512/128, aunque se mantienen los planes operativos hasta completar el 100% de la migración de clientes a los nuevos planes. "]
[{"$f":"+A261","v":"Elaborado: SENATEL-DGP, Publicación:  mayo  2013"}]
[]
[]
["SERVICIO FASTBOY PACK DOBLE"]
[]
["Servicio","Descripción",null,"Elementos asociados"]
["DUO PACK 1","Servicio que empaqueta una línea de telefonía categoría residencial + paquete de minutos locales onnet + Internet banda ancha residencial",null,"1. Línea telefónica.                       2. Pensión Básica de telefonía.      3. Internet Fast Boy Residencial de 300/150 KBPS.                          4. Paquete mensual de 450 minutos de telefonía local"]
["DUO PACK 2","Servicio que empaqueta una línea de telefonía categoría residencial + paquete de minutos locales onnet + Internet banda ancha residencial",null,"1. Línea telefónica.                       2. Pensión Básica de telefonía.      3. Internet Fast Boy Residencial de 500/150 KBPS.                          4. Paquete mensual de 450 minutos de telefonía local"]
["DUO PACK 3","Servicio que empaqueta una línea de telefonía categoría residencial + paquete de minutos locales onnet + Internet banda ancha residencial",null,"1. Línea telefónica.                       2. Pensión Básica de telefonía.      3. Internet Fast Boy Residencial de 600/250 KBPS.                          4. Paquete mensual de 750 minutos de telefonía local"]
[]
["PRECIOS DEL SERVICIO"]
[]
["Servicio","PRECIOS",null,null,null,"COBERTURA"]
[null,"Inscripción USD.",null,null,"Pensión Básica USD"]
[null,"Usuario no posee Internet ni Telefonía","Usuario posee Internet o Telefonía","Usuario posee Internet y Telefonía"]
[{"$f":"+A302","v":"DUO PACK 1"},60,10,5,25.9,"Nacional"]
[{"$f":"+A303","v":"DUO PACK 2"},60,10,5,32,"Nacional"]
[{"$f":"+A304","v":"DUO PACK 3"},60,10,5,36,"Nacional"]
[]
["Observaciones:"]
["* Los paquetes de minutos son adicionales a los entregados al cliente en cumplimiento a la Resoluciones vigentes (150 minutos)."]
["* El precio total del paquete encasilla el precio de cada uno de los elementos que lo conforman, es decir: Pensión Básica de telefonía Residencial, Internet Residencial Banda Ancha , según el plan que corresponda y que haya contratado; y, paquete de minutos local onnet, igualmente conforme lo haya contratado el cliente."]
["Tarifas antes de impuestos"]
[{"$f":"+A296","v":"Elaborado: SENATEL-DGP, Publicación:  mayo  2013"}]
[]
[]
["PAQUETE TRIPLE"]
[]
["Planes","Descripción",null,"Elementos asociados"]
["Paquete Triple 1","Servicio que empaqueta una línea de telefonía categoría residencial + paquete de minutos locales onnet + Internet banda ancha residencial + plan celular prepago de TELECSA.",null,"1. Fast Boy Pack Doble 1                            2. Plan celular prepago \"Plan único 3,99\""]
["Paquete Triple 2","Servicio que empaqueta una línea de telefonía categoría residencial + paquete de minutos locales onnet + Internet banda ancha residencial + plan celular prepago de TELECSA.",null,"1. Fast Boy Pack Doble 2                            2. Plan celular prepago \"Plan único 9,99\""]
[]
["PRECIOS DEL SERVICIO"]
[]
["Planes","PRECIOS"]
[null,"Inscripción USD.",null,null,"Pensión Básica USD"]
[null,"Usuario no posee Internet ni Telefonía","Usuario posee Internet o Telefonía","Usuario posee Internet y Telefonía Fija"]
["Paquete Triple 1",60,10,5,29.46]
["Paquete Triple 2",60,10,5,40.909999999999997]
[]
[]
["Planes","* Pensión Básica por Servicio USD."]
[null,"Fast Boy Pack Doble","Plan Celular \"Plan Único\"","Total"]
["Paquete Triple 1",25.9,3.56,{"$f":"+C339+B339","v":29.459999999999997}]
["Paquete Triple 2",32,8.91,{"$f":"+C340+B340","v":40.909999999999997}]
["* Precios no incluyen impuestos"]
[]
["Planes"," Paquete de minutos ONNET"]
[null,"Minutos Locales *","Equivalencia en minutos Regionales *","Equivalencia en minutos Nacionales *"]
["Paquete Triple 1",450,225,225]
["Paquete Triple 2",450,225,225]
["* ONNET"]
[]
["Valor del costo por minuto de la llamada de LDN y a Móviles"]
["Tarifas/min. USD.","Llamada Local","Llamada nacional","Móvil Alegro","Móvil Movistar","Móvil Porta"]
["Categoría B",0.01,0.02,0.12,0.14499999999999999,0.14499999999999999]
["* Paquete Triple es aplicable exclusivamente a usuarios de telefonía categoría B residencial"]
["* Precios no incluyen impuestos"]
[]
["Condiciones de comercialización son las siguientes:"]
["El paquete Triple, se comercializará como un solo paquete se servicios a través de los canales de vanta de CNT, así como a través de los canales de venta de Alegro"]
["Cada empresa facturará  por separado los servicios que le pertenencen"]
["CNT factura el servicio de Fast Boy Pack Doble y Telecsa  factura el plan celular prepago Plan ünico"]
["La recaudación del servicio se realizará a través de la planilla telefónica de la CNT"]
["El precio total del paquete encasilla el precio de cada uno de elementos que lo conforman es decir servicio Fast Pack doble más Plan celular prepago Plan ünico de TELECSA"]
["Tarifas no incluyen impuestos"]
[{"$f":"+A319","v":"Elaborado: SENATEL-DGP, Publicación:  mayo  2013"}]
[]
[]
["PLANES NUEVOS DE INTERNET BANDA ANCHA RESIDENCIAL "]
["FAST BOY"]
["Planes Internet 1F -  Servicio Residencial masivo para clientes finales (Fast Boy)"]
["Plan","Precios",null,"Cobertura"]
[null,"Inscripción USD","Pensión Básica Mensual USD"]
["600/250 Kbbs",50,18,"Nacional"]
["1000/250 Kbbs",50,24.9,"Nacional"]
["1400/250 Kbbs",50,29.9,"Nacional"]
["1600/250 Kbbs",50,39.9,"Nacional"]
["2000/500 Kbbs",50,49.9,"Nacional"]
["3100/500 Kbbs",50,65,"Nacional"]
["4100/500 Kbbs",50,84.9,"Nacional"]
[]
[]
["PLANES ACTUALES DE INTERNET BANDA ANCHA RESIDENCIAL "]
["FAST BOY- modificación de precios"]
["Planes Internet 2D -  Servicio Residencial masivo para distribuidores"]
["Plan","Precios",null,"Cobertura"]
[null,"Inscripción USD","Pensión Básica Mensual USD"]
["550/250 Kbbs",50,16,"Nacional"]
["950/300 Kbps",50,20.5,"Nacional"]
["1300/300 Kbps",50,25.5,"Nacional"]
["1800/300 Kbps",50,35,"Nacional"]
["2200/500 Kbps",50,40,"Nacional"]
["3200/500 Kbps",50,60,"Nacional"]
["4000/500 Kbbs",50,78,"Nacional"]
["Observaciones:"]
["Los precios indicados no incluye impuestos"]
["Planes aplicables a servicio de Internet residencial para clientes finale (Fast Boy) y distribuidores"]
["Los usuarios finales de servicios actuales serán migrados a los nuevos planes en base al siguiente esquema:"]
[null,"Plan Actual (Kbps)","Nuevo Plan (Kbps)"]
[null,"300/150 Kbbs","600/250 Kbbs"]
[null,"500/150 Kbbs","1000/250 Kbbs"]
[null,"600/250 Kbbs","1400/250 Kbbs"]
[null,"768/256 Kbbs","1600/250 Kbbs"]
[null,"1024/256 Kbbs","2000/500 Kbbs"]
[null,"1600/256 Kbbs","3100/500 Kbbs"]
[null,"2048/512 Kbbs","4100/500 Kbbs"]
[null,"3100/512 Kbbs","4100/500 Kbbs"]
[null,"4000/512 Kbbs","4100/500 Kbbs"]
[]
["Todos los servicios o paquetes de servicios que incluyan los planes de Internet residencial serán también migrados a las nuevas velocidades según lo anteriormente indicado"]
["La migración de planes estará sujeta y condicionada a la factibilidad técnica de cada usuario."]
["Se da de baja para la comercialización los planes 1F de 300, 500 y 768 Kbps, aunque se mantienen los planes operativos hasta completar el 100% de la migración de clientes a los nuevos planes."]
["Vigencia: "]
[{"$f":"+A362","v":"Elaborado: SENATEL-DGP, Publicación:  mayo  2013"}]
[]
[]
["Plan Social"]
["Descripción:"]
["Toda línea nueva de telefonía fija que no corresponda a la categoría comercial, nacerá con las siguientes caracterísiticas:"]
[null,"Inscripción","Pensión Básica",null,null,"Plan"]
[null,"$ 60","$ 6,20",null,null,"Residencial"]
["Para que un número de servicio de Plan Residencial, aplique a un Plan Social deberá cumplir con las siguientes condiciones:"]
["Pertenencer a un Plan Residencial"]
["Pertenecer a una de las Parroquias determinada en la Resolución No. Tel-795-26-CONATEL-2010"]
["Cursar tráfico inferior o igual a 1080 (mil ochenta) minutos de tráfico total semestral"]
["Los clientes que cumplan con estas condiciones aplicarán el siguiente Plan Social:"]
["Pensión Básica","Local On Net","Nacional On Net","Local / Nacional Off Net","Celulares","Intenacionales"]
["$ 3","$ 0,008","$ 0,008","Tarifa Plan Residencial Vigente","Tarifa Plan Residencial Vigente","Tarifa Plan Residencial Vigente"]
["Las tarifas fijadas para las llamadas locales y nacionales on net, observan los techos tarifarios establecidos en la Resolución No. 166-08-CONATEL-2010"]
["Vigencia: julio 2011 "]
[{"$f":"+A410","v":"Elaborado: SENATEL-DGP, Publicación:  mayo  2013"}]
[]
["Tarifas"]
["Servicio Red Inteligente 1700 y 1800\nEnrutamiento de llamadas"]
["1.  Descripción "]
["El Servicio de Red Inteligente 1700 y 1800 (enrutamiento de llamadas) es un servicio adicional a los servicios de telefonía corporatica que permite el direccionamienteo de la llamada efectuada por un cliente a estos números hacia una agencia que se encuentre más cercana geográficamente."]
["Servicio que se ofrece a nivel corporativo para empresas que tienen relación comercial para el servicio de telefonía fija con la CNT EP."]
["2. Condiciones y Restricciones:"]
["Desripción de Planes:"]
["Plan (*)","Descripción","Canales Simultáneos (**)","Inscripción USD (***)","Tarifa Mensual USD"]
["Servicio Estándar","Servicio de Tráfico normal",15,800,1350]
["Servicio Premium","Servicio de Tráfico medio",30,800,2000]
["Servicio Súper Premium","Servicio de Tráfico Alto",90,800,5700]
["(*) Precios no incluyen impuestos"]
["(**) De acuerdo a los parámetros previamente establecidos entre el cliente y la CNT EP."]
["(***) Una sola vez"]
[]
["El acceso no aplica para usuarios fijos fuera de la red de CNT EP.  En este caso, la llamada de un usuario hacia los números 1700 y 1800 se enruta a un solo destino determinado por la empresa que contrata el servicio de red inteligente."]
["3. Vigencia:"]
["A partir del 5 de abril de 2011"]
[{"$f":"+A427","v":"Elaborado: SENATEL-DGP, Publicación:  mayo  2013"}]
[]
["Plan Residencial y Comercial Telefonía Fija EP.ET TELEFONÍA FIJA"]
["1. Descripción "]
["El Plan residencial y Plan Comercial permitirán a los clientes de telefonía fija de la CNT P. hablar a las tarifas  y condiciones de acuerdo al siguiente detalle:"]
["* Nombre del Plan"]
["No.","Nombre del Plan","Descripción"]
[1,"Plan Residencial","Plan telefónico orientado a hogares"]
[2,"Plan Comercial","Plan relefónico orientado a empresas"]
["*Precios mensuales de los planes específicos son los siguientes"]
["Plan ","Rubro","Precio USD.","Aplicación"]
["Residencial","Inscripción",60,"Una sola vez"]
[null,"Tarifa Básica",6.2,"Mensual"]
["Comercial","Inscripción",60,"Una sola vez"]
[null,"Tarifa Básica",12,"Mensual"]
["* Tarifas aplicadas:"]
["Plan","On net Local USD (por Minuto)","On net Nacional USD (por Minuto)","Off net Local USD (por Minuto)","Off net Nacional USD (por Minuto)","Off net Nacional Móvil USD (por minuto) PORTA Y MOVISTAR","Off net Nacional Móvil  USD (por minuto) Alegro"]
["Residencial",0.01,0.02,1.7000000000000001E-2,0.04,0.14499999999999999,0.12]
["Comercial",2.4E-2,5.6000000000000001E-2,2.8000000000000001E-2,0.112,0.14499999999999999,0.12]
["Tarifas no inluyen impuestos"]
["Tarifas Off Net Móvil incluyen interconexión. Los valores con Otecel 0,0639, Conecel 0,04997y Alegro 0,0915"]
[]
["2. Aplicación:"]
["Aplica para nuevos clientes residenciales y comerciales de la Corporación Nacional de Telecomunicaciones CNT EP."]
["4. Vigencia de la Promoción:"]
["Desde : 14 de marzo de 2011"]
[{"$f":"+A447","v":"Elaborado: SENATEL-DGP, Publicación:  mayo  2013"}]
[]
[]
["PLANES NUEVOS DE INTERNET Y TRANSMISIÓN DE DATOS"]
[]
["El servicio tiene cobertura a nivel nacional y la descripción de planes y precios se detallan a continuación:"]
["PRODUCTO",null,null,"DESCRIPCIÓN"]
["Internet y transmisión de datos a través de la red satelital VSAT",null,null,"Servicio de transmisión de datos e Internet mediante tecnología satelital VSAT en banda C"]
[]
["TARIFAS DEL PRODUCTO / SERVICIO \nCONCEPTO DE INSTALACIÓN"]
["ACCESO",null,null,"TARIFA USD.","APLICA"]
["Acceso Terrestre",null,null,852,"Por cada Solicitud"]
["Acceso Terrestre + Áereo",null,null,1461,"Por cada Solicitud"]
["Acceso Terrestre + Bote",null,null,1692.67,"Por cada Solicitud"]
["Galápagos 1 **",null,null,1080,"Por cada Solicitud"]
["Galápagos 2***",null,null,1790,"Por cada Solicitud"]
["Precios no incluyen impuestos"]
["** Galápagos 1. Islas Sta. Cruz y San Cristobal"]
["*** Galápagos 2. Otras islas de Galápagos"]
["Adicionalmente, se informa que las condiciones de comercialización son las siguientes:"]
[null,"El servicio de \"Internet y Transmisión de datos a través de la red satelital VSAT\" se comercializará a través de los canales de venta de CNT  y la coertura es a nivel nacional"]
[null,"Los  servicios de transmisión de datos e Internat satelitales se comercializarán previa factibilidad técnica"]
[null,"El servicio implica transmisión de datos e Internet satelidatl punto a punto lo cual no involucra venta o arrendamiento de capacidad satelital solamente."]
[null,"CNT ofrece una disponibilidad del 99.7 % mensual para los planes de Internet y transmisión de datos a través de la red VSAT. La disponibilidad no incluye tiempos de movilización."]
[]
[]
[]
[null,"Concepto de Pesión Básica"]
[null,"Categoría","Producto","Recurso Espectro","AB  Dowlink (Kbps)","AB Uplink (Kbps)","Tarifa Mensual Servicio USD","Aplicación"]
[null,"Datos","Punto a Punto","1.1",128,128,840,"Mensual"]
[null,"Datos","Punto a Punto","1.1",256,256,1360,"Mensual"]
[null,"Datos","Punto a Punto","1.1",512,512,2760,"Mensual"]
[null,"Datos","Punto a Punto","1.1",1024,512,4120,"Mensual"]
[null,"Datos","Punto a Punto","2.1",128,128,520,"Mensual"]
[null,"Datos","Punto a Punto","2.1",256,256,880,"Mensual"]
[null,"Datos","Punto a Punto","2.1",512,512,1632,"Mensual"]
[null,"Datos","Punto a Punto","2.1",1024,512,2860,"Mensual"]
[null,"Datos","Punto a Punto","4.1",128,128,406.44,"Mensual"]
[null,"Datos","Punto a Punto","4.1",256,256,569.41,"Mensual"]
[null,"Datos","Punto a Punto","4.1",512,512,965.01,"Mensual"]
[null,"Datos","Punto a Punto","4.1",1024,512,1430,"Mensual"]
[null,"Datos","Punto a Punto","8.1",128,128,319.39999999999998,"Mensual"]
[null,"Datos","Punto a Punto","8.1",256,256,364.14,"Mensual"]
[null,"Datos","Punto a Punto","8.1",512,512,457.78,"Mensual"]
[null,"Datos","Punto a Punto","8.1",1024,512,639.85,"Mensual"]
[null,"INTERNET","GOLD","1.1",128,128,821.02,"Mensual"]
[null,"INTERNET","GOLD","1.1",256,256,1297.5899999999999,"Mensual"]
[null,"INTERNET","GOLD","1.1",512,512,2250.75,"Mensual"]
[null,"INTERNET","GOLD","1.1",1024,512,4157.07,"Mensual"]
[null,"INTERNET","PREMIUN","2.1",128,128,582.73,"Mensual"]
[null,"INTERNET","PREMIUN","2.1",256,256,650,"Mensual"]
[null,"INTERNET","PREMIUN","2.1",512,256,1297.5899999999999,"Mensual"]
[null,"INTERNET","PREMIUN","2.1",1024,512,2250.75,"Mensual"]
[null,"INTERNET","Corporativo","4.1",128,128,463.58,"Mensual"]
[null,"INTERNET","Corporativo","4.1",256,256,499,"Mensual"]
[null,"INTERNET","Corporativo","4.1",512,256,821.02,"Mensual"]
[null,"INTERNET","Corporativo","4.1",1024,512,1297.5899999999999,"Mensual"]
[null,"INTERNET","PYMES","8.1",128,64,360,"Mensual"]
[null,"INTERNET","PYMES","8.1",256,64,390,"Mensual"]
[null,"INTERNET","PYMES","8.1",512,128,489,"Mensual"]
[null,"INTERNET","PYMES","8.1",1024,256,700,"Mensual"]
[]
[]
[null,"Concepto de Traslados"]
[null,"Acceso",null,null,"Tarifa USD","Aplicación"]
[null,"Acceso Terrestre",null,null,852,"Por cada Solicitud"]
[null,"Acceso Terrestre + Áereo",null,null,1461,"Por cada Solicitud"]
[null,"Acceso Terrestre + Bote",null,null,1692.67,"Por cada Solicitud"]
[null,"Galápagos 1 **",null,null,1080,"Por cada Solicitud"]
[null,"Galápagos 2***",null,null,1790,"Por cada Solicitud"]
[null,"Precios no incluyen impuestos"]
[null,"** Galápagos 1. Islas Sta. Cruz y San Cristobal"]
[null,"*** Galápagos 2. Otras islas de Galápagos"]
[]
["Vigencia: 27 de abril de 2011"]
[{"$f":"+A473","v":"Elaborado: SENATEL-DGP, Publicación:  mayo  2013"}]
[]
["TARIFA (LOCUTORIOS DE TELEFONIA FIJA)"]
["INTERNACIONAL DESTINO CUBA"]
["1, Descripción "]
["Tarifa Internacional realizada desde locutorios de telefonía fija con destino a Cuba "]
["Descripción","Tarifa + IVA"]
["Tarifa Internacional realizada desde locutorios de telefonía fija con destino a Cuba",0.9]
["2. Condiciones y restricciones"]
["Aplica tarifa para locutorios de telefonía fija"]
["3. Vigencia:"]
["A partir del 30 de junio de 2011"]
[]
[{"$f":"+A548","v":"Elaborado: SENATEL-DGP, Publicación:  mayo  2013"}]
[]
["Tarifas"]
["Servicio 1800 Internacional Entrante"]
["1.  Descripción "]
["El servicio permite a un usuario final localizado dentro o fuera del territorio nacional realizar la llamada hacua un número localizado dentro del Paìs y el costo de la misma lo asumirà la empresa contrantante del servicio 1-800 (receptor de la llamada dentro del País). El número virtual se compone de 10 dígitos, de los cuales, los 6 ùltimos pueden ser escogidos por la empresa contratante, de acuerdo a la disponibilidad del número en la SENATEL"]
["2. TARIFAS"]
["TARIFAS DEL PRODUCTO  /  SERVICIO *"]
["Concepto","Tarifa (*)","Aplicación"]
["Inscripción (Para la contratación del servicio cancela un único valor)",160,"Una sola vez"]
["Pensión Básica",60,"Mensual"]
["Detallel de Llamadas",5,"Por cada solicitud"]
["Cesión de Derechos",7.24,"Por cada solicitud"]
["Cambio de número 1-800",0,"Por cada solicitud"]
["Cambio/reducción/ampliación número asociado",0,"Por cada solicitud"]
["Grabación Personalizada",0,"Por cada solicitud"]
["Enrutamiento geográfico",0,"Por cada solicitud"]
["Enrutamiento por día y hora",0,"Por cada solicitud"]
["Cambio de 1800 Nacional a 1800 Internacional","Se procede como una nueva contrataciòn","N/A"]
["(*) No incluye impuestos"]
[]
["TARIFAS DE LLAMADAS"]
["Orígen Nacional","$ Precio / Min."]
["Local",2.4E-2]
["Local Off Net",2.8000000000000001E-2]
["Nacional On net",5.6000000000000001E-2]
["Nacional Off net",0.112]
["Alegro",0.14499999999999999]
["Porta",0.14499999999999999]
["Setel","Local 0,028 / Nacional 0,112"]
["Orígen Internacional","$ Precio / Min."]
["Independientemente del país de orígen (no incluído E1 - E2 techos tarifarios y otros)",0.23]
["(*) No incluye impuestos"]
[]
["3. Condiciones "]
["El servcio 1800 Internacional Entrante se comercializará a través  de los canales de venta de CNT EP."]
["El cliente debe disponer de números telefónicos convencionales de CNT o E1`s telefónicos para asociarlos al número virtual 1800. Los números deben pertenecer a una central digital para acceder al servicio."]
["El servicio se comercializará una vez verificada las restricciones geográficas / tráfico."]
["El servicio de somercializará previa verificación de disponibilidad y reserva de número 1800 en la SENATEL y ante el ente regulador en el país de orígen de las llamadas. Si el número esta disponible se asigna el cliente, caso contrario se solicita un nuevo número al cliente."]
["4. Vigencia:"]
["El Servicio 1800 Internacional entrante será comercializado a partir del 1 de julio 2011"]
[{"$f":"+A561","v":"Elaborado: SENATEL-DGP, Publicación:  mayo  2013"}]
[]
[]
["Tarifas"]
["Servicio Centrex CNT EP Fija"]
["1.  Descripción "]
["El servicio CENTREX  se define como una central telefónica virtual creada por el proveedor de servicios sobre la central digital"]
["Con la Central digital Telefónica Virtual CENTREX se podrá hacer uso de todas las funcionalidades que una central telefónica normal ofrece."]
["A través de esta central, no se requieren equipos de conmutación en el cliente final ya que se emplean las propias extensiones de la central pública."]
["Clasificación:"]
["Centrex  Residencial: ","Central Telefónica Virtual al cual se puede asociar líneas telefónicas categoría residencial que se encuentren ubicadas en una misma dirección. Con el Centrex Residencial, las llamadas dentro del Grupo Centrex no tienen costo y los dueños de la línea pagan el servicio por separado manteniendo en cada línea los servicios suplementarios contratados  adicionalmete. Adicionalmente, con el Centrex residencial, el usuario no tiene que realizar ninguna inversión en sistemas de conmutación."]
["Centrex Comercial","Consiste en una central telefónica virtual a la cual se pueden asociar líneas telefónicas categoría comercial yu que pertenencen a una misma empresa y en misma dirección. Con el Centrex Comercial las llamadas dentro del grupo no tienen costo y existe la posibilidad de secuencias de llamadas dentro del grupo. Además, la empresa no tiene que realizar ninguna inversión en sistemas de comnutación."]
["Centrex Piloto Residencial","Consiste en una central telefónica virtual al cual se pueden asociar líneas telefónicas categoría residencial que se encuentran ubicadas en una misma dirección. Con el Centrex Piloto Residencial las llamadas dentro del grupo Centrex no tiene costo y los cobros del servicio de las líneas asociadas al grupo Centrex se cargan al piloto."]
["Centrex Piloto Comercial","Consiste en una central telefónica virtual a la cual se pueden asociar líneas telefónicas categoría comercial que pertenencen a una misma empresa. Con el Centrex Piloto Comercial  las llamadas dentro del grupo Centrex no tiene costo y los cobros del servicio de las líneas asociadas al grupo Centrex se cargan al piloto. Además existe secuencias de llamadas dentro del grupo."]
["Tarifas:"]
["Concepto","Tarifa (*)","Aplicación"]
["Inscripción","0,00 USD","Una sola vez"]
["Pensión Básica","2,40 USD por línea agrupada","Mensual"]
["(*) No incluye impuestos"]
["3. Condiciones y restricciones"]
["El servcio Centrex se comercializará a través  de los canales de venta de CNT EP."]
["La desactivación del servicio CENTREX no involucra la desactivación de la línea elefónica sino el retiro de la línea del grupo CENTREX que lo conforma."]
["Para que la línea telefónica pueda ser agrupada dentro de un Centrex, debe pertenecer al softswicht (NGN) de CNT EP."]
["Las tarifas del Centrex Piloto serán iguales a las del servicio Centrex, con las características que todos los rubros mensuales de las líneas pertenecientes a l mismo grupo Centrex Corporativo serán asumidos por la línea poloto del grupo"]
["Cuando se realiza un traslado de línea perteneciente a un grupo Centrex, se realizará la desactivación de la línea telefónica."]
["En caso de que se requiera un  cambio del piloto del grupo, se realizará la desintegración del grupo Centrex para volver a integrarlo, conforme el requerimiento de cambio y lo cual tendrá un costo adicional al cliente."]
["Para Instituciones Públicas cuyas líneas telefónicas son categorizadas como residenciales (categoría B) se podrán agrupar en un servicio Centrex Comercial y Centrex Piloto Comercial."]
["4. Vigencia:"]
["El Servicio Centrex será comercializado a partir del 19 de marzo de 2011"]
[{"$f":"+A602","v":"Elaborado: SENATEL-DGP, Publicación:  mayo  2013"}]
[]
["Tarifas"]
["Consola Centrex CNT EP Fija"]
["1.  Descripción "]
["La consola CENTREX  es un componente adicional y opcional para los servicios Centrex ¹ de CNT EP. Fija que permite realizar el control y monitoreo de las líneas que están integradas dentro de un grupo."]
["Es un sofware de propiedad de la CNT EP. y puede ser instalado en cualquier computador que al menos disponga de las siguientes características:"]
["Computador pentium II con 1G de RAM"]
["1 GB de disco duro"]
["Tarjeta de acelerador de audio de alta calidad"]
[]
["El administrador de las consola CENTREX puede configurar las activaciones o desactivaciones de llamadas de cada integrante de grupo, así como configuraciones de servicios suplementarios como transferencias, identificación de llamadas, llamadas en espera."]
["Adionalmente, la consola CENTREX tiene las siguientes características:"]
["La funcionalidad de IVR para grabar mensajes de bienvenida"]
["Administración de cuentas"]
["Medición de tráfico y detalle de llamadas"]
["Tarifas"]
[null,"Concepto","Tarifa (*)","Aplicación"]
[null,"Software consola CENTREX","900 USD","Una sola vez"]
[null,"Pensión Básica por línea agrupada en el CENTREX (CENTRX y CENTREX Piloto)","2,40 USD por línea agrupada","Mensual"]
[null,"(*) No incluyen impuestos"]
[]
["3. Condiciones y restricciones"]
["La instalación de este componente adicional está sujeta a condiciones propias de la conexión entre el softwitch (NGN) de CNT EP y el computador donde se encuentra instalado el software Consola CENTREX"]
["Le software puede ser instalado cualquier número de veces y su funcionamiento será habilitado a través del usuario y contraseña designado por el NGN"]
["4. Vigencia:"]
["El componente consola Centrex será comercializado a partir del 18 de julio de 2011"]
[{"$f":"+A631","v":"Elaborado: SENATEL-DGP, Publicación:  mayo  2013"}]
[]
["VOZ SOBRE INTERNET VOZZY"]
["1, Descripción "]
["\n\"Vozzy\", es una aplicación de voz sobre internet desarrallo por la CNT EP que permite comunicarse a nivel mundial con tarifas internacionales competiticas, con control de consumo en modalidad prepago con unba conexión de banda ancha.\nEl Usuario puede descargar este aplicativo de la página WEB de la CNT EP, mismo que le permitirá la creación de una cuenta a través de un usuario y contraseña.  Para cargar saldo a la cuenta Vozzy, se debe realizar a través de tarjetas propago de CNT (CONTIGO), para que ello se ingresa al aplicativo Vozzy el número de identificacion de la tarjeta Prepago y el saldo se carga automáticamente a la cuenta.\nUna vez efectuado el ingreso de la tarjeta y cargado el saldo en la cuenta, se podrá efectuar la marcación de números a los cuales desee comunicarse.\nEs importante indicar que el servicio de telefonía a través de internet Vozzy, no asigna un número telefónico al usuario, por lo cual las llamadas solo pueden ser de salida."]
["2, Aplicación:"]
["Para los clientes que hayan descargado el aplicativo desponible en la página Web de CNT EP"]
["3, Condiciones y Restricciones"]
["- Control de Consumo en modalidad de prepago"]
["- Aplicactivo que permite llamadas internacionales a nivel mundial"]
["- Alcance en toda la zona que existe cobertura de servicio de banda ancha a nivel local e internacional."]
["- Tarifación en segundos"]
["- Permite multi- Videoconferencia"]
["- Permite multi- audioconferencia"]
["- Incluye Chat"]
["- Llamadas Gratuitas entre usuarios Vozzy"]
["- Únicamente permite llamadas salientes"]
["- Se adjunta el detalle de las tarifas aplicables a este aplicativo"]
["Tarifas Actuales:"]
["País","Tarifa Actual","País","Tarifa Actual"]
["Jamaica",9.7000000000000003E-2,"Países Bajos",0.04]
["Jamaica (movi)",0.26200000000000001,"Países Bajos (movi)",0.24]
["Japón",4.2999999999999997E-2,"Pakistan",0.14799999999999999]
["Japón (movi)",0.19,"Panamá (movi)",0.152]
["Jordania",0.13,"Panamá City",6.6000000000000003E-2]
["Jordania (movi)",0.127,"Panamá Roc",0.11600000000000001]
["Kampuchea Dem.",0.152,"Papua Nueva Guinea",1.038]
["Kampuchea Dem.(movi)",0.17199999999999999,"Paraguay",0.108]
["Kenya",0.13900000000000001,"Paraguay (movi)",0.17]
["Kuwait (movi)",0.20399999999999999,"Perú",0.123]
["Kyrghysztan",0.21,"Perú (Lima)",7.0999999999999994E-2]
["Laos",0.7,"Perú  (movi)",0.26700000000000002]
["Letonia",0.11,"Polonia",5.8000000000000003E-2]
["Libano",0.14299999999999999,"Polonia  (movi)",0.28999999999999998]
["Libano (movi)",0.26400000000000001,"Portugal",0.12]
["Liberia",0.29199999999999998,"Portugal (movi)",0.23599999999999999]
["Libia",0.27700000000000002,"Puerto Rico",6.5000000000000002E-2]
["Liechtenstein",0.08,"Puerto Rico  (movi)",6.6000000000000003E-2]
["Liechtenstein (movi)",1.6519999999999999,"Qatar",0.35899999999999999]
["Lituania (movi)",0.20599999999999999,"Qatar  (movi)",0.36199999999999999]
["Lituania Rep.",0.1,"Reino Unido",2.1000000000000001E-2]
["Luxenburgo",0.05,"Reino Unido  (movi)",0.219]
["Luxenburgo (movi)",0.26100000000000001,"Reunión",0.16900000000000001]
["Macao",6.9000000000000006E-2,"Rumania",7.6999999999999999E-2]
["Macedonia",0.27660000000000001,"Rumania (movi)",0.32100000000000001]
["Madagascar",0.28499999999999998,"Rwanda",0.157]
["Malasia",5.8000000000000003E-2,"Salomón",1.0960000000000001]
["Malasia (movi)",5.7000000000000002E-2,"Samao Occidental",0.54500000000000004]
["Malawi",0.11,"San Kitts Nevis",0.25]
["Togolesa Rep.",0.39989999999999998,"Afganistan",0.33800000000000002]
["Tonga",0.44,"Afganistan (movi)",0.32200000000000001]
["Trinidad y Tobago",0.16600000000000001,"Alaska",0.09]
["Trinidad y Tobago (movi)",0.11700000000000001,"Albania",0.112]
["Tunez",0.39600000000000002,"Alemania",3.5000000000000003E-2]
["Turquesas y Caicos (movi)",0.307,"Alemania (movi A)",0.185]
["Turquía",5.8000000000000003E-2,"Alemania (movi B)",0.224]
["Turquía (movi)",0.221,"alemania (movi C)",0.26700000000000002]
["Ucrania",0.114,"Andorra",4.4900000000000002E-2]
["Uganda",0.14599999999999999,"Andorra (movi)",0.29499999999999998]
["Uruguay",8.3000000000000004E-2,"Angola",0.17199999999999999]
["Uruguay (movi)",0.245,"Anguilla",0.17899999999999999]
["Uzbekistan",0.48599999999999999,"Antigua y Barbuda",0.187]
["Vanuatu",0.61599999999999999,"Antigua y Barbuda (movi)",0.182]
["Venezuela",0.13500000000000001,"Antillas Holandesas",0.13]
["Venezuela (Caracas)",0.121,"Arabia Saudita",0.158]
["Venezuela (movi)",0.17699999999999999,"Arabia Saudita (movi)",0.219]
["Venezuela (movilnet)",0.16,"Argelia",0.18099999999999999]
["Vietnam",0.11700000000000001,"Argentina",0.191]
["Vietnam (movi)",0.126,"Argentina (Ba)",0.17799999999999999]
["Vírgenes Americanas",0.04,"Argentina (Corredor)",0.18099999999999999]
["Vírgenes Británicas",0.25740000000000002,"Argentina (movi)",0.2]
["Walls y Futuna",1.8,"Armenia",0.12]
["Yemen Rep. Arabe",0.17299999999999999,"Armenia (movi)",0.31]
["Yibuti (Djibouti)",0.41499999999999998,"Aruba",0.13700000000000001]
["Zaire",0.55489999999999995,"Ascención",1.8]
["Zambia",7.8E-2,"Australia",3.9E-2]
["Zimbabwe",0.104,"Australia (movi)",0.17100000000000001]
["Zimbabwe (movi)",0.55589999999999995,"Centro Africa",0.29499999999999998]
["Chad",0.20699999999999999,"Filipinas (movi)",0.20799999999999999]
["Checa Rep.",3.1E-2,"Finlandia",7.5999999999999998E-2]
["Checa Rep.  (movi)",0.22,"Finlandia (movi)",0.182]
["Chile",7.1999999999999995E-2,"Francia",0.115]
["Chile (movi)",0.246,"Francia (movi)",0.28499999999999998]
["Chile (Santiago)",7.1999999999999995E-2,"Gabonesa Rep.",0.17]
["China Rep. Pop.",3.3000000000000002E-2,"Georgia Rep.",0.14000000000000001]
["China Rep. Pop. (movi)",3.3000000000000002E-2,"Ghana",0.22]
["Chipre",0.08,"Ghana (movi)",0.22]
["Chipre (movi)",7.6999999999999999E-2,"Gibraltar",5.1999999999999998E-2]
["Colombia",9.6000000000000002E-2,"Granada",0.26]
["Colombia  (movi)",0.129,"Grecia",4.9000000000000002E-2]
["Colombia (Se)",0.13400000000000001,"Grecia (movi)",0.27700000000000002]
["Colombia Bogotá",4.2000000000000003E-2,"Groenlandia",0.66]
["Colombia Cali Barranquilla",8.5999999999999993E-2,"Guadalupe",0.7]
["Colombia Medellín",8.5999999999999993E-2,"Guadalupe (movi)",0.7]
["Comoras",0.41,"Guam",0.7]
["Comoras (movi)",0.49099999999999999,"Guatemala",0.16300000000000001]
["Congo",0.37,"Guatemala (movi)",0.16800000000000001]
["Corea Del Sur",2.8000000000000001E-2,"Guayana Francesa",0.38600000000000001]
["Corea Del Sur (movi)",6.8000000000000005E-2,"Guinea",0.38600000000000001]
["Costa de Marfil",0.22700000000000001,"Guinea Bissau",0.7]
["Costa Rica",7.0999999999999994E-2,"Guinea Ecuatorial",0.252]
["Costa Rica (movi)",7.3999999999999996E-2,"Guyana",0.35]
["Croacia",0.08,"Guyana (movi)",0.35099999999999998]
["Croacia (movi)",0.254,"Haiti",0.23]
["Cuba",0.88,"Haiti (movi)",0.23]
["Austria",0.32,"Hawai",3.7999999999999999E-2]
["Austria (movi)",0.38669999999999999,"Cuba (movi)",0.88]
["Azerbaiyana Rep.",0.28989999999999999,"Diego García",1.8]
["Bahamas",0.11,"Dinamarca",3.5000000000000003E-2]
["Bahrein",0.123,"Dinamarca (movi)",0.27]
["Bangladesh",7.5999999999999998E-2,"Dominica",0.31]
["Barbados",0.16800000000000001,"Dominica (movi)",0.28199999999999997]
["Belarus",0.24299999999999999,"Dominica Rep.",0.13]
["Belarus (movi)",0.26800000000000002,"Dominica Rep.((movi)",0.152]
["Belgica",4.1000000000000002E-2,"Ecuador",0.15]
["Belgica (movi)",0.42299999999999999,"Ecuador (movi)",0.2]
["Belice",0.27100000000000002,"Egipto",0.19800000000000001]
["Benin",0.15,"Egipto (movi)",0.18]
["Bermudas",9.9000000000000005E-2,"El Salvador",0.18]
["Birmania",0.36199999999999999,"Emiratos Arabes Unidos",0.41399999999999998]
["Bolivia",0.2,"Emiratos Arabes Unidos(movi)",0.37]
["Bolivia (movi)",0.13500000000000001,"Eritrea",0.33200000000000002]
["Bosnia Herzegovina",0.3,"Eslovaquia",5.2999999999999999E-2]
["Brasil",7.1999999999999995E-2,"Eslovaquia (movi)",0.23200000000000001]
["Brasil (movi)",0.2,"Eslovenia",4.4999999999999998E-2]
["Brasil (SP-RI)",5.8999999999999997E-2,"Eslovenia (movi)",0.36]
["Bulgaria",5.8999999999999997E-2,"España",2.9000000000000001E-2]
["Bulgaria (movi)",0.42,"España (movi)",0.22800000000000001]
["Burkina Faso",0.246,"Estados Unidos",2.1999999999999999E-2]
["Burundi",9.7000000000000003E-2,"Estados Unidos 800-Toll Fre",0.05]
["Cabo Verde",0.32500000000000001,"Estonia",7.3999999999999996E-2]
["Caiman",0.17,"Etiopía",0.35]
["Camerun",0.14399999999999999,"Fed. Rusa",0.08]
["Camerun (movi)",0.23,"Fed. Rusa (movi)",7.4999999999999997E-2]
["Canadá",2.3E-2,"Fed. Rusa (SP)",9.9000000000000005E-2]
["Honduras",0.23699999999999999,"Filipinas",0.17]
["Honduras (movi)",0.26,"Maldivas",0.56999999999999995]
["Hong Kong",0.05,"Mali",0.24]
["Hong Kong (movi)",0.05,"Malta",0.16200000000000001]
["Hungría",3.3000000000000002E-2,"Malvinas",0.628]
["Hungría (movi)",0.20699999999999999,"Marianas",8.1000000000000003E-2]
["India",0.106,"Marruecos",0.19400000000000001]
["India (movi)",9.4E-2,"Martinica",0.16900000000000001]
["Indonesia",0.12,"Martinica (movi)",0.36099999999999999]
["Indonesia (movi)",0.16600000000000001,"Mauritania",0.32500000000000001]
["Inmarsat AT871-INMA",7.45,"México",0.17499999999999999]
["Inmarsat AT871-INMA",7.45,"México (DF)",0.152]
["Inmarsat AT873-INMA",7.45,"Moldova",0.251]
["Inmarsat AT874-INMA",7.45,"Mónaco",5.6000000000000001E-2]
["Inmarsat AT874-INMA",7.45,"Mónaco (movi)",0.21]
["Irán ",9.4E-2,"Mongolia",0.7]
["Irán  (movi)",0.14000000000000001,"Mozambique",0.126]
["Iraq",8.3000000000000004E-2,"Namibia",0.11]
["Iridium",4.1900000000000004,"Nauru",1.3069999999999999]
["Irlanda",4.8000000000000001E-2,"Nepal",0.7]
["Irlanda (movi)",0.36299999999999999,"Nicaragua",0.245]
["Islandia",4.7E-2,"Nicaragua (movi)",0.252]
["Islandia (movi)",0.33600000000000002,"Niger",0.7]
["Israel",7.5999999999999998E-2,"Nigeria",0.16200000000000001]
["Israel (movi)",0.21709999999999999,"Noruega",4.2000000000000003E-2]
["Italia",4.5999999999999999E-2,"Noruega (movi)",0.27400000000000002]
["Italia (movi Wind)",0.25,"Nueva Celedonia",0.307]
["Italia (movi)",0.23100000000000001,"Nueva Zelandia",3.5000000000000003E-2]
["Italia (TIM)",0.25800000000000001,"Nueva Zelandia (movi)",0.28199999999999997]
["Italia (Vodafon)",0.246,"Oman",0.248]
["San Pedro y Miquelón",0.29599999999999999]
["San Vicente",0.18]
["Santa Lucía",0.13200000000000001]
["Senegal",0.34]
["Senegal (movi)",0.35]
["Servia y Montenegro",0.28999999999999998]
["Seychelles",0.26300000000000001]
["Sierra Leona",0.37]
["Singapur",0.31990000000000002]
["Singapur (movi)",3.1E-2]
["Siria",0.29299999999999998]
["Somalia",0.624]
["Sri Lanka",0.14099999999999999]
["Sto. Tome/ Principe",1.131]
["Sudafrica",0.14000000000000001]
["Sudafrica (movi)",0.23749999999999999]
["Sudan",0.19800000000000001]
["Suecia",0.14599999999999999]
["Suecia (movi)",0.27300000000000002]
["Suiza",4.5999999999999999E-2]
["Suiza (movi)",0.62990000000000002]
["Surinam",0.26900000000000002]
["Swazilandia",0.64300000000000002]
["Tailandia",6.6000000000000003E-2]
["Tailandia (movi)",3.3000000000000002E-2]
["Taiwan",0.05]
["Taiwan (movi)",0.17549999999999999]
["Tanzania",0.18579999999999999]
["Timor Oriental",0.7]
[]
["4. Vigencia:"]
[" A partir del 10 de abril de 2012"]
[{"$f":"+A658","v":"Elaborado: SENATEL-DGP, Publicación:  mayo  2013"}]
[]
["PLANES INTERNET FIJO RESIDENCIAL"]
["1. Descripción "]
["Los nuevos \"Planes Internet fijo residencial\" comprende un conjunto de planes que permite brindar a los clientes un servicio con mejores ancho de banda en internet."]
["PLANES INTERNET FAST BOY FIJO 2012"]
["DOWN","UP","VALOR MENSUAL USD","INSCRIPCION (USD)"]
["2000 Kbps","500 Kbps",18,50]
["3000 Kbps","500 Kbps",24.9,50]
["4000 Kbps","500 Kbps",36,50]
["*6000 Kbps","500 Kbps",49.9,50]
["*10000 Kbps","1000 Kbps",60,50]
["*15000 Kbps","1000 Kbps",105,50]
["*Previa factibilidad técnica"]
["Tarifas no incluyen impuestos"]
["2. Condiciones  y restricciones:"]
["Aplica para nuevos clientes. En el caso de que los clientes antiguos deseen la contratación de estos planes, deberán solicitarlo a CNT EP a través de los canales de atención al cliente."]
["Para la instalación de estos planes se constatará preliminarmente la factibilidad técnica."]
["Planes de carácter residencial"]
["Al momento estos planes no se comercializan en la provincia de Galápagos "]
["Aplica para Internet equipado.\nComprende el brindar paquetes a los usuarios que incluyen la adquisión de un computador (desktop, laptop, netebook o tabletas) más el servicio de Banda Ancha Móvil 3,5G o Internet fijo ."]
["4. Vigencia."]
["A partir del 12 de noviembre de 2012"]
[{"$f":"+A855","v":"Elaborado: SENATEL-DGP, Publicación:  mayo  2013"}]
[]
[]
[]
[]
[]
[]
[]
[]
[]
[]
[]
[]
[]
[]
[]
[]
[]
[]
[]
[]
[]
[]
[]
[]
[]
[]
[]
[]
[]
[]
[]
[]
[]
[]
[]
[]
[]
[]
[]
[]
[]
[]
[]
[]
[]
[]
[]
[]
[]
[]
[]
[]
[]
[]
[{"$f":"+A878","v":"Elaborado: SENATEL-DGP, Publicación:  mayo  2013"}]
[]
[]
[]
[]
[]
[]
[]
[]
[]
[]
[]
[]
[]
[]
[]
[]
[]
[]
[]
[]
[{"$f":"+A878","v":"Elaborado: SENATEL-DGP, Publicación:  mayo  2013"}]
[]
[]
[]
[]
[]
[]
[]
[]
[]
[]
[]
[]
[]
[]
[]
[]
[]
[]
[]
[]
[]
[]
[]
[]
[]
[]
[]
[]
[]
[]
[]
[]
[]
[]
[]
[]
[]
[]
[]
[]
[]
[]
[]
[]
[]
[]
[]
[]
[]
[]
[]
[]
[]
[]
[]
[]
[]
[]
[]
[]
[]
[]
[]
[]
[]
[]
[]
[]
[]
[]
[]
[]
[]
[]
[]
[]
[]
[]
[]
[{"$f":"+A954","v":"Elaborado: SENATEL-DGP, Publicación:  mayo  2013"}]
[]
[]
[]
[]
[]
[]
[]
[]
[]
[]
[]
[]
[]
[]
[]
[]
[]
[]
[]
[]
[]
[]
[]
[]
[]
[]
[]
[]
[]
[]
[]
[]
[]
[]
[]
[]
[]
[]
[]
[]
[]
[]
[]
[]
[]
[]
[]
[]
[]
[]
[]
[]
[]
[]
[]
[]
[]
[]
[]
[]
[]
[]
[]
[]
[]
[]
[]
[]
[]
[]
[]
[]
[]
[]
[]
[]
[]
[]
[]
[]
[]
[{"$f":"+A1034","v":"Elaborado: SENATEL-DGP, Publicación:  mayo  2013"}]
[]
[]
[]
[]
[]
[]
[]
[]
[]
[]
[]
[]
[]
[]
[]
[]
[]
[]
[]
[]
[]
[]
[]
[]
[]
[]
[]
[]
[]
[]
[]
[]
[]
[]
[]
[]
[]
[]
[]
[]
[]
[]
[]
[]
[]
[]
[]
[]
[]
[]
[]
[]
[]
[]
[]
[]
[]
[]
[]
[]
[]
[]
[]
[]
[]
[]
[]
[]
[]
[]
[]
[]
[]
[]
[]
[]
[{"$f":"+A1116","v":"Elaborado: SENATEL-DGP, Publicación:  mayo  2013"}]
[]
[]
[]
[]
[]
[]
[]
[]
[]
[]
[]
[]
[]
[]
[]
[]
[]
[]
[]
[]
[]
[]
[]
[]
[]
[]
[]
[]
[]
[]
[]
[]
[]
[]
[]
[]
[]
[]
[]
[]
[]
[]
[]
[]
[]
[]
[]
[]
[]
[]
[]
[]
[]
[]
[]
[]
[]
[]
[]
[]
[]
[]
[]
[]
[]
[]
[]
[]
[]
[]
[]
[]
[]
[]
[]
[]
[]
[]
[]
[{"$f":"+A1193","v":"Elaborado: SENATEL-DGP, Publicación:  mayo  2013"}]
[]
[]
[]
[]
[]
[]
[]
[]
[]
[]
[]
[]
[]
[]
[]
[]
[]
[]
[]
[]
[]
[]
[]
[]
[]
[]
[]
[]
[]
[]
[]
[]
[]
[]
[]
[]
[]
[]
[]
[]
[]
[]
[]
[]
[]
[]
[]
[]
[]
[]
[]
[]
[]
[]
[]
[]
[]
[]
[]
[]
[]
[]
[]
[]
[]
[]
[]
[]
[]
[]
[]
[]
[]
[]
[]
[]
[]
[]
[]
[]
[]
[]
[]
[]
[]
[]
[]
[]
[]
[]
[]
[]
[]
[]
[]
[]
[]
[]
[]
[]
[{"$f":"+A1273","v":"Elaborado: SENATEL-DGP, Publicación:  mayo  2013"}]
[]
[]
[]
[]
[]
[]
[]
[]
[]
[]
[]
[]
[]
[]
[]
[]
[]
[]
[]
[]
[]
[]
[]
[]
[]
[]
[]
[]
[]
[]
[]
[]
[]
[]
[]
[]
[]
[]
[]
[]
[]
[]
[]
[]
[]
[]
[]
[]
[]
[]
[]
[]
[]
[]
[]
[]
[]
[]
[]
[]
[]
[]
[]
[]
[]
[]
[]
[]
[]
[]
[]
[]
[]
[]
[]
[]
[]
[]
[]
[]
[]
[]
[]
[]
[]
[]
[]
[]
[]
[]
[]
[]
[]
[]
[]
[]
[]
[]
[]
[]
[]
[]
[]
[]
[]
[]
[{"$f":"+A1374","v":"Elaborado: SENATEL-DGP, Publicación:  mayo  2013"}]
[]
[]
[]
[]
[]
[]
[]
[]
[]
[]
[]
[]
[]
[]
[]
[]
[]
[]
[]
[]
[]
[]
[]
[]
[]
[]
[]
[]
[]
[]
[]
[]
[]
[]
[]
[]
[]
[]
[]
[]
[]
[]
[]
[]
[]
[]
[]
[]
[]
[]
[]
[]
[]
[]
[]
[]
[]
[]
[]
[]
[]
[]
[]
[]
[]
[]
[]
[]
[]
[]
[]
[]
[]
[]
[]
[]
[]
[]
[]
[]
[]
[]
[]
[]
[]
[]
[]
[]
[]
[{"$f":"+A1374","v":"Elaborado: SENATEL-DGP, Publicación:  mayo  2013"}]
["1. Fuente: CNT E.P."]
["2. No se incluye valor de los impuestos"]
[{"$f":"+A1481","v":"Elaborado: SENATEL-DGP, Publicación:  mayo  2013"}]

{"sheet":"ETAPA.EP","index":3,"n_rows":272,"n_cols":7,"rows_kept":272,"cut":false,"hidden":false,"merged":[[39,1,39,3],[41,0,41,4],[46,1,46,4],[59,1,59,4],[57,1,57,4],[52,1,52,4],[53,1,53,4],[54,1,54,4],[55,1,55,4],[56,1,56,4],[169,1,169,2],[155,1,164,1],[155,2,164,2],[155,3,159,3],[155,5,159,5],[160,3,164,3],[160,5,164,5],[147,1,154,1],[147,2,154,2],[147,3,150,3],[147,5,150,5],[151,3,154,3],[151,5,154,5],[139,1,146,1],[139,2,146,2],[139,3,142,3],[139,5,142,5],[143,3,146,3],[143,5,146,5],[129,1,138,1],[129,2,138,2],[129,3,133,3],[129,5,133,5],[134,3,138,3],[134,5,138,5],[125,1,128,1],[125,2,128,2],[125,3,126,3],[125,5,126,5],[127,3,128,3],[127,5,128,5],[117,1,117,2],[118,1,118,2],[119,1,119,2],[122,1,122,5],[123,2,123,4],[116,1,116,2],[51,1,51,4],[47,1,47,4],[49,1,49,4],[50,1,50,4],[12,1,12,4],[11,1,11,4],[13,1,13,4],[29,1,29,4],[28,1,28,2],[15,1,16,2],[17,1,22,1],[17,2,22,2],[180,1,180,4],[30,1,31,4],[34,4,35,4],[28,3,28,4],[23,1,26,1],[97,1,97,3],[99,1,103,1],[63,1,63,6],[78,1,78,5],[64,1,64,6],[32,1,33,2],[32,4,33,4],[104,1,108,1],[109,1,113,1],[114,1,114,3],[115,1,115,2]]}
[]
["    Servicio de Telefonía Fija"]
["      Plan Tarifario ETAPA E.P."]
[]
[]
[]
[]
["      Fecha de publicación: mayo de 2013"]
[]
[]
[]
[null,"TARIFAS DE TELEFONÍA LOCAL"]
[null,"Vigentes a partir del 25 de marzo del 2001"]
[null,"En cumplimiento a lo ordenado en el artículo 136 del Decreto Ejecutivo 3301 (Suplemento 832 del Registro Oficial del 29 de Noviembre de 1995, reformado por el artículo 11 del Decreto Ejecutivo 833 (Registro Oficial 2do. - S 194 del 14 de Noviembre de 1997), se publica a continuación las tarifas de los servicios de telefonía local prestados por ETAPA."]
[]
[null,null,null,"Pensión Básica Mensual","Tarifas por Minuto Uso Local"]
[null,null,null,"USD","USD"]
[null,"Categoría A","Abonados: Populares Marginales y Rurales",0.8,2E-3]
[null,null,null,"300 minutos libres"]
[]
[]
[]
[null,null,null,"300 minutos libres"]
[null,"Categoría B","Abonados: Residenciales, Sector Público e Instituciones"]
[null,null,"B200 : Consumo de 0 hasta 200 minutos",1.99,2E-3]
[null,null,"B500 : Consumo de más de 200 minutos hasta 500 minutos (a)",3.99,6.0000000000000001E-3]
[null,null,"B+500 : Consumo de más de 500 minutos",4.79,7.0000000000000001E-3]
[null,"Categoría C","Abonados: Comerciales e Industriales",9.99,2.1999999999999999E-2]
[]
[null,"1. A estos valores debe agregarse el impuesto establecido por Ley: 12% IVA."]
[null,"Adquisición nueva línea"]
[]
[null,null,null,"Adquisición Nueva Línea (inscripción)"]
[null,null,null,"US dólares"]
[null,"Categoría A","Abonados: Populares Marginales y Rurales","$ 60"]
[null,"Categoría B","Abonados: Residenciales, Sector Público e Instituciones","$ 90"]
[null,"Categoría C","Abonados: Comerciales e Industriales","$ 148"]
[]
[]
[null,"Nota: Estos son los precios finales que usted deberá cancelar."]
[]
[" Estos valores incluyen valor de adquisición más derecho de acceso a la red"]
[]
[]
[null,"Notas Aclaratorias"]
[]
[null,"a. Incluye 300 minutos de uso libre local."]
[null,"b. Resolución Sesión Extraordinaria del Directorio del 30 de agosto de 2001 - Oficio 02697-GG , aprobación de plan promocional con aplicación para los consumos comprendidos entre 200 y 700 minutos, según el siguiente detalle: "]
[]
[null,"1. El consumo telefónico entre 201 y 300 minutos tiene el 50% de descuento en la pensión básica, es decir de US$ 2,00 (Rebaja de US$ 3,99 a US$ 1,99)."]
[null,"2. El consumo telefónico entre 301 y 400 minutos tiene el 35% de descuento en la pensión básica, es decir de US$ 1,40 (Rebaja de US$ 3,99 a US$ 2,59)."]
[null,"3. El consumo telefónico entre 401 y 500 minutos tiene el 15% de descuento en la pensión básica, es decir de US$ 0,60 (Rebaja de US$ 3,99 a US$ 3,39)."]
[null,"4. El consumo telefónico entre 501 y 700 minutos tiene el 10% de descuento en la pensión básica, es decir de US$ 0,48 (Rebaja de US$ 4,79 a US$ 4,31)."]
[null,"(Promoción vigente de acuerdo a lo dispuesto mediante Memorandum 0699 y 0700-GG de 1 de diciembre de 2001)"]
[null,"c. Resolución Directorio Sesión Ordinaria del 17 de mayo de 2004, Aplicación inmediata de lo estipulado en el Art. 15 de la Ley Reformatoria a la Ley del Anciano publicada en el RO No.231 del 12 de diciembre de 2003. - Oficio 2197-GG 31 de mayo de 2004."]
[null,"1. Descuento del 50% de la tarifa básica residencial de un teléfono de propiedad del beneficiario en su domicilio. ( Extensivo en su totalidad para ciudadanos discapacitados, de la tercera edad y jubilados sin trabajo)."]
[null,"2. Descuento del 50% del valor del consumo que causare el uso de la telefonía local, para las Instituciones sin fines de lucro que den atención a las personas de la tercera edad como: Asilos, Albergues, Comedores e Instituciones Gerentológicas."]
[null,"3. Descuento de hasta $6 mensuales en el valor facturado por consumo telefónico local para puestos de auxilio inmediato."]
[]
[null,"FUENTE: Dirección General de Planificación - Estudios Económicos y Proyectos - Gerencia Comercial"]
[]
[]
[]
[null,"Banda Ancha"]
[null,"Planes Residenciales "]
[]
[null,"Velocidad","350 Kbps","600 Kbps","1200 Kbps","2100 Kbps"]
[null,"Bajada/Subida","350/350","600/600","1200/600","2100/750"]
[null,"Concentración","8/1","8/1","8/1","8/1"]
[null,"Precio (no incluye IVA) USD",19.989999999999998,29.99,49,80]
[null,"Instalación USD",40,40,40,40]
[null,"Modem ADSL","Comodato con pagaré de $ 100 ","Comodato con pagaré de $ 100 ","Comodato con pagaré de $ 100 ","Comodato con pagaré de $ 100 "]
[null,"Modem ADSL + WI FI","Comodato con pagaré de $ 100 ","Comodato con pagaré de $ 100 ","Comodato con pagaré de $ 100 ","Comodato con pagaré de $ 100 "]
[null,"Programación Modem ADSL + WI FI USD",25,25,25,25]
[null,"Tiempo Mínimo de Permencia","un año","un año","un año","un año"]
[null,"Condiciones Especiales","Si se retira de un año, el cliente deberá cancelar la cantidad prorrateada mensual por alquiler y uso del moden durante los meses utilizados y devolver dicho modem o cancelar la totalidad de su valor, en función del modelo de equipo entregado.","Si se retira de un año, el cliente deberá cancelar la cantidad prorrateada mensual por alquiler y uso del moden durante los meses utilizados y devolver dicho modem o cancelar la totalidad de su valor, en función del modelo de equipo entregado.","Si se retira de un año, el cliente deberá cancelar la cantidad prorrateada mensual por alquiler y uso del moden durante los meses utilizados y devolver dicho modem o cancelar la totalidad de su valor, en función del modelo de equipo entregado.","Si se retira de un año, el cliente deberá cancelar la cantidad prorrateada mensual por alquiler y uso del moden durante los meses utilizados y devolver dicho modem o cancelar la totalidad de su valor, en función del modelo de equipo entregado."]
[null,"Acuerdo Nivel de Servicio","Inspección e instalación en dos días a partir del pago de la instalación.","Inspección e instalación en dos días a partir del pago de la instalación.","Inspección e instalación en dos días a partir del pago de la instalación.","Inspección e instalación en dos días a partir del pago de la instalación."]
[]
[null,"Planes Empresariales"]
[]
[null,"Velocidad","256 Kbps","350 Kbps","600 Kbps","1200 Kbps","2100 Kbps"]
[null,"Bajada/Subida","256/256","350/350","600/600","1200/600","2100/750"]
[null,"Concentración","1/1","1/1","1/1","1/1","1/1"]
[null,"Precio (no incluye IVA) USD",134,189,255,458,819]
[]
[null,"Velocidad","256 Kbps","350 Kbps","600 Kbps","1200 Kbps","2100 Kbps"]
[null,"Bajada/Subida","256/256","350/350","600/600","1200/600","2100/750"]
[null,"Concentración","2/1","2/1","2/1","2/1","2/1"]
[null,"Precio (no incluye IVA) USD",78,114,142,256,464]
[]
[null,"Velocidad","256 Kbps","350 Kbps","600 Kbps","1200 Kbps"]
[null,"Bajada/Subida","256/256","350/350","600/600","1200/600"]
[null,"Concentración","4/1","4/1","4/1","4/1"]
[null,"Precio (no incluye IVA) USD",51.2,72.19,100,190]
[]
[]
[]
[null,"PLAN DE TARIFAS (1)"]
[null,"Categoria","Descripción","Valor               USD"]
[null,"Categoria A","Costo de suscripción",44]
[null,null,"Pensión Básica mensual",6.9]
[null,null,"Costo por minuto local",1.7000000000000001E-2]
[null,null,"Costo por minuto regional",0.02]
[null,null,"Costo por minuto Nacional",0.04]
[null,"Categoria B","Costo de suscripción",88]
[null,null,"Pensión Básica mensual",6.9]
[null,null,"Costo por minuto local",1.7000000000000001E-2]
[null,null,"Costo por minuto regional",0.02]
[null,null,"Costo por minuto Nacional",0.04]
[null,"Categoria C","Costo de suscripción",120]
[null,null,"Pensión Básica mensual",12]
[null,null,"Costo por minuto local",0.02]
[null,null,"Costo por minuto regional",0.04]
[null,null,"Costo por minuto Nacional",0.08]
[null,"Servicio Suplementarios"]
[null,"Transferencia de Llamadas",null,0]
[null,"Llamada en espera",null,0]
[null,"Llamada Tripartita",null,0]
[null,"Llamada en confernecia",null,0]
[null,"Identificador de Llamadas (Caller ID)",null,0]
[]
[]
[null,"TASAS DE TRAFICO INTERNACIONAL (1)"]
[null,"GRUPO","DESTINO",null,null,"Tarifa al Público"]
[null,1,"USA",null,"USA",0.09]
[null,2,"Italia - España","Fijos","Italia",0.14000000000000001]
[null,null,null,null,"España"]
[null,null,null,"Móviles","Italia",0.35]
[null,null,null,null,"España"]
[null,3,"Resto de Europa","Fijos","Alemania",0.14000000000000001]
[null,null,null,null,"UK"]
[null,null,null,null,"Francia"]
[null,null,null,null,"Switzerland"]
[null,null,null,null,"Belgium"]
[null,null,null,"Móviles","Alemania",0.5]
[null,null,null,null,"UK"]
[null,null,null,null,"Francia"]
[null,null,null,null,"Switzerland"]
[null,null,null,null,"Belgium"]
[null,4,"Pacto Andino","Fijos","Perú",0.16]
[null,null,null,null,"Colombia"]
[null,null,null,null,"Venezuela"]
[null,null,null,null,"Bolivia"]
[null,null,null,"Móviles","Perú",0.36]
[null,null,null,null,"Colombia"]
[null,null,null,null,"Venezuela"]
[null,null,null,null,"Bolivia"]
[null,5,"Resto de América","Fijos","Chile",0.16]
[null,null,null,null,"Argentina"]
[null,null,null,null,"Panamá"]
[null,null,null,null,"Brazil"]
[null,null,null,"Móviles","Chile",0.36]
[null,null,null,null,"Argentina"]
[null,null,null,null,"Panamá"]
[null,null,null,null,"Brazil"]
[null,6,"Resto de América","Fijos","China",0.24]
[null,null,null,null,"Israel"]
[null,null,null,null,"Australia"]
[null,null,null,null,"Japón"]
[null,null,null,null,"Korea (South)"]
[null,null,null,"Móviles","China",0.36]
[null,null,null,null,"Israel"]
[null,null,null,null,"Australia"]
[null,null,null,null,"Japón"]
[null,null,null,null,"Korea (South)"]
[null,7,"Cuba",null,"Cuba",0.5]
[null,8,"Móvil Marítimo",null,"Móvil Marítimo","No disponible"]
[]
[]
[null,"TARIFAS DE TELEFONIA FIJA PARA GUANGARCUCHO (1)"]
[null,"CONCEPTO","VALOR                        USD"]
[null,"Derecho de Inscripación",88]
[null,"Pensión Básica",8.6]
[null,"Minuto de Uso Local",1.7000000000000001E-2]
[null,"Minuto de Uso Regional",2.7E-2]
[null,"Minuto de Uso Nacional",5.6000000000000001E-2]
[null,"Minuto LDI todos los destinos (excepto móvil marítimo)",0.5]
[]
[]
[]
[null,"Planes Tarifarios"]
[null,"Planes Residenciales","Velocidad KBPS Bajada","Comprensión","Precio Techo sin IVA"]
[null,"Plan Residencial 700 kbps 8:1",700,"8 a 1",19.989999999999998]
[null,"Plan Residencial 1 Mega  8:1",1000,"8 a 1",25.99]
[null,"Plan Residencial 1.2 Mega  8:1",1200,"8 a 1",29.9]
[null,"Plan Residencial 1.6 Mega  8:1",1600,"8 a 1",39.9]
[null,"Plan Residencial 2 Mega  8:1",2000,"8 a 1",49]
[null,"Plan Residencial 2.1 Mega  8:1",2078,"8 a 1",51.2]
[null,"Plan Residencial 2.5 Mega  8:1",2500,"8 a 1",58.23]
[null,"Plan Residencial 3 Mega  8:1",3000,"8 a 1",66.569999999999993]
[null,"Plan Residencial 3.3 Mega  8:1",3300,"8 a 1",71.569999999999993]
[null,"Plan Residencial 3.8 Mega  8:1",3800,"8 a 1",79.900000000000006]
[null,"Plan Residencial 4.4 Mega  8:1",4350,"8 a 1",89.07]
[]
[null,"Planes Educando Rural","Velocidad KBPS Bajada","Comprensión","Precio Techo sin IVA"]
[null,"Plan Educando Rural 350 Kbps 4:1",350,"4 a 1",8]
[null,"Plan Educando Rural 700 Kbps 4:1",700,"4 a 1 ",12.3]
[null,"Plan Educando Rural 1.400 Kbps 4:1",1400,"4 a 1 ",20.8]
[]
[null,"Planes Educando Urbano","Velocidad KBPS Bajada","Comprensión","Precio Techo sin IVA"]
[null,"Plan Educando Urbano 350 Kbps 1:1",350,"1 a 1",37.6]
[null,"Plan Educando Urbano 450 Kbps 1:1",450,"1 a 1",48.3]
[null,"Plan Educando Urbano 700 Kbps 1:1",700,"1 a 1",75.2]
[null,"Plan Educando Urbano 1.400 Kbps 1:1",1400,"1 a 1",130.72999999999999]
[null,"Plan Educando Urbano 2.400 Kbps 1:1",2400,"1 a 1",208.72]
[null,"Plan Educando Urbano 3.000 Kbps 1:1",3000,"1 a 1",255.51]
[null,"Plan Educando Urbano 4.000 Kbps 1:1",4000,"1 a 1",333.5]
[]
[null,"Planes Empresariales 4:1","Velocidad KBPS Bajada","Comprensión","Precio Techo sin IVA"]
[null,"Plan Empresarial 450 Kbps  4:1",450,"4 a 1",57.49]
[null,"Plan Empresarial 660 Kbps  4:1",660,"4 a 1",77.36]
[null,"Plan Empresarial 700 Kbps  4:1",700,"4 a 1",80.28]
[null,"Plan Empresarial 1 Mega  4:1",1024,"4 a 1",98.9]
[null,"Plan Empresarial 1.2  Megas  4:1",1200,"4 a 1",110]
[null,"Plan Empresarial 1.4 Megas  4:1",1400,"4 a 1",125.34]
[null,"Plan Empresarial 1.5  Megas  4:1",1500,"4 a 1",132.37]
[null,"Plan Empresarial 2  Mega  4:1",2060,"4 a 1",170]
[null,"Plan Empresarial 2.4  Megas  4:1",2400,"4 a 1",190]
[null,"Plan Empresarial 3  Megas  4:1",3000,"4 a 1",225.68]
[]
[null,"Planes Empresariales 2:1","Velocidad KBPS Bajada","Comprensión","Precio Techo sin IVA"]
[null,"Plan Empresarial 450 Kbps  2:1",450,"2 a 1",125.95]
[null,"Plan Empresarial 700 Kbps  2:1",660,"2 a 1",150.24]
[null,"Plan Empresarial 1.1 Megas  2:1",1100,"2 a 1",194]
[null,"Plan Empresarial 1.4 Megas  2:1",1400,"2 a 1",229.9]
[null,"Plan Empresarial 1.5 Megas  2:1",1500,"2 a 1",244]
[null,"Plan Empresarial 1.6 Megas  2:1",1600,"2 a 1",256]
[null,"Plan Empresarial 2.4 Megas  2:1",2400,"2 a 1",343.7]
[null,"Plan Empresarial 3 Megas  2:1",3000,"2 a 1",411.99]
[null,"Plan Empresarial 3.4 Megas  2:1",3400,"2 a 1",458]
[null,"Plan Empresarial 4 Megas  2:1",4000,"2 a 1",525.79]
[null,"Plan Empresarial 5 Megas  2:1",5000,"2 a 1",369.6]
[]
[null,"Planes Empresariales 1:1","Velocidad KBPS Bajada","Comprensión","Precio Techo sin IVA"]
[null,"Plan Empresarial 300 Kbps  1:1",300,"1 a 1",134]
[null,"Plan Empresarial 450 Kbps  1:1",450,"1 a 1",166.25]
[null,"Plan Empresarial 700 Kbps  1:1",700,"1 a 1",219.4]
[null,"Plan Empresarial 784 Kbps  1:1",784,"1 a 1",237]
[null,"Plan Empresarial 864 Kbps  1:1",864,"1 a 1",255]
[null,"Plan Empresarial 1.2 Megas  1:1",1200,"1 a 1",325.70999999999998]
[null,"Plan Empresarial 1.25 Megas  1:1",1250,"1 a 1",334]
[null,"Plan Empresarial 1.4 Megas  1:1",1400,"1 a 1",368.23]
[null,"Plan Empresarial 1.6 Megas  1:1",1600,"1 a 1",418]
[null,"Plan Empresarial 2.4 Megas  1:1",2400,"1 a 1",580.84]
[null,"Plan Empresarial 3 Megas  1:1",3000,"1 a 1",708.41]
[null,"Plan Empresarial 3.4 Megas  1:1",3370,"1 a 1",787]
[null,"Plan Empresarial 3.5 Megas  1:1",3500,"1 a 1",819]
[null,"Plan Empresarial 4 Megas  1:1",4000,"1 a 1",921.02]
[null,"Plan Empresarial 5 Megas  1:1",5000,"1 a 1",1133.6300000000001]
[null,"Plan Empresarial 6 Megas  1:1",6000,"1 a 1",1346.24]
[null,"Plan Empresarial 7 Megas  1:1",7000,"1 a 1",1558.85]
[null,"Plan Empresarial 8 Megas  1:1",8000,"1 a 1",1771.46]
[null,"Plan Empresarial 8.2 Megas  1:1",8192,"1 a 1",1812.29]
[null,"Plan Empresarial 9 Megas  1:1",9000,"1 a 1",1984.08]
[null,"Plan Empresarial 10 Megas  1:1",10000,"1 a 1",2196.69]
[null,"Plan Empresarial 11 Megas  1:1",11000,"1 a 1",2409.3000000000002]
[null,"Plan Empresarial 12 Megas  1:1",12000,"1 a 1",2621.91]
[null,"Plan Empresarial 13 Megas  1:1",13000,"1 a 1",2834.52]
[null,"Plan Empresarial 14 Megas  1:1",14000,"1 a 1",3047.13]
[null,"Plan Empresarial 15 Megas  1:1",15000,"1 a 1",3259.75]
[null,"Plan Empresarial 16 Megas  1:1",16000,"1 a 1",3472.36]
[null,"Plan Empresarial 17 Megas  1:1",17000,"1 a 1",3684.97]
[null,"Plan Empresarial 18 Megas  1:1",18000,"1 a 1",3897.58]
[null,"Plan Empresarial 20 Megas  1:1",20000,"1 a 1",4322.8]
[null,"Vigencia: 1 de junio de 2011"]
[]
[]
["Notas:"]
[]
["(1): Planes Tarifarios de ETAPA E.P. y de  la Ex Etapatelecom S.A."]
["1. Fuente: Tomado de la página web de ETAPA del siguiente enlace:http://www.etapa.net.ec/Telecomunicaciones/tel_telfij_tar_pro.aspx y Ex.Etapatelecom S.A."]
[{"$f":"+Resumen!A127","v":"Elaborado: SENATEL-DGP, Publicación:  mayo  2013"}]

{"sheet":"Linkotel S.A.","index":4,"n_rows":913,"n_cols":7,"rows_kept":913,"cut":false,"hidden":false,"merged":[[12,1,12,6],[56,1,56,2],[55,1,55,2],[41,1,41,6],[42,1,42,6],[13,1,13,2],[13,5,13,6],[14,5,14,6],[15,5,15,6],[72,2,72,3],[73,2,73,3],[74,2,74,3],[75,2,75,3],[76,2,76,3],[68,2,68,3],[69,2,69,3],[70,2,70,3],[59,1,59,2],[67,2,67,4],[16,1,16,6],[83,2,83,3],[84,2,84,3],[85,2,85,3],[86,2,86,3],[87,2,87,3],[88,2,88,3],[77,2,77,3],[78,2,78,3],[79,2,79,3],[80,2,80,3],[81,2,81,3],[82,2,82,3],[23,1,23,4],[32,1,32,4],[39,1,39,6],[40,1,40,6],[60,1,60,2],[60,3,60,4],[57,1,57,2],[58,1,58,2],[53,3,53,4],[54,1,54,2],[71,2,71,3],[95,2,95,3],[96,2,96,3],[97,2,97,3],[98,2,98,3],[99,2,99,3],[100,2,100,3],[89,2,89,3],[90,2,90,3],[91,2,91,3],[92,2,92,3],[93,2,93,3],[94,2,94,3],[107,2,107,3],[108,2,108,3],[109,2,109,3],[110,2,110,3],[111,2,111,3],[112,2,112,3],[101,2,101,3],[102,2,102,3],[103,2,103,3],[104,2,104,3],[105,2,105,3],[106,2,106,3],[119,2,119,3],[120,2,120,3],[121,2,121,3],[122,2,122,3],[123,2,123,3],[124,2,124,3],[113,2,113,3],[114,2,114,3],[115,2,115,3],[116,2,116,3],[117,2,117,3],[118,2,118,3],[131,2,131,3],[132,2,132,3],[133,2,133,3],[134,2,134,3],[135,2,135,3],[136,2,136,3],[125,2,125,3],[126,2,126,3],[127,2,127,3],[128,2,128,3],[129,2,129,3],[130,2,130,3],[143,2,143,3],[144,2,144,3],[145,2,145,3],[146,2,146,3],[147,2,147,3],[148,2,148,3],[137,2,137,3],[138,2,138,3],[139,2,139,3],[140,2,140,3],[141,2,141,3],[142,2,142,3],[155,2,155,3],[156,2,156,3],[157,2,157,3],[158,2,158,3],[159,2,159,3],[160,2,160,3],[149,2,149,3],[150,2,150,3],[151,2,151,3],[152,2,152,3],[153,2,153,3],[154,2,154,3],[167,2,167,3],[168,2,168,3],[169,2,169,3],[170,2,170,3],[171,2,171,3],[172,2,172,3],[161,2,161,3],[162,2,162,3],[163,2,163,3],[164,2,164,3],[165,2,165,3],[166,2,166,3],[179,2,179,3],[180,2,180,3],[181,2,181,3],[182,2,182,3],[183,2,183,3],[184,2,184,3],[173,2,173,3],[174,2,174,3],[175,2,175,3],[176,2,176,3],[177,2,177,3],[178,2,178,3],[191,2,191,3],[192,2,192,3],[193,2,193,3],[194,2,194,3],[195,2,195,3],[196,2,196,3],[185,2,185,3],[186,2,186,3],[187,2,187,3],[188,2,188,3],[189,2,189,3],[190,2,190,3],[203,2,203,3],[204,2,204,3],[205,2,205,3],[206,2,206,3],[207,2,207,3],[208,2,208,3],[197,2,197,3],[198,2,198,3],[199,2,199,3],[200,2,200,3],[201,2,201,3],[202,2,202,3],[215,2,215,3],[216,2,216,3],[217,2,217,3],[218,2,218,3],[219,2,219,3],[220,2,220,3],[209,2,209,3],[210,2,210,3],[211,2,211,3],[212,2,212,3],[213,2,213,3],[214,2,214,3],[227,2,227,3],[228,2,228,3],[229,2,229,3],[230,2,230,3],[231,2,231,3],[232,2,232,3],[221,2,221,3],[222,2,222,3],[223,2,223,3],[224,2,224,3],[225,2,225,3],[226,2,226,3],[239,2,239,3],[240,2,240,3],[241,2,241,3],[242,2,242,3],[243,2,243,3],[244,2,244,3],[233,2,233,3],[234,2,234,3],[235,2,235,3],[236,2,236,3],[237,2,237,3],[238,2,238,3],[251,2,251,3],[252,2,252,3],[253,2,253,3],[254,2,254,3],[255,2,255,3],[256,2,256,3],[245,2,245,3],[246,2,246,3],[247,2,247,3],[248,2,248,3],[249,2,249,3],[250,2,250,3],[263,2,263,3],[264,2,264,3],[265,2,265,3],[266,2,266,3],[267,2,267,3],[268,2,268,3],[257,2,257,3],[258,2,258,3],[259,2,259,3],[260,2,260,3],[261,2,261,3],[262,2,262,3],[275,2,275,3],[276,2,276,3],[277,2,277,3],[278,2,278,3],[279,2,279,3],[280,2,280,3],[269,2,269,3],[270,2,270,3],[271,2,271,3],[272,2,272,3],[273,2,273,3],[274,2,274,3],[287,2,287,3],[288,2,288,3],[289,2,289,3],[290,2,290,3],[291,2,291,3],[292,2,292,3],[281,2,281,3],[282,2,282,3],[283,2,283,3],[284,2,284,3],[285,2,285,3],[286,2,286,3],[299,2,299,3],[300,2,300,3],[301,2,301,3],[302,2,302,3],[303,2,303,3],[304,2,304,3],[293,2,293,3],[294,2,294,3],[295,2,295,3],[296,2,296,3],[297,2,297,3],[298,2,298,3],[311,2,311,3],[312,2,312,3],[313,2,313,3],[314,2,314,3],[315,2,315,3],[316,2,316,3],[305,2,305,3],[306,2,306,3],[307,2,307,3],[308,2,308,3],[309,2,309,3],[310,2,310,3],[323,2,323,3],[324,2,324,3],[325,2,325,3],[326,2,326,3],[327,2,327,3],[328,2,328,3],[317,2,317,3],[318,2,318,3],[319,2,319,3],[320,2,320,3],[321,2,321,3],[322,2,322,3],[335,2,335,3],[336,2,336,3],[337,2,337,3],[338,2,338,3],[339,2,339,3],[340,2,340,3],[329,2,329,3],[330,2,330,3],[331,2,331,3],[332,2,332,3],[333,2,333,3],[334,2,334,3],[347,2,347,3],[348,2,348,3],[349,2,349,3],[350,2,350,3],[351,2,351,3],[352,2,352,3],[341,2,341,3],[342,2,342,3],[343,2,343,3],[344,2,344,3],[345,2,345,3],[346,2,346,3],[359,2,359,3],[360,2,360,3],[361,2,361,3],[362,2,362,3],[363,2,363,3],[364,2,364,3],[353,2,353,3],[354,2,354,3],[355,2,355,3],[356,2,356,3],[357,2,357,3],[358,2,358,3],[371,2,371,3],[372,2,372,3],[373,2,373,3],[374,2,374,3],[375,2,375,3],[376,2,376,3],[365,2,365,3],[366,2,366,3],[367,2,367,3],[368,2,368,3],[369,2,369,3],[370,2,370,3],[383,2,383,3],[384,2,384,3],[385,2,385,3],[386,2,386,3],[387,2,387,3],[388,2,388,3],[377,2,377,3],[378,2,378,3],[379,2,379,3],[380,2,380,3],[381,2,381,3],[382,2,382,3],[395,2,395,3],[396,2,396,3],[397,2,397,3],[398,2,398,3],[399,2,399,3],[400,2,400,3],[389,2,389,3],[390,2,390,3],[391,2,391,3],[392,2,392,3],[393,2,393,3],[394,2,394,3],[407,2,407,3],[408,2,408,3],[409,2,409,3],[410,2,410,3],[411,2,411,3],[412,2,412,3],[401,2,401,3],[402,2,402,3],[403,2,403,3],[404,2,404,3],[405,2,405,3],[406,2,406,3],[419,2,419,3],[420,2,420,3],[421,2,421,3],[422,2,422,3],[423,2,423,3],[424,2,424,3],[413,2,413,3],[414,2,414,3],[415,2,415,3],[416,2,416,3],[417,2,417,3],[418,2,418,3],[431,2,431,3],[432,2,432,3],[433,2,433,3],[434,2,434,3],[435,2,435,3],[436,2,436,3],[425,2,425,3],[426,2,426,3],[427,2,427,3],[428,2,428,3],[429,2,429,3],[430,2,430,3],[443,2,443,3],[444,2,444,3],[445,2,445,3],[446,2,446,3],[447,2,447,3],[448,2,448,3],[437,2,437,3],[438,2,438,3],[439,2,439,3],[440,2,440,3],[441,2,441,3],[442,2,442,3],[455,2,455,3],[456,2,456,3],[457,2,457,3],[458,2,458,3],[459,2,459,3],[460,2,460,3],[449,2,449,3],[450,2,450,3],[451,2,451,3],[452,2,452,3],[453,2,453,3],[454,2,454,3],[467,2,467,3],[468,2,468,3],[469,2,469,3],[470,2,470,3],[471,2,471,3],[472,2,472,3],[461,2,461,3],[462,2,462,3],[463,2,463,3],[464,2,464,3],[465,2,465,3],[466,2,466,3],[479,2,479,3],[480,2,480,3],[481,2,481,3],[482,2,482,3],[483,2,483,3],[484,2,484,3],[473,2,473,3],[474,2,474,3],[475,2,475,3],[476,2,476,3],[477,2,477,3],[478,2,478,3],[491,2,491,3],[492,2,492,3],[493,2,493,3],[494,2,494,3],[495,2,495,3],[496,2,496,3],[485,2,485,3],[486,2,486,3],[487,2,487,3],[488,2,488,3],[489,2,489,3],[490,2,490,3],[503,2,503,3],[504,2,504,3],[505,2,505,3],[506,2,506,3],[507,2,507,3],[508,2,508,3],[497,2,497,3],[498,2,498,3],[499,2,499,3],[500,2,500,3],[501,2,501,3],[502,2,502,3],[515,2,515,3],[516,2,516,3],[517,2,517,3],[518,2,518,3],[519,2,519,3],[520,2,520,3],[509,2,509,3],[510,2,510,3],[511,2,511,3],[512,2,512,3],[513,2,513,3],[514,2,514,3],[527,2,527,3],[528,2,528,3],[529,2,529,3],[530,2,530,3],[531,2,531,3],[532,2,532,3],[521,2,521,3],[522,2,522,3],[523,2,523,3],[524,2,524,3],[525,2,525,3],[526,2,526,3],[539,2,539,3],[540,2,540,3],[541,2,541,3],[542,2,542,3],[543,2,543,3],[544,2,544,3],[533,2,533,3],[534,2,534,3],[535,2,535,3],[536,2,536,3],[537,2,537,3],[538,2,538,3],[551,2,551,3],[552,2,552,3],[553,2,553,3],[554,2,554,3],[555,2,555,3],[556,2,556,3],[545,2,545,3],[546,2,546,3],[547,2,547,3],[548,2,548,3],[549,2,549,3],[550,2,550,3],[563,2,563,3],[564,2,564,3],[565,2,565,3],[566,2,566,3],[567,2,567,3],[568,2,568,3],[557,2,557,3],[558,2,558,3],[559,2,559,3],[560,2,560,3],[561,2,561,3],[562,2,562,3],[575,2,575,3],[576,2,576,3],[577,2,577,3],[578,2,578,3],[579,2,579,3],[580,2,580,3],[569,2,569,3],[570,2,570,3],[571,2,571,3],[572,2,572,3],[573,2,573,3],[574,2,574,3],[587,2,587,3],[588,2,588,3],[589,2,589,3],[590,2,590,3],[591,2,591,3],[592,2,592,3],[581,2,581,3],[582,2,582,3],[583,2,583,3],[584,2,584,3],[585,2,585,3],[586,2,586,3],[599,2,599,3],[600,2,600,3],[601,2,601,3],[602,2,602,3],[603,2,603,3],[604,2,604,3],[593,2,593,3],[594,2,594,3],[595,2,595,3],[596,2,596,3],[597,2,597,3],[598,2,598,3],[611,2,611,3],[612,2,612,3],[613,2,613,3],[614,2,614,3],[615,2,615,3],[616,2,616,3],[605,2,605,3],[606,2,606,3],[607,2,607,3],[608,2,608,3],[609,2,609,3],[610,2,610,3],[623,2,623,3],[624,2,624,3],[625,2,625,3],[626,2,626,3],[627,2,627,3],[628,2,628,3],[617,2,617,3],[618,2,618,3],[619,2,619,3],[620,2,620,3],[621,2,621,3],[622,2,622,3],[635,2,635,3],[636,2,636,3],[637,2,637,3],[638,2,638,3],[639,2,639,3],[640,2,640,3],[629,2,629,3],[630,2,630,3],[631,2,631,3],[632,2,632,3],[633,2,633,3],[634,2,634,3],[647,2,647,3],[648,2,648,3],[649,2,649,3],[650,2,650,3],[651,2,651,3],[652,2,652,3],[641,2,641,3],[642,2,642,3],[643,2,643,3],[644,2,644,3],[645,2,645,3],[646,2,646,3],[659,2,659,3],[660,2,660,3],[661,2,661,3],[662,2,662,3],[663,2,663,3],[664,2,664,3],[653,2,653,3],[654,2,654,3],[655,2,655,3],[656,2,656,3],[657,2,657,3],[658,2,658,3],[671,2,671,3],[672,2,672,3],[673,2,673,3],[674,2,674,3],[675,2,675,3],[676,2,676,3],[665,2,665,3],[666,2,666,3],[667,2,667,3],[668,2,668,3],[669,2,669,3],[670,2,670,3],[683,2,683,3],[684,2,684,3],[685,2,685,3],[686,2,686,3],[687,2,687,3],[688,2,688,3],[677,2,677,3],[678,2,678,3],[679,2,679,3],[680,2,680,3],[681,2,681,3],[682,2,682,3],[695,2,695,3],[696,2,696,3],[697,2,697,3],[698,2,698,3],[699,2,699,3],[700,2,700,3],[689,2,689,3],[690,2,690,3],[691,2,691,3],[692,2,692,3],[693,2,693,3],[694,2,694,3],[707,2,707,3],[708,2,708,3],[709,2,709,3],[710,2,710,3],[711,2,711,3],[712,2,712,3],[701,2,701,3],[702,2,702,3],[703,2,703,3],[704,2,704,3],[705,2,705,3],[706,2,706,3],[719,2,719,3],[720,2,720,3],[721,2,721,3],[722,2,722,3],[723,2,723,3],[724,2,724,3],[713,2,713,3],[714,2,714,3],[715,2,715,3],[716,2,716,3],[717,2,717,3],[718,2,718,3],[731,2,731,3],[732,2,732,3],[733,2,733,3],[734,2,734,3],[735,2,735,3],[736,2,736,3],[725,2,725,3],[726,2,726,3],[727,2,727,3],[728,2,728,3],[729,2,729,3],[730,2,730,3],[743,2,743,3],[744,2,744,3],[745,2,745,3],[746,2,746,3],[747,2,747,3],[748,2,748,3],[737,2,737,3],[738,2,738,3],[739,2,739,3],[740,2,740,3],[741,2,741,3],[742,2,742,3],[755,2,755,3],[756,2,756,3],[757,2,757,3],[758,2,758,3],[759,2,759,3],[760,2,760,3],[749,2,749,3],[750,2,750,3],[751,2,751,3],[752,2,752,3],[753,2,753,3],[754,2,754,3],[767,2,767,3],[768,2,768,3],[769,2,769,3],[770,2,770,3],[771,2,771,3],[772,2,772,3],[761,2,761,3],[762,2,762,3],[763,2,763,3],[764,2,764,3],[765,2,765,3],[766,2,766,3],[798,2,798,3],[799,2,799,3],[801,2,801,3],[802,2,802,3],[803,2,803,3],[786,2,786,3],[787,2,787,3],[789,2,789,3],[790,2,790,3],[791,2,791,3],[792,2,792,3],[788,2,788,3],[795,2,795,3],[796,2,796,3],[797,2,797,3],[800,2,800,3],[793,2,793,3],[794,2,794,3],[779,2,779,3],[780,2,780,3],[781,2,781,3],[782,2,782,3],[783,2,783,3],[784,2,784,3],[785,2,785,3],[773,2,773,3],[774,2,774,3],[775,2,775,3],[776,2,776,3],[777,2,777,3],[778,2,778,3],[809,2,809,3],[804,2,804,3],[805,2,805,3],[806,2,806,3],[807,2,807,3],[808,2,808,3],[822,2,822,3],[823,2,823,3],[824,2,824,3],[813,2,813,3],[814,2,814,3],[815,2,815,3],[810,2,810,3],[811,2,811,3],[812,2,812,3],[825,2,825,3],[826,2,826,3],[827,2,827,3],[816,2,816,3],[817,2,817,3],[818,2,818,3],[819,2,819,3],[820,2,820,3],[821,2,821,3],[828,2,828,3],[829,2,829,3],[830,2,830,3],[835,2,835,3],[836,2,836,3],[837,2,837,3],[831,2,831,3],[832,2,832,3],[833,2,833,3],[834,2,834,3],[844,2,844,3],[845,2,845,3],[846,2,846,3],[847,2,847,3],[848,2,848,3],[853,1,853,6],[838,2,838,3],[839,2,839,3],[840,2,840,3],[841,2,841,3],[842,2,842,3],[843,2,843,3],[858,1,858,3],[858,4,858,6],[859,1,859,3],[859,4,859,6],[860,1,860,3],[860,4,860,6],[854,1,854,6],[855,1,855,3],[855,4,855,6],[856,4,856,6],[857,1,857,3],[857,4,857,6],[856,1,856,3],[877,1,877,2],[878,1,878,2],[879,1,879,2],[880,1,880,2],[881,1,881,2],[882,1,882,2],[861,1,861,3],[861,4,861,6],[862,1,862,3],[862,4,862,6],[866,1,866,6],[875,1,876,2],[875,3,875,5],[902,1,902,2],[903,1,903,2],[904,1,904,2],[905,1,905,2],[906,1,906,2],[886,1,886,6],[887,1,887,2],[888,1,888,2],[900,1,900,2],[901,1,901,2],[895,1,895,2],[897,1,898,2],[897,3,897,5],[899,1,899,2],[894,1,894,2],[889,1,889,2],[890,1,890,2],[891,1,891,2],[892,1,892,2],[893,1,893,2]]}
[]
[null,"    Servicio de Telefonía Fija"]
[null,"      Plan Tarifario LINKOTEL S.A."]
[]
[]
[]
[]
[null,"      Fecha de publicación: mayo de 2013"]
[]
[]
[]
[]
[null,"PLANES TARIFARIOS"]
[null,null,null,"Pensión Mensual * USD","Minutos gratis incluidos","Notas Adicionales"]
[null,"Servicio Básico Residencial",null,7.48,150,"Minutos gratuitos utilizables para llamadas On Net y Off Net"]
[null,"Servicio Básico Comercial",null,11.38,300,"Minutos gratuitos utilizables para llamadas On Net. Las llamadas Off Net se computarán adicionalmente."]
[null,"* Estos valores son los que se notificaron mediante Oficio LINKO-215-2011"]
[null,"Valores incluyen cargos de interconexión"]
[null,"Valores no incluyen impuestos aplicables por Ley"]
[null,"Vigencia: 01  enero de 2012"]
[]
[null,{"$f":"+Resumen!A127","v":"Elaborado: SENATEL-DGP, Publicación:  mayo  2013"}]
[]
[null,"Categoría RESIDENCIAL"]
[null,"Productos ","Pensión Mensual","Minutos On Net Incluidos sin costo adicional en la  Pensión Mensual","Minutos Off Net Incluidos sin costo adicional en la  Pensión Mensual"]
[null,"Servicio 100",6.98,100,100]
[null,"Servicio 500",10.98,300,200]
[null,"Servicio 1000",15.98,600,400]
[null,"Servicio 2500",30.98,1500,1000]
[null,"Servicio 5000",55.98,3000,2000]
[]
[]
[null,"Categoría COMERCIAL"]
[null,"Productos Básicos","Pensión Mensual","Minutos On Net Incluidos sin costo adicional en la  Pensión Mensual","Minutos Off Net Incluidos sin costo adicional en la  Pensión Mensual"]
[null,"Servicio 1000",31.76,600,400]
[null,"Servicio 2500",71.36,1500,1000]
[null,"Servicio 5000",137.36000000000001,3000,2000]
[null,"Servicio 10000",269.36,2500,7500]
[]
[null,"Tanto para los Abonados de categoría Residencial (Plan 100 al Plan 5000 como para los Abonados de Categoría Comercial (plan 1000 al Plan 100000), que tienen contratasos Planes con Minutos incluidos, dichos Minutos sin costo serán exclusivamente imputables a llamadas On NET."]
[null,"Los minutos de llamada Local y Regional Off Net  se computarán y facturarán, tanto para la categoría Residencial como Comercial, en forma adicional y de conformidad con la respectiva tarifa vigentes (USD 0,0185) "]
[]
[null,"Aplica exclusivamente para los abonados que contrataron planes con Minutos incluidos hasta agosto de 2011. Desde septiembre de 2011 no se promociona no omercializa sino únicamente los Planes de Servicio Básico Comercial y residencial, con las pesniones básicas y las tarifas que se notificaron en oficio Linko-215-2011"]
[]
[null,"Valores incluyen cargos de interconexión"]
[null,"Valores no incluyen impuestos aplicables por Ley"]
[null,"Vigencia: 01  enero de 2012"]
[]
[]
[null,{"$f":"+B22","v":"Elaborado: SENATEL-DGP, Publicación:  mayo  2013"}]
[]
[]
[]
[null,null,null,"Tarifas\n (minuto de Llamada)"]
[null,"Servicio",null,"Residencial (en USD $)","Comercial (en USD $)"]
[null,"Pensión Básica Mensual \"Servicio Básico\"",null,7.48,11.88]
[null,"Local",null,1.8499999999999999E-2,1.8499999999999999E-2]
[null,"Nacional",null,3.5000000000000003E-2,0.08]
[null,"Regional",null,1.8499999999999999E-2,1.8499999999999999E-2]
[null,"Celular",null,0.18,0.18]
[null,"Internacional",null,"Ver Anexo "]
[]
[null,"Valores incluyen cargos de interconexión"]
[null,"Valores no incluyen impuestos aplicables por Ley"]
[null,"Vigencia: 01 octubre de 2011"]
[]
[]
[null,null,"Anexo\nTarifas Inernacionales"]
[null,null,"DESTINOS",null,"PRECIO"]
[null,null,"Andorra",null,0.1]
[null,null,"Argentina",null,0.1]
[null,null,"Argentina-Bahia Blanca",null,0.1]
[null,null,"Argentina-Buenos Aires",null,0.1]
[null,null,"Argentina-Cordoba",null,0.1]
[null,null,"Argentina-Cordoba 2",null,0.1]
[null,null,"Argentina-La Pampa",null,0.1]
[null,null,"Argentina-La Plata",null,0.1]
[null,null,"Argentina-Lujan",null,0.1]
[null,null,"Argentina-Mar del Plata",null,0.1]
[null,null,"Argentina-Maschwitz Zarate",null,0.1]
[null,null,"Argentina-Mendoza",null,0.1]
[null,null,"Argentina-Moreno",null,0.1]
[null,null,"Argentina-Neuquen",null,0.1]
[null,null,"Argentina-Pilar",null,0.1]
[null,null,"Argentina-Rosario",null,0.1]
[null,null,"Argentina-Salta",null,0.1]
[null,null,"Argentina-San Luis",null,0.1]
[null,null,"Argentina-Santa Fe",null,0.1]
[null,null,"Argentina-Tucuman",null,0.1]
[null,null,"Australia",null,0.1]
[null,null,"Australia-Melbourne",null,0.1]
[null,null,"Australia-Sydney",null,0.1]
[null,null,"Austria",null,0.1]
[null,null,"Bahamas",null,0.1]
[null,null,"Bahamas-Mobile",null,0.1]
[null,null,"Bangladesh-Chittagong",null,0.1]
[null,null,"Bangladesh-Dhaka",null,0.1]
[null,null,"Bangladesh-Sylhet",null,0.1]
[null,null,"Belgium",null,0.1]
[null,null,"Bolivia-Cochabamba",null,0.1]
[null,null,"Bolivia-La Paz",null,0.1]
[null,null,"Bolivia-Santa Cruz",null,0.1]
[null,null,"Brazil",null,0.1]
[null,null,"Brazil-Belem",null,0.1]
[null,null,"Brazil-Bello Horizonte",null,0.1]
[null,null,"Brazil-Brasilia",null,0.1]
[null,null,"Brazil-Campinas",null,0.1]
[null,null,"Brazil-Curitiba",null,0.1]
[null,null,"Brazil-Florianopolis",null,0.1]
[null,null,"Brazil-Fortaleza",null,0.1]
[null,null,"Brazil-Goiania",null,0.1]
[null,null,"Brazil-Londrina",null,0.1]
[null,null,"Brazil-Manaus",null,0.1]
[null,null,"Brazil-Maringa",null,0.1]
[null,null,"Brazil-Porto Alegre",null,0.1]
[null,null,"Brazil-Recife",null,0.1]
[null,null,"Brazil-Rio de Janeiro",null,0.1]
[null,null,"Brazil-Salvador",null,0.1]
[null,null,"Brazil-Sao Paulo",null,0.1]
[null,null,"Brazil-Sao Paulo State",null,0.1]
[null,null,"Brazil-Valadares Off-Net",null,0.1]
[null,null,"Brazil-Valadares On-Net",null,0.1]
[null,null,"Brazil-Vitoria",null,0.1]
[null,null,"Brazil-Vitoria On-net",null,0.1]
[null,null,"Brunei",null,0.1]
[null,null,"Brunei-Mobile",null,0.1]
[null,null,"Bulgaria",null,0.1]
[null,null,"Bulgaria-Sofia",null,0.1]
[null,null,"Canada",null,0.1]
[null,null,"Chile",null,0.1]
[null,null,"Chile-Santiago",null,0.1]
[null,null,"Chile-Valpariso",null,0.1]
[null,null,"China",null,0.1]
[null,null,"China-Mobile",null,0.1]
[null,null,"Colombia-Baranquilla",null,0.1]
[null,null,"Colombia-Bogota",null,0.1]
[null,null,"Colombia-Cali",null,0.1]
[null,null,"Costa Rica-Mobile",null,0.1]
[null,null,"Croatia",null,0.1]
[null,null,"Cyprus",null,0.1]
[null,null,"Czech Republic",null,0.1]
[null,null,"Czech Republic-Bruno",null,0.1]
[null,null,"Czech Republic-Havirov/Ostrava",null,0.1]
[null,null,"Czech Republic-Prague",null,0.1]
[null,null,"Denmark",null,0.1]
[null,null,"Estonia",null,0.1]
[null,null,"Finland",null,0.1]
[null,null,"Finland-Helsinki",null,0.1]
[null,null,"France",null,0.1]
[null,null,"French Antilles",null,0.1]
[null,null,"Georgia-Tblisi",null,0.1]
[null,null,"Germany",null,0.1]
[null,null,"Germany-Mobile Personal Numbers",null,0.1]
[null,null,"Gibraltar",null,0.1]
[null,null,"Greece",null,0.1]
[null,null,"Greece-Athens",null,0.1]
[null,null,"Greece-Thessaloniki",null,0.1]
[null,null,"Guadeloupe",null,0.1]
[null,null,"Guam",null,0.1]
[null,null,"Hong Kong",null,0.1]
[null,null,"Hong Kong-Mobile",null,0.1]
[null,null,"Hungary",null,0.1]
[null,null,"Hungary-Budapest",null,0.1]
[null,null,"Iceland",null,0.1]
[null,null,"Indonesia-Bandung",null,0.1]
[null,null,"Indonesia-Jakarta",null,0.1]
[null,null,"Indonesia-Surabaya",null,0.1]
[null,null,"Ireland",null,0.1]
[null,null,"Israel",null,0.1]
[null,null,"Italy",null,0.1]
[null,null,"Japan",null,0.1]
[null,null,"Japan-IP-Phone",null,0.1]
[null,null,"Japan-Osaka",null,0.1]
[null,null,"Japan-Tokyo",null,0.1]
[null,null,"Japan-Yokohama",null,0.1]
[null,null,"Kazakhstan-Almaty",null,0.1]
[null,null,"Korea (South)",null,0.1]
[null,null,"Korea (South)-Mobile-SK",null,0.1]
[null,null,"Korea (South)-Seoul",null,0.1]
[null,null,"Latvia-Riga",null,0.1]
[null,null,"Liechtenstein",null,0.1]
[null,null,"Luxembourg",null,0.1]
[null,null,"Macau",null,0.1]
[null,null,"Macau-Mobile",null,0.1]
[null,null,"Malawi",null,0.1]
[null,null,"Malawi-Mobile",null,0.1]
[null,null,"Malaysia",null,0.1]
[null,null,"Malaysia-Kuala Lumpur",null,0.1]
[null,null,"Malaysia-Mobile-Celcom",null,0.1]
[null,null,"Malaysia-Mobile-Digi",null,0.1]
[null,null,"Malaysia-Mobile-Maxis",null,0.1]
[null,null,"Mexico-Equal Access 1",null,0.1]
[null,null,"Mexico-Equal Access 2",null,0.1]
[null,null,"Mexico-Equal Access 3",null,0.1]
[null,null,"Mexico-Guadalajara",null,0.1]
[null,null,"Mexico-Mexico City",null,0.1]
[null,null,"Mexico-Monterrey",null,0.1]
[null,null,"Mexico-Non-Equal Access 1",null,0.1]
[null,null,"Monaco",null,0.1]
[null,null,"Monaco-Mobile",null,0.1]
[null,null,"Mongolia",null,0.1]
[null,null,"Netherlands",null,0.1]
[null,null,"New Zealand",null,0.1]
[null,null,"New Zealand-Auckland",null,0.1]
[null,null,"Nigeria-Lagos",null,0.1]
[null,null,"Nigeria-Mobile-Lagos",null,0.1]
[null,null,"Norway",null,0.1]
[null,null,"Panama",null,0.1]
[null,null,"Panama-Colon",null,0.1]
[null,null,"Panama-Panama City",null,0.1]
[null,null,"Peru",null,0.1]
[null,null,"Peru-Lima",null,0.1]
[null,null,"Poland",null,0.1]
[null,null,"Poland-Warsaw",null,0.1]
[null,null,"Portugal",null,0.1]
[null,null,"Russia",null,0.1]
[null,null,"Russia-Chelyabinsk",null,0.1]
[null,null,"Russia-Ekaterinburg",null,0.1]
[null,null,"Russia-Kazan",null,0.1]
[null,null,"Russia-Mobile",null,0.1]
[null,null,"Russia-Mobile Moscow",null,0.1]
[null,null,"Russia-Moscow",null,0.1]
[null,null,"Russia-Moscow Extension",null,0.1]
[null,null,"Russia-Nizhny Nogorod",null,0.1]
[null,null,"Russia-Novosibirsk",null,0.1]
[null,null,"Russia-Omsk",null,0.1]
[null,null,"Russia-Overlay",null,0.1]
[null,null,"Russia-Perm",null,0.1]
[null,null,"Russia-Rostov-On-Don",null,0.1]
[null,null,"Russia-Samara",null,0.1]
[null,null,"Russia-Sovintel Overlay",null,0.1]
[null,null,"Russia-St. Petersburg",null,0.1]
[null,null,"Russia-St. Petersburg Extension",null,0.1]
[null,null,"Russia-Ufa",null,0.1]
[null,null,"Russia-Volgograd",null,0.1]
[null,null,"Saipan",null,0.1]
[null,null,"Saipan-Mobile",null,0.1]
[null,null,"San Marino",null,0.1]
[null,null,"San Marino-Mobile",null,0.1]
[null,null,"Singapore",null,0.1]
[null,null,"Singapore-Mobile",null,0.1]
[null,null,"Slovenia",null,0.1]
[null,null,"Slovenia-NGN 59",null,0.1]
[null,null,"Spain",null,0.1]
[null,null,"Sweden",null,0.1]
[null,null,"Switzerland",null,0.1]
[null,null,"Taiwan",null,0.1]
[null,null,"Taiwan-Taipei",null,0.1]
[null,null,"Thailand",null,0.1]
[null,null,"Thailand-Bangkok",null,0.1]
[null,null,"Thailand-Mobile",null,0.1]
[null,null,"Turkey-Ankara",null,0.1]
[null,null,"Turkey-Istanbul",null,0.1]
[null,null,"United Kingdom",null,0.1]
[null,null,"United Kingdom-BT Only",null,0.1]
[null,null,"United Kingdom-Mobile Paging",null,0.1]
[null,null,"USA",null,0.1]
[null,null,"USA-Hawaii",null,0.1]
[null,null,"USA-Puerto Rico",null,0.1]
[null,null,"USA-Virgin Islands",null,0.1]
[null,null,"Venezuela",null,0.1]
[null,null,"Venezuela-Barquisimeto",null,0.1]
[null,null,"Venezuela-Caracas",null,0.1]
[null,null,"Venezuela-Maracaibo",null,0.1]
[null,null,"Venezuela-Valencia",null,0.1]
[null,null,"Albania",null,0.25]
[null,null,"Albania-Mobile",null,0.25]
[null,null,"Albania-Tirana",null,0.25]
[null,null,"Algeria",null,0.25]
[null,null,"Algeria-Algiers",null,0.25]
[null,null,"Algeria-Mobile",null,0.25]
[null,null,"Algeria-Mobile-Orascom",null,0.25]
[null,null,"Algeria-Mobile-Wataniya",null,0.25]
[null,null,"American Samoa",null,0.25]
[null,null,"Angola",null,0.25]
[null,null,"Anguilla",null,0.25]
[null,null,"Antigua",null,0.25]
[null,null,"Antigua-Mobile",null,0.25]
[null,null,"Armenia",null,0.25]
[null,null,"Armenia-Yerevan",null,0.25]
[null,null,"Aruba",null,0.25]
[null,null,"Aruba-Mobile-Digicel",null,0.25]
[null,null,"Australia-Mobile",null,0.25]
[null,null,"Austria-Mobile-Mobilkom",null,0.25]
[null,null,"Azerbaijan",null,0.25]
[null,null,"Azerbaijan-Baku",null,0.25]
[null,null,"Azerbaijan-Mobile Azercell",null,0.25]
[null,null,"Azerbaijan-Mobile Bakcell",null,0.25]
[null,null,"Bahrain",null,0.25]
[null,null,"Bahrain-Mobile",null,0.25]
[null,null,"Bangladesh",null,0.25]
[null,null,"Bangladesh-Comilla",null,0.25]
[null,null,"Bangladesh-Khulna",null,0.25]
[null,null,"Bangladesh-Mobile",null,0.25]
[null,null,"Bangladesh-Mobile-172",null,0.25]
[null,null,"Bangladesh-Moulvi Bazar",null,0.25]
[null,null,"Barbados",null,0.25]
[null,null,"Barbados-Mobile-Digicel",null,0.25]
[null,null,"Belize",null,0.25]
[null,null,"Benin",null,0.25]
[null,null,"Benin-Mobile",null,0.25]
[null,null,"Bermuda",null,0.25]
[null,null,"Bermuda-Mobile",null,0.25]
[null,null,"Bhutan",null,0.25]
[null,null,"Bhutan-Mobile",null,0.25]
[null,null,"Bolivia",null,0.25]
[null,null,"Bolivia-Equal Access",null,0.25]
[null,null,"Bolivia-Mobile",null,0.25]
[null,null,"Bolivia-Oruro",null,0.25]
[null,null,"Bosnia/Herzegovina",null,0.25]
[null,null,"Botswana",null,0.25]
[null,null,"Brazil-Mobile",null,0.25]
[null,null,"Brazil-Mobile-Claro",null,0.25]
[null,null,"British Virgin Islands",null,0.25]
[null,null,"British Virgin Islands-Mobile",null,0.25]
[null,null,"Burkina Faso",null,0.25]
[null,null,"Burkina Faso-Mobile",null,0.25]
[null,null,"Burundi",null,0.25]
[null,null,"Burundi-Mobile",null,0.25]
[null,null,"Cambodia",null,0.25]
[null,null,"Cambodia-Mobile",null,0.25]
[null,null,"Cambodia-Phnom Penh",null,0.25]
[null,null,"Cameroon",null,0.25]
[null,null,"Cameroon-Mobile MTN",null,0.25]
[null,null,"Cameroon-Mobile Orange",null,0.25]
[null,null,"Canada NPA 807",null,0.25]
[null,null,"Canada Npa 867",null,0.25]
[null,null,"Cayman Islands",null,0.25]
[null,null,"Cayman Islands-Mobile",null,0.25]
[null,null,"Cayman Islands-Mobile-Digicel",null,0.25]
[null,null,"Central African Rep",null,0.25]
[null,null,"Central African Rep-Mobile",null,0.25]
[null,null,"Chad",null,0.25]
[null,null,"Chad-Mobile",null,0.25]
[null,null,"Colombia",null,0.25]
[null,null,"Colombia-Medellin",null,0.25]
[null,null,"Colombia-Mobile",null,0.25]
[null,null,"Congo",null,0.25]
[null,null,"Congo-Mobile",null,0.25]
[null,null,"Costa Rica",null,0.25]
[null,null,"Croatia-Mobile Tele2",null,0.25]
[null,null,"Cyprus-Mobile",null,0.25]
[null,null,"Czech Republic-Mobile",null,0.25]
[null,null,"Denmark-Mobile",null,0.25]
[null,null,"Dominica",null,0.25]
[null,null,"Dominican Republic",null,0.25]
[null,null,"Dominican Republic-Mobile",null,0.25]
[null,null,"Ecuador-Andinatel",null,0.25]
[null,null,"Ecuador-Etapa",null,0.25]
[null,null,"Ecuador-Guayaquil Linkotel",null,0.25]
[null,null,"Ecuador-Pacifictel",null,0.25]
[null,null,"Egypt",null,0.25]
[null,null,"Egypt-Mobile",null,0.25]
[null,null,"El Salvador",null,0.25]
[null,null,"El Salvador Cte Fixed",null,0.25]
[null,null,"El Salvador Digicel",null,0.25]
[null,null,"El Salvador Other Fixed",null,0.25]
[null,null,"El Salvador Personal Fixed",null,0.25]
[null,null,"El Salvador Personal Mobile",null,0.25]
[null,null,"El Salvador Telefonica Fixed",null,0.25]
[null,null,"El Salvador Telefonica Mobile",null,0.25]
[null,null,"El Salvador Telemovil Fixed",null,0.25]
[null,null,"El Salvador Telemovil Mobile",null,0.25]
[null,null,"El Salvador-Mobile",null,0.25]
[null,null,"El Salvador-Mobile Digicel",null,0.25]
[null,null,"Faeroe Islands",null,0.25]
[null,null,"Faeroe Islands-Mobile",null,0.25]
[null,null,"Finland-Finland Portable",null,0.25]
[null,null,"Finland-Mobile",null,0.25]
[null,null,"Finland-Mobile Sonera",null,0.25]
[null,null,"Finland-Mobile-Finnet",null,0.25]
[null,null,"France-Mobile-Buoygues",null,0.25]
[null,null,"France-Mobile-Orange",null,0.25]
[null,null,"France-Mobile-Orange-Roaming",null,0.25]
[null,null,"France-Mobile-SFR",null,0.25]
[null,null,"France-Mobile-SFR-Roaming",null,0.25]
[null,null,"French Guiana",null,0.25]
[null,null,"French Polynesia",null,0.25]
[null,null,"French Polynesia-Mobile",null,0.25]
[null,null,"Gabon",null,0.25]
[null,null,"Gabon-Mobile",null,0.25]
[null,null,"Gambia",null,0.25]
[null,null,"Georgia",null,0.25]
[null,null,"Georgia-Mobile",null,0.25]
[null,null,"Georgia-Mobile Geosell",null,0.25]
[null,null,"Germany-Mobile-O2",null,0.25]
[null,null,"Ghana",null,0.25]
[null,null,"Ghana-Mobile",null,0.25]
[null,null,"Greece-Mobile",null,0.25]
[null,null,"Greece-Mobile-Roaming",null,0.25]
[null,null,"Grenada",null,0.25]
[null,null,"Guatemala",null,0.25]
[null,null,"Guatemala FT&T",null,0.25]
[null,null,"Guatemala-Atel",null,0.25]
[null,null,"Guatemala-Cablenet",null,0.25]
[null,null,"Guatemala-Fixed BellSouth",null,0.25]
[null,null,"Guatemala-Fixed PCS",null,0.25]
[null,null,"Guatemala-Mobile",null,0.25]
[null,null,"Guatemala-Mobile-Bellsouth",null,0.25]
[null,null,"Guatemala-Mobile-Comcel",null,0.25]
[null,null,"Guatemala-Mobile-PCS",null,0.25]
[null,null,"Guatemala-Mobile-Telefonica",null,0.25]
[null,null,"Guatemala-Telgua",null,0.25]
[null,null,"Guatemala-Telnor",null,0.25]
[null,null,"Guatemala-Unitel",null,0.25]
[null,null,"Guinea",null,0.25]
[null,null,"Guinea-Mobile",null,0.25]
[null,null,"Haiti",null,0.25]
[null,null,"Iceland-Mobile",null,0.25]
[null,null,"India",null,0.25]
[null,null,"India-Ahmedabad",null,0.25]
[null,null,"India-Bangalore",null,0.25]
[null,null,"India-Chennai",null,0.25]
[null,null,"India-Hyderabad",null,0.25]
[null,null,"India-Kolkata",null,0.25]
[null,null,"India-Mobile94",null,0.25]
[null,null,"India-Mobile98",null,0.25]
[null,null,"India-Mobile-Airtel 99",null,0.25]
[null,null,"India-Mobile-Hutch 97",null,0.25]
[null,null,"India-Mobile-Reliance 93",null,0.25]
[null,null,"India-Mobile-Tata 92",null,0.25]
[null,null,"India-Mumbai",null,0.25]
[null,null,"India-New Delhi",null,0.25]
[null,null,"India-Punjab Main Cities",null,0.25]
[null,null,"India-Punjab Other",null,0.25]
[null,null,"Indonesia",null,0.25]
[null,null,"Indonesia-Bogor",null,0.25]
[null,null,"Indonesia-Malang",null,0.25]
[null,null,"Indonesia-Medan",null,0.25]
[null,null,"Indonesia-Mobile",null,0.25]
[null,null,"Indonesia-Mobile-Indosat",null,0.25]
[null,null,"Indonesia-Mobile-Telkomsel 2",null,0.25]
[null,null,"Iran",null,0.25]
[null,null,"Iran-Mobile",null,0.25]
[null,null,"Iran-Tehran",null,0.25]
[null,null,"Iraq",null,0.25]
[null,null,"Iraq-Baghdad",null,0.25]
[null,null,"Iraq-Mobile",null,0.25]
[null,null,"Iraq-Mobile Asiacell",null,0.25]
[null,null,"Iraq-Mobile-Iraqna",null,0.25]
[null,null,"Ireland-Mobile",null,0.25]
[null,null,"Israel-Mobile",null,0.25]
[null,null,"Israel-Palestine",null,0.25]
[null,null,"Israel-Palestine-Mobile",null,0.25]
[null,null,"Italy-Mobile-GSM",null,0.25]
[null,null,"Ivory Coast",null,0.25]
[null,null,"Ivory Coast-Mobile",null,0.25]
[null,null,"Jamaica",null,0.25]
[null,null,"Japan-Mobile",null,0.25]
[null,null,"Jordan",null,0.25]
[null,null,"Jordan-Mobile Fast Link",null,0.25]
[null,null,"Jordan-Mobile Mobilecom",null,0.25]
[null,null,"Kazakhstan",null,0.25]
[null,null,"Kazakhstan-Astana",null,0.25]
[null,null,"Kazakhstan-Karaganda",null,0.25]
[null,null,"Kazakhstan-Mobile",null,0.25]
[null,null,"Kenya",null,0.25]
[null,null,"Kenya-Mombassa",null,0.25]
[null,null,"Kenya-Nairobi",null,0.25]
[null,null,"Korea (South)-Mobile",null,0.25]
[null,null,"Korea (South)-Mobile Ktf",null,0.25]
[null,null,"Kuwait",null,0.25]
[null,null,"Kuwait-Mobile",null,0.25]
[null,null,"Kyrgyzstan",null,0.25]
[null,null,"Kyrgyzstan-Bishkek",null,0.25]
[null,null,"Kyrgyzstan-Mobile",null,0.25]
[null,null,"Laos",null,0.25]
[null,null,"Laos-Mobile",null,0.25]
[null,null,"Latvia",null,0.25]
[null,null,"Latvia-Mobile",null,0.25]
[null,null,"Latvia-Mobile-Tele2",null,0.25]
[null,null,"Lebanon",null,0.25]
[null,null,"Lebanon-Mobile",null,0.25]
[null,null,"Liberia-Mobile-Celcom",null,0.25]
[null,null,"Liberia-Mobile-Libercel",null,0.25]
[null,null,"Lithuania",null,0.25]
[null,null,"Lithuania-Mobile",null,0.25]
[null,null,"Lithuania-Mobile Bite",null,0.25]
[null,null,"Macedonia",null,0.25]
[null,null,"Macedonia-Skopje",null,0.25]
[null,null,"Madagascar",null,0.25]
[null,null,"Madagascar-Mobile",null,0.25]
[null,null,"Mali-Bamako",null,0.25]
[null,null,"Mali-Ikatel",null,0.25]
[null,null,"Mali-Mobile",null,0.25]
[null,null,"Malta",null,0.25]
[null,null,"Mauritius",null,0.25]
[null,null,"Mauritius-Mobile",null,0.25]
[null,null,"Mexico",null,0.25]
[null,null,"Mexico-Non-Equal Access 2",null,0.25]
[null,null,"Moldova",null,0.25]
[null,null,"Moldova-Pridnestrovie",null,0.25]
[null,null,"Monaco-Mobile-Kosovo",null,0.25]
[null,null,"Montserrat",null,0.25]
[null,null,"Montserrat-Mobile C&W",null,0.25]
[null,null,"Morocco",null,0.25]
[null,null,"Morocco-Casablanca",null,0.25]
[null,null,"Mozambique",null,0.25]
[null,null,"Mozambique-Mobile",null,0.25]
[null,null,"Mozambique-Mobile-Vodacom",null,0.25]
[null,null,"Namibia",null,0.25]
[null,null,"Netherlands Antilles",null,0.25]
[null,null,"Netherlands Antilles-Curacao",null,0.25]
[null,null,"Netherlands Antilles-Mobile",null,0.25]
[null,null,"Netherlands Antilles-Mobile-St. Maarten",null,0.25]
[null,null,"Netherlands Antilles-St. Maarten",null,0.25]
[null,null,"Netherlands-Mobile-Dutchtone Orange",null,0.25]
[null,null,"Nicaragua",null,0.25]
[null,null,"Niger",null,0.25]
[null,null,"Nigeria",null,0.25]
[null,null,"Nigeria-Abuja",null,0.25]
[null,null,"Nigeria-Benin City",null,0.25]
[null,null,"Nigeria-Mobile-Econet",null,0.25]
[null,null,"Nigeria-Mobile-Globacom",null,0.25]
[null,null,"Nigeria-Mobile-MTN",null,0.25]
[null,null,"Nigeria-Mobile-Nitel",null,0.25]
[null,null,"Niger-Mobile",null,0.25]
[null,null,"Norway-Mobile",null,0.25]
[null,null,"Oman",null,0.25]
[null,null,"Oman-Mobile",null,0.25]
[null,null,"Pakistan",null,0.25]
[null,null,"Pakistan-Mobile",null,0.25]
[null,null,"Pakistan-Mobile SCO",null,0.25]
[null,null,"Pakistan-Sco",null,0.25]
[null,null,"Palestine",null,0.25]
[null,null,"Palestine Israel",null,0.25]
[null,null,"Palestine-Mobile",null,0.25]
[null,null,"Palestine-Mobile-Israel",null,0.25]
[null,null,"Panama-Mobile",null,0.25]
[null,null,"Paraguay",null,0.25]
[null,null,"Paraguay-Asuncion",null,0.25]
[null,null,"Paraguay-Mobile",null,0.25]
[null,null,"Philippines",null,0.25]
[null,null,"Philippines-Digitel Onnet",null,0.25]
[null,null,"Philippines-Mobile",null,0.25]
[null,null,"Philippines-Mobile-Globe",null,0.25]
[null,null,"Philippines-Mobile-SMART",null,0.25]
[null,null,"Philippines-Philcom Onnet",null,0.25]
[null,null,"Poland-Mobile",null,0.25]
[null,null,"Portugal-Mobile",null,0.25]
[null,null,"Reunion Islands",null,0.25]
[null,null,"Romania",null,0.25]
[null,null,"Romania-Bucharest",null,0.25]
[null,null,"Rwanda",null,0.25]
[null,null,"Rwanda-Mobile",null,0.25]
[null,null,"Saudi Arabia",null,0.25]
[null,null,"Saudi Arabia-Dhahran",null,0.25]
[null,null,"Saudi Arabia-Jeddah",null,0.25]
[null,null,"Saudi Arabia-Mobile",null,0.25]
[null,null,"Saudi Arabia-Riyadh",null,0.25]
[null,null,"Senegal",null,0.25]
[null,null,"Senegal-Dakar",null,0.25]
[null,null,"Seychelles",null,0.25]
[null,null,"Seychelles-Mobile",null,0.25]
[null,null,"Sierra Leone",null,0.25]
[null,null,"Sierra Leone-Freetown",null,0.25]
[null,null,"Sierra Leone-Mobile",null,0.25]
[null,null,"Sierra Leone-Mobile Comium",null,0.25]
[null,null,"Slovakia",null,0.25]
[null,null,"Slovakia-Mobile Tsystems",null,0.25]
[null,null,"Slovakia-Mobile-Orange",null,0.25]
[null,null,"Slovenia-Mobile-Voljatel",null,0.25]
[null,null,"South Africa",null,0.25]
[null,null,"South Africa-Capetown",null,0.25]
[null,null,"South Africa-Johannesburg",null,0.25]
[null,null,"South Africa-Mobile",null,0.25]
[null,null,"Sri Lanka",null,0.25]
[null,null,"Sri Lanka-Mobile",null,0.25]
[null,null,"Sri Lanka-On-Net",null,0.25]
[null,null,"St. Kitts/Nevis",null,0.25]
[null,null,"St. Lucia",null,0.25]
[null,null,"St. Lucia-Mobile-Digicel",null,0.25]
[null,null,"St. Pierre/Miquelon",null,0.25]
[null,null,"St. Pierre/Miquelon-Mobile",null,0.25]
[null,null,"St. Vincent",null,0.25]
[null,null,"St. Vincent-Mobile-Digicel",null,0.25]
[null,null,"Sudan",null,0.25]
[null,null,"Swaziland",null,0.25]
[null,null,"Swaziland-Mobile",null,0.25]
[null,null,"Sweden-Mobile-Comviq",null,0.25]
[null,null,"Sweden-Mobile-Swefour",null,0.25]
[null,null,"Sweden-Mobile-Telia-Mobitel",null,0.25]
[null,null,"Taiwan-Mobile",null,0.25]
[null,null,"Tajikistan",null,0.25]
[null,null,"Tajikistan-Dushanbe",null,0.25]
[null,null,"Tanzania",null,0.25]
[null,null,"Tanzania-Dar Es Salaam",null,0.25]
[null,null,"Tanzania-Mobile",null,0.25]
[null,null,"Togo",null,0.25]
[null,null,"Togo-Mobile",null,0.25]
[null,null,"Tonga",null,0.25]
[null,null,"Tonga-Mobile",null,0.25]
[null,null,"Trinidad/Tobago",null,0.25]
[null,null,"Trinidad/Tobago-Mobile",null,0.25]
[null,null,"Tunisia",null,0.25]
[null,null,"Tunisia-Mobile",null,0.25]
[null,null,"Tunisia-Mobile-Tunisiana",null,0.25]
[null,null,"Turkey",null,0.25]
[null,null,"Turkey-Adana",null,0.25]
[null,null,"Turkey-Antalya",null,0.25]
[null,null,"Turkey-Bursa",null,0.25]
[null,null,"Turkey-Izmir",null,0.25]
[null,null,"Turkey-Izmit",null,0.25]
[null,null,"Turkey-Kayseri and Tonya",null,0.25]
[null,null,"Turkey-Mobile",null,0.25]
[null,null,"Turkey-Mobile Avea",null,0.25]
[null,null,"Turkey-Mobile-Telsim",null,0.25]
[null,null,"Turkey-Mobile-Turkcell",null,0.25]
[null,null,"Turkey-Samsun",null,0.25]
[null,null,"Turkey-Trabzon",null,0.25]
[null,null,"Turkmenistan",null,0.25]
[null,null,"Turkmenistan-Mobile",null,0.25]
[null,null,"Turks/Caicos Islands",null,0.25]
[null,null,"Turks/Caicos Islands-Mobile C&W",null,0.25]
[null,null,"Uganda",null,0.25]
[null,null,"Uganda-Mobile Celtel",null,0.25]
[null,null,"Uganda-Mobile Mtn",null,0.25]
[null,null,"Uganda-Mobile-Telcel/UTL",null,0.25]
[null,null,"Ukraine",null,0.25]
[null,null,"Ukraine-Dnepropetrovsk",null,0.25]
[null,null,"Ukraine-Kharkov",null,0.25]
[null,null,"Ukraine-Kiev",null,0.25]
[null,null,"Ukraine-Lvov",null,0.25]
[null,null,"Ukraine-Mobile",null,0.25]
[null,null,"Ukraine-Mobile-Kyivstar",null,0.25]
[null,null,"Ukraine-Odessa 482",null,0.25]
[null,null,"Ukraine-Odessa 487",null,0.25]
[null,null,"Ukraine-Zaporizhe",null,0.25]
[null,null,"United Kingdom-Mobile O2",null,0.25]
[null,null,"United Kingdom-Mobile Orange",null,0.25]
[null,null,"United Kingdom-NTS 844",null,0.25]
[null,null,"United Kingdom-NTS 845",null,0.25]
[null,null,"United Kingdom-NTS 870",null,0.25]
[null,null,"United Kingdom-NTS 871",null,0.25]
[null,null,"Universal Telephone Services",null,0.25]
[null,null,"Uruguay",null,0.25]
[null,null,"Uruguay-Main Cities",null,0.25]
[null,null,"Uruguay-Montevideo",null,0.25]
[null,null,"USA-Alaska",null,0.25]
[null,null,"Uzbekistan",null,0.25]
[null,null,"Uzbekistan-Mobile",null,0.25]
[null,null,"Uzbekistan-Tashkent",null,0.25]
[null,null,"Venezuela-Mobile-Digitel",null,0.25]
[null,null,"Venezuela-Mobile-Movilnet",null,0.25]
[null,null,"Venezuela-Mobile-Telcel",null,0.25]
[null,null,"Vietnam",null,0.25]
[null,null,"Vietnam-Hanoi",null,0.25]
[null,null,"Vietnam-Ho Chi Minh City",null,0.25]
[null,null,"Vietnam-Mobile",null,0.25]
[null,null,"Yemen",null,0.25]
[null,null,"Yemen-Mobile",null,0.25]
[null,null,"Yugoslavia",null,0.25]
[null,null,"Yugoslavia-Belgrade",null,0.25]
[null,null,"Yugoslavia-Montenegro",null,0.25]
[null,null,"Zambia",null,0.25]
[null,null,"Zambia-Mobile",null,0.25]
[null,null,"Zimbabwe",null,0.25]
[null,null,"Zimbabwe-Harare",null,0.25]
[null,null,"Zimbabwe-Mobile",null,0.25]
[null,null,"Zimbabwe-Mobile-91",null,0.25]
[null,null,"Zimbabwe-Mobile-Telecel",null,0.25]
[null,null,"Afghanistan",null,0.35]
[null,null,"Afghanistan-Mobile",null,0.35]
[null,null,"Andorra-Mobile",null,0.35]
[null,null,"Angola-Mobile",null,0.35]
[null,null,"Angola-Mobile-Unitel",null,0.35]
[null,null,"Anguilla-Mobile",null,0.35]
[null,null,"Argentina-Mobile",null,0.35]
[null,null,"Armenia-Karabach",null,0.35]
[null,null,"Armenia-Mobile",null,0.35]
[null,null,"Aruba-Mobile",null,0.35]
[null,null,"Austria-Mobile",null,0.35]
[null,null,"Austria-Mobile-One",null,0.35]
[null,null,"Austria-Mobile-Telering",null,0.35]
[null,null,"Austria-Mobile-T-Mobile",null,0.35]
[null,null,"Barbados-Mobile-C&W",null,0.35]
[null,null,"Belarus",null,0.35]
[null,null,"Belarus-Minsk",null,0.35]
[null,null,"Belarus-Mobile",null,0.35]
[null,null,"Belgium-Mobile-Direct",null,0.35]
[null,null,"Belgium-Mobile-Paging",null,0.35]
[null,null,"Belgium-Mobile-Proximus",null,0.35]
[null,null,"Belize-Mobile",null,0.35]
[null,null,"Bosnia/Herzegovina-Mobile-61-62",null,0.35]
[null,null,"Bosnia/Herzegovina-Mobile-63-65",null,0.35]
[null,null,"Botswana-Mobile",null,0.35]
[null,null,"Bulgaria-Mobile Btc",null,0.35]
[null,null,"Bulgaria-Mobile Mobilkom",null,0.35]
[null,null,"Bulgaria-Mobile-Globul",null,0.35]
[null,null,"Bulgaria-Mobile-Mobitel",null,0.35]
[null,null,"Cape Verde Islands",null,0.35]
[null,null,"Cape Verde-Mobile",null,0.35]
[null,null,"Chile-Mobile",null,0.35]
[null,null,"Comoros/Mayotte Islands",null,0.35]
[null,null,"Croatia-Mobile Htmobile",null,0.35]
[null,null,"Croatia-Mobile Vipnet",null,0.35]
[null,null,"Dominica-Mobile",null,0.35]
[null,null,"Ecuador-Mobile-Porta",null,0.35]
[null,null,"Ecuador-Mobile-Telecsa",null,0.35]
[null,null,"Ecuador-Mobile-Telefonica",null,0.35]
[null,null,"Equatorial Guinea",null,0.35]
[null,null,"Equatorial Guinea-Mobile",null,0.35]
[null,null,"Eritrea",null,0.35]
[null,null,"Eritrea-Mobile",null,0.35]
[null,null,"Ethiopia",null,0.35]
[null,null,"Ethiopia-Mobile",null,0.35]
[null,null,"Fiji Islands",null,0.35]
[null,null,"France-Mobile-Buoygues-Roaming",null,0.35]
[null,null,"Gambia-Mobile",null,0.35]
[null,null,"Germany-Mobile",null,0.35]
[null,null,"Germany-Mobile E+",null,0.35]
[null,null,"Germany-Mobile-T-Mobile",null,0.35]
[null,null,"Germany-Mobile-Vodaphone",null,0.35]
[null,null,"Gibraltar-Mobile",null,0.35]
[null,null,"Grenada-Mobile-CW",null,0.35]
[null,null,"Grenada-Mobile-Digicel",null,0.35]
[null,null,"Guyana",null,0.35]
[null,null,"Guyana-Mobile",null,0.35]
[null,null,"Haiti-Mobile-Haitel5",null,0.35]
[null,null,"Haiti-Mobile-Teleco",null,0.35]
[null,null,"Honduras",null,0.35]
[null,null,"Honduras-Mobile",null,0.35]
[null,null,"Hungary-Mobile Pannon",null,0.35]
[null,null,"Hungary-Mobile T-Mobile",null,0.35]
[null,null,"Hungary-Mobile Vodaphone",null,0.35]
[null,null,"Iceland-Mobile-IMC",null,0.35]
[null,null,"Iceland-Mobile-Vodaphone",null,0.35]
[null,null,"Italy-Mobile Rfi",null,0.35]
[null,null,"Italy-Mobile-H3G",null,0.35]
[null,null,"Italy-Mobile-Vodaphone",null,0.35]
[null,null,"Italy-Mobile-WIND",null,0.35]
[null,null,"Jamaica-Mobile",null,0.35]
[null,null,"Jamaica-Mobile-Digicel",null,0.35]
[null,null,"Jamaica-Mobile-Oceanic",null,0.35]
[null,null,"Kenya-Mobile",null,0.35]
[null,null,"Latvia-Mobile Bite",null,0.35]
[null,null,"Latvia-Mobile-Baltija",null,0.35]
[null,null,"Lesotho",null,0.35]
[null,null,"Lesotho-Mobile",null,0.35]
[null,null,"Liberia",null,0.35]
[null,null,"Liberia-Mobile",null,0.35]
[null,null,"Liberia-Mobile-Comium",null,0.35]
[null,null,"Liberia-Mobile-Lonestar",null,0.35]
[null,null,"Libya",null,0.35]
[null,null,"Libya-Mobile",null,0.35]
[null,null,"Luxembourg-Mobile",null,0.35]
[null,null,"Macedonia-Mobile",null,0.35]
[null,null,"Maldives",null,0.35]
[null,null,"Mali",null,0.35]
[null,null,"Mali-Mobile-Ikatel",null,0.35]
[null,null,"Marshall Island",null,0.35]
[null,null,"Mauritania",null,0.35]
[null,null,"Mauritania-Mobile",null,0.35]
[null,null,"Micronesia",null,0.35]
[null,null,"Moldova-Mobile",null,0.35]
[null,null,"Morocco-Mobile",null,0.35]
[null,null,"Morocco-Mobile-Meditel",null,0.35]
[null,null,"Namibia-Mobile",null,0.35]
[null,null,"Nepal",null,0.35]
[null,null,"Nepal-Katmandu",null,0.35]
[null,null,"Nepal-Mobile",null,0.35]
[null,null,"Netherlands-Mobile",null,0.35]
[null,null,"Netherlands-Mobile O2",null,0.35]
[null,null,"Netherlands-Mobile Tele2",null,0.35]
[null,null,"Netherlands-Mobile-Ben",null,0.35]
[null,null,"Netherlands-Mobile-KPN-GSM",null,0.35]
[null,null,"Netherlands-Mobile-Vodaphone",null,0.35]
[null,null,"New Caledonia",null,0.35]
[null,null,"New Zealand-Mobile",null,0.35]
[null,null,"New Zealand-Mobile-TNZI",null,0.35]
[null,null,"Nicaragua-Mobile",null,0.35]
[null,null,"Nicaragua-Mobile-Bell South",null,0.35]
[null,null,"Nigeria-Mobile",null,0.35]
[null,null,"Peru Roc Rural",null,0.35]
[null,null,"Peru-Mobile",null,0.35]
[null,null,"Romania-Mobile",null,0.35]
[null,null,"Romania-Mobile-Mobilfon",null,0.35]
[null,null,"Romania-Mobile-Zapp",null,0.35]
[null,null,"Senegal-Mobile",null,0.35]
[null,null,"Slovenia-Mobile-Mobitel",null,0.35]
[null,null,"Slovenia-Mobile-Simobil",null,0.35]
[null,null,"Slovenia-Mobile-Vega",null,0.35]
[null,null,"South Africa-Mobile Roaming",null,0.35]
[null,null,"Spain-Mobile-Amena",null,0.35]
[null,null,"Spain-Mobile-Telefonica",null,0.35]
[null,null,"Spain-Mobile-Vodafone",null,0.35]
[null,null,"St. Kitts/Nevis-Mobile",null,0.35]
[null,null,"St. Kitts/Nevis-Mobile Uts Cariglobe",null,0.35]
[null,null,"St. Lucia-Mobile",null,0.35]
[null,null,"St. Vincent-Mobile",null,0.35]
[null,null,"Sudan-Mobile",null,0.35]
[null,null,"Suriname",null,0.35]
[null,null,"Suriname-Mobile",null,0.35]
[null,null,"Sweden-Mobile",null,0.35]
[null,null,"Sweden-Mobile-Vodafone",null,0.35]
[null,null,"Switzerland-Mobile-Orange",null,0.35]
[null,null,"Switzerland-Mobile-Sunrise",null,0.35]
[null,null,"Switzerland-Mobile-Swisscom",null,0.35]
[null,null,"Switzerland-Mobile-Tele2",null,0.35]
[null,null,"Syria",null,0.35]
[null,null,"Syria-Mobile",null,0.35]
[null,null,"UAE",null,0.35]
[null,null,"UAE-Mobile",null,0.35]
[null,null,"United Kingdom-Mobile T-Mobile",null,0.35]
[null,null,"United Kingdom-Mobile Vodafone",null,0.35]
[null,null,"Uruguay-Mobile",null,0.35]
[null,null,"Uruguay-Mobile-Ancel",null,0.35]
[null,null,"Venezuela-Mobile",null,0.35]
[null,null,"Venezuela-Mobile-Digicel",null,0.35]
[null,null,"Venezuela-Mobile-Infonet",null,0.35]
[null,null,"Yugoslavia-Mobile",null,0.35]
[null,null,"Yugoslavia-Mobile-Montenegro",null,0.35]
[null,null,"Belgium-Mobile-Base",null,0.45]
[null,null,"Belgium-Mobile-Mobistar",null,0.45]
[null,null,"Comoros-Mobile",null,0.45]
[null,null,"Comoros-Mobile-Mayotte",null,0.45]
[null,null,"Congo D.R.C",null,0.45]
[null,null,"Congo D.R.C-Mobile",null,0.45]
[null,null,"Djibouti",null,0.45]
[null,null,"Djibouti-Mobile",null,0.45]
[null,null,"Estonia-Mobile",null,0.45]
[null,null,"Fiji Islands-Mobile",null,0.45]
[null,null,"French Antilles-Mobile",null,0.45]
[null,null,"French Guiana-Mobile",null,0.45]
[null,null,"Greece-Mobile-699",null,0.45]
[null,null,"Guadeloupe-Mobile",null,0.45]
[null,null,"Malta-Mobile Go",null,0.45]
[null,null,"Malta-Mobile Vodafone",null,0.45]
[null,null,"Myanmar",null,0.45]
[null,null,"Myanmar-Mobile",null,0.45]
[null,null,"Qatar",null,0.45]
[null,null,"Qatar-Mobile",null,0.45]
[null,null,"Reunion Islands-Mobile",null,0.45]
[null,null,"Switzerland-Mobile-Paging",null,0.45]
[null,null,"Tajikistan-Mobile",null,0.45]
[null,null,"United Kingdom-Mobile Others",null,0.45]
[null,null,"United Kingdom-Mobile PNS",null,0.45]
[null,null,"Western Samoa",null,0.45]
[null,null,"Western Samoa-Mobile",null,0.45]
[null,null,"Ascension Islands",null,0.55000000000000004]
[null,null,"Estonia-Tartu",null,0.55000000000000004]
[null,null,"Korea (North)",null,0.55000000000000004]
[null,null,"Liechtenstein-Mobile",null,0.55000000000000004]
[null,null,"Palau",null,0.55000000000000004]
[null,null,"Palau-Mobile",null,0.55000000000000004]
[null,null,"Poland-Special Services",null,0.55000000000000004]
[null,null,"Tuvalu-Mobile",null,0.55000000000000004]
[null,null,"Vanuatu",null,0.55000000000000004]
[null,null,"Vanuatu-Mobile",null,0.55000000000000004]
[null,"Vigencia: 01-septiembre de 2011"]
[null,{"$f":"+B50","v":"Elaborado: SENATEL-DGP, Publicación:  mayo  2013"}]
[]
[]
[null,"TARIFAS POR DESTINO DE LLAMADA"]
[null,"SERVICIO DE LARGA DISTANCIA NACIONAL E INTERNACIONAL*"]
[null,"Destino",null,null,"Valor por minuto de llamada    USD"]
[null,"Nacional",null,null,0.3]
[null,"América",null,null,0.7]
[null,"Europa",null,null,0.8]
[null,"Asia",null,null,0.9]
[null,"Africa",null,null,0.9]
[null,"Oceanía",null,null,0.8]
[null,"Satelital",null,null,9]
[]
[null,{"$f":"+B851","v":"Elaborado: SENATEL-DGP, Publicación:  mayo  2013"}]
[]
[null,"TELEFONIA BASICA RESIDENCIAL"]
[null,"Productos Básicos","Básico Mensual","Minutos Incluidos","Tarifa Minuto Local Adicional","Tarifa Minuto Regional","Tarifa Minuto Nacional"]
[null,"Servicio Básico *",5.98,null,3.7139999999999999E-2,3.7139999999999999E-2,4.0230000000000002E-2]
[null,"Servicio 100",9.23,100,3.6799999999999999E-2,3.6799999999999999E-2,3.9870000000000003E-2]
[null,"Servicio 500",22.23,500,3.644E-2,3.644E-2,3.952E-2]
[null,"Servicio 1000",38.479999999999997,1000,3.6080000000000001E-2,3.6080000000000001E-2,3.916E-2]
[null,"Servicio 2500",88.55,2500,3.5200000000000002E-2,3.5200000000000002E-2,3.8800000000000001E-2]
[null,"Servicio 5000",169.79,5000,3.3480000000000003E-2,3.3480000000000003E-2,3.8449999999999998E-2]
[]
[null,"Productos Básicos",null,"Tarifa Minuto Internacional *"]
[null,null,null,"Pacto Andino, EUA, México y Canada","Resto de América y Europa","Resto del Mundo","Tarifa Minuto Celular"]
[null,"Servicio Básico",null,0.46666999999999997,0.58333000000000002,0.73499999999999999,0.28999999999999998]
[null,"Servicio 100",null,0.46095000000000003,0.57618999999999998,0.72599999999999998,0.28999999999999998]
[null,"Servicio 500",null,0.45523999999999998,0.56904999999999994,0.71699999999999997,0.28999999999999998]
[null,"Servicio 1000",null,0.44951999999999998,0.56189999999999996,0.70799999999999996,0.28999999999999998]
[null,"Servicio 2500",null,0.43619000000000002,0.54523999999999995,0.68700000000000006,0.28999999999999998]
[null,"Servicio 5000",null,0.41238999999999998,0.51548000000000005,0.64951000000000003,0.28999999999999998]
[]
[null,{"$f":"+B865","v":"Elaborado: SENATEL-DGP, Publicación:  mayo  2013"}]
[]
[null,"TELEFONIA BASICA COMERCIAL"]
[null,"Productos Básicos",null,"Básico Mensual","Tarifa Minuto Local","Tarifa Minuto Regional","Tarifa Minuto Nacional"]
[null,"Servicio Básico*",null,10.38,3.5880000000000002E-2,4.3279999999999999E-2,8.6559999999999998E-2]
[null,"Servicio 1000",null,42.88,3.5180000000000003E-2,4.2430000000000002E-2,8.4860000000000005E-2]
[null,"Servicio 2500",null,91.63,3.449E-2,4.1599999999999998E-2,8.3199999999999996E-2]
[null,"Servicio 5000",null,172.88,3.381E-2,4.0779999999999997E-2,8.1570000000000004E-2]
[null,"Servicio 10000",null,335.38,3.3149999999999999E-2,3.9980000000000002E-2,7.9969999999999999E-2]
[null,"CENTREX",null,985.38,3.2500000000000001E-2,3.9199999999999999E-2,7.8399999999999997E-2]
[null,"E1 Entrante",null,137]
[null,"E1 Bidereccional",null,1112.98,3.2500000000000001E-2,3.9199999999999999E-2,7.8399999999999997E-2]
[]
[null,"Productos Básicos",null,"Tarifa Minuto Internacional *"]
[null,null,null,"Pacto Andino, EUA, México y Canada","Resto de América y Europa","Resto del Mundo","Tarifa Minuto Celular"]
[null,"Servicio Básico",null,0.44163000000000002,0.55203999999999998,0.69557000000000002,0.28999999999999998]
[null,"Servicio 1000",null,0.43297000000000002,0.54122000000000003,0.68193000000000004,0.28999999999999998]
[null,"Servicio 2500",null,0.42448000000000002,0.53059999999999996,0.66856000000000004,0.28999999999999998]
[null,"Servicio 5000",null,0.41615999999999997,0.5202,0.65544999999999998,0.28999999999999998]
[null,"Servicio 10000",null,0.40799999999999997,0.51,0.64259999999999995,0.28999999999999998]
[null,"CENTREX",null,0.4,0.5,0.63,0.28999999999999998]
[null,"E1 Entrante"]
[null,"E1 Bidereccional",null,0.4,0.5,0.63,0.28999999999999998]
[null,"* tarifas vigentes hasta el 31 de agosto de 2011"]
[]
[null,"Notas:"]
[null,"1. Fuente: LINKOTEL S.A."]
[null,"2. No se incluye valor de los impuestos"]
[null,{"$f":"+B885","v":"Elaborado: SENATEL-DGP, Publicación:  mayo  2013"}]

{"sheet":"Setel S.A.","index":5,"n_rows":817,"n_cols":10,"rows_kept":817,"cut":false,"hidden":false,"merged":[[87,1,87,9],[92,2,92,9],[95,1,95,4],[104,1,104,4],[106,3,106,4],[113,1,113,4],[122,1,122,4],[119,1,119,4],[239,7,240,7],[126,7,127,7],[239,2,239,5],[176,1,176,8],[126,8,127,8],[238,2,238,6],[179,8,180,8],[237,1,237,7],[179,7,180,7],[179,1,180,1],[178,1,178,8],[132,8,133,8],[133,6,133,7],[132,1,133,1],[132,6,132,7],[218,3,219,3],[179,6,180,6],[218,5,219,5],[218,6,219,6],[107,1,107,4],[109,1,109,4],[108,1,108,4],[124,1,124,8],[126,1,127,1],[126,3,127,3],[126,5,126,6],[120,1,120,4],[85,1,85,3],[808,1,808,3],[804,1,804,3],[134,6,134,7],[135,6,135,7],[136,6,136,7],[105,3,105,4],[220,1,234,1],[218,7,219,7],[179,3,180,3],[218,4,219,4],[112,1,112,4],[216,1,216,3],[218,2,219,2],[99,1,99,3],[100,1,100,3]]}
[]
[null,"    Servicio de Telefonía Fija"]
[null,"      Plan Tarifario SETEL S.A."]
[]
[]
[]
[]
[null,"      Fecha de publicación: mayo de 2013"]
[]
[]
[]
[]
[]
[]
[]
[]
[]
[]
[]
[]
[]
[]
[]
[]
[]
[]
[]
[]
[]
[]
[]
[]
[]
[]
[]
[]
[]
[]
[]
[]
[]
[]
[]
[]
[]
[]
[]
[]
[]
[]
[]
[]
[]
[]
[]
[]
[]
[]
[]
[]
[]
[]
[]
[]
[]
[]
[]
[]
[]
[]
[]
[]
[]
[]
[]
[]
[]
[]
[]
[]
[]
[]
[]
[]
[]
[null,{"$f":"+Resumen!A127","v":"Elaborado: SENATEL-DGP, Publicación:  mayo  2013"}]
[]
[null,"Plan Telefonía Fija para clientes RESIDENCIALES"]
[null,"Descripción del Plan","Tarifa Básica Voz \n(US$)","Minutos Locales On Net gratis incluidos \n(min)","Minutos Locales gratis a cualquier operadora fija \n(min)","Precio por minuto móvil \n(US$ por min.)","Precio por minuto local adicional\n (US$ por min.)","Precio por minuto regional\n (US$ por min.)","Precio por minuto nacional \n(US$ por min.)","Larga Distancia Internacional"]
[null,"Plan Telefonía Fija de 3 dólares para clientes RESIDENCIALES",3,500,100,0.13500000000000001,0.01,0.02,2.1999999999999999E-2,"Tarifa LDI vigentes en los planes  de US$ 8 y US$ 10"]
[null,"Cargos de interconexión","Se incluyen los cargos de interconexión con otros operadores"]
[null,"Impuestos Aplicables de Ley","No se incluyen los impuestos aplicables de Ley"]
[null,"Restricciones aplicables al Plan","Aplica en combinaciones triplepack y con forma de pago de crédito automático a cuenta corriente, a tarjeta de crédito y a cuenta de ahorros en el nivel 1 del buro de crédito"]
[]
[null,"Vigencia:   4 de septiembre de 2012"]
[null,{"$f":"+B86","v":"Elaborado: SENATEL-DGP, Publicación:  mayo  2013"}]
[]
[null,"Tipo Tarifa","Tarifa anterior en USD/min, sin impuestos","Nueva Tarifa en USD/ min, sin impuestos"]
[null,"Tarifa para llamadas locales a otros operadores para abonados residenciales de otras ciudadaes distintas de Quito, Guayaquil y Cuenca",1.7000000000000001E-2,0.01]
[null,"Tarifas incluyen los cargos de interconexión "]
[null,"Tarifas no incluyen los impuestos aplicables de ley."]
[null,"Vigencia 11 de junio de 2012"]
[null,{"$f":"+B96","v":"Elaborado: SENATEL-DGP, Publicación:  mayo  2013"}]
[]
[null,"Tarifa para llamadas a números celulares de OTECEL y CONECEL"]
[null,"Tipo Tarifa","Tarifa en USD/min., sin impuesto\nhasta el minuto 80","Nueva Tarifa promocional desde el 25 de julio de 2012 hasta 7 de noviembre de 2012 a partir del minuto 81 en USD/min, sin impuestos"]
[null,"Tarifa para llamadas a números celulares de OTECEL y CONECEL",0.13500000000000001,0.1]
[null,"Tarifas incluyen los cargos de interconexión correspondiente a cada operador"]
[null,"Tarifas no incluyen los impuestos aplicables de ley."]
[null,"Vigencia 19 de marzo de 2012"]
[null,{"$f":"+B103","v":"Elaborado: SENATEL-DGP, Publicación:  mayo  2013"}]
[]
[null,"TELEFONÍA FIJA  GRUPO TV CABLE"]
[null,"RESIDENCIAL"]
[null,"Plan","Tarifa Básica","Crédito libre otras operadoras fijas locales (minutos)","Crédito libre dentro de nuestra red (minutos)"]
[null,"Residencial 8",8,350,350]
[null,"Residencial 10",10,650,650]
[null,"Tarifa local ","Tarifa Regional","Tarifa Nacional ","Tarifa Celular "]
[null,0.01,0.02,2.1999999999999999E-2,0.13500000000000001]
[null,"Tarifas incluyen los cargos de interconexión "]
[null,"Tarifas no incluyen los impuestos aplicables de ley."]
[null,"Vigencia 19 de marzo de 2012"]
[null,{"$f":"+B111","v":"Elaborado: SENATEL-DGP, Publicación:  mayo  2013"}]
[]
[null,"PLANES Y TARIFAS DEL SERVICIO REGULAR"]
[]
[null,"CARGOS GENERALES","Instalación 1era línea (*1) (*2)          ","Garantía por equipo (*3)","Instalación 2da. Línea          ","Cuota Fija Mensual (*5)",null,"Reinstalación por Línea (*7)","Precio de traslado por Línea"]
[null,null,"Una sola vez",null,"Una sola vez","Valor","Crédito Libre (*6)"]
[null,"Residencial",100,162,60,12,8.5,30,30]
[null,"Comercial",100,162,60,12,4,30,30]
[null,"Comercial Inalámbrico(*4)","Ver Tabla WLL","Ver Tabla WLL","Ver Tabla WLL",25,17,30,60]
[]
[null,"TARIFAS","Llamada Local","Llamada Regional","Llamada Nacional","Llamada Celular","Larga Distancia Internacional  (Plan Regular)",null,"Crédito Mensual Máximo Por Defecto (*8)"]
[null,null,"$ por Minuto","$ por Minuto","$ por Minuto","$ por Minuto","$ por Minuto"]
[null,"Residencial",0.01,0.02,0.04,0.25,"Ver Tabla REG-LDI",null,40]
[null,"Comercial",2.1999999999999999E-2,0.04,0.09,0.25,"Ver Tabla REG-LDI",null,100]
[null,"Comercial Inalámbrico",2.1999999999999999E-2,0.04,0.09,0.25,"Ver Tabla REG-LDI",null,100]
[]
[null,"*1 Si el cliente posee contrato de Cargo Mensual (CM) activo en el valor de suscripción se la primera línea se realizará un"]
[null,"   descuento de $ 40 por el CM que se recupera al instalar un  terminal adaptador de multimedia (MTA.)."]
[]
[null,"*2  La instalación del MTA con cable coaxial. Incluye un máximo de 50 metros de cable coaxial desde el último poste o "]
[null,"     desde el tranceptor para instalaciones WLL, hasta el lugar de instalación del MTA. Para instalaciones con E1, V5.2 o SIP, "]
[null,"      la acometida desde el nodo SDH más cercano incluye un máximo de 1000 mt. Hasta el sitio de instalación de los "]
[null,"     equipos. Por cada línea contratada la instalación interna incluye 15 mt. De par telefónico, 1 cajetín  RJ11 conector RJ11 y"]
[null,"     1 teléfono. La instalación del cable coaxial y de los pares telefónicos se hará con cable visto, caso contrario, se cobrará "]
[null,"     al cliente materiales y mano de obra extra. El exceso de cable de par telefónico se facturará a $ 0.50 por mt., y el exceso "]
[null,"      de cable coaxial se facturará previa confirmación del Departamento de Instalaciones."]
[]
[null,"* 3 El valor de Garantía por equipo incluye el IVA, y debe ser respaldado por una letra de cambio o un pagaré a favor de "]
[null,"      Grupo Tvcable."]
[]
[null,"*4  Para la instalación de nuevos Servicios de Telefonía Regular con Tecnología WLL, aplican los precios y garantía definiti-"]
[null,"     vos en el Tabla de Intalación  para Comercial Inalámbrico. La instalación del Servicio de Telefonía sobre infraestructura "]
[null,"     WLL existente en clientes de Internet con CM Inalámbrico se considerará como servicio adicional, aplicándose el precio "]
[null,"     de instalación por línea y reemplazando el CM por un MTA para 2 líneas. Esto siempre que el cliente mantenga el contrato "]
[null,"     comercial inalámbrico y las garantías sobre los equipos WLL."]
[]
[null,"*5  CUOTA FIJA MENSUAL: Para las líneas en que a más del servicio de telefonía regular habilite el servicio de Planeta "]
[null,"     (LDI prepago) con los planes Plata, Oro y Platino, se aplicará una cuota fija mensual de $0, sin crédito libre, con "]
[null,"     excepción de las líneas con acceso WLL en las que la Cuota Fija Mensual será de $13 con un crédito de $ 4. Para el "]
[null,"     caso que se habilite el servicio Planeta Bronce, la cuota fija se modificará  a $6 y con crédito libre de $2 aplicable "]
[null,"     solamente al servicio residencial, y para el caso de líneas atendidas con acceso  a WLL, en las que se habilite el plan "]
[null,"     planeta Bronce la cuota fija mensual se reducirá a $19 con crédito libre de $11"]
[]
[null,"*6 CREDITO LIBRE: El crédito libre incluido en la cuota fija mensual se aplica para llamadas locales, regionales y nacionales "]
[null,"    (con operadores fijos), debiendo descontarse el valor de estas el valor de crédito libre asignado a cada tipo de servicio."]
[]
[null,"*7 REINSTALACION DE LINEAS: La reinstalación aplica cuando un cliente que canceló el servicio o que se le fue "]
[null,"    desinstalado lo solicita nuevamente, en cuyo caso pagará $30 más IVA por la reinstalación de cada línea."]
[]
[null,"*8  El cliente puede solicitar renovación del crédito en incrementos de múltiplos de $ 5, hasta acumular un crédito máximo"]
[null,"      equivalente al doble del valor del crédito por defecto definido para el plan contratado. Para ampliación de crédito "]
[null,"     mensual por defectos se requiere una letra de cambio o pagaré por el mismo valor de la ampliación del crédito"]
[]
[]
[null,"LARGA DISTANCIA INTERNACIONAL"]
[]
[null,"PLANES Y TARIFAS DEL SERVICIO PLANETA"]
[null,"TARIFAS","Instalación (*1) (*2)","Garantía por Equipos (*3)","Pre-pago Mensual Mínimo (*4)","Larga Distancia Internacional","Crédito Mensual Máximo por Defecto (*5) ","Instalación por 2da. Línea","Precio de Reinstalación por Línea"]
[null,null,"Una sola vez",null,"Valor ($)","$ x minuto"]
[null,"Planeta Bronce (*6)",100,162,15,"Ver Tabla LDI",null,60,50]
[null,"Planeta Plata",100,162,25,"Ver Tabla LDI",30,60,50]
[null,"Planeta Oro",100,162,50,"Ver Tabla LDI",50,60,50]
[null,"Planeta Platino * 7","Ver Tabla (* 8)",162,"Ver Tabla (* 8)","Ver Tabla LDI",100,60,50]
[]
[null,"* 1 Si el cliente posee contrato de CM activo. en el valor de suscripción se la primera línea se realizará un descuento de  "]
[null,"    $ 40 por el CM que se recupera al instalar un MTA."]
[]
[null,"*2  La instalación del MTA con cable coaxial. Incluye un máximo de 50 metros de cable coaxial desde el último poste o "]
[null,"     desde el tranceptor para instalaciones WLL, hasta el lugar de instalación del MTA. Para instalaciones con E1, V5.2 o SIP, "]
[null,"     la acometida desde el nodo SDH más cercano incluye un máximo de 1000 mt. Hasta el sitio de instalación de los"]
[null,"      equipos. Por cada línea contratada la instalación interna incluye 15 mt. De par telefónico, 1 cajatín RJ11 conector RJ11 y "]
[null,"      1 teléfono. La instalación del cable coaxial y de los pares telefónicos se hará con  cable visto, caso contrario,  se cobrará"]
[null,"      al cliente materiales y mano de obra extra. El exceso de cable de par telefónico se  facturará a $0,50 por mt."]
[null,"      Y el exceso de cable coaxial se facturará previa confirmación del Departamento de Instalaciones."]
[]
[null,"* 3 El valor de Garantía por equipo incluye el IVA, y debe ser respaldado por una letra de cambio o un pagaré a favor de "]
[null,"      Grupo Tvcable"]
[]
[null,"*4 Se facturará Pre-pago Mensual (según plan contratado) para renovar el crédito  mensual para LDI. La facturacoón del "]
[null,"    Pre-pago Mensual Mínimo se hará las fechas establecidas para la facturación. Las facturas generadas mensualmente "]
[null,"   contendrán el Pre-pago Mensual Mínimo y los incrementos/renovaciones de Crédito Mensual que haya solicitado el"]
[null,"      cliente desde la última facturación."]
[]
[null,"*5 Manejo del Crédito Mensual máximo por Defecto. El cliente puede solicitar renovación del crédito en incrementos de "]
[null,"    múltiplos de 5  hasta acumular un crédito máximo equivalente al doble del valor definido para el plan contratado. Si "]
[null,"    necesita sobrepasar el crédito  mensual Máximo por Defecto antes del siguiente período de facturación,debe acercarse "]
[null,"     al Front Office para pagar el exceso sobre el Pre-pago Mensual Mínimo y así poder incrementar nuevamente su crédito "]
[null,"       al mensual máximo definido para su plan."]
[]
[null,"*6 El Plan Bronce se ofrecerá a clientes que tengan instalada una línea telefónica con Servicio Regular de SETEL"]
[]
[null,"*7  Para el Plan Platino se consideran mintos de prepago a partir de $ 100 de manera que los clientes de alto consumo de"]
[null,"     LDI puedan Prepagar para cada línea montos superiores a $ 100 según la siguiente tabla:"]
[]
[null,"TABLA * 8"]
[]
[null,null,"Crédito Mensual Mínimo","Crédito Mensual Máximo por Defecto"]
[]
[null,"Montos Pre-Pago para Planeta Platino",100,100]
[null,null,150,150]
[null,null,200,200]
[null,null,300,300]
[null,null,400,400]
[null,null,500,500]
[null,null,750,750]
[null,null,1000,1000]
[null,null,1500,1500]
[null,null,2000,2000]
[null,null,2500,2500]
[null,null,3000,3000]
[null,null,4000,4000]
[null,null,4500,4500]
[null,null,5000,5000]
[]
[]
[null,"TABLA LARGA DISTANCIA INTERNACIONAL (LDI)"]
[null,null,"USD "]
[null,null,"PREPAGO",null,null,null,"Post-Pago","Tipo Llamada"]
[null,null,"Bronce","Plata","Oro","Platino","Tarifas Regulares"]
[null,"Afganistán",0.56299999999999994,0.54300000000000004,0.51800000000000002,0.495,0.60299999999999998,"Fijo"]
[null,"Afganistán",0.55800000000000005,0.53800000000000003,0.51300000000000001,0.49,0.59799999999999998,"Celular"]
[null,"Albania",0.247,0.22700000000000001,0.20200000000000001,0.17899999999999999,0.45500000000000002,"Fijo"]
[null,"Albania",0.38400000000000001,0.36399999999999999,0.33900000000000002,0.316,0.42399999999999999,"Celular"]
[null,"Albania-Tirania",0.247,0.22700000000000001,0.20200000000000001,0.17899999999999999,0.45500000000000002]
[null,"Algelia",0.317,0.29699999999999999,0.27200000000000002,0.249,0.35699999999999998,"Fijo"]
[null,"Algelia",0.309,0.28899999999999998,0.26400000000000001,0.24099999999999999,0.45500000000000002,"Celular"]
[null,"American Samoa",0.21299999999999999,0.193,0.16800000000000001,0.14499999999999999,0.45500000000000002]
[null,"Andorra",0.38600000000000001,0.36599999999999999,0.34100000000000003,0.318,0.42599999999999999,"Fijo"]
[null,"Andorra",0.47199999999999998,0.45200000000000001,0.42699999999999999,0.40400000000000003,0.51200000000000001,"Celular"]
[null,"Angola",0.33,0.31,0.28499999999999998,0.26200000000000001,0.37,"Fijo"]
[null,"Angola",0.41699999999999998,0.39700000000000002,0.372,0.34899999999999998,0.45700000000000002,"Celular"]
[null,"Anguilla",0.33200000000000002,0.312,0.28699999999999998,0.26400000000000001,0.372,"Fijo"]
[null,"Anguilla",0.29499999999999998,0.27500000000000002,0.25,0.22700000000000001,0.34300000000000003,"Celular"]
[null,"Antartica",2.855,2.835,2.81,2.7869999999999999,2.895]
[null,"Antartica",3.1880000000000002,3.1680000000000001,3.1429999999999998,3.12,3.2280000000000002,"Audiotext"]
[null,"Antartica",2.855,2.835,2.81,2.7869999999999999,2.895,"Casey"]
[null,"Antigua y Babuda",0.315,0.29499999999999998,0.27,0.247,0.35499999999999998,"Fijo"]
[null,"Antigua y Babuda",0.315,0.29499999999999998,0.27,0.247,0.35499999999999998,"Audiotext"]
[null,"Antigua y Babuda",0.28000000000000003,0.26,0.23499999999999999,0.21199999999999999,0.32,"Celular"]
[null,"Argentina",0.14199999999999999,0.122,9.7000000000000003E-2,7.3999999999999996E-2,0.34300000000000003,"Fijo"]
[null,"Argentina_Buenos Aires",0.14199999999999999,0.122,9.7000000000000003E-2,7.3999999999999996E-2,0.34300000000000003,"Fijo"]
[null,"Argentina",0.377,0.35699999999999998,0.33200000000000002,0.309,0.41699999999999998,"Celular"]
[null,"Argentina-Córdova",0.14199999999999999,0.122,9.7000000000000003E-2,7.3999999999999996E-2,0.34300000000000003,"Fijo"]
[null,"Argentina_La Plata",0.14199999999999999,0.122,9.7000000000000003E-2,7.3999999999999996E-2,0.34300000000000003,"Fijo"]
[null,"Argentina_Mar del Plata",0.14199999999999999,0.122,9.7000000000000003E-2,7.3999999999999996E-2,0.34300000000000003,"Fijo"]
[null,"Argentina-Mendoza",0.14199999999999999,0.122,9.7000000000000003E-2,7.3999999999999996E-2,0.34300000000000003,"Fijo"]
[null,"Argentina-Rosario",0.14199999999999999,0.122,9.7000000000000003E-2,7.3999999999999996E-2,0.34300000000000003,"Fijo"]
[null,"Armenia",0.22,0.2,0.17499999999999999,0.152,0.45500000000000002,"Fijo"]
[null,"Armenia",0.35699999999999998,0.33700000000000002,0.312,0.28899999999999998,0.39700000000000002,"Celular"]
[null,"Aruba",0.309,0.28899999999999998,0.26400000000000001,0.24099999999999999,0.34899999999999998,"Fijo"]
[null,"Aruba",0.36899999999999999,0.34899999999999998,0.32400000000000001,0.30099999999999999,0.40899999999999997,"Celular"]
[null,"Ascención, Isla",1.032,1.012,0.98699999999999999,0.96399999999999997,1.0720000000000001,"Fijo"]
[null,"Australia",0.14399999999999999,0.124,9.9000000000000005E-2,7.5999999999999998E-2,0.45500000000000002,"Fijo"]
[null,"Australia",0.32300000000000001,0.30299999999999999,0.27800000000000002,0.255,0.36299999999999999,"Celular"]
[null,"Australia MelBourne",0.14399999999999999,0.124,9.9000000000000005E-2,7.5999999999999998E-2,0.45500000000000002,"Fijo"]
[null,"Australia Sidney",0.14399999999999999,0.124,9.9000000000000005E-2,7.5999999999999998E-2,0.45500000000000002,"Fijo"]
[null,"Austria",0.159,0.13900000000000001,0.114,9.0999999999999998E-2,0.36399999999999999,"Fijo"]
[null,"Austria",0.33500000000000002,0.315,0.28999999999999998,0.26700000000000002,0.375,"Celular"]
[null,"Austria NGN",0.48799999999999999,0.46800000000000003,0.443,0.42,0.52800000000000002,"Fijo"]
[null,"Austria Viena",0.159,0.13900000000000001,0.114,9.0999999999999998E-2,0.36399999999999999,"Fijo"]
[null,"Azerbaiyana",0.29299999999999998,0.27300000000000002,0.248,0.22500000000000001,0.33300000000000002,"Fijo"]
[null,"Azerbaiyana",0.32400000000000001,0.30399999999999999,0.27900000000000003,0.25600000000000001,0.45500000000000002,"Celular"]
[null,"Bahamas",0.22500000000000001,0.20499999999999999,0.18,0.157,0.34300000000000003,"Fijo- Celular"]
[null,"Bahrain",0.496,0.47599999999999998,0.45100000000000001,0.42799999999999999,0.53600000000000003,"Fijo"]
[null,"Bahrain",0.32800000000000001,0.308,0.28299999999999997,0.26,0.36799999999999999,"Celular"]
[null,"Bahrain-NGN",0.496,0.47599999999999998,0.45100000000000001,0.42799999999999999,0.53600000000000003,"Fijo"]
[null,"Bangladesh",0.23,0.21,0.185,0.16200000000000001,0.45500000000000002,"Fijo"]
[null,"Bangladesh",0.216,0.19600000000000001,0.17100000000000001,0.14799999999999999,0.45500000000000002,"Celular"]
[null,"Bangladesh-Chittagong",0.23,0.21,0.185,0.16200000000000001,0.45500000000000002,"Fijo"]
[null,"Bangladesh - Dhaka",0.23,0.21,0.185,0.16200000000000001,0.45500000000000002,"Fijo"]
[null,"Bangladesh-Sylhet",0.23,0.21,0.185,0.16200000000000001,0.45500000000000002,"Fijo"]
[null,"Barbados",0.38900000000000001,0.36899999999999999,0.34399999999999997,0.32100000000000001,0.42899999999999999,"Fijo"]
[null,"Barbados",0.42599999999999999,0.40600000000000003,0.38100000000000001,0.35799999999999998,0.46600000000000003,"Celular"]
[null,"Belarús",0.44800000000000001,0.42799999999999999,0.40300000000000002,0.38,0.48799999999999999,"Fijo"]
[null,"Belarús",0.42499999999999999,0.40500000000000003,0.38,0.35699999999999998,0.46500000000000002,"Celular"]
[null,"Belarús-Minsk",0.44800000000000001,0.42799999999999999,0.40300000000000002,0.38,0.48799999999999999,"Fijo"]
[null,"Bélgica",0.15,0.13,0.105,8.2000000000000003E-2,0.36399999999999999,"Fijo"]
[null,"Bélgica",0.42699999999999999,0.40699999999999997,0.38200000000000001,0.35899999999999999,0.46700000000000003,"Celular"]
[null,"Bélice",0.4,0.38,0.35499999999999998,0.33200000000000002,0.44,"Fijo"]
[null,"Bélice",0.432,0.41199999999999998,0.38700000000000001,0.36399999999999999,0.47199999999999998,"Celular"]
[null,"Bélice - Special Services",0.4,0.38,0.35499999999999998,0.33200000000000002,0.44,"Fijo"]
[null,"Benin",0.20799999999999999,0.188,0.16300000000000001,0.14000000000000001,0.45500000000000002,"Fijo"]
[null,"Benin",0.23300000000000001,0.21299999999999999,0.188,0.16500000000000001,0.45500000000000002,"Celular"]
[null,"Bermudas",0.20799999999999999,0.188,0.16300000000000001,0.14000000000000001,0.34300000000000003,"Fijo- Celular"]
[null,"Bhután",0.32500000000000001,0.30499999999999999,0.28000000000000003,0.25700000000000001,0.36499999999999999,"Fijo"]
[null,"Bolivia",0.20100000000000001,0.18099999999999999,0.156,0.13300000000000001,0.24099999999999999,"Fijo"]
[null,"Bolivia",0.23799999999999999,0.218,0.193,0.17,0.27800000000000002,"Celular"]
[null,"Bolivia-Cochabamba",0.20100000000000001,0.18099999999999999,0.156,0.13300000000000001,0.24099999999999999,"Fijo"]
[null,"Bolivia-La Paz",0.20100000000000001,0.18099999999999999,0.156,0.13300000000000001,0.24099999999999999,"Fijo"]
[null,"Bolivia-Santa Cruz",0.20100000000000001,0.18099999999999999,0.156,0.13300000000000001,0.24099999999999999,"Fijo"]
[null,"Bosnia",0.42299999999999999,0.40300000000000002,0.378,0.35499999999999998,0.46300000000000002,"Fijo"]
[null,"Bosnia",0.441,0.42099999999999999,0.39600000000000002,0.373,0.48099999999999998,"Celular"]
[null,"Botswana",0.26800000000000002,0.248,0.223,0.2,0.45500000000000002,"Fijo"]
[null,"Botswana",0.38,0.36,0.33500000000000002,0.312,0.45500000000000002,"Celular"]
[null,"Brasil",0.19900000000000001,0.17899999999999999,0.154,0.13100000000000001,0.34300000000000003,"Fijo"]
[null,"Brasil-Belo Horizonte",0.19900000000000001,0.17899999999999999,0.154,0.13100000000000001,0.34300000000000003,"Fijo"]
[null,"Brasil-Brasilia",0.19900000000000001,0.17899999999999999,0.154,0.13100000000000001,0.34300000000000003,"Fijo"]
[null,"Brasil",0.34799999999999998,0.32800000000000001,0.30299999999999999,0.28000000000000003,0.38800000000000001,"Celular"]
[null,"Brasil-Curitiba",0.19900000000000001,0.17899999999999999,0.154,0.13100000000000001,0.34300000000000003,"Fijo"]
[null,"Brasil-Florianopolis",0.19900000000000001,0.17899999999999999,0.154,0.13100000000000001,0.34300000000000003,"Fijo"]
[null,"Brasil-Fortaleza",0.19900000000000001,0.17899999999999999,0.154,0.13100000000000001,0.34300000000000003,"Fijo"]
[null,"Brasil-Goiania",0.19900000000000001,0.17899999999999999,0.154,0.13100000000000001,0.34300000000000003,"Fijo"]
[null,"Brasil-Gov.Vañadares Ld",0.19900000000000001,0.17899999999999999,0.154,0.13100000000000001,0.34300000000000003,"Fijo"]
[null,"Brasil-Manaus",0.19900000000000001,0.17899999999999999,0.154,0.13100000000000001,0.34300000000000003,"Fijo"]
[null,"Brasil-Parana",0.19900000000000001,0.17899999999999999,0.154,0.13100000000000001,0.34300000000000003,"Fijo"]
[null,"Brasil-Porto Alegre",0.19900000000000001,0.17899999999999999,0.154,0.13100000000000001,0.34300000000000003,"Fijo"]
[null,"Brasil-Recife",0.19900000000000001,0.17899999999999999,0.154,0.13100000000000001,0.34300000000000003,"Fijo"]
[null,"Brasil-Rio de Janeiro",0.19900000000000001,0.17899999999999999,0.154,0.13100000000000001,0.34300000000000003,"Fijo"]
[null,"Brasil-Salvador",0.19900000000000001,0.17899999999999999,0.154,0.13100000000000001,0.34300000000000003,"Fijo"]
[null,"Brasil-Sao Paulo",0.19900000000000001,0.17899999999999999,0.154,0.13100000000000001,0.34300000000000003,"Fijo"]
[null,"Brasil-Vitoria",0.19900000000000001,0.17899999999999999,0.154,0.13100000000000001,0.34300000000000003,"Fijo"]
[null,"British Virgin Island",0.28899999999999998,0.26900000000000002,0.24399999999999999,0.221,0.45500000000000002]
[null,"Brunei ",0.21099999999999999,0.191,0.16600000000000001,0.14299999999999999,0.45500000000000002,"Fijo"]
[null,"Brunei ",0.20899999999999999,0.189,0.16400000000000001,0.14099999999999999,0.45500000000000002,"Celular"]
[null,"Bulgaria",0.19500000000000001,0.17499999999999999,0.15,0.127,0.36399999999999999,"Fijo"]
[null,"Bulgaria",0.44700000000000001,0.42699999999999999,0.40200000000000002,0.379,0.48699999999999999,"Celular"]
[null,"Bulgaria-Sofia",0.19500000000000001,0.17499999999999999,0.15,0.127,0.36399999999999999,"Fijo"]
[null,"Burkina Faso",0.32400000000000001,0.30399999999999999,0.27900000000000003,0.25600000000000001,0.36399999999999999,"Fijo"]
[null,"Burundi",0.224,0.20399999999999999,0.17899999999999999,0.156,0.45500000000000002,"Fijo"]
[null,"Camboia",0.47499999999999998,0.45500000000000002,0.43,0.40699999999999997,0.51500000000000001,"Fijo"]
[null,"Camboia-Phnom Penh",0.47499999999999998,0.45500000000000002,0.43,0.40699999999999997,0.51500000000000001]
[null,"Camerun",0.41499999999999998,0.39500000000000002,0.37,0.34699999999999998,0.45500000000000002,"Fijo"]
[null,"Camerun",0.34399999999999997,0.32400000000000001,0.29899999999999999,0.27600000000000002,0.45500000000000002,"Celular"]
[null,"Camerun- Douala",0.41499999999999998,0.39500000000000002,0.37,0.34699999999999998,0.45500000000000002,"Fijo"]
[null,"Canadá",0.13800000000000001,0.11799999999999999,9.2999999999999999E-2,7.0000000000000007E-2,0.189,"Fijo"]
[null,"Cabo Verde",0.53200000000000003,0.51200000000000001,0.48699999999999999,0.46400000000000002,0.57199999999999995,"Fijo"]
[null,"Cayman Island",0.313,0.29299999999999998,0.26800000000000002,0.245,0.35299999999999998,"Fijo"]
[null,"Central African Republic",0.29799999999999999,0.27800000000000002,0.253,0.23,0.45500000000000002,"Fijo"]
[null,"Central African Republic",0.25600000000000001,0.23599999999999999,0.21099999999999999,0.188,0.45500000000000002,"Celular"]
[null,"Chad",0.57099999999999995,0.55100000000000005,0.52600000000000002,0.503,0.61099999999999999,"Fijo"]
[null,"Chad-Audiotext",0.57099999999999995,0.55100000000000005,0.52600000000000002,0.503,0.61099999999999999]
[null,"Chile",0.14399999999999999,0.124,9.9000000000000005E-2,7.5999999999999998E-2,0.217,"Fijo"]
[null,"Chile",0.252,0.252,0.22700000000000001,0.20399999999999999,0.312,"Celular"]
[null,"Chile-Santiago",0.14399999999999999,0.124,9.9000000000000005E-2,7.5999999999999998E-2,0.217,"Fijo"]
[null,"China",0.14099999999999999,0.121,9.6000000000000002E-2,7.2999999999999995E-2,0.45500000000000002,"Fijo"]
[null,"China-Beijing",0.14099999999999999,0.121,9.6000000000000002E-2,7.2999999999999995E-2,0.45500000000000002,"Fijo"]
[null,"China",0.13700000000000001,0.11700000000000001,9.1999999999999998E-2,6.9000000000000006E-2,0.45500000000000002,"Celular"]
[null,"China-Fuzhou",0.14099999999999999,0.121,9.6000000000000002E-2,7.2999999999999995E-2,0.45500000000000002,"Fijo"]
[null,"China-Guangzhou",0.14099999999999999,0.121,9.6000000000000002E-2,7.2999999999999995E-2,0.45500000000000002,"Fijo"]
[null,"China-Shanghai",0.14099999999999999,0.121,9.6000000000000002E-2,7.2999999999999995E-2,0.45500000000000002,"Fijo"]
[null,"Crhistmas Island",1.8620000000000001,1.8420000000000001,1.8169999999999999,1.794,1.9019999999999999,"Fijo"]
[null,"Cocos Island",3.1880000000000002,3.1680000000000001,3.1429999999999998,3.12,3.2280000000000002,"Fijo"]
[null,"Colombia",0.17599999999999999,0.156,0.13100000000000001,0.108,0.216,"Fijo"]
[null,"Colombia -Armenia",0.17599999999999999,0.156,0.13100000000000001,0.108,0.216,"Fijo"]
[null,"Colombia-Barranquilla",0.17599999999999999,0.156,0.13100000000000001,0.108,0.216,"Fijo"]
[null,"Colombia - Bogotá",0.17599999999999999,0.156,0.13100000000000001,0.108,0.216,"Fijo"]
[null,"Colombia - Bucaramanga",0.17599999999999999,0.156,0.13100000000000001,0.108,0.216,"Fijo"]
[null,"Colombia - Buenaventura",0.17599999999999999,0.156,0.13100000000000001,0.108,0.216,"Fijo"]
[null,"Colombia  Cali",0.17599999999999999,0.156,0.13100000000000001,0.108,0.216,"Fijo"]
[null,"Colombia - Cartagena",0.17599999999999999,0.156,0.13100000000000001,0.108,0.216,"Fijo"]
[null,"Colombia  Cartago",0.17599999999999999,0.156,0.13100000000000001,0.108,0.216,"Fijo"]
[null,"Colombia",0.20799999999999999,0.188,0.16300000000000001,0.14000000000000001,0.248,"Celular"]
[null,"Colombia - Cucuta",0.17599999999999999,0.156,0.13100000000000001,0.108,0.216,"Fijo"]
[null,"Colombia - Ibague",0.17599999999999999,0.156,0.13100000000000001,0.108,0.216,"Fijo"]
[null,"Colombia - Manizales",0.17599999999999999,0.156,0.13100000000000001,0.108,0.216,"Fijo"]
[null,"Colombia - Medellin",0.17599999999999999,0.156,0.13100000000000001,0.108,0.216,"Fijo"]
[null,"Colombia - Monteria",0.17599999999999999,0.156,0.13100000000000001,0.108,0.216,"Fijo"]
[null,"Colombia - Palmira",0.17599999999999999,0.156,0.13100000000000001,0.108,0.216,"Fijo"]
[null,"Colombia - Pereira",0.17599999999999999,0.156,0.13100000000000001,0.108,0.216,"Fijo"]
[null,"Colombia - Santa Marta",0.17599999999999999,0.156,0.13100000000000001,0.108,0.216,"Fijo"]
[null,"Comores",0.59399999999999997,0.57399999999999995,0.54900000000000004,0.52600000000000002,0.63400000000000001,"Fijo"]
[null,"Congo",0.313,0.29299999999999998,0.26800000000000002,0.245,0.35299999999999998,"Fijo"]
[null,"Cook (Islas)",1.129,1.109,1.0840000000000001,1.0609999999999999,1.169,"Fijo"]
[null,"Costa Rica",0.20899999999999999,0.189,0.16400000000000001,0.14099999999999999,0.34300000000000003,"Fijo"]
[null,"Costa Rica",0.20899999999999999,0.189,0.16400000000000001,0.14099999999999999,0.34300000000000003,"Celular"]
[null,"Croatia",0.187,0.16700000000000001,0.14199999999999999,0.11899999999999999,0.36399999999999999,"Fijo"]
[null,"Croatia",0.35299999999999998,0.33300000000000002,0.308,0.28499999999999998,0.39300000000000002,"Celular"]
[null,"Cuba",1.542,1.542,1.5169999999999999,1.494,1.6020000000000001,"Fijo"]
[null,"Cuba",1.4450000000000001,1.4450000000000001,1.42,1.397,1.5049999999999999,"Celular"]
[null,"Cyprus",0.17599999999999999,0.156,0.13100000000000001,0.108,0.36399999999999999,"Fijo"]
[null,"Cyprus",0.214,0.19400000000000001,0.16900000000000001,0.14599999999999999,0.36399999999999999,"Celular"]
[null,"Cyprus-NGN",0.20399999999999999,0.184,0.159,0.13600000000000001,0.36399999999999999]
[null,"Czech Republic",0.16500000000000001,0.14499999999999999,0.12,9.7000000000000003E-2,0.36399999999999999,"Fijo"]
[null,"Czech Republic",0.31900000000000001,0.29899999999999999,0.27400000000000002,0.251,0.23599999999999999,"Celular"]
[null,"Denmark",0.13300000000000001,0.13300000000000001,8.7999999999999995E-2,6.5000000000000002E-2,0.36399999999999999,"Fijo"]
[null,"Denmark",0.36899999999999999,0.34899999999999998,0.32400000000000001,0.30099999999999999,0.40899999999999997,"Celular"]
[null,"Diego Garcia",1.419,1.399,1.3740000000000001,1.351,1.4590000000000001,"Fijo"]
[null,"Djibouti",0.59699999999999998,0.57699999999999996,0.55200000000000005,0.52900000000000003,0.63700000000000001,"Fijo"]
[null,"Dominica",0.42799999999999999,0.40799999999999997,0.38300000000000001,0.36,0.46800000000000003,"Fijo"]
[null,"Dominica-Audiotext",0.42799999999999999,0.40799999999999997,0.38300000000000001,0.36,0.46800000000000003,"Fijo"]
[null,"Dominica",0.42799999999999999,0.40799999999999997,0.38300000000000001,0.36,0.46800000000000003,"Celular"]
[null,"Dominican Republic",0.21099999999999999,0.191,0.16600000000000001,0.14299999999999999,0.45500000000000002,"Fijo"]
[null,"Dominican Republic",0.26600000000000001,0.246,0.221,0.19800000000000001,0.30599999999999999,"Celular"]
[null,"Ecuador",0.26300000000000001,0.24299999999999999,0.218,0.19500000000000001,0.30299999999999999,"Fijo"]
[null,"Ecuador",0.41099999999999998,0.39100000000000001,0.36599999999999999,0.34300000000000003,0.45100000000000001,"Celular"]
[null,"Ecuador",0.41099999999999998,0.39100000000000001,0.36599999999999999,0.34300000000000003,0.45100000000000001,"Celular-Direct"]
[null,"Ecuador-Cuenca",0.26300000000000001,0.24299999999999999,0.218,0.19500000000000001,0.30299999999999999,"Fijo"]
[null,"Ecuador-Guayaquil",0.26300000000000001,0.24299999999999999,0.218,0.19500000000000001,0.30299999999999999,"Fijo"]
[null,"Ecuador-Manta",0.26300000000000001,0.24299999999999999,0.218,0.19500000000000001,0.30299999999999999,"Fijo"]
[null,"Ecuador-Quito",0.26300000000000001,0.24299999999999999,0.218,0.19500000000000001,0.30299999999999999,"Fijo"]
[null,"Egipto",0.36799999999999999,0.34799999999999998,0.32300000000000001,0.3,0.40799999999999997,"Fijo"]
[null,"Egipto - Cairo",0.36799999999999999,0.34799999999999998,0.32300000000000001,0.3,0.40799999999999997,"Fijo"]
[null,"Egipto",0.313,0.29299999999999998,0.26800000000000002,0.245,0.35299999999999998,"Celular"]
[null,"El Salvador",0.24399999999999999,0.24399999999999999,0.19900000000000001,0.17599999999999999,0.34300000000000003,"Fijo"]
[null,"El Salvador",0.23799999999999999,0.218,0.193,0.17,0.27800000000000002,"Celular"]
[null,"Guinea-Ecuatorial",0.48,0.46,0.435,0.41199999999999998,0.52,"Fijo"]
[null,"Guinea-Ecuatorial",0.41899999999999998,0.39900000000000002,0.374,0.35099999999999998,0.45900000000000002,"Celular"]
[null,"Eritrea",0.58599999999999997,0.56599999999999995,0.54100000000000004,0.51800000000000002,0.626,"Fijo"]
[null,"Estonia",0.157,0.13700000000000001,0.112,8.8999999999999996E-2,0.36399999999999999,"Fijo"]
[null,"Estonia",0.4,0.38,0.35499999999999998,0.33200000000000002,0.44,"Celular"]
[null,"Etiopia",0.59499999999999997,0.57499999999999996,0.55000000000000004,0.52700000000000002,0.63500000000000001,"Fijo"]
[null,"Etiopia",0.502,0.48199999999999998,0.45700000000000002,0.434,0.54200000000000004,"Celular"]
[null,"Faeroe Islands}",0.39200000000000002,0.372,0.34699999999999998,0.32400000000000001,0.432,"Fijo"]
[null,"Islas Falkland Malvinas",1.05,1.03,1.0049999999999999,0.98199999999999998,1.0900000000000001,"Fijo"]
[null,"Fiji",0.52800000000000002,0.50800000000000001,0.48299999999999998,0.46,0.56799999999999995,"Fijo"]
[null,"Finlandia",0.17699999999999999,0.157,0.13200000000000001,0.109,0.36399999999999999,"Fijo"]
[null,"Finlandia",0.27300000000000002,0.253,0.22800000000000001,0.20499999999999999,0.313,"Celular"]
[null,"Francia",0.127,0.107,8.2000000000000003E-2,5.8999999999999997E-2,0.36399999999999999,"Fijo"]
[null,"Francia",0.30099999999999999,0.28100000000000003,0.25600000000000001,0.23300000000000001,0.36399999999999999,"Celular"]
[null,"Francia-NGN",0.127,0.107,8.2000000000000003E-2,5.8999999999999997E-2,0.36399999999999999,"Fijo"]
[null,"Francia-Paris",0.127,0.107,8.2000000000000003E-2,5.8999999999999997E-2,0.36399999999999999,"Fijo"]
[null,"Francesas Antillas",0.222,0.20200000000000001,0.17699999999999999,0.154,0.36399999999999999,"Fijo"]
[null,"Francesas Antillas",0.47899999999999998,0.45900000000000002,0.434,0.41099999999999998,0.51900000000000002,"Celular"]
[null,"Francesa Guayana",0.27500000000000002,0.255,0.23,0.20699999999999999,0.315,"Fijo"]
[null,"Francesa Guayana",0.36199999999999999,0.34200000000000003,0.317,0.29399999999999998,0.40200000000000002,"Celular"]
[null,"Francesa Polinesia",0.442,0.42199999999999999,0.39700000000000002,0.374,0.48199999999999998,"Fijo"]
[null,"Francesa Polinesia",0.442,0.42199999999999999,0.39700000000000002,0.374,0.48199999999999998,"Celular"]
[null,"Gabon",0.28399999999999997,0.26400000000000001,0.23899999999999999,0.216,0.45500000000000002,"Fijo"]
[null,"Gabon",0.26200000000000001,0.24199999999999999,0.217,0.19400000000000001,0.45500000000000002,"Celular"]
[null,"Gambia",0.38,0.36,0.33500000000000002,0.312,0.42,"Fijo"]
[null,"Gambia",0.34499999999999997,0.32500000000000001,0.3,0.27700000000000002,0.45500000000000002,"Celular"]
[null,"Georgia",0.26200000000000001,0.24199999999999999,0.217,0.19400000000000001,0.45500000000000002,"Fijo"]
[null,"Georgia",0.38700000000000001,0.36699999999999999,0.34200000000000003,0.31900000000000001,0.45500000000000002,"Celular"]
[null,"Germany",0.13300000000000001,0.113,8.7999999999999995E-2,6.5000000000000002E-2,0.36399999999999999,"Fijo"]
[null,"Germany-Berlin",0.13300000000000001,0.113,8.7999999999999995E-2,6.5000000000000002E-2,0.36399999999999999,"Fijo"]
[null,"Germany",0.375,0.375,0.35,0.32700000000000001,0.435,"Celular"]
[null,"Germany-Frankfurt",0.13300000000000001,0.113,8.7999999999999995E-2,6.5000000000000002E-2,0.36399999999999999,"Fijo"]
[null,"Germany-Munich",0.13300000000000001,0.113,8.7999999999999995E-2,6.5000000000000002E-2,0.36399999999999999,"Fijo"]
[null,"Germany-NGN",0.13300000000000001,0.113,8.7999999999999995E-2,6.5000000000000002E-2,0.36399999999999999,"Fijo"]
[null,"Ghana",0.23499999999999999,0.215,0.19,0.16700000000000001,0.45500000000000002,"Fijo"]
[null,"Ghana-Accra",0.23499999999999999,0.215,0.19,0.16700000000000001,0.45500000000000002,"Fijo"]
[null,"Ghana",0.26,0.24,0.215,0.192,0.45500000000000002,"Celular"]
[null,"Gibraltar",0.218,0.19800000000000001,0.17299999999999999,0.15,0.36399999999999999,"Fijo"]
[null,"Gibraltar",0.57899999999999996,0.55900000000000005,0.53400000000000003,0.51100000000000001,0.61899999999999999,"Celular"]
[null,"Grecia",0.16900000000000001,0.14899999999999999,0.124,0.10100000000000001,0.36399999999999999,"Fijo"]
[null,"Grecia-Atenas",0.16900000000000001,0.14899999999999999,0.124,0.10100000000000001,0.36399999999999999,"Fijo"]
[null,"Grecia",0.32100000000000001,0.30099999999999999,0.27600000000000002,0.253,0.36099999999999999,"Celular"]
[null,"Greenland",0.83899999999999997,0.81899999999999995,0.79400000000000004,0.77100000000000002,0.879,"Fijo"]
[null,"Greenland",1.1479999999999999,1.1279999999999999,1.103,1.08,1.1879999999999999,"Celular"]
[null,"Grenada",0.44,0.42,0.39500000000000002,0.372,0.48,"Fijo"]
[null,"Grenada-Audiotext",0.44,0.42,0.39500000000000002,0.372,0.48]
[null,"Grenada",0.373,0.35299999999999998,0.32800000000000001,0.30499999999999999,0.41299999999999998,"Celular"]
[null,"Guadalupe",0.26300000000000001,0.24299999999999999,0.218,0.19500000000000001,0.30299999999999999,"Fijo"]
[null,"Guadalupe",0.55200000000000005,0.53200000000000003,0.50700000000000001,0.48399999999999999,0.59199999999999997,"Celular"]
[null,"Guantanamo Bay",1.5960000000000001,1.5760000000000001,1.5509999999999999,1.528,1.6359999999999999,"Fijo"]
[null,"Guatemala",0.27400000000000002,0.254,0.22900000000000001,0.20599999999999999,0.314,"Fijo"]
[null,"Guatemala",0.25900000000000001,0.23899999999999999,0.214,0.191,0.29899999999999999,"Fijo"]
[null,"Guinea",0.63600000000000001,0.61599999999999999,0.59099999999999997,0.56799999999999995,0.67600000000000005,"Fijo"]
[null,"Guinea-Bissau",0.63600000000000001,0.61599999999999999,0.59099999999999997,0.56799999999999995,0.67600000000000005,"Fijo"]
[null,"Guinea-Bissau",0.26700000000000002,0.247,0.222,0.19900000000000001,0.307,"Celular"]
[null,"Guyana",0.47,0.45,0.42499999999999999,0.40200000000000002,0.51,"Fijo"]
[null,"Guyana",0.53,0.51,0.48499999999999999,0.46200000000000002,0.56999999999999995,"Celular"]
[null,"Haití",0.436,0.41599999999999998,0.39100000000000001,0.36799999999999999,0.47599999999999998,"Fijo"]
[null,"Haití",0.45800000000000002,0.438,0.41299999999999998,0.39,0.498,"Premiun"]
[null,"Haití",0.442,0.42199999999999999,0.39700000000000002,0.374,0.48199999999999998,"Celular"]
[null,"Haití-Port au Price",0.436,0.41599999999999998,0.39100000000000001,0.36799999999999999,0.47599999999999998,"Fijo"]
[null,"Honduras",0.499,0.47899999999999998,0.45400000000000001,0.43099999999999999,0.53900000000000003,"Fijo"]
[null,"Honduras",0.52100000000000002,0.501,0.47599999999999998,0.45300000000000001,0.56100000000000005,"Celular"]
[null,"Honduras-Tegucigalpa",0.499,0.47899999999999998,0.45400000000000001,0.43099999999999999,0.53900000000000003,"Fijo"]
[null,"Hong Kong, China",0.156,0.13600000000000001,0.111,8.7999999999999995E-2,0.45500000000000002,"Fijo"]
[null,"Hong Kong, China",0.13600000000000001,0.11600000000000001,9.0999999999999998E-2,6.8000000000000005E-2,0.45500000000000002,"Celular"]
[null,"Hungría",0.16600000000000001,0.14599999999999999,0.121,9.8000000000000004E-2,0.36399999999999999,"Fijo"]
[null,"Hungría",0.38,0.36,0.33500000000000002,0.312,0.42,"Celular"]
[null,"Islandia",0.17199999999999999,0.152,0.127,0.104,0.36399999999999999,"Fijo"]
[null,"Islandia",0.37,0.35,0.32500000000000001,0.30199999999999999,0.41,"Celular"]
[null,"India",0.315,0.29499999999999998,0.27,0.247,0.35499999999999998,"Fijo"]
[null,"India-Amhabad",0.315,0.29499999999999998,0.27,0.247,0.35499999999999998,"Fijo"]
[null,"India- Amristsar",0.315,0.29499999999999998,0.27,0.247,0.35499999999999998,"Fijo"]
[null,"India-Bangalore",0.315,0.29499999999999998,0.27,0.247,0.35499999999999998,"Fijo"]
[null,"India-Baroda",0.315,0.29499999999999998,0.27,0.247,0.35499999999999998,"Fijo"]
[null,"India-Bhopal",0.315,0.29499999999999998,0.27,0.247,0.35499999999999998,"Fijo"]
[null,"India-Bombay",0.315,0.29499999999999998,0.27,0.247,0.35499999999999998,"Fijo"]
[null,"India-BSNL-Cel",0.315,0.29499999999999998,0.27,0.247,0.35499999999999998,"Fijo"]
[null,"India-Calcuta",0.315,0.29499999999999998,0.27,0.247,0.35499999999999998,"Fijo"]
[null,"India",0.315,0.29499999999999998,0.27,0.247,0.35499999999999998,"Celular"]
[null,"India-Chandigarh",0.315,0.29499999999999998,0.27,0.247,0.35499999999999998,"Fijo"]
[null,"India-Hyderabad",0.315,0.29499999999999998,0.27,0.247,0.35499999999999998,"Fijo"]
[null,"India-Jaipur",0.315,0.29499999999999998,0.27,0.247,0.35499999999999998,"Fijo"]
[null,"India-Jullundur",0.315,0.29499999999999998,0.27,0.247,0.35499999999999998,"Fijo"]
[null,"India-Kanpur",0.315,0.29499999999999998,0.27,0.247,0.35499999999999998,"Fijo"]
[null,"India-Madras",0.315,0.29499999999999998,0.27,0.247,0.35499999999999998,"Fijo"]
[null,"India-New Delhi",0.315,0.29499999999999998,0.27,0.247,0.35499999999999998,"Fijo"]
[null,"India-NGN",0.315,0.29499999999999998,0.27,0.247,0.35499999999999998,"Fijo"]
[null,"India-Poona",0.315,0.29499999999999998,0.27,0.247,0.35499999999999998,"Fijo"]
[null,"India-Surat",0.315,0.29499999999999998,0.27,0.247,0.35499999999999998,"Fijo"]
[null,"Indonesia",0.23599999999999999,0.216,0.191,0.16800000000000001,0.45500000000000002,"Fijo"]
[null,"Indonesia",0.27400000000000002,0.254,0.22900000000000001,0.20599999999999999,0.314,"Celular"]
[null,"Indonesia-Jakarta",0.23599999999999999,0.216,0.191,0.16800000000000001,0.45500000000000002,"Fijo"]
[null,"Indonesia-Surubaya",0.23599999999999999,0.216,0.191,0.16800000000000001,0.45500000000000002,"Fijo"]
[null,"Inmmarsat",15.032,15.012,14.987,14.964,15.071999999999999]
[null,"Inmmarsat Atlantic East",5.9610000000000003,5.9409999999999998,5.9160000000000004,5.8929999999999998,6.0010000000000003]
[null,"Inmmarsat Atlantic West",6.8360000000000003,6.8159999999999998,6.7910000000000004,6.7679999999999998,6.8760000000000003]
[null,"Inmmarsat Indian Ocean",6.556,6.5359999999999996,6.5110000000000001,6.4880000000000004,6.5960000000000001]
[null,"Inmmarsat Pacific Ocean",6.5720000000000001,6.5519999999999996,6.5270000000000001,6.5039999999999996,6.6120000000000001]
[null,"International Networks",9.0039999999999996,8.984,8.9589999999999996,8.9359999999999999,9.0440000000000005]
[null,"IP Phones",9.8000000000000004E-2,7.8E-2,5.2999999999999999E-2,0.03,0.45500000000000002]
[null,"Irán",0.29599999999999999,0.27600000000000002,0.251,0.22800000000000001,0.45500000000000002,"Fijo"]
[null,"Irán",0.313,0.29299999999999998,0.26800000000000002,0.245,0.45500000000000002,"Celular"]
[null,"Irán-Teheran",0.29599999999999999,0.27600000000000002,0.251,0.22800000000000001,0.45500000000000002,"Fijo"]
[null,"Iraq",0.55400000000000005,0.53400000000000003,0.50900000000000001,0.48599999999999999,0.59399999999999997,"Fijo"]
[null,"Irlanda",0.13800000000000001,0.11799999999999999,9.2999999999999999E-2,7.0000000000000007E-2,0.36399999999999999,"Fijo"]
[null,"Irlanda",0.32400000000000001,0.30399999999999999,0.27900000000000003,0.25600000000000001,0.36399999999999999,"Celular"]
[null,"Irlanda-Dublin",0.13800000000000001,0.11799999999999999,9.2999999999999999E-2,7.0000000000000007E-2,0.36399999999999999,"Fijo"]
[null,"Iriduim",5.8520000000000003,5.8319999999999999,5.8070000000000004,5.7839999999999998,5.8920000000000003]
[null,"Israel-Premiun",0.39600000000000002,0.376,0.35099999999999998,0.32800000000000001,0.436]
[null,"Israel",0.14599999999999999,0.126,0.10100000000000001,7.8E-2,0.45500000000000002,"Fijo"]
[null,"Israel",0.216,0.19600000000000001,0.17100000000000001,0.14799999999999999,0.45500000000000002,"Celular"]
[null,"Italia",0.127,0.107,8.2000000000000003E-2,5.8999999999999997E-2,0.245,"Fijo"]
[null,"Italia",0.372,0.372,0.34699999999999998,0.32400000000000001,0.432,"Celular"]
[null,"Italia-Milan",0.127,0.107,8.2000000000000003E-2,5.8999999999999997E-2,0.245,"Fijo"]
[null,"Italia-NGN",0.42399999999999999,0.42399999999999999,0.39900000000000002,0.376,0.48399999999999999]
[null,"Italia-Rome",0.127,0.107,8.2000000000000003E-2,5.8999999999999997E-2,0.245,"Fijo"]
[null,"Ivory Coast",0.32800000000000001,0.308,0.28299999999999997,0.26,0.36799999999999999,"Fijo"]
[null,"Ivory Coast",0.33100000000000002,0.311,0.28599999999999998,0.26300000000000001,0.371,"Celular"]
[null,"Jamaica",0.35199999999999998,0.33200000000000002,0.307,0.28399999999999997,0.39200000000000002,"Fijo"]
[null,"Jamaica",0.38700000000000001,0.36699999999999999,0.34200000000000003,0.31900000000000001,0.42699999999999999,"Celular"]
[null,"Jamaica-Premiun",0.35199999999999998,0.33200000000000002,0.307,0.28399999999999997,0.39200000000000002,"Fijo"]
[null,"Japón",0.13600000000000001,0.11600000000000001,9.0999999999999998E-2,6.8000000000000005E-2,0.36399999999999999,"Fijo"]
[null,"Japón",0.29799999999999999,0.27800000000000002,0.253,0.23,0.33800000000000002,"Celular"]
[null,"Japón-Okinawa",0.13600000000000001,0.11600000000000001,9.0999999999999998E-2,6.8000000000000005E-2,0.36399999999999999,"Fijo"]
[null,"Jordania",0.29799999999999999,0.27800000000000002,0.253,0.23,0.45500000000000002,"Fijo"]
[null,"Jordania",0.35499999999999998,0.33500000000000002,0.31,0.28699999999999998,0.45500000000000002,"Celular"]
[null,"Kazajstán",0.218,0.19800000000000001,0.17299999999999999,0.15,0.45500000000000002,"Fijo"]
[null,"Kazajstán",0.34499999999999997,0.32500000000000001,0.3,0.27700000000000002,0.38500000000000001,"Celular"]
[null,"Kenya",0.41699999999999998,0.39700000000000002,0.372,0.34899999999999998,0.45700000000000002,"Fijo"]
[null,"Kenya",0.46700000000000003,0.44700000000000001,0.42199999999999999,0.39900000000000002,0.50700000000000001,"Celular"]
[null,"Kenya-Monbassa",0.41699999999999998,0.39700000000000002,0.372,0.34899999999999998,0.45700000000000002,"Fijo"]
[null,"Kenya-Nairobi",0.41699999999999998,0.39700000000000002,0.372,0.34899999999999998,0.45700000000000002,"Fijo"]
[null,"Kiribati",1.0660000000000001,1.046,1.0209999999999999,0.998,1.1060000000000001,"Fijo"]
[null,"Korea del Norte",0.72199999999999998,0.70199999999999996,0.67700000000000005,0.65400000000000003,0.76200000000000001,"Fijo"]
[null,"Korea del Sur",0.151,0.13100000000000001,0.106,8.3000000000000004E-2,0.45500000000000002,"Fijo"]
[null,"Korea del Sur",0.21299999999999999,0.193,0.16800000000000001,0.14499999999999999,0.45500000000000002,"Celular"]
[null,"Kuwait",0.35099999999999998,0.33100000000000002,0.30599999999999999,0.28299999999999997,0.45500000000000002,"Fijo"]
[null,"Kyrgyztan",0.249,0.22900000000000001,0.20399999999999999,0.18099999999999999,0.45500000000000002,"Fijo"]
[null,"Kyrgyztan",0.24399999999999999,0.224,0.19900000000000001,0.16600000000000001,0.45500000000000002,"Celular"]
[null,"Laos",0.251,0.23100000000000001,0.20599999999999999,0.183,0.45500000000000002,"Fijo"]
[null,"Laos",0.23599999999999999,0.216,0.191,0.16800000000000001,0.45500000000000002,"Celular"]
[null,"Latvia",0.19400000000000001,0.17399999999999999,0.14899999999999999,0.126,0.45500000000000002,"Fijo"]
[null,"Latvia",0.36399999999999999,0.34399999999999997,0.31900000000000001,0.29599999999999999,0.40400000000000003,"Celular"]
[null,"Lebaton",0.28699999999999998,0.26700000000000002,0.24199999999999999,0.219,0.45500000000000002,"Fijo"]
[null,"Lebaton",0.378,0.35799999999999998,0.33300000000000002,0.31,0.45500000000000002,"Celular"]
[null,"Lesotho",0.47799999999999998,0.45800000000000002,0.433,0.41,0.51800000000000002,"Fijo"]
[null,"Lesotho",0.52500000000000002,0.505,0.48,0.45700000000000002,0.56499999999999995,"Celular"]
[null,"Liberia",0.5,0.48,0.45500000000000002,0.432,0.54,"Fijo"]
[null,"Libia",0.442,0.42199999999999999,0.39700000000000002,0.374,0.48199999999999998,"Fijo"]
[null,"Libia",0.375,0.35499999999999998,0.33,0.307,0.45500000000000002,"Celular"]
[null,"Liechtenstein",0.25700000000000001,0.23699999999999999,0.21199999999999999,0.189,0.29699999999999999,"Fijo"]
[null,"Liechtenstein",0.86299999999999999,0.84299999999999997,0.81799999999999995,0.79500000000000004,0.90300000000000002,"Celular"]
[null,"Lituania",0.22700000000000001,0.20699999999999999,0.182,0.159,0.36399999999999999,"Fijo"]
[null,"Lituania",0.33400000000000002,0.314,0.28899999999999998,0.26600000000000001,0.374,"Celular"]
[null,"Luxemburgo",0.17699999999999999,0.17699999999999999,0.13200000000000001,0.109,0.36399999999999999,"Fijo"]
[null,"Luxemburgo",0.45400000000000001,0.434,0.40899999999999997,0.38600000000000001,0.49399999999999999,"Celular"]
[null,"Macao-China",0.21099999999999999,0.191,0.16600000000000001,0.14299999999999999,0.45500000000000002,"Fijo"]
[null,"Macedonia-Yugoslava ",0.29699999999999999,0.27700000000000002,0.252,0.22900000000000001,0.33700000000000002,"Fijo"]
[null,"Madagascar",0.40300000000000002,0.38300000000000001,0.35799999999999998,0.33500000000000002,0.443,"Fijo"]
[null,"Madagascar",0.34300000000000003,0.42299999999999999,0.29799999999999999,0.27500000000000002,0.45500000000000002,"Celular"]
[null,"Malawi",0.22,0.2,0.17499999999999999,0.152,0.45500000000000002,"Fijo"]
[null,"Malawi",0.22,0.2,0.17499999999999999,0.152,0.45500000000000002,"Celular"]
[null,"Malasia",0.158,0.13800000000000001,0.113,0.09,0.45500000000000002,"Fijo"]
[null,"Malasia",0.23300000000000001,0.21299999999999999,0.188,0.16500000000000001,0.45500000000000002,"Celular"]
[null,"Maldives",0.46,0.44,0.41499999999999998,0.39200000000000002,0.5,"Fijo"]
[null,"Malí",0.50800000000000001,0.48799999999999999,0.46300000000000002,0.44,0.54800000000000004,"Fijo"]
[null,"Malta",0.28699999999999998,0.26700000000000002,0.24199999999999999,0.219,0.23699999999999999,"Fijo"]
[null,"Malta",0.48799999999999999,0.46800000000000003,0.443,0.42,0.52800000000000002,"Celular"]
[null,"Marshal",0.58799999999999997,0.56799999999999995,0.54300000000000004,0.52,0.628,"Fijo"]
[null,"Mauritania",0.55400000000000005,0.53400000000000003,0.50900000000000001,0.48599999999999999,0.59399999999999997,"Fijo"]
[null,"Mauritania",0.46400000000000002,0.44400000000000001,0.41899999999999998,0.39600000000000002,0.504,"Celular"]
[null,"Mauricio",0.245,0.22500000000000001,0.2,0.17699999999999999,0.45500000000000002,"Fijo"]
[null,"Mauricio",0.24299999999999999,0.223,0.19800000000000001,0.17499999999999999,0.45500000000000002,"Celular"]
[null,"Mayotte",1.8620000000000001,1.8420000000000001,1.8169999999999999,1.794,1.9019999999999999,"Fijo"]
[null,"Mayotte",0.70599999999999996,0.68600000000000005,0.66100000000000003,0.63800000000000001,0.746,"Celular"]
[null,"México",0.22500000000000001,0.20499999999999999,0.18,0.157,0.34300000000000003,"Fijo"]
[null,"México-Guadalajara",0.17599999999999999,0.156,0.13100000000000001,0.10780000000000001,0.34300000000000003,"Fijo"]
[null,"México - México City",0.17599999999999999,0.156,0.13100000000000001,0.10780000000000001,0.34300000000000003,"Fijo"]
[null,"México- Monterrey",0.17599999999999999,0.156,0.13100000000000001,0.10780000000000001,0.34300000000000003,"Fijo"]
[null,"México Satalital",0.251,0.23100000000000001,0.20599999999999999,0.10780000000000001,0.34300000000000003,"Satelital"]
[null,"Micronesia",0.54400000000000004,0.52400000000000002,0.59899999999999998,0.47599999999999998,0.58399999999999996,"Fijo"]
[null,"Moldova",0.29599999999999999,0.27600000000000002,0.251,0.22800000000000001,0.45500000000000002,"Fijo"]
[null,"Mónaco",0.20100000000000001,0.18099999999999999,0.156,0.13300000000000001,0.36399999999999999,"Fijo"]
[null,"Mónaco",0.33600000000000002,0.316,0.29099999999999998,0.26800000000000002,0.376,"Celular"]
[null,"Mónaco",0.34300000000000003,0.32300000000000001,0.29799999999999999,0.27500000000000002,0.38300000000000001,"Celular"]
[null,"Mongolia",0.22900000000000001,0.20899999999999999,0.184,0.161,0.45500000000000002,"Fijo"]
[null,"Monserrat",0.35299999999999998,0.33300000000000002,0.308,0.28499999999999998,0.39300000000000002,"Fijo"]
[null,"Monserrat-Audiotext",0.66500000000000004,0.64500000000000002,0.62,0.59699999999999998,0.70499999999999996]
[null,"Morroco",0.49,0.47,0.44500000000000001,0.42199999999999999,0.53,"Fijo"]
[null,"Morroco-Casablanca",0.49,0.47,0.44500000000000001,0.42199999999999999,0.53,"Fijo"]
[null,"Morroco",0.502,0.48199999999999998,0.45700000000000002,0.434,0.54200000000000004,"Celular"]
[null,"Morroco-Rabat",0.49,0.47,0.44500000000000001,0.42199999999999999,0.53,"Fijo"]
[null,"Mozambique",0.34399999999999997,0.32400000000000001,0.29899999999999999,0.27600000000000002,0.38400000000000001,"Fijo"]
[null,"Myanmar",0.58899999999999997,0.56899999999999995,0.54400000000000004,0.52100000000000002,0.629,"Fijo"]
[null,"Myanmar",0.58299999999999996,0.56299999999999994,0.53800000000000003,0.51500000000000001,0.623,"Celular"]
[null,"Namibia",0.26800000000000002,0.248,0.223,0.2,0.45500000000000002,"Fijo"]
[null,"Namibia",0.35699999999999998,0.33700000000000002,0.312,0.28899999999999998,0.45500000000000002,"Celular"]
[null,"Nauru-Audiotext",4.9660000000000002,4.9459999999999997,4.9210000000000003,4.8979999999999997,5.0060000000000002]
[null,"Nauru",1.528,1.508,0.48299999999999998,1.46,1.5680000000000001,"Fijo"]
[null,"Nepal",0.54,0.52,0.495,0.47199999999999998,0.57999999999999996,"Fijo"]
[null,"Nepal",0.45800000000000002,0.438,0.41299999999999998,0.39,0.498,"Celular"]
[null,"Nepal-Katmandu",0.54,0.52,0.495,0.47199999999999998,0.57999999999999996,"Fijo"]
[null,"Netherlands ",0.126,0.106,8.1000000000000003E-2,5.8000000000000003E-2,0.36399999999999999,"Fijo"]
[null,"Netherlands Antilles",0.32400000000000001,0.30399999999999999,0.27900000000000003,0.25600000000000001,0.36399999999999999,"Fijo"]
[null,"Netherlands Antilles",0.29299999999999998,0.27300000000000002,0.248,0.22500000000000001,0.36399999999999999,"Celular"]
[null,"Netherlands ",0.42799999999999999,0.40799999999999997,0.38300000000000001,0.36,0.46800000000000003,"Celular"]
[null,"Nueva Caledonia",0.57699999999999996,0.57699999999999996,0.53200000000000003,0.50900000000000001,0.61699999999999999,"Fijo"]
[null,"Nueva Caledonia",0.97499999999999998,0.95499999999999996,0.93,0.90700000000000003,1.0149999999999999,"Celular"]
[null,"Nueva Zelanda",0.16200000000000001,0.14199999999999999,0.11700000000000001,9.4E-2,0.45500000000000002,"Fijo"]
[null,"Nueva Zelanda",0.36799999999999999,0.34799999999999998,0.32300000000000001,0.3,0.40799999999999997,"Celular"]
[null,"Nicaragua",0.35399999999999998,0.33400000000000002,0.309,0.28599999999999998,0.39400000000000002,"Fijo"]
[null,"Nicaragua",0.42399999999999999,0.20399999999999999,0.27900000000000003,0.35599999999999998,0.46400000000000002,"Celular"]
[null,"Nicaragua-Premiun",0.42399999999999999,0.20399999999999999,0.27900000000000003,0.35599999999999998,0.46400000000000002,"Celular"]
[null,"Níger",0.35699999999999998,0.33700000000000002,0.312,0.28899999999999998,0.39700000000000002,"Fijo"]
[null,"Nigeria",0.38300000000000001,0.36299999999999999,0.33800000000000002,0.315,0.42299999999999999,"Fijo"]
[null,"Nigeria",0.38900000000000001,0.36899999999999999,0.44400000000000001,0.32100000000000001,0.42899999999999999,"Celular"]
[null,"Nigeria-Lagos",0.19,0.17,0.14499999999999999,0.122,0.45500000000000002,"Fijo"]
[null,"Niue",1.8620000000000001,1.8420000000000001,1.8169999999999999,1.794,1.9019999999999999,"Fijo"]
[null,"Norfolk Islas",2.1280000000000001,2.1080000000000001,2.0830000000000002,2.06,2.1680000000000001,"Fijo"]
[null,"Noruega",0.13700000000000001,0.11700000000000001,9.1999999999999998E-2,6.9000000000000006E-2,0.36399999999999999,"Fijo"]
[null,"Noruega",0.34,0.32,0.29499999999999998,0.27200000000000002,0.38,"Celular"]
[null,"Omán",0.40300000000000002,0.38300000000000001,0.35799999999999998,0.33500000000000002,0.443,"Fijo"]
[null,"Omán",0.34200000000000003,0.32200000000000001,0.29699999999999999,0.27400000000000002,0.45500000000000002,"Celular"]
[null,"Paquistán",0.315,0.29499999999999998,0.27,0.247,0.35499999999999998,"Fijo"]
[null,"Paquistán",0.28299999999999997,0.26300000000000001,0.23799999999999999,0.215,0.32300000000000001,"Celular"]
[null,"Paquistán-Islambad",0.315,0.29499999999999998,0.27,0.247,0.35499999999999998,"Fijo"]
[null,"Paquistán-Karachi",0.315,0.29499999999999998,0.27,0.247,0.35499999999999998,"Fijo"]
[null,"Paquistán-Lahore",0.315,0.29499999999999998,0.27,0.247,0.35499999999999998,"Fijo"]
[null,"Palau",0.626,0.60599999999999998,0.58099999999999996,0.55800000000000005,0.66600000000000004,"Fijo"]
[null,"Palestina",0.379,0.35899999999999999,0.33400000000000002,0.311,0.45500000000000002,"Celular"]
[null,"Panamá",0.193,0.17299999999999999,0.14799999999999999,0.125,0.34300000000000003,"Fijo"]
[null,"Panamá",0.248,0.22800000000000001,0.20300000000000001,0.18,0.28799999999999998,"Celular"]
[null,"Papúa-Nueva Guinea",1.33,1.31,1.2849999999999999,1.262,1.37,"Fijo"]
[null,"Paraguay",0.23400000000000001,0.214,0.189,0.16600000000000001,0.27400000000000002,"Fijo"]
[null,"Paraguay",0.29899999999999999,0.27900000000000003,0.254,0.23100000000000001,0.33900000000000002,"Celular"]
[null,"Perú",0.16500000000000001,0.14499999999999999,0.12,9.7000000000000003E-2,0.20499999999999999,"Fijo"]
[null,"Perú",0.34599999999999997,0.34599999999999997,0.32100000000000001,0.29799999999999999,0.40600000000000003,"Celular"]
[null,"Perú-Lima",0.16500000000000001,0.14499999999999999,0.12,9.7000000000000003E-2,0.20499999999999999,"Fijo"]
[null,"Philipinas",0.33400000000000002,0.314,0.28899999999999998,0.26600000000000001,0.374,"Fijo"]
[null,"Philipinas",0.316,0.29599999999999999,0.27100000000000002,0.248,0.45500000000000002,"Celular"]
[null,"Philipinas-Manila",0.33400000000000002,0.314,0.28899999999999998,0.26600000000000001,0.374,"Fijo"]
[null,"Polonia",0.156,0.13600000000000001,0.111,8.7999999999999995E-2,0.36399999999999999,"Fijo"]
[null,"Polonia",0.36099999999999999,0.34100000000000003,0.316,0.29299999999999998,0.40100000000000002,"Celular"]
[null,"Polonia-Warsaw",0.156,0.13600000000000001,0.111,8.7999999999999995E-2,0.36399999999999999,"Fijo"]
[null,"Portugal",0.153,0.13300000000000001,0.108,8.5000000000000006E-2,0.36399999999999999,"Fijo"]
[null,"Portugal",0.41399999999999998,0.39400000000000002,0.36899999999999999,0.34599999999999997,0.45400000000000001,"Celular"]
[null,"Qatar",0.55800000000000005,0.53800000000000003,0.51300000000000001,0.49,0.59799999999999998,"Fijo"]
[null,"Qatar",0.53700000000000003,0.51700000000000002,0.49199999999999999,0.46899999999999997,0.57699999999999996,"Celular"]
[null,"Reunion-Island",0.24299999999999999,0.223,0.19800000000000001,0.17499999999999999,0.45500000000000002,"Fijo"]
[null,"Reunion-Island",0.53700000000000003,0.51700000000000002,0.49199999999999999,0.46899999999999997,0.57699999999999996,"Celular"]
[null,"Rumania",0.26900000000000002,0.249,0.224,0.20100000000000001,0.309,"Fijo"]
[null,"Rumania-Bucharest",0.26900000000000002,0.249,0.224,0.20100000000000001,0.309,"Fijo"]
[null,"Rumania",0.43099999999999999,0.41099999999999998,0.38600000000000001,0.36299999999999999,0.47099999999999997,"Celular"]
[null,"Rusia",0.17,0.15,0.125,0.10199999999999999,0.36399999999999999,"Fijo"]
[null,"Rusia-Moscow",0.13,0.11,8.5000000000000006E-2,6.2E-2,0.36399999999999999,"Fijo"]
[null,"Rusia-St. Petersburg",0.13,0.11,8.5000000000000006E-2,6.2E-2,0.36399999999999999,"Fijo"]
[null,"Rusia",0.20499999999999999,0.185,0.16,0.13700000000000001,0.36399999999999999,"Celular"]
[null,"Ruanda",0.44400000000000001,0.42399999999999999,0.39900000000000002,0.376,0.48399999999999999,"Fijo"]
[null,"Ruanda",0.38219999999999998,0.36199999999999999,0.33700000000000002,0.314,0.45500000000000002,"Celular"]
[null,"San Marino",0.23300000000000001,0.21299999999999999,0.188,0.16500000000000001,0.36399999999999999,"Fijo"]
[null,"Santo Tomé y Principe",1.671,1.651,1.6259999999999999,1.603,1.7110000000000001,"Fijo"]
[null,"Saudita Arabia",0.45500000000000002,0.435,0.41,0.38700000000000001,0.495,"Fijo"]
[null,"Saudita Arabia",0.379,0.35899999999999999,0.33400000000000002,0.311,0.45500000000000002,"Celular"]
[null,"Saudita Arabia-Dhahran",0.45500000000000002,0.435,0.41,0.38700000000000001,0.495,"Fijo"]
[null,"Saudita Arabia-Jeddah",0.45500000000000002,0.435,0.41,0.38700000000000001,0.495,"Fijo"]
[null,"Saudita Arabia-Riyadh",0.45500000000000002,0.435,0.41,0.38700000000000001,0.495,"Fijo"]
[null,"Senegal",0.40400000000000003,0.38400000000000001,0.35899999999999999,0.33600000000000002,0.44400000000000001,"Fijo"]
[null,"Senegal",0.433,0.41299999999999998,0.38800000000000001,0.36499999999999999,0.47299999999999998,"Celular"]
[null,"Senegal-Dakar",0.40400000000000003,0.38400000000000001,0.35899999999999999,0.33600000000000002,0.44400000000000001,"Fijo"]
[null,"Seychelles Islas",0.34799999999999998,0.32800000000000001,0.30299999999999999,0.28000000000000003,0.38800000000000001,"Fijo"]
[null,"Sierra Leona",0.38700000000000001,0.36699999999999999,0.34200000000000003,0.31900000000000001,0.42699999999999999,"Fijo"]
[null,"Sierra Leona",0.41099999999999998,0.39100000000000001,0.36599999999999999,0.34300000000000003,0.45100000000000001,"Celular"]
[null,"Singpur",0.13400000000000001,0.114,8.8999999999999996E-2,6.6000000000000003E-2,0.45500000000000002,"Fijo"]
[null,"Slovaquia",0.22800000000000001,0.20799999999999999,0.183,0.16,0.45500000000000002,"Fijo"]
[null,"Slovaquia",0.35499999999999998,0.33500000000000002,0.31,0.28699999999999998,0.45500000000000002,"Celular"]
[null,"Slovenia",0.18,0.16,0.13500000000000001,0.112,0.45500000000000002,"Fijo"]
[null,"Slovenia",0.44400000000000001,0.42399999999999999,0.39900000000000002,0.376,0.48399999999999999,"Celular"]
[null,"Salomón Islas",1.4510000000000001,1.431,1.4059999999999999,1.383,1.4910000000000001,"Fijo"]
[null,"Salomón Islas-Audiotext",1.3129999999999999,1.2929999999999999,1.268,1.2450000000000001,1.353]
[null,"Somali",0.84299999999999997,0.82299999999999995,0.79800000000000004,0.77500000000000002,0.88300000000000001,"Fijo"]
[null,"Sudafricana",0.23,0.21,0.185,0.16200000000000001,0.45500000000000002,"Fijo"]
[null,"Sudafricana",0.375,0.35499999999999998,0.33,0.307,0.41499999999999998,"Celular"]
[null,"España",0.129,0.109,8.4000000000000005E-2,6.0999999999999999E-2,0.245,"Fijo"]
[null,"España-Barcelona",0.129,0.109,8.4000000000000005E-2,6.0999999999999999E-2,0.245,"Fijo"]
[null,"España",0.34100000000000003,0.34100000000000003,0.316,0.29299999999999998,0.40100000000000002,"Celular"]
[null,"España-Madrid",0.129,0.109,8.4000000000000005E-2,6.0999999999999999E-2,0.245,"Fijo"]
[null,"España-NGN",0.129,0.109,8.4000000000000005E-2,6.0999999999999999E-2,0.245,"Fijo"]
[null,"Sri Lanka",0.307,0.28699999999999998,0.26200000000000001,0.23899999999999999,0.45500000000000002,"Fijo"]
[null,"Santa Elena",1.1970000000000001,1.177,1.1519999999999999,1.129,1.2370000000000001,"Fijo"]
[null,"San Kitts y Nevis",0.33200000000000002,0.312,0.28699999999999998,0.26400000000000001,0.372,"Fijo"]
[null,"San Kitts y Nevis",0.311,0.29099999999999998,0.26600000000000001,0.24299999999999999,0.45500000000000002,"Celular"]
[null,"Santa Lucía",0.374,0.35399999999999998,0.32900000000000001,0.30599999999999999,0.41399999999999998,"Fijo"]
[null,"Santa Lucía",0.40600000000000003,0.38600000000000001,0.36099999999999999,0.33800000000000002,0.45500000000000002,"Celular"]
[null,"San Pedro y Miquelón",0.35799999999999998,0.33800000000000002,0.313,0.28999999999999998,0.39800000000000002,"Fijo"]
[null,"San Pedro y Miquelón",0.52100000000000002,0.501,0.47599999999999998,0.45300000000000001,0.56100000000000005,"Celular"]
[null,"San Vicente y la Granadinas",0.39900000000000002,0.379,0.35399999999999998,0.33100000000000002,0.439,"Fijo"]
[null,"San Vicente y la Granadinas",0.45400000000000001,0.434,0.40899999999999997,0.38600000000000001,0.499,"Celular"]
[null,"Sudán",0.34599999999999997,0.32600000000000001,0.30099999999999999,0.27800000000000002,0.38600000000000001,"Fijo"]
[null,"Sudán",0.314,0.29399999999999998,0.26900000000000002,0.246,0.45500000000000002,"Celular"]
[null,"Suriname",0.47399999999999998,0.45400000000000001,0.42899999999999999,0.40600000000000003,0.51400000000000001,"Fijo"]
[null,"Suriname",0.40200000000000002,0.38200000000000001,0.35699999999999998,0.33400000000000002,0.442,"Celular"]
[null,"Swazilandia",0.27,0.25,0.22500000000000001,0.20200000000000001,0.31,"Fijo"]
[null,"Swazilandia",0.49199999999999999,0.47199999999999998,0.44700000000000001,0.42399999999999999,0.53200000000000003,"Celular"]
[null,"Suecia",0.13700000000000001,0.11700000000000001,9.1999999999999998E-2,6.9000000000000006E-2,0.36399999999999999,"Fijo"]
[null,"Suecia",0.36799999999999999,0.34799999999999998,0.32300000000000001,0.3,0.40799999999999997,"Celular"]
[null,"Suiza",0.13500000000000001,0.115,0.09,6.7000000000000004E-2,0.36399999999999999,"Fijo"]
[null,"Suiza",0.42699999999999999,0.40699999999999997,0.38200000000000001,0.35899999999999999,0.46700000000000003,"Celular"]
[null,"Suiza-NGN",0.45700000000000002,0.437,0.41199999999999998,0.38900000000000001,0.497,"Fijo"]
[null,"Siria",0.58299999999999996,0.56299999999999994,0.53800000000000003,0.51500000000000001,0.623,"Fijo"]
[null,"Tadjistan",0.40799999999999997,0.38800000000000001,0.36299999999999999,0.34,0.44800000000000001,"Fijo"]
[null,"Tadjistan",0.38700000000000001,0.36699999999999999,0.34200000000000003,0.31900000000000001,0.45500000000000002,"Celular"]
[null,"Taiwan",0.14499999999999999,0.125,0.1,7.6999999999999999E-2,0.45500000000000002,"Fijo"]
[null,"Taiwan",0.216,0.19600000000000001,0.17100000000000001,0.14799999999999999,0.45500000000000002,"Celular"]
[null,"Taiwan-Kaohsiung",0.14499999999999999,0.125,0.1,7.6999999999999999E-2,0.45500000000000002,"Fijo"]
[null,"Taiwan-PNS",0.27200000000000002,0.252,0.22700000000000001,0.20399999999999999,0.45500000000000002,"Fijo"]
[null,"Tanzania",0.34599999999999997,0.32600000000000001,0.30099999999999999,0.27800000000000002,0.38600000000000001,"Fijo"]
[null,"Tanzania",0.35399999999999998,0.33400000000000002,0.309,0.28599999999999998,0.45500000000000002,"Celular"]
[null,"Tanzania-Daressalm",0.34599999999999997,0.32600000000000001,0.30099999999999999,0.27800000000000002,0.38600000000000001,"Fijo"]
[null,"Tailandia",0.222,0.20200000000000001,0.17699999999999999,0.154,0.45500000000000002,"Fijo"]
[null,"Tailandia-Bangkok",0.222,0.20200000000000001,0.17699999999999999,0.154,0.45500000000000002,"Fijo"]
[null,"Thuruya",1.53,1.51,1.4850000000000001,1.462,1.57,"Fijo"]
[null,"Togo Republic",0.34100000000000003,0.32100000000000001,0.29599999999999999,0.27300000000000002,0.38100000000000001,"Fijo"]
[null,"Tokelau",1.4570000000000001,1.4370000000000001,1.4119999999999999,1.389,1.4970000000000001,"Fijo"]
[null,"Tokelau-Audiotext",1.4570000000000001,1.4370000000000001,1.4119999999999999,1.389,1.4970000000000001]
[null,"Tonga",0.48199999999999998,0.46200000000000002,0.437,0.41399999999999998,0.52200000000000002,"Fijo"]
[null,"Trinidad y Tobago",0.25800000000000001,0.23799999999999999,0.21299999999999999,0.19,0.29799999999999999,"Fijo"]
[null,"Trinidad y Tobago",0.25800000000000001,0.23799999999999999,0.21299999999999999,0.19,0.29799999999999999,"Celular"]
[null,"Tunisia",0.41599999999999998,0.39600000000000002,0.371,0.34799999999999998,0.45600000000000002,"Fijo"]
[null,"Tunisia",0.35499999999999998,0.33500000000000002,0.31,0.28699999999999998,0.45500000000000002,"Celular"]
[null,"Turkey",0.23,0.21,0.185,0.16200000000000001,0.45500000000000002,"Fijo"]
[null,"Turkey-Ankara",0.23,0.21,0.185,0.16200000000000001,0.45500000000000002,"Fijo"]
[null,"Turkey",0.33300000000000002,0.313,0.28799999999999998,0.26500000000000001,0.373,"Celular"]
[null,"Turkey-Istanbul",0.23,0.21,0.185,0.16200000000000001,0.45500000000000002,"Fijo"]
[null,"Turkmenistan",0.33100000000000002,0.311,0.28599999999999998,0.26300000000000001,0.371,"Fijo"]
[null,"Turcos y Caicos",0.33200000000000002,0.312,0.28699999999999998,0.26400000000000001,0.372,"Fijo"]
[null,"Turcos y Caicos",0.32600000000000001,0.30599999999999999,0.28100000000000003,0.28100000000000003,0.36599999999999999,"Celular"]
[null,"Tuvalu",1.5169999999999999,1.4970000000000001,1.472,1.4490000000000001,1.5569999999999999,"Fijo"]
[null,"Uganda",0.26700000000000002,0.247,0.222,0.19900000000000001,0.45500000000000002,"Fijo"]
[null,"Uganda",0.27400000000000002,0.254,0.22900000000000001,0.20599999999999999,0.45500000000000002,"Celular"]
[null,"Ucrania",0.26300000000000001,0.24299999999999999,0.218,0.19500000000000001,0.30299999999999999,"Fijo"]
[null,"Ucrania",0.29899999999999999,0.27900000000000003,0.254,0.23100000000000001,0.33300000000000002,"Celular"]
[null,"Ucrania-Lviv",0.26300000000000001,0.24299999999999999,0.218,0.19500000000000001,0.30299999999999999,"Fijo"]
[null,"Ucrania-Odessa",0.26300000000000001,0.24299999999999999,0.218,0.19500000000000001,0.30299999999999999,"Fijo"]
[null,"Unidos Emiratos Arabes ",0.45900000000000002,0.13900000000000001,0.41399999999999998,0.39100000000000001,0.499,"Fijo"]
[null,"Unidos Emiratos Arabes ",0.41499999999999998,0.39500000000000002,0.37,0.34699999999999998,0.45500000000000002,"Celular"]
[null,"United Kingdom",0.127,0.107,8.2000000000000003E-2,5.8999999999999997E-2,0.36399999999999999,"Fijo"]
[null,"United Kingdom",0.33100000000000002,0.311,0.28599999999999998,0.26300000000000001,0.371,"Celular"]
[null,"United Kingdom-Londres",0.127,0.107,8.2000000000000003E-2,5.8999999999999997E-2,0.36399999999999999,"Fijo"]
[null,"Uruguay",0.22800000000000001,0.20799999999999999,0.183,0.16,0.34300000000000003,"Fijo"]
[null,"Uruguay",0.4,0.38,0.35499999999999998,0.33200000000000002,0.44,"Celular"]
[null,"USA",0.122,0.10199999999999999,7.6999999999999999E-2,5.3999999999999999E-2,0.189,"Fijo"]
[null,"USA-Alaska",0.21299999999999999,0.193,0.16800000000000001,0.14499999999999999,0.253,"Fijo"]
[null,"USA Guam",0.127,0.107,8.2000000000000003E-2,5.8999999999999997E-2,0.16700000000000001,"Fijo"]
[null,"USA Hawai",0.122,0.10199999999999999,7.6999999999999999E-2,5.3999999999999999E-2,0.189,"Fijo"]
[null,"USA Puerto Rico",0.122,0.10199999999999999,7.6999999999999999E-2,5.3999999999999999E-2,0.189,"Fijo"]
[null,"USA Saipan",0.14099999999999999,0.121,9.6000000000000002E-2,7.2999999999999995E-2,0.18099999999999999,"Fijo"]
[null,"USA Virgin Island",0.122,0.10199999999999999,7.6999999999999999E-2,5.3999999999999999E-2,0.189,"Fijo"]
[null,"Uzbekistán",0.27100000000000002,0.251,0.22600000000000001,0.20300000000000001,0.45500000000000002,"Fijo"]
[null,"Uzbekistán",0.24099999999999999,0.221,0.19600000000000001,0.17299999999999999,0.45500000000000002,"Celular"]
[null,"Vanuatu",1.419,1.399,1.3740000000000001,1.351,1.4590000000000001,"Fijo"]
[null,"Vanuatu",1.208,1.1879999999999999,1.163,1.1399999999999999,1.248,"Celular"]
[null,"Vaticano",1.8620000000000001,1.8420000000000001,1.8169999999999999,1.794,1.9019999999999999,"Fijo"]
[null,"Venezuela",0.155,0.13500000000000001,0.11,8.6999999999999994E-2,0.19500000000000001,"Fijo"]
[null,"Venezuela-Caracas",0.155,0.13500000000000001,0.11,8.6999999999999994E-2,0.19500000000000001,"Fijo"]
[null,"Venezuela",0.311,0.311,0.28599999999999998,0.26300000000000001,0.371,"Celular"]
[null,"Venezuela-Maracaibo",0.155,0.13500000000000001,0.11,8.6999999999999994E-2,0.19500000000000001,"Fijo"]
[null,"Viet Nam",0.53700000000000003,0.51700000000000002,0.49199999999999999,0.46899999999999997,0.57699999999999996,"Fijo"]
[null,"Viet Nam",0.39100000000000001,0.371,0.34599999999999997,0.32300000000000001,0.45500000000000002,"Celular"]
[null,"Viet Nam-Ho Chi Minh",0.53700000000000003,0.51700000000000002,0.49199999999999999,0.46899999999999997,0.57699999999999996,"Fijo"]
[null,"Wallis y Fortuna",3.5859999999999999,3.5666000000000002,3.5409999999999999,3.5179999999999998,3.6259999999999999,"Fijo"]
[null,"West Samoa",0.621,0.60099999999999998,0.57599999999999996,0.55300000000000005,0.66100000000000003,"Fijo"]
[null,"Yemen",0.35899999999999999,0.33900000000000002,0.314,0.29099999999999998,0.39900000000000002,"Fijo"]
[null,"Yemen",0.309,0.28899999999999998,0.26400000000000001,0.24099999999999999,0.45500000000000002,"Celular"]
[null,"Yugoslavia",0.249,0.22900000000000001,0.20399999999999999,0.18099999999999999,0.28899999999999998,"Fijo"]
[null,"Yugoslavia",0.45,0.43,0.40500000000000003,0.38200000000000001,0.49,"Celular"]
[null,"Zaire",0.57799999999999996,0.55800000000000005,0.53300000000000003,0.51,0.61799999999999999,"Fijo"]
[null,"Zaire",0.48299999999999998,0.46300000000000002,0.438,0.41499999999999998,0.52300000000000002,"Celular"]
[null,"Zambia",0.21199999999999999,0.192,0.16700000000000001,0.14399999999999999,0.45500000000000002,"Fijo"]
[null,"Zambia",0.33200000000000002,0.312,0.28699999999999998,0.26400000000000001,0.372,"Celular"]
[null,"Zanzibar",1.069,1.0489999999999999,1.024,1.0009999999999999,1.109,"Fijo"]
[null,"Zimbabwe",0.218,0.19800000000000001,0.17299999999999999,0.15,0.45500000000000002,"Fijo"]
[null,"Zimbabwe",0.30599999999999999,0.28599999999999998,0.26100000000000001,0.23599999999999999,0.45500000000000002,"Celular"]
[]
[null,{"$f":"+B123","v":"Elaborado: SENATEL-DGP, Publicación:  mayo  2013"}]
[]
[]
[null,1700]
[null,"Tipo de Tarifa","Tarifa en USD/min., sin impuestos","Nuea Tarifa en USD/min. Sin impuestos"]
[null,"Tarifa local para llamadas a números 1700 para abonados residenciales",4.0000000000000001E-3,0.01]
[null,"Tarifa local para llamadas a números 1700 para abonados comerciales",8.8000000000000005E-3,2.1999999999999999E-2]
[null,"Nota: Estas tarifas incluyen el cargo de interconexión correspondiente"]
[null,"Vigencia:   5 de octubre de 2012"]
[null,{"$f":"+B802","v":"Elaborado: SENATEL-DGP, Publicación:  mayo  2013"}]
[]
[null,"Notas:"]
[]
[null,"1. Fuente: SETEL S.A."]
[null,"2. No se incluye valor de los impuestos"]
[null,{"$f":"+B123","v":"Elaborado: SENATEL-DGP, Publicación:  mayo  2013"}]

{"sheet":"Ecuadortelecom S.A","index":6,"n_rows":3987,"n_cols":4,"rows_kept":3987,"cut":false,"hidden":false,"merged":[[1858,1,1858,3],[646,1,646,2],[477,1,477,2],[359,1,359,2],[1004,1,1004,3],[1005,1,1005,3],[1042,1,1042,3],[1043,1,1043,3],[1045,1,1045,3],[1049,1,1049,3],[1047,1,1047,3],[1048,1,1048,3],[951,1,951,3],[988,1,988,3],[892,1,892,3],[1778,1,1778,3],[1779,1,1779,2],[1780,1,1780,3],[1781,1,1781,3],[1784,1,1784,3],[1785,1,1785,3],[1790,1,1790,3],[1857,1,1857,3],[1827,1,1827,2],[2157,1,2157,3],[2158,1,2158,3],[2161,1,2161,3],[2162,1,2162,3],[2040,1,2040,3],[2041,1,2041,3],[2076,1,2076,2],[2078,1,2078,2],[2139,1,2139,3],[2152,1,2152,3],[2153,1,2153,3],[2155,1,2155,3],[2156,1,2156,2],[2138,1,2138,3],[2109,1,2109,3],[2112,1,2112,3],[2113,1,2113,3],[2114,1,2114,3],[2115,1,2115,3],[2127,1,2127,3],[1904,1,1904,3],[1861,1,1861,3],[1862,1,1862,3],[1863,1,1863,3],[1864,1,1864,3],[1901,1,1901,3],[1902,1,1902,3],[2108,1,2108,3],[1876,1,1876,3],[1887,1,1887,3],[1888,1,1888,3],[1914,1,1914,3],[1915,1,1915,3],[1950,1,1950,2],[1952,1,1952,2],[1988,1,1988,3],[1982,1,1982,3],[1983,1,1983,3],[1986,1,1986,3],[1987,1,1987,3],[2031,1,2031,3],[2027,1,2027,3],[1789,1,1789,3],[1825,1,1825,2],[1655,1,1655,3],[1744,1,1744,3],[1745,1,1745,3],[1751,1,1751,3],[1676,1,1676,3],[1677,1,1677,3],[1690,1,1690,3],[1746,1,1746,3],[1658,1,1658,3],[1659,1,1659,3],[1660,1,1660,3],[1661,1,1661,3],[1665,1,1665,3],[1691,1,1691,3],[1694,1,1694,3],[1695,1,1695,3],[1698,1,1698,3],[1699,1,1699,3],[1736,1,1736,3],[1739,1,1739,3],[1740,1,1740,3],[1741,1,1741,3],[1572,1,1572,3],[1573,1,1573,3],[1574,1,1574,3],[1578,1,1578,3],[1607,1,1607,3],[1608,1,1608,3],[1611,1,1611,3],[1589,1,1589,3],[1590,1,1590,3],[1603,1,1603,3],[1604,1,1604,3],[1517,1,1517,3],[1518,1,1518,3],[1521,1,1521,3],[1522,1,1522,3],[1525,1,1525,3],[1526,1,1526,3],[1567,1,1567,3],[1568,1,1568,3],[1571,1,1571,3],[1440,1,1440,3],[1477,1,1477,3],[1482,1,1482,3],[1483,1,1483,3],[1486,1,1486,3],[1487,1,1487,3],[1488,1,1488,3],[1503,1,1503,3],[1504,1,1504,3],[1427,1,1427,3],[1428,1,1428,3],[1429,1,1429,3],[1430,1,1430,3],[1433,1,1433,3],[1434,1,1434,3],[1435,1,1435,3],[1436,1,1436,3],[1439,1,1439,3],[1209,1,1209,3],[1169,1,1169,3],[1210,1,1210,3],[1225,1,1225,3],[1264,1,1264,3],[1267,1,1267,3],[1268,1,1268,3],[1271,1,1271,3],[1272,1,1272,3],[1207,1,1207,3],[1208,1,1208,3],[279,1,279,2],[1098,1,1098,3],[1099,1,1099,3],[1103,1,1103,3],[894,1,894,3],[944,1,944,3],[939,1,939,3],[940,1,940,3],[897,1,897,3],[898,1,898,3],[943,1,943,3],[994,1,994,3],[998,1,998,3],[999,1,999,3],[991,1,991,3],[995,1,995,3],[1100,1,1100,3],[1000,1,1000,3],[1001,1,1001,3],[1058,1,1058,3],[1059,1,1059,3],[945,1,945,3],[947,1,947,3],[990,1,990,3],[1097,1,1097,3],[790,1,790,3],[791,1,791,3],[833,1,833,3],[834,1,834,3],[837,1,837,3],[838,1,838,3],[839,1,839,3],[841,1,841,3],[844,1,844,3],[845,1,845,3],[890,1,890,3],[891,1,891,3],[886,1,886,3],[887,1,887,3],[1052,1,1052,3],[1053,1,1053,3],[1054,1,1054,3],[1051,1,1051,3],[1055,1,1055,3],[1044,1,1044,3],[950,1,950,3],[1162,1,1162,3],[1163,1,1163,3],[1164,1,1164,3],[1165,1,1165,3],[1104,1,1104,3],[1114,1,1114,3],[1107,1,1107,3],[1108,1,1108,3],[1109,1,1109,3],[1110,1,1110,3],[1111,1,1111,3],[1168,1,1168,3],[1115,1,1115,3],[1154,1,1154,3],[1157,1,1157,3],[1158,1,1158,3],[1161,1,1161,3],[1213,1,1213,3],[1214,1,1214,3],[1492,1,1492,3],[1318,1,1318,3],[1217,1,1217,3],[1218,1,1218,3],[1219,1,1219,3],[1221,1,1221,3],[1224,1,1224,3],[1220,1,1220,3],[1273,1,1273,3],[1274,1,1274,3],[1275,1,1275,3],[1278,1,1278,3],[1279,1,1279,3],[1317,1,1317,3],[1321,1,1321,3],[1322,1,1322,3],[1325,1,1325,3],[1326,1,1326,3],[1327,1,1327,3],[1328,1,1328,3],[1329,1,1329,3],[1332,1,1332,3],[1612,1,1612,3],[1650,1,1650,3],[1654,1,1654,3],[1333,1,1333,3],[1371,1,1371,3],[1372,1,1372,3],[1375,1,1375,3],[1376,1,1376,3],[1379,1,1379,3],[1380,1,1380,3],[1381,1,1381,3],[1382,1,1382,3],[1383,1,1383,3],[1386,1,1386,3],[1387,1,1387,3],[1424,1,1424,3],[1425,1,1425,3],[1426,1,1426,3],[2288,1,2288,3],[1762,1,1762,3],[1763,1,1763,3],[1776,1,1776,3],[1777,1,1777,3],[1905,1,1905,2],[3169,1,3169,2],[2029,1,2029,3],[2030,1,2030,2],[2013,1,2013,3],[2032,1,2032,3],[2035,1,2035,3],[2036,1,2036,3],[1906,1,1906,3],[1907,1,1907,3],[1989,1,1989,3],[2001,1,2001,3],[2012,1,2012,3],[2026,1,2026,3],[1909,1,1909,3],[1910,1,1910,3],[2278,1,2278,3],[2279,1,2279,3],[2240,1,2240,3],[2241,1,2241,3],[2284,1,2284,3],[2287,1,2287,3],[2166,1,2166,3],[2167,1,2167,3],[2202,1,2202,2],[2204,1,2204,2],[2234,1,2234,3],[2235,1,2235,3],[2238,1,2238,3],[2281,1,2281,3],[2282,1,2282,2],[2283,1,2283,3],[2239,1,2239,3],[2253,1,2253,3],[2264,1,2264,3],[2265,1,2265,3],[2292,1,2292,3],[2293,1,2293,3],[2328,1,2328,2],[2330,1,2330,2],[2360,1,2360,3],[2379,1,2379,3],[2361,1,2361,3],[2456,1,2456,2],[2486,1,2486,3],[2364,1,2364,3],[2365,1,2365,3],[2366,1,2366,3],[2390,1,2390,3],[2391,1,2391,3],[2367,1,2367,3],[2487,1,2487,3],[2490,1,2490,3],[2491,1,2491,3],[2492,1,2492,3],[2404,1,2404,3],[2405,1,2405,3],[2407,1,2407,3],[2408,1,2408,2],[2410,1,2410,3],[2413,1,2413,3],[2409,1,2409,3],[2414,1,2414,3],[2418,1,2418,3],[2419,1,2419,3],[2454,1,2454,2],[2547,1,2547,3],[2576,1,2576,2],[2578,1,2578,2],[2608,1,2608,3],[2609,1,2609,3],[2612,1,2612,3],[2493,1,2493,3],[2516,1,2516,3],[2517,1,2517,3],[2530,1,2530,3],[2531,1,2531,3],[2533,1,2533,3],[2534,1,2534,2],[2535,1,2535,3],[2545,1,2545,3],[2505,1,2505,3],[2536,1,2536,3],[2539,1,2539,3],[2540,1,2540,3],[2653,1,2653,2],[2654,1,2654,3],[2655,1,2655,3],[2657,1,2657,3],[2658,1,2658,3],[2663,1,2663,3],[2613,1,2613,3],[2614,1,2614,3],[2615,1,2615,3],[2624,1,2624,3],[2635,1,2635,3],[2652,1,2652,3],[2649,1,2649,3],[2650,1,2650,3],[2636,1,2636,3],[2768,1,2768,2],[2769,1,2769,3],[2770,1,2770,3],[2772,1,2772,3],[2773,1,2773,3],[2778,1,2778,3],[2665,1,2665,3],[2694,1,2694,2],[2696,1,2696,2],[2723,1,2723,3],[2728,1,2728,3],[2767,1,2767,3],[2724,1,2724,3],[2725,1,2725,3],[2740,1,2740,3],[2729,1,2729,3],[2730,1,2730,3],[2751,1,2751,3],[2752,1,2752,3],[2765,1,2765,3],[2766,1,2766,3],[2847,1,2847,3],[2848,1,2848,3],[2849,1,2849,3],[2870,1,2870,3],[2871,1,2871,3],[2887,1,2887,2],[2780,1,2780,2],[2809,1,2809,2],[2811,1,2811,2],[2842,1,2842,3],[2843,1,2843,3],[2846,1,2846,3],[2859,1,2859,3],[2884,1,2884,3],[2885,1,2885,3],[2886,1,2886,3],[2932,1,2932,2],[2963,1,2963,3],[2964,1,2964,3],[2967,1,2967,3],[2968,1,2968,3],[3006,1,3006,3],[2888,1,2888,3],[2889,1,2889,3],[2892,1,2892,3],[2893,1,2893,3],[2901,1,2901,2],[2930,1,2930,2],[2970,1,2970,3],[2991,1,2991,3],[2992,1,2992,3],[3005,1,3005,3],[2969,1,2969,3],[2980,1,2980,3],[3021,1,3021,3],[3050,1,3050,2],[3052,1,3052,2],[3082,1,3082,3],[3083,1,3083,3],[3110,1,3110,3],[3007,1,3007,3],[3008,1,3008,2],[3009,1,3009,3],[3010,1,3010,3],[3013,1,3013,3],[3019,1,3019,3],[3086,1,3086,3],[3087,1,3087,3],[3088,1,3088,3],[3089,1,3089,3],[3099,1,3099,3],[3014,1,3014,3],[3111,1,3111,3],[3124,1,3124,3],[3125,1,3125,3],[3126,1,3126,3],[3127,1,3127,2],[3202,1,3202,3],[3171,1,3171,2],[3140,1,3140,2],[3128,1,3128,3],[3129,1,3129,3],[3131,1,3131,3],[3132,1,3132,3],[3230,1,3230,3],[3231,1,3231,3],[3244,1,3244,3],[3245,1,3245,3],[3246,1,3246,3],[3247,1,3247,2],[3203,1,3203,3],[3206,1,3206,3],[3207,1,3207,3],[3208,1,3208,3],[3209,1,3209,3],[3219,1,3219,3],[3290,1,3290,2],[3321,1,3321,3],[3322,1,3322,3],[3325,1,3325,3],[3326,1,3326,3],[3327,1,3327,3],[3248,1,3248,3],[3249,1,3249,3],[3251,1,3251,3],[3252,1,3252,3],[3260,1,3260,2],[3289,1,3289,2],[3365,1,3365,3],[3366,1,3366,2],[3367,1,3367,3],[3368,1,3368,3],[3371,1,3371,3],[3372,1,3372,3],[3328,1,3328,3],[3338,1,3338,3],[3349,1,3349,3],[3350,1,3350,3],[3363,1,3363,3],[3364,1,3364,3],[3442,1,3442,3],[3443,1,3443,3],[3444,1,3444,3],[3445,1,3445,3],[3455,1,3455,3],[3466,1,3466,3],[3377,1,3377,3],[3379,1,3379,2],[3408,1,3408,2],[3410,1,3410,2],[3439,1,3439,3],[3440,1,3440,3],[3485,1,3485,3],[3488,1,3488,3],[3489,1,3489,3],[3497,1,3497,2],[3526,1,3526,2],[3528,1,3528,2],[3467,1,3467,3],[3480,1,3480,3],[3481,1,3481,3],[3482,1,3482,3],[3483,1,3483,2],[3484,1,3484,3],[3576,1,3576,3],[3587,1,3587,3],[3588,1,3588,3],[3601,1,3601,3],[3602,1,3602,3],[3603,1,3603,3],[3559,1,3559,3],[3560,1,3560,3],[3563,1,3563,3],[3564,1,3564,3],[3565,1,3565,3],[3566,1,3566,3],[3647,1,3647,2],[3649,1,3649,2],[3679,1,3679,3],[3680,1,3680,3],[3683,1,3683,3],[3684,1,3684,3],[3604,1,3604,2],[3605,1,3605,3],[3606,1,3606,3],[3609,1,3609,3],[3610,1,3610,3],[3618,1,3618,2],[3722,1,3722,3],[3723,1,3723,3],[3724,1,3724,2],[3725,1,3725,3],[3726,1,3726,3],[3729,1,3729,3],[3685,1,3685,3],[3686,1,3686,3],[3696,1,3696,3],[3707,1,3707,3],[3708,1,3708,3],[3721,1,3721,3],[3730,1,3730,3],[3739,1,3739,3],[3740,1,3740,3],[3741,1,3741,3],[3745,1,3745,3],[3746,1,3746,3],[3802,1,3802,3],[3803,1,3803,3],[3810,1,3810,3],[3757,1,3757,3],[3758,1,3758,3],[3759,1,3759,3],[3760,2,3760,3],[3761,2,3761,3],[3762,2,3762,3],[3763,2,3763,3],[3764,2,3764,3],[3765,2,3765,3],[3766,2,3766,3],[3767,2,3767,3],[3768,2,3768,3],[3769,2,3769,3],[3770,2,3770,3],[3771,2,3771,3],[3851,1,3852,3],[3864,1,3864,3],[3877,1,3877,3],[3888,1,3888,3],[3889,1,3889,3],[3902,1,3902,3],[3836,1,3836,3],[3837,1,3837,3],[3840,1,3840,3],[3841,1,3841,3],[3842,1,3842,3],[3838,1,3838,3],[3913,1,3913,3],[3914,1,3914,3],[3916,2,3916,3],[3917,2,3917,3],[3918,2,3918,3],[3919,2,3919,3],[3903,1,3903,3],[3904,1,3904,3],[3905,1,3905,3],[3906,1,3906,3],[3907,1,3907,3],[3912,1,3912,3],[3928,2,3928,3],[3929,2,3929,3],[3930,2,3930,3],[3931,2,3931,3],[3932,2,3932,3],[3933,2,3933,3],[3920,2,3920,3],[3921,2,3921,3],[3922,2,3922,3],[3924,1,3924,3],[3925,1,3925,3],[3927,2,3927,3],[3940,2,3940,3],[3941,2,3941,3],[3943,2,3943,3],[3944,2,3944,3],[3945,2,3945,3],[3946,2,3946,3],[3934,2,3934,3],[3935,2,3935,3],[3936,2,3936,3],[3937,2,3937,3],[3938,2,3938,3],[3939,2,3939,3],[3955,2,3955,3],[3956,2,3956,3],[3959,2,3959,3],[3960,2,3960,3],[3961,2,3961,3],[3962,2,3962,3],[3947,2,3947,3],[3948,2,3948,3],[3951,2,3951,3],[3952,2,3952,3],[3953,2,3953,3],[3954,2,3954,3],[3977,2,3977,3],[3978,2,3978,3],[3979,2,3979,3],[3980,2,3980,3],[3981,2,3981,3],[3983,1,3983,3],[3963,2,3963,3],[3964,2,3964,3],[3967,2,3967,3],[3968,2,3968,3],[3969,2,3969,3],[3970,2,3970,3],[3971,2,3971,3],[3972,2,3972,3],[3976,2,3976,3],[3772,2,3772,3],[3773,2,3773,3],[3774,2,3774,3],[3775,2,3775,3],[3776,2,3776,3],[3777,2,3777,3],[3778,2,3778,3],[3779,2,3779,3],[3780,2,3780,3],[3781,2,3781,3],[3782,2,3782,3],[3783,2,3783,3],[3784,2,3784,3],[3785,2,3785,3],[3786,2,3786,3],[3787,2,3787,3],[3788,2,3788,3],[3789,2,3789,3],[3790,2,3790,3],[3791,2,3791,3],[3792,2,3792,3],[3826,1,3826,3],[3827,1,3827,3],[3817,1,3817,3],[3820,1,3820,3],[3821,1,3821,3],[3822,1,3822,3],[3823,1,3823,3],[3824,1,3824,3],[3825,1,3825,3],[3811,1,3811,3],[3812,1,3812,3],[3813,1,3813,3],[3814,1,3814,3],[3815,1,3815,3],[3816,1,3816,3],[180,1,180,2],[111,1,111,2],[3828,1,3828,3],[3829,1,3829,3],[3830,1,3830,3],[3831,1,3831,3],[3835,1,3835,3],[3793,2,3793,3],[3794,2,3794,3],[3795,2,3795,3],[3796,2,3796,3],[3799,1,3799,3],[3804,1,3804,3],[3805,1,3805,3],[3808,1,3808,3],[3809,1,3809,3],[3818,1,3818,3],[3819,1,3819,3],[3832,1,3832,3],[3833,1,3833,3],[3834,1,3834,3],[3798,1,3798,3],[3800,1,3800,3],[3801,1,3801,3]]}
[]
[null,"    Servicio de Telefonía Fija"]
[null,"      Plan Tarifario ECUADORTELECOM S.A."]
[]
[]
[]
[]
[null,"      Fecha de publicación: mayo de 2013"]
[]
[]
[]
[]
[]
[]
[]
[]
[]
[]
[]
[]
[]
[]
[]
[]
[]
[]
[]
[]
[]
[]
[]
[]
[]
[]
[]
[]
[]
[]
[]
[]
[]
[]
[]
[]
[]
[]
[]
[]
[]
[]
[]
[]
[]
[]
[]
[]
[]
[]
[]
[]
[]
[]
[]
[]
[]
[]
[]
[]
[]
[]
[]
[]
[]
[]
[]
[]
[]
[]
[]
[]
[]
[]
[]
[]
[]
[]
[]
[]
[]
[]
[]
[]
[]
[]
[]
[]
[]
[]
[]
[]
[]
[]
[]
[]
[]
[]
[]
[]
[]
[]
[]
[null,{"$f":"+Resumen!A127","v":"Elaborado: SENATEL-DGP, Publicación:  mayo  2013"}]
[]
[]
[]
[]
[]
[]
[]
[]
[]
[]
[]
[]
[]
[]
[]
[]
[]
[]
[]
[]
[]
[]
[]
[]
[]
[]
[]
[]
[]
[]
[]
[]
[]
[]
[]
[]
[]
[]
[]
[]
[]
[]
[]
[]
[]
[]
[]
[]
[]
[]
[]
[]
[]
[]
[]
[]
[]
[]
[]
[]
[]
[]
[]
[]
[]
[]
[]
[]
[null,{"$f":"+B112","v":"Elaborado: SENATEL-DGP, Publicación:  mayo  2013"}]
[]
[]
[]
[]
[]
[]
[]
[]
[]
[]
[]
[]
[]
[]
[]
[]
[]
[]
[]
[]
[]
[]
[]
[]
[]
[]
[]
[]
[]
[]
[]
[]
[]
[]
[]
[]
[]
[]
[]
[]
[]
[]
[]
[]
[]
[]
[]
[]
[]
[]
[]
[]
[]
[]
[]
[]
[]
[]
[]
[]
[]
[]
[]
[]
[]
[]
[]
[]
[]
[]
[]
[]
[]
[]
[]
[]
[]
[]
[]
[]
[]
[]
[]
[]
[]
[]
[]
[]
[]
[]
[]
[]
[]
[]
[]
[]
[]
[]
[null,{"$f":"+B181","v":"Elaborado: SENATEL-DGP, Publicación:  mayo  2013"}]
[]
[]
[]
[]
[]
[]
[]
[]
[]
[]
[]
[]
[]
[]
[]
[]
[]
[]
[]
[]
[]
[]
[]
[]
[]
[]
[]
[]
[]
[]
[]
[]
[]
[]
[]
[]
[]
[]
[]
[]
[]
[]
[]
[]
[]
[]
[]
[]
[]
[]
[]
[]
[]
[]
[]
[]
[]
[]
[]
[]
[]
[]
[]
[]
[]
[]
[]
[]
[]
[]
[]
[]
[]
[]
[]
[]
[]
[]
[]
[null,{"$f":"+B280","v":"Elaborado: SENATEL-DGP, Publicación:  mayo  2013"}]
[]
[]
[]
[]
[]
[]
[]
[]
[]
[]
[]
[]
[]
[]
[]
[]
[]
[]
[]
[]
[]
[]
[]
[]
[]
[]
[]
[]
[]
[]
[]
[]
[]
[]
[]
[]
[]
[]
[]
[]
[]
[]
[]
[]
[]
[]
[]
[]
[]
[]
[]
[]
[]
[]
[]
[]
[]
[]
[]
[]
[]
[]
[]
[]
[]
[]
[]
[]
[]
[]
[]
[]
[]
[]
[]
[]
[]
[]
[]
[]
[]
[]
[]
[]
[]
[]
[]
[]
[]
[]
[]
[]
[]
[]
[]
[]
[]
[]
[]
[]
[]
[]
[]
[]
[]
[]
[]
[]
[]
[]
[]
[]
[]
[]
[]
[]
[]
[null,{"$f":"+B360","v":"Elaborado: SENATEL-DGP, Publicación:  mayo  2013"}]
[]
[]
[]
[]
[]
[]
[]
[]
[]
[]
[]
[]
[]
[]
[]
[]
[]
[]
[]
[]
[]
[]
[]
[]
[]
[]
[]
[]
[]
[]
[]
[]
[]
[]
[]
[]
[]
[]
[]
[]
[]
[]
[]
[]
[]
[]
[]
[]
[]
[]
[]
[]
[]
[]
[]
[]
[]
[]
[]
[]
[]
[]
[]
[]
[]
[]
[]
[]
[]
[]
[]
[]
[]
[]
[]
[]
[]
[]
[]
[]
[]
[]
[]
[]
[]
[]
[]
[]
[]
[]
[]
[]
[]
[]
[]
[]
[]
[]
[]
[]
[]
[]
[]
[]
[]
[]
[]
[]
[]
[]
[]
[]
[]
[]
[]
[]
[]
[]
[]
[]
[]
[]
[]
[]
[]
[]
[]
[]
[]
[]
[]
[]
[]
[]
[]
[]
[]
[]
[]
[]
[]
[]
[]
[]
[]
[]
[]
[]
[]
[]
[]
[]
[]
[]
[]
[]
[]
[]
[]
[]
[]
[]
[]
[]
[]
[]
[]
[]
[null,{"$f":"+B478","v":"Elaborado: SENATEL-DGP, Publicación:  mayo  2013"}]
[]
[]
[]
[]
[]
[]
[]
[]
[]
[]
[]
[]
[]
[]
[]
[]
[]
[]
[]
[]
[]
[]
[]
[]
[]
[]
[]
[]
[]
[]
[]
[]
[]
[]
[]
[]
[]
[]
[]
[]
[]
[]
[]
[]
[]
[]
[]
[]
[]
[]
[]
[]
[]
[]
[]
[]
[]
[]
[]
[]
[]
[]
[]
[]
[]
[]
[]
[]
[]
[]
[]
[]
[]
[]
[]
[]
[]
[]
[]
[]
[]
[]
[]
[]
[]
[]
[]
[]
[]
[]
[]
[]
[]
[]
[]
[]
[]
[]
[]
[]
[]
[]
[]
[]
[]
[]
[]
[]
[]
[]
[]
[]
[]
[]
[]
[]
[]
[]
[]
[]
[]
[]
[]
[]
[]
[]
[]
[]
[]
[]
[]
[]
[]
[]
[]
[]
[]
[]
[]
[]
[]
[null,{"$f":"+B647","v":"Elaborado: SENATEL-DGP, Publicación:  mayo  2013"}]
[]
[null,"PLAN RESIDENCIAL BÁSICO"]
[null,"El Plan Residenial Básico es un Plan Tarifario creado para el abonado residencial que le permite realizar comunicaciones telefónicas locales, nacionales, internacionales y a celulares."]
[null,"Detalle","Plan Residencial Básico","Observaciones"]
[null,"Derecho de Inscripción*"," $ 60.00 ","Por una sola vez"]
[null,"Pensión Básica Mensual",5.99,"Mensual **"]
[null,"Llamada Local",0.01,"Por minuto "]
[null,"Llamada de Larga Distancia Nacional",0.02,"Por minuto "]
[null,"Llamada a Redes Móviles Celular:"]
[null,"Llamadas a CLARO"," $   0.135 ***","Por minuto "]
[null,"Llamadas a MOVISTAR"," $   0.135 ***","Por minuto "]
[null,"Llamadas a CNT EP. (ex-ALEGRO)"," $   0.135 ***","Por minuto "]
[null,"Llamada de Larga Distancia Internacional"]
[null,"Paises de Destino ****"]
[null,"USA y Canadá (fijo o móvil)",0.09,"Por minuto"]
[null,"España e Italia (fijo)",0.09,"Por minuto"]
[null,"España e Italia (móvil)",0.3,"Por minuto"]
[null,"Argentina (fijo)",0.13,"Por minuto"]
[null,"Argentina (móvil)",0.2,"Por minuto"]
[null,"Chile",0.22,"Por minuto"]
[null,"Bolivia",0.22,"Por minuto"]
[null,"Colombia",0.19,"Por minuto"]
[null,"Venezuela",0.22,"Por minuto"]
[null,"Perú",0.19,"Por minuto"]
[null,"México",0.19,"Por minuto"]
[null,"China",0.25,"Por minuto"]
[null,"Costa Rica",0.19,"Por minuto"]
[null,"Cuba",1,"Por minuto"]
[null,"Japón",0.3,"Por minuto"]
[null,"Corea del Norte",0.6,"Por minuto"]
[null,"Antártida",6.8,"Por minuto"]
[null,"Serbia Fijo",0.5,"Por minuto"]
[null,"Serbia Móvil",0.5,"Por minuto"]
[null,"Resto de América*****",0.22,"Por minuto"]
[null,"Países de Europa",0.35,"Por minuto"]
[null,"Móvil Marítimo",6.8,"Por minuto"]
[null,"Resto de Mundo ******",0.39,"Por minuto"]
[]
[null,"Nota:"]
[null,"(*) Se aplica descuento del 100%.  Promoción válida hasta el 29 de febrero de 2012"]
[null,"(**) No incluye minutos libres"]
[null,"(***) El precio de la llamada incluye el cargo por interconexión."]
[null,"(****) La tarifa final depende de las condiciones de terminación que se mantengan con las "]
[null,"        otras redes a nivel mundial."]
[null,"(*****) Se excluye Granada, Guyana Francesa, Guyana República, Haití, Honduras y Surinam para los cuales la tarifa es de US$0,300 por minuto para cada uno de los destinos."]
[null,"(******) Se excluye Diego García, Islas Ascensión, Islas Malvinas, Islas Norfolk, Groelandia móvil, Guinea Bissau, Kiribati, Nauru, Santo Tomé, Salomón Islas, Tokelau, Tavalu, República de Vanuatu, Wallisand Futura, destinos para los cuales la tarifa es de U$ 0.85 por minuto  para cada uno de los destinos."]
[]
[null,"Condiciones Comerciales:"]
[null,"Aplicable para abonados que soliciten servicio telefónico para uso residencial"]
[null,"La prestación de este servicio está sujeta al pago del IVA, de conformidad a la Ley."]
[null,"La prestación de este servicio esta sujeto a facilidades técnicas y de cobertura"]
[]
[null,"Vigencia: desde el  30 de noviembre de 2011.\nTarifa a Serbia (fijo-Móvil) vigente desde el 10 de agosto de 2012.\nTarifa a  Islas Ascensión (fijo-Móvil) vigente desde el 1 de septiembre de 2012"]
[]
[]
[null,"PLAN RESIDENCIAL  200"]
[null,"El \"Plan Residencial 200\" es un plan creado para el abonado residencial que le permite realizar comunicaciones telefónicas locales, nacionales, internacionales y a celulares, e incluyen 200 minutos para llamadas locales"]
[null,"Detalle","Plan Residencial 200","Observaciones"]
[null,"Derecho de Inscripción*",49.9,"Por una sola vez"]
[null,"Pensión Básica Mensual",6.5,"Mensual "]
[null,"Minutos Incluidos",200,"Minutos locales que terminan en la red de Ecuadortelecom S:A. u otros operadores locales fijos"]
[null,"Llamada Local",0.01,"Por minuto "]
[null,"Llamada de Larga Distancia Nacional",0.02,"Por minuto "]
[null,"Llamada a Redes Móviles Celular:"]
[null,"Llamadas a CLARO"," $   0.135 **","Por minuto "]
[null,"Llamadas a MOVISTAR"," $   0.135 **","Por minuto "]
[null,"Llamadas a CNT EP. (ex-ALEGRO)"," $   0.135 **","Por minuto "]
[null,"Llamada de Larga Distancia Internacional"]
[null,"Paises de Destino ***"]
[null,"USA y Canadá (fijo o móvil)",0.09,"Por minuto"]
[null,"España e Italia (fijo)",0.09,"Por minuto"]
[null,"España e Italia (móvil)",0.3,"Por minuto"]
[null,"Argentina (fijo)",0.13,"Por minuto"]
[null,"Argentina (móvil)",0.2,"Por minuto"]
[null,"Chile",0.22,"Por minuto"]
[null,"Bolivia",0.22,"Por minuto"]
[null,"Colombia",0.19,"Por minuto"]
[null,"Venezuela",0.22,"Por minuto"]
[null,"Perú",0.19,"Por minuto"]
[null,"México",0.19,"Por minuto"]
[null,"China",0.25,"Por minuto"]
[null,"Costa Rica",0.19,"Por minuto"]
[null,"Cuba",1,"Por minuto"]
[null,"Japón",0.3,"Por minuto"]
[null,"Corea del Norte",0.6,"Por minuto"]
[null,"Antártida",6.8,"Por minuto"]
[null,"Serbia Fijo",0.5,"Por minuto"]
[null,"Serbia Móvil",0.5,"Por minuto"]
[null,"Resto de América****",0.22,"Por minuto"]
[null,"Países de Europa",0.35,"Por minuto"]
[null,"Móvil Marítimo",6.8,"Por minuto"]
[null,"Resto de Mundo *****",0.39,"Por minuto"]
[]
[null,"Nota:"]
[null,"(*) Se aplica descuento del 100%.  Promoción válida hasta el 29 de febrero de 2012"]
[null,"(**) El precio de la llamada incluye el cargo por interconexión"]
[null,"(***) La tarifa final depende de las condiciones de terminación que se mantengan con las otras redes a nivel mundial"]
[null,"(****) Se excluye Granada, Guyana Francesa, Guyana República, Haití, Honduras y Surinam para los cuales la tarifa es de US$0,300 por minuto para cada uno de los destinos."]
[null,"(******) Se excluye Diego García, Islas Ascensión, Islas Malvinas, Islas Norfolk, Groelandia móvil, Guinea Bissau, Kiribati, Nauru, Santo Tomé, Salomón Islas, Tokelau, Tavalu, República de Vanuatu, Wallisand Futura, destinos para los cuales la tarifa es de U$ 0.85 por minuto  para cada uno de los destinos."]
[]
[null,"Condiciones Comerciales:"]
[null,"Aplicable para abonados que soliciten servicio telefónico para uso residencial"]
[null,"La prestación de este servico está sujeta al pago del IVA, de conformidad con la Ley."]
[null,"Los minutos locales incluidos en la Pensión Básica que terminan en la red de Ecuadortelelcom S.A:, u otro operador local fijo son para consumo mensual, y no serán acumulables de un mes a otro."]
[null,"La prestación de este servicio está sujeto a facilidades técnicas y de cobertura"]
[null,"Vigencia: desde el  30 de noviembre de 2011.\nTarifa a Serbia (fijo-Móvil) vigente desde el 10 de agosto de 2012.\nTarifa a  Islas Ascensión (fijo-Móvil) vigente desde el 1 de septiembre de 2012"]
[]
[]
[null,"PLAN RESIDENCIAL  500"]
[null,"El \"Plan Residencial 500\" es un plan creado para el abonado residencial que le permite realizar comunicaciones telefónicas  locales, nacionales, internacionales y a celulares, e incluyen 500 minutos para llamadas locales"]
[null,"Detalle","Plan Residencial 500","Observaciones"]
[null,"Derecho de Inscripción *",49.9,"Por una sola vez"]
[null,"Pensión Básica Mensual",9.49,"Mensual "]
[null,"Minutos Incluidos",500,"Minutos locales que terminan en la red de Ecuadortelecom S.A. u otros operadores locales fijos."]
[null,"Llamada Local",0.01,"Por minuto "]
[null,"Llamada de Larga Distancia Nacional",0.02,"Por minuto"]
[null,"Llamada a Redes Móviles Celular:"]
[null,"Llamadas a CLARO"," $   0.135 **","Por minuto "]
[null,"Llamadas a MOVISTAR"," $   0.135 **","Por minuto "]
[null,"Llamadas a CNT EP. (ex-ALEGRO)"," $   0.135 **","Por minuto "]
[null,"Llamada de Larga Distancia Internacional"]
[null,"Paises de Destino ***"]
[null,"USA y Canadá (fijo o móvil)",0.09,"Por minuto"]
[null,"España e Italia (fijo)",0.09,"Por minuto"]
[null,"España e Italia (móvil)",0.3,"Por minuto"]
[null,"Argentina (fijo)",0.13,"Por minuto"]
[null,"Argentina (móvil)",0.2,"Por minuto"]
[null,"Chile",0.22,"Por minuto"]
[null,"Bolivia",0.22,"Por minuto"]
[null,"Colombia",0.19,"Por minuto"]
[null,"Venezuela",0.22,"Por minuto"]
[null,"Perú",0.19,"Por minuto"]
[null,"México",0.19,"Por minuto"]
[null,"China",0.25,"Por minuto"]
[null,"Costa Rica",0.19,"Por minuto"]
[null,"Cuba",1,"Por minuto"]
[null,"Japón",0.3,"Por minuto"]
[null,"Corea del Norte",0.6,"Por minuto"]
[null,"Antártida",6.8,"Por minuto"]
[null,"Serbia Fijo",0.5,"Por minuto"]
[null,"Serbia Móvil",0.5,"Por minuto"]
[null,"Resto de América****",0.22,"Por minuto"]
[null,"Países de Europa",0.35,"Por minuto"]
[null,"Móvil Marítimo",6.8,"Por minuto"]
[null,"Resto de Mundo *****",0.39,"Por minuto"]
[]
[null,"Nota:"]
[null,"(*) Se aplica descuento del 100%.  Promoción válida hasta el 29 de febrero de 2012"]
[null,"(**) El precio de la llamada incluye el cargo por interconexión"]
[null,"(***) La tarifa final depende de las condiciones de terminación que se mantengan con las otras redes a nivel mundial"]
[null,"(****) Se excluye Granada, Guyana Francesa, Guyana República, Haití, Honduras y Surinam para los cuales la tarifa es de US$0,300 por minuto para cada uno de los destinos."]
[null,"(******) Se excluye Diego García, Islas Ascensión, Islas Malvinas, Islas Norfolk, Groelandia móvil, Guinea Bissau, Kiribati, Nauru, Santo Tomé, Salomón Islas, Tokelau, Tavalu, República de Vanuatu, Wallisand Futura, destinos para los cuales la tarifa es de U$ 0.85 por minuto  para cada uno de los destinos."]
[]
[null,"Condiciones Comerciales:"]
[null,"Aplicable para abonados que soliciten servicio telefónico para uso residencial"]
[null,"La prestación de este servicio está sujeta al pago de IVA, de conformidad a la Ley."]
[null,"Los  minutos locales incluidos en la Pensión Básica que terminan en la red de Ecuadortelecom S.A., u otro operador local fijo son para consumo mensual, y no serán acumulables de un mes a otro."]
[null,"La prestación de este servicio está sujeto a facilidades técnicas y de cobertura."]
[null,"Vigencia: desde el  30 de noviembre de 2011.\nTarifa a Serbia (fijo-Móvil) vigente desde el 10 de agosto de 2012.\nTarifa a  Islas Ascensión (fijo-Móvil) vigente desde el 1 de septiembre de 2012"]
[]
[]
[null,"PLAN  VOZ BASICO PLUS"]
[null,"El \"Plan Voz Básico Plus\", ha sido creado para el abonado residencial, que le permite realizar comunicaciones telefónicas locales, nacionales, internacionales y celulares."]
[null,"Detalle","Plan  Voz Básico Plus","Observaciones"]
[null,"Derecho de Inscripción *"," $ 49,90","Por una sola vez"]
[null,"Pensión Básica Mensual",5,"Mensual **"]
[null,"Llamada Local",0.01,"Por minuto "]
[null,"Llamada de Larga Distancia Nacional",0.02,"Por minuto"]
[null,"Llamada a Redes Móviles Celular:"]
[null,"Llamadas a CLARO"," $   0.135 ***","Por minuto "]
[null,"Llamadas a MOVISTAR"," $   0.135 ***","Por minuto "]
[null,"Llamadas a CNT EP. (ex-ALEGRO)"," $   0.135 ***","Por minuto "]
[null,"Llamada de Larga Distancia Internacional"]
[null,"Paises de Destino ****"]
[null,"USA y Canadá (fijo o móvil)",0.09,"Por minuto"]
[null,"España e Italia (fijo)",0.09,"Por minuto"]
[null,"España e Italia (móvil)",0.3,"Por minuto"]
[null,"Argentina (fijo)",0.13,"Por minuto"]
[null,"Argentina (móvil)",0.2,"Por minuto"]
[null,"Chile",0.22,"Por minuto"]
[null,"Bolivia",0.22,"Por minuto"]
[null,"Colombia",0.19,"Por minuto"]
[null,"Venezuela",0.22,"Por minuto"]
[null,"Perú",0.19,"Por minuto"]
[null,"México",0.19,"Por minuto"]
[null,"China",0.25,"Por minuto"]
[null,"Costa Rica",0.19,"Por minuto"]
[null,"Cuba",1,"Por minuto"]
[null,"Japón",0.3,"Por minuto"]
[null,"Corea del Norte",0.6,"Por minuto"]
[null,"Serbia Fijo",0.5,"Por minuto"]
[null,"Serbia Móvil",0.5,"Por minuto"]
[null,"Antártida",6.8,"Por minuto"]
[null,"Resto de América*****",0.22,"Por minuto"]
[null,"Países de Europa",0.35,"Por minuto"]
[null,"Móvil Marítimo",6.8,"Por minuto"]
[null,"Resto de Mundo ******",0.39,"Por minuto"]
[]
[null,"Nota:"]
[null,"(*) Se aplica descuento del 100%.  Promoción válida hasta el 30 de junio de 2012.  "]
[null,"(**) No incluye minutos libres. Se otorgará descuenta del 100% cuando se contrate junto con el servicio de Acceso a Internet Banda Ancha"]
[null,"(***) El precio de la llamada incluye el cargo por interconexión."]
[null,"(2) Ver Anexo I. Se anexa los planes del servicio de Acceso a Internet de Banda  Ancha"]
[null,"(****) La tarifa final depende de las condiciones de terminación que se mantengan con las "]
[null,"        otras redes a nivel mundial."]
[null,"(****) Se excluye Granada, Guyana Francesa, Guyana República, Haití, Honduras y Surinam para los cuales la tarifa es de US$0,300 por minuto para cada uno de los destinos."]
[null,"(******) Se excluye Diego García, Islas Ascensión, Islas Malvinas, Islas Norfolk, Groelandia móvil, Guinea Bissau, Kiribati, Nauru, Santo Tomé, Salomón Islas, Tokelau, Tavalu, República de Vanuatu, Wallisand Futura, destinos para los cuales la tarifa es de U$ 0.85 por minuto  para cada uno de los destinos."]
[]
[null,"Condiciones Comerciales:"]
[null,"Aplicable para abonados que soliciten servicio telefónico para uso residencial"]
[null,"La prestación de este servicio están sujeta al pago de IVA, de conformidad con la Ley."]
[null,"La prestación de este servicio esta sujeto a facilidades técnicas y de cobertura."]
[null,"Vigencia: desde el 16 de abril de 2012, y su aplicación es de forma indefinida. \nTarifa a Serbia (fijo-Móvil) vigente desde el 10 de agosto de 2012.\nTarifa a  Islas Ascensión (fijo-Móvil) vigente desde el 1 de septiembre de 2012"]
[]
[]
[null,"PLAN VOZ 150"]
[null,"El \"Plan Voz 150\", ha sido creado para el abonado residencial, que le permite realizar comunicaciones telefónicas locales, nacionales, internacionales  y a celulares, "]
[null,"Detalle","Plan  Voz 150","Observaciones"]
[null,"Derecho de Inscripción (1)"," $ 49,90","Por una sola vez"]
[null,"Pensión Básica Mensual (2)",6.2,"Mensual "]
[null,"Minutos incluidos (3)",150,"Minutos locales que termine en la red de Ecuadortelecom S.A., u otros operadores locales fijos."]
[null,"Llamada Local",0.01,"Por minuto "]
[null,"Llamada de Larga Distancia Nacional",0.02,"Por minuto"]
[null,"Llamada a Redes Móviles Celular (4):"]
[null,"Llamadas a CLARO"," $   0.135 ","Por minuto "]
[null,"Llamadas a MOVISTAR"," $   0.135 ","Por minuto "]
[null,"Llamadas a CNT EP. (ex-ALEGRO)"," $   0.135 ","Por minuto "]
[null,"Llamada de Larga Distancia Internacional"]
[null,"País de Destino (5)"]
[null,"USA y Canadá (fijo o móvil)",0.09,"Por minuto"]
[null,"España e Italia (fijo)",0.09,"Por minuto"]
[null,"España e Italia (móvil)",0.3,"Por minuto"]
[null,"Argentina ",0.13,"Por minuto"]
[null,"Argentina móvil",0.2,"Por minuto"]
[null,"Chile",0.22,"Por minuto "]
[null,"Bolivia",0.22,"Por minuto "]
[null,"Colombia",0.19,"Por minuto "]
[null,"Venezuela",0.22,"Por minuto "]
[null,"Perú",0.19,"Por minuto "]
[null,"México",0.19,"Por minuto "]
[null,"China",0.25,"Por minuto "]
[null,"Costa Rica",0.19,"Por minuto "]
[null,"Cuba",1,"Por minuto "]
[null,"Serbia ",0.5,"Por minuto"]
[null,"Resto de América",0.22,"Por minuto"]
[null,"Resto de América Otros (6)",0.3,"Por minuto"]
[null,"Países de Europa",0.35,"Por minuto"]
[null,"Japón",0.3,"Por minuto "]
[null,"Móvil Marítimo",6.8,"Por minuto"]
[null,"Resto de Mundo",0.39,"Por minuto"]
[null,"Resto de Mundo Otros (7)",0.85,"Por minuto"]
[]
[null,"Nota:"]
[null,"(1) Se aplica el descuento del 100%.cuando se contrate junto con el servicio de Acceso a Internet Banda Ancha Fija. Promoción válida hasta el 31 de diciembre de 2012. El valor de derecho de inscripcion no incluye el precio de la suscripcion de los servicios de Acceso a Internet de Banda Ancha Fija. Promoción válida hasta el 31 de diciembre de 2012. El valor del derecho de Inscripción no incluye el precio de las suscripción de los servicios de Acceso de Banda Ancha Fija, por lo tanto el descuento del 100% aplica unicamente al servicio de telefonía."]
[null,"(2) La pension básica será de US$ 3,00 por tres meses consecutivos a partir de la activación del plan cuando se contrate junto con el servicio de Acceso a Internet Banda Ancha Fija, luego de lo cual el precio vigente en la Guía Comercial."]
[null,"(3) Adicional a los minutos incluidos, aplica promoción de 500 minutos mensuales para llamadas que terminen en la red de Ecuadortelecom S.A. Promoción válida hasta el 31 de diciembre de 2012."]
[null,"(4) El precio de la llamada incluye el cargo por interconexión. "]
[null,"(5) La tarifa final depende de las condiciones de terminación que se mantengan con las   otras redes a nivel mundial."]
[null,"(6) Contiene: Granada, Guyana República, Guyana Francesa, Haití, Honduras, Surinam Dominica, Turcos y Caicos e Islas Vírgenes"]
[null,"(7) Contiene a Diego García, Islas Malvinas, St Pierre an Miguelon, Groelandia móvil, Guinea Bissau, Kiribati, Nauru, Santo Tomé, Salomón Islas, Tokelau, Tavalu, República de Vanuatu, Wallisand Futura, Islas Ascensión."]
[]
[null,"Condiciones Comerciales:"]
[null,"Aplicable para abonados que soliciten servicio telefónico para uso residencial"]
[null,"La prestación de este servicio están sujeta al pago de IVA, de conformidad con la Ley."]
[null,"Los minutos locales incluidos en la pensión Básica que terminan en la red de Ecuadortelecom S.A. y  otro operador local fijo son para consumo mensual, y no serán acumulables de un mes a otro."]
[null,"La prestación de este servicio esta sujeto a facilidades técnicas y de cobertura."]
[null,"Vigencia: a partir del 1 de octubre de 2012\n    Destino Argentina Móvil desde  6 de mayo de 2013"]
[]
[]
[null,"PLAN VOZ 250"]
[null,"El \"Plan Voz 250\", es un plan creado para el abonado residencial, que le permite realizar comunicaciones telefónicas locales, nacionales, internacionales  y a celulares, "]
[null,"Detalle","Plan  Voz 250","Observaciones"]
[null,"Derecho de Inscripción *"," $ 49,90","Por una sola vez"]
[null,"Pensión Básica Mensual **",6.5,"Mensual "]
[null,"Minutos incluidos",250,"205 minutos locales que termine en la red de Ecuadortelecom S.A.y 45 minutos en otros operadores locales fijos."]
[null,"Llamada Local",0.01,"Por minuto "]
[null,"Llamada de Larga Distancia Nacional",0.02,"Por minuto"]
[null,"Llamada a Redes Móviles Celular:"]
[null,"Llamadas a CLARO"," $   0.135 ***","Por minuto "]
[null,"Llamadas a MOVISTAR"," $   0.135 ***","Por minuto "]
[null,"Llamadas a CNT EP. (ex-ALEGRO)"," $   0.135 ***","Por minuto "]
[null,"Llamada de Larga Distancia Internacional"]
[null,"Paises de Destino ****"]
[null,"USA y Canadá (fijo o móvil)",0.09,"Por minuto"]
[null,"España e Italia (fijo)",0.09,"Por minuto"]
[null,"España e Italia (móvil)",0.3,"Por minuto"]
[null,"Argentina (fijo)",0.13,"Por minuto"]
[null,"Argentina (móvil)",0.2,"Por minuto "]
[null,"Chile",0.22,"Por minuto "]
[null,"Bolivia",0.22,"Por minuto "]
[null,"Colombia",0.19,"Por minuto "]
[null,"Venezuela",0.22,"Por minuto "]
[null,"Perú",0.19,"Por minuto "]
[null,"México",0.19,"Por minuto "]
[null,"China",0.25,"Por minuto "]
[null,"Costa Rica",0.19,"Por minuto "]
[null,"Cuba",1,"Por minuto "]
[null,"Japón",0.3,"Por minuto "]
[null,"Corea del Norte",0.6,"Por minuto "]
[null,"Serbia Fijo",0.5,"Por minuto"]
[null,"Serbia Móvil",0.5,"Por minuto"]
[null,"Antártida",6.8,"Por minuto "]
[null,"Resto de América*****",0.22,"Por minuto"]
[null,"Países de Europa",0.35,"Por minuto"]
[null,"Móvil Marítimo",6.8,"Por minuto"]
[null,"Resto de Mundo ******",0.39,"Por minuto"]
[]
[null,"Nota:"]
[null,"(*) Se aplica el descuento del 100%.cuando se contrate junto con el servicio de Acceso a Internet Banda Ancha Fija. Promoción valida hasta el 29 de febrero de 2012. El valor de derecho de inscripcion no incluye el precio de la suscripcion de los servicios de Acceso a Internet de Banda Ancha Fija, por lo tanto el descuento del 100% aplica unicamente al servicio de telefonía."]
[null,"(**) El valor de la pension básica es de US$1.50 cuando se contrate junto con el servicio de Acceso a Internet Banda Ancha Fija."]
[null,"(***) El precio de la llamada incluye el cargo por interconexión. "]
[null,"En el Anexo II se detalla los planes del servicio de Acceso a Internet de Bnada Ancha Fija."]
[null,"(****) La tarifa final depende de las condiciones de terminación que se mantengan con las "]
[null,"        otras redes a nivel mundial."]
[null,"(****) Se excluye Granada, Guyana Francesa, Guyana República, Haití, Honduras y Surinam para los cuales la tarifa es de US$0,300 por minuto para cada uno de los destinos."]
[null,"(******) Se excluye Diego García, Islas Ascensión, Islas Malvinas, Islas Norfolk, Groelandia móvil, Guinea Bissau, Kiribati, Nauru, Santo Tomé, Salomón Islas, Tokelau, Tavalu, República de Vanuatu, Wallisand Futura, destinos para los cuales la tarifa es de U$ 0.85 por minuto  para cada uno de los destinos."]
[]
[null,"Condiciones Comerciales:"]
[null,"Aplicable para abonados que soliciten servicio telefónico para uso residencial"]
[null,"La prestación de este servicio están sujeta al pago de IVA, de conformidad a la Ley."]
[null,"Los minutos locales incluidos en la pensión Básica que terminan en la red de Ecuadortelecom S.A. y  otro operador local fijo son para consumo mensual, y no serán acumulables de un mes a otro."]
[null,"La prestación de este servicio esta sujeto a facilidades técnicas y de cobertura."]
[null,"Vigencia: desde el  30 de noviembre de 2011.\nTarifa a Serbia (fijo-Móvil) vigente desde el 10 de agosto de 2012.\nTarifa a  Islas Ascensión (fijo-Móvil) vigente desde el 1 de septiembre de 2012"]
[]
[]
[null,"PLAN  VOZ 500"]
[null,"El \"Plan  Voz 500\", es un plan tarifario creado para el abonado residencial, que le permite realizar comunicaciones telefónicas locales, nacionales, internacionales  y a celulares, e incluye 500 minutos para llamadas locales"]
[null,"Detalle","Plan Voz 500","Observaciones"]
[null,"Derecho de Inscripción *"," $ 49,90","Por una sola vez"]
[null,"Pensión Básica Mensual",9.49,"Mensual "]
[null,"Minutos incluidos",500,"250 minutos locales que termine en la red de Ecuadortelecom S.A.y 250 minutos en otros operadores locales fijos."]
[null,"Llamada Local",0.01,"Por minuto "]
[null,"Llamada de Larga Distancia Nacional",0.02,"Por minuto"]
[null,"Llamada a Redes Móviles Celular:"]
[null,"Llamadas a CLARO"," $   0.135 **","Por minuto "]
[null,"Llamadas a MOVISTAR"," $   0.135 **","Por minuto "]
[null,"Llamadas a CNT EP. (ex-ALEGRO)"," $   0.135 **","Por minuto "]
[null,"Llamada de Larga Distancia Internacional"]
[null,"Paises de Destino ***"]
[null,"USA y Canadá (fijo o móvil)",0.09,"Por minuto"]
[null,"España e Italia (fijo)",0.09,"Por minuto"]
[null,"España e Italia (móvil)",0.3,"Por minuto"]
[null,"Argentina (fija)",0.13,"Por minuto"]
[null,"Argentina (móvil)",0.2]
[null,"Chile",0.22,"Por minuto"]
[null,"Bolivia",0.22,"Por minuto"]
[null,"Colombia",0.19,"Por minuto"]
[null,"Venezuela",0.22,"Por minuto"]
[null,"Perú",0.19,"Por minuto"]
[null,"México",0.19,"Por minuto"]
[null,"China",0.25,"Por minuto"]
[null,"Costa Rica",0.19,"Por minuto"]
[null,"Cuba",1,"Por minuto"]
[null,"Japón",0.3,"Por minuto"]
[null,"Corea del Norte",0.6,"Por minuto"]
[null,"Antártida",6.8,"Por minuto"]
[null,"Serbia Fijo",0.5,"Por minuto"]
[null,"Serbia Móvil",0.5,"Por minuto"]
[null,"Resto de América****",0.22,"Por minuto"]
[null,"Países de Europa",0.35,"Por minuto"]
[null,"Móvil Marítimo",6.8,"Por minuto"]
[null,"Resto de Mundo *****",0.39,"Por minuto"]
[]
[null,"Nota:"]
[null,"(*) Se aplica descuento del 100%.  Promoción válida hasta el 29 de febrero de 2012"]
[null,"(**) El precio de la llamada incluye el cargo por interconexión."]
[null,"(***) La tarifa final depende de las condiciones de terminación que se mantengan con las "]
[null,"        otras redes a nivel mundial."]
[null,"(****) Se excluye Granada, Guyana Francesa, Guyana República, Haití, Honduras y Surinam para los cuales la tarifa es de US$0,300 por minuto para cada uno de los destinos."]
[null,"(******) Se excluye Diego García, Islas Ascensión, Islas Malvinas, Islas Norfolk, Groelandia móvil, Guinea Bissau, Kiribati, Nauru, Santo Tomé, Salomón Islas, Tokelau, Tavalu, República de Vanuatu, Wallisand Futura, destinos para los cuales la tarifa es de U$ 0.85 por minuto  para cada uno de los destinos."]
[]
[null,"Condiciones Comerciales:"]
[null,"Aplicable para abonados que soliciten servicio telefónico para uso residencial"]
[null,"La prestación de este servicio están sujeta al pago de IVA, de conformidad a la Ley."]
[null,"Los minutos locales incluidos en la pensión Básica que terminan en la red de Ecuadortelecom S.A. y  otro operador local fijo son para consumo mensual, y no serán acumulables de un mes a otro."]
[null,"La prestación de este servicio esta sujeto a facilidades técnicas y de cobertura."]
[null,"Vigencia: desde el  30 de noviembre de 2011.\nTarifa a Serbia (fijo-Móvil) vigente desde el 10 de agosto de 2012.\nTarifa a  Islas Ascensión (fijo-Móvil) vigente desde el 1 de septiembre de 2012"]
[]
[]
[null,"PLAN VOZ 550"]
[null,"El \"Plan  Voz 550\", es un plan tarifario creado para el abonado residencial, que le permite realizar comunicaciones telefónicas locales, nacionales, internacionales  y a celulares"]
[null,"Detalle","Plan  Voz 550","Observaciones"]
[null,"Derecho de Inscripción *"," $ 49,90","Por una sola vez"]
[null,"Pensión Básica Mensual **",8,"Mensual "]
[null,"Minutos incluidos",550,"475 minutos locales que termine en la red de Ecuadortelecom S.A.y 75 minutos en otros operadores locales fijos."]
[null,"Llamada Local",0.01,"Por minuto "]
[null,"Llamada de Larga Distancia Nacional",0.02,"Por minuto"]
[null,"Llamada a Redes Móviles Celular:"]
[null,"Llamadas a CLARO"," $   0.135 ***","Por minuto "]
[null,"Llamadas a MOVISTAR"," $   0.135 ***","Por minuto "]
[null,"Llamadas a CNT EP. (ex-ALEGRO)"," $   0.135 ***","Por minuto "]
[null,"Llamada de Larga Distancia Internacional"]
[null,"Paises de Destino ****"]
[null,"USA y Canadá (fijo o móvil)",0.09,"Por minuto"]
[null,"España e Italia (fijo)",0.09,"Por minuto"]
[null,"España e Italia (móvil)",0.3,"Por minuto"]
[null,"Argentina (fijo)",0.13,"Por minuto"]
[null,"Argentina (móvil)",0.2,"Por minuto"]
[null,"Chile",0.22,"Por minuto"]
[null,"Bolivia",0.22,"Por minuto"]
[null,"Colombia",0.19,"Por minuto"]
[null,"Venezuela",0.22,"Por minuto"]
[null,"Perú",0.19,"Por minuto"]
[null,"México",0.19,"Por minuto"]
[null,"China",0.25,"Por minuto"]
[null,"Costa Rica",0.19,"Por minuto"]
[null,"Cuba",1,"Por minuto"]
[null,"Japón",0.3,"Por minuto"]
[null,"Corea del Norte",0.6,"Por minuto"]
[null,"Antártida",6.8,"Por minuto"]
[null,"Serbia Fijo",0.5,"Por minuto"]
[null,"Serbia Móvil",0.5,"Por minuto"]
[null,"Resto de América",0.22,"Por minuto"]
[null,"Países de Europa",0.35,"Por minuto"]
[null,"Móvil Marítimo",6.8,"Por minuto"]
[null,"Resto de Mundo *****",0.39,"Por minuto"]
[]
[null,"Nota:"]
[null,"(*) Se aplica el descuento del 100% cuando se contrate junto con el servicio de Acceso a Internet Banda Ancha Fija. Promoción válida hasta el 29 de febrero de 2012. El valor del derecho de inscripción no incluye el precio de la suscripción de los servicios de Acceso a Internet de Banda Ancha Fija, por lo tanto el descuento del 100% aplica únicamente al servicio de telefonía."]
[null,"(**)El valor de la presión básica es de US$3.00 cuando se contrate junto con el servicio de Acceso a Internet Banda Ancha Fija."]
[null,"(***)El precio de la llamada incluye el cargo por interconexón."]
[null,"(2) Ver anexo II se detalla los planes de Acceso a Internet Banda Ancha Fija"]
[null,"(****) La tarifa final depende de las condiciones de terminación que se mantengan con las "]
[null,"        otras redes a nivel mundial."]
[null,"(*****) Se excluye Granada, Guyana Francesa, Guyana República, Haití, Honduras y Surinam para los cuales la tarifa es de US$0,300 por minuto para cada uno de los destinos."]
[null,"(******) Se excluye Diego García, Islas Ascensión, Islas Malvinas, Islas Norfolk, Groelandia móvil, Guinea Bissau, Kiribati, Nauru, Santo Tomé, Salomón Islas, Tokelau, Tavalu, República de Vanuatu, Wallisand Futura, destinos para los cuales la tarifa es de U$ 0.85 por minuto  para cada uno de los destinos."]
[]
[null,"Condiciones Comerciales:"]
[null,"Aplicable para abonados que soliciten servicio telefónico para uso residencial."]
[null,"La prestación de este servicio está sujeta al pago de IVA, de conformidad a la Ley."]
[null,"Los minutos locales incluidos en la pensión Básica que terminan en la red de Ecuadortelecom S.A. y  otro operador local fijo son para consumo mensual, y no serán acumulables de un mes a otro."]
[null,"La prestación de este servicio está sujeto a facilidades técnicas y de cobertura."]
[null,"Vigencia: desde el  30 de noviembre de 2011.\nTarifa a Serbia (fijo-Móvil) vigente desde el 10 de agosto de 2012.\nTarifa a  Islas Ascensión (fijo-Móvil) vigente desde el 1 de septiembre de 2012"]
[]
[]
[null,"PLAN  VOZ 900"]
[null,"El \"Plan Voz 900\", es un plan tarifario creado para el abonado residencial, que le permite realizar comunicaciones telefónicas locales, nacionales, internacionales  y a celulares, e incluye 900 minutos para llamadas locales."]
[null,"Detalle","Plan  Voz 900","Observaciones"]
[null,"Derecho de Inscripción *"," $ 49,90","Por una sola vez"]
[null,"Pensión Básica Mensual",11,"Mensual "]
[null,"Minutos incluidos",900,"450 minutos locales que terminen en la red de Ecuadortelecom y 450 minutos en otros operadores locales fijos."]
[null,"Llamada Local",0.01,"Por minuto "]
[null,"Llamada de Larga Distancia Nacional",0.02,"Por minuto "]
[null,"Llamada a Redes Móviles Celular:"]
[null,"Llamadas a CLARO"," $   0.135 **","Por minuto "]
[null,"Llamadas a MOVISTAR"," $   0.135 **","Por minuto "]
[null,"Llamadas a CNT EP. (ex-ALEGRO)"," $   0.135 **","Por minuto "]
[null,"Llamada de Larga Distancia Internacional"]
[null,"Paises de Destino ***"]
[null,"USA y Canadá (fijo o móvil)",0.09,"Por minuto"]
[null,"España e Italia (fijo)",0.09,"Por minuto"]
[null,"España e Italia (móvil)",0.3,"Por minuto"]
[null,"Argentina (fijo)",0.13,"Por minuto"]
[null,"Argentina (móvil)",0.2,"Por minuto"]
[null,"Chile",0.22,"Por minuto"]
[null,"Bolivia",0.22,"Por minuto"]
[null,"Colombia",0.19,"Por minuto"]
[null,"Venezuela",0.22,"Por minuto"]
[null,"Perú",0.19,"Por minuto"]
[null,"México",0.19,"Por minuto"]
[null,"China",0.25,"Por minuto"]
[null,"Costa Rica",0.19,"Por minuto"]
[null,"Cuba",1,"Por minuto"]
[null,"Japón",0.3,"Por minuto"]
[null,"Corea del Norte",0.6,"Por minuto"]
[null,"Antártida",6.8,"Por minuto"]
[null,"Serbia Fijo",0.5,"Por minuto"]
[null,"Serbia Móvil",0.5,"Por minuto"]
[null,"Resto de América*****",0.22,"Por minuto"]
[null,"Países de Europa",0.35,"Por minuto"]
[null,"Móvil Marítimo",6.8,"Por minuto"]
[null,"Resto de Mundo ******",0.39,"Por minuto"]
[]
[null,"Nota:"]
[null,"(*) Se aplica descuento del 100%.  Promoción válida hasta el 29 de febrero de 2012"]
[null,"(**) El precio de la llamada incluye el cargo por interconexión."]
[null,"(****) La tarifa final depende de las condiciones de terminación que se mantengan con las "]
[null,"        otras redes a nivel mundial."]
[null,"(*****) Se excluye Granada, Guyana Francesa, Guyana República, Haití, Honduras y Surinam para los cuales la tarifa es de US$0,300 por minuto para cada uno de los destinos."]
[null,"(******) Se excluye Diego García, Islas Ascensión, Islas Malvinas, Islas Norfolk, Groelandia móvil, Guinea Bissau, Kiribati, Nauru, Santo Tomé, Salomón Islas, Tokelau, Tavalu, República de Vanuatu, Wallisand Futura, destinos para los cuales la tarifa es de U$ 0.85 por minuto  para cada uno de los destinos."]
[]
[null,"Condiciones Comerciales:"]
[null,"Aplicable para abonados que soliciten servicio telefónico para uso residencial"]
[null,"La pretación de este servicio está sujeta al pago de IVA, de conformidad a la Ley."]
[null,"Los minutos locales incluidos en la pensión Básica que terminan en la red de Ecuadortelecom S.A. y  otro operador local fijo son para consumo mensual, y no serán acumulables de un mes a otro."]
[null,"La prestación de este servicio esta sujeto a facilidades técnicas y de cobertura."]
[null,"Vigencia: desde el  30 de noviembre de 2011.\nTarifa a Serbia (fijo-Móvil) vigente desde el 10 de agosto de 2012.\nTarifa a  Islas Ascensión (fijo-Móvil) vigente desde el 1 de septiembre de 2012"]
[]
[]
[null,"PLAN  VOZ 1750"]
[null,"El \"Plan  Voz 1750\", es un plan tarifario creado para el abonado residencial, que le permite realizar comunicaciones telefónicas locales, nacionales, internacionales  y a celulares, e incluye  1750 minutos para llamadas locales."]
[null,"Detalle","Plan  Voz 1750","Observaciones"]
[null,"Derecho de Inscripción *"," $ 49,90","Por una sola vez"]
[null,"Pensión Básica Mensual",9.49,"Mensual "]
[null,"Minutos incluidos",1750,"1500 minutos para llamadas locales que terminen en la red Ecuadortelecom S.A. y 250 minutos en otros operadores locales fijos."]
[null,"Llamada Local",0.01,"Por minuto "]
[null,"Llamada de Larga Distancia Nacional",0.02,"Por minuto "]
[null,"Llamada a Redes Móviles Celular:"]
[null,"Llamadas a CLARO"," $   0.135 **","Por minuto "]
[null,"Llamadas a MOVISTAR"," $   0.135 **","Por minuto "]
[null,"Llamadas a CNT EP. (ex-ALEGRO)"," $   0.135 **","Por minuto "]
[null,"Llamada de Larga Distancia Internacional"]
[null,"Paises de Destino ***"]
[null,"USA y Canadá (fijo o móvil)",0.09,"Por minuto"]
[null,"España e Italia (fijo)",0.09,"Por minuto"]
[null,"España e Italia (móvil)",0.3,"Por minuto"]
[null,"Argentina (fijo)",0.13,"Por minuto"]
[null,"Argentina (móvil)",0.2,"Por minuto"]
[null,"Chile",0.22,"Por minuto"]
[null,"Bolivia",0.22,"Por minuto"]
[null,"Colombia",0.19,"Por minuto"]
[null,"Venezuela",0.22,"Por minuto"]
[null,"Perú",0.19,"Por minuto"]
[null,"México",0.19,"Por minuto"]
[null,"China",0.25,"Por minuto"]
[null,"Costa Rica",0.19,"Por minuto"]
[null,"Cuba",1,"Por minuto"]
[null,"Japón",0.3,"Por minuto"]
[null,"Corea del Norte",0.6,"Por minuto"]
[null,"Antártida",6.8,"Por minuto"]
[null,"Serbia Fijo",0.5,"Por minuto"]
[null,"Serbia Móvil",0.5,"Por minuto"]
[null,"Resto de América****",0.22,"Por minuto"]
[null,"Países de Europa",0.35,"Por minuto"]
[null,"Móvil Marítimo",6.8,"Por minuto"]
[null,"Resto de Mundo *****",0.39,"Por minuto"]
[]
[null,"Nota:"]
[null,"(*) Se aplica descuento del 100%. Promoción válida hasta el 29 de febrero de 2012."]
[null,"(**) El precio de la llamada incluye el cargo por interconexión."]
[null,"(***) La tarifa final depende de las condiciones de terminación que se mantengan con las "]
[null,"        otras redes a nivel mundial."]
[null,"(*****) Se excluye Granada, Guyana Francesa, Guyana República, Haití, Honduras y Surinam para los cuales la tarifa es de US$0,300 por minuto para cada uno de los destinos."]
[null,"(******) Se excluye Diego García, Islas Ascensión, Islas Malvinas, Islas Norfolk, Groelandia móvil, Guinea Bissau, Kiribati, Nauru, Santo Tomé, Salomón Islas, Tokelau, Tavalu, República de Vanuatu, Wallisand Futura, destinos para los cuales la tarifa es de U$ 0.85 por minuto  para cada uno de los destinos."]
[]
[null,"Condiciones Comerciales:"]
[null,"Aplicable para abonados que soliciten servicio telefónico para uso residencial"]
[null,"La prestación de este servicio está sujeta al pago de IVA, de conformidad a la Ley."]
[null,"Los minutos locales incluidos en la pensión Básica que terminan en la red de Ecuadortelecom S.A. y  otro operador local fijo son para consumo mensual, y no serán acumulables de un mes a otro."]
[null,"La prestación de este servicio esta sujeto a facilidades técnicas y de cobertura"]
[null,"Vigencia: desde el  30 de noviembre de 2011.\nTarifa a Serbia (fijo-Móvil) vigente desde el 10 de agosto de 2012.\nTarifa a  Islas Ascensión (fijo-Móvil) vigente desde el 1 de septiembre de 2012"]
[]
[]
[null,"PLAN VOZ 2200"]
[null,"El \"Plan Voz 2200\", es un plan tarifario creado para el abonado residencial, que le permite realizar comunicaciones telefónicas locales, nacionales, internacionales  y a celulares, e incluye 2200 minutos para llamadas locales"]
[null,"Detalle","Plan  Voz 2200","Observaciones"]
[null,"Derecho de Inscripción *"," $ 49,90","Por una sola vez"]
[null,"Pensión Básica Mensual",11,"Mensual "]
[null,"Minutos incluidos",2200,"1750 minutos locales que terminen en la red de Ecuadortelecom y 450 minutos en otros operadores locales fijos."]
[null,"Llamada Local",0.01,"Por minuto "]
[null,"Llamada de Larga Distancia Nacional",0.02,"Por minuto "]
[null,"Llamada a Redes Móviles Celular:"]
[null,"Llamadas a CLARO"," $   0.135 **","Por minuto "]
[null,"Llamadas a MOVISTAR"," $   0.135 **","Por minuto "]
[null,"Llamadas a CNT EP. (ex-ALEGRO)"," $   0.135 **","Por minuto "]
[null,"Llamada de Larga Distancia Internacional"]
[null,"Paises de Destino ****"]
[null,"USA y Canadá (fijo o móvil)",0.09,"Por minuto"]
[null,"España e Italia (fijo)",0.09,"Por minuto"]
[null,"España e Italia (móvil)",0.3,"Por minuto"]
[null,"Argentina (fijo)",0.13,"Por minuto"]
[null,"Argentina (móvil)",0.2,"Por minuto"]
[null,"Chile",0.22,"Por minuto"]
[null,"Bolivia",0.22,"Por minuto"]
[null,"Colombia",0.19,"Por minuto"]
[null,"Venezuela",0.22,"Por minuto"]
[null,"Perú",0.19,"Por minuto"]
[null,"México",0.19,"Por minuto"]
[null,"China",0.25,"Por minuto"]
[null,"Costa Rica",0.19,"Por minuto"]
[null,"Cuba",1,"Por minuto"]
[null,"Japón",0.3,"Por minuto"]
[null,"Corea del Norte",0.6,"Por minuto"]
[null,"Antártida",6.8,"Por minuto"]
[null,"Serbia Fijo",0.5,"Por minuto"]
[null,"Serbia Móvil",0.5,"Por minuto"]
[null,"Resto de América*****",0.22,"Por minuto"]
[null,"Países de Europa",0.35,"Por minuto"]
[null,"Móvil Marítimo",6.8,"Por minuto"]
[null,"Resto de Mundo ******",0.39,"Por minuto"]
[]
[null,"Nota:"]
[null,"(*) Se aplica descuento del 100%. Promoción válida hasta el 29 de febrero de 2012."]
[null,"(**) El precio de la llamada incluye el cargo por interconexión."]
[null,"(****) La tarifa final depende de las condiciones de terminación que se mantengan con las "]
[null,"        otras redes a nivel mundial."]
[null,"(*****) Se excluye Granada, Guyana Francesa, Guyana República, Haití, Honduras y Surinam para los cuales la tarifa es de US$0,300 por minuto para cada uno de los destinos."]
[null,"(******) Se excluye Diego García, Islas Ascensión, Islas Malvinas, Islas Norfolk, Groelandia móvil, Guinea Bissau, Kiribati, Nauru, Santo Tomé, Salomón Islas, Tokelau, Tavalu, República de Vanuatu, Wallisand Futura, destinos para los cuales la tarifa es de U$ 0.85 por minuto  para cada uno de los destinos."]
[]
[null,"Condiciones Comerciales:"]
[null,"Aplicable para abonados que soliciten servicio telefónico para uso residencial"]
[null,"La prestación de este servicio está sujeta al pago de IVA, de conformidad a la Ley."]
[null,"Los minutos locales incluidos en la pensión Básica que terminan en la red de Ecuadortelecom S.A. y  otro operador local fijo son para consumo mensual, y no serán acumulables de un mes a otro."]
[null,"La prestación de este servicio esta sujeto a facilidades técnicas y de cobertura."]
[null,"Vigencia: desde el  30 de noviembre de 2011.\nTarifa a Serbia (fijo-Móvil) vigente desde el 10 de agosto de 2012.\nTarifa a  Islas Ascensión (fijo-Móvil) vigente desde el 1 de septiembre de 2012"]
[]
[]
[null,"Plan Residencial 2PLAY"]
[null,"El \"Plan Residencial 2PLAY\", ha sido creado para el abonado residencial, que junto con el servicio de telefonía, contrate el servicio de Acceso a Internet de Banda Ancha (1)"]
[null,"Detalle","Plan  Residencial 2PLAY","Observaciones"]
[null,"Derecho de Inscripción *",88,"Por una sola vez"]
[null,"Pensión Básica Mensual**",3,"Mensual "]
[null,"Llamada Local",0.01,"Por minuto "]
[null,"Llamada de Larga Distancia Nacional",0.02,"Por minuto "]
[null,"Llamada a Redes Móviles Celular:"]
[null,"Llamadas a CLARO"," $   0.135 ***","Por minuto "]
[null,"Llamadas a MOVISTAR"," $   0.135 ***","Por minuto "]
[null,"Llamadas a CNT EP. (ex-ALEGRO)"," $   0.135 ***","Por minuto "]
[null,"Llamada de Larga Distancia Internacional"]
[null,"Paises de Destino ****"]
[null,"USA y Canadá (fijo o móvil)",0.09,"Por minuto"]
[null,"España e Italia (fijo)",0.09,"Por minuto"]
[null,"España e Italia (móvil)",0.3,"Por minuto"]
[null,"Argentina (fijo)",0.13,"Por minuto"]
[null,"Argentina (móvil)",0.2,"Por minuto"]
[null,"Chile",0.22,"Por minuto"]
[null,"Bolivia",0.22,"Por minuto"]
[null,"Colombia",0.19,"Por minuto"]
[null,"Venezuela",0.22,"Por minuto"]
[null,"Perú",0.19,"Por minuto"]
[null,"México",0.19,"Por minuto"]
[null,"China",0.25,"Por minuto"]
[null,"Costa Rica",0.19,"Por minuto"]
[null,"Cuba",1,"Por minuto"]
[null,"Japón",0.3,"Por minuto"]
[null,"Corea del Norte",0.6,"Por minuto"]
[null,"Antártida",6.8,"Por minuto"]
[null,"Serbia Fijo",0.5,"Por minuto"]
[null,"Serbia Móvil",0.5,"Por minuto"]
[null,"Resto de América*****",0.22,"Por minuto"]
[null,"Países de Europa",0.35,"Por minuto"]
[null,"Móvil Marítimo",6.8,"Por minuto"]
[null,"Resto de Mundo ******",0.39,"Por minuto"]
[]
[null,"Nota:"]
[null,"(*) Se aplica descuento del 100%. Promoción válida hasta el 29 de febrero de 2012."]
[null,"(**) No incluye minutos libres.  El valor de la pensión básica no incluye la mensualidad del serfvicio de Acceso a Internet de Banda Ancha."]
[null,"(***) El precio de la llamada incluye el cargo por interconexión."]
[null,"(1) Ver Anexo I.  Se anexa los planes del servicio de Acceso a Internet de Banda Ancha."]
[null,"(****) La tarifa final depende de las condiciones de terminación que se mantengan con las  otras redes a nivel mundial."]
[null,"(*****) Se excluye Granada, Guyana Francesa, Guyana República, Haití, Honduras y Surinam para los cuales la tarifa es de US$0,300 por minuto para cada uno de los destinos."]
[null,"(******) Se excluye Diego García, Islas Ascensión, Islas Malvinas, Islas Norfolk, Groelandia móvil, Guinea Bissau, Kiribati, Nauru, Santo Tomé, Salomón Islas, Tokelau, Tavalu, República de Vanuatu, Wallisand Futura, destinos para los cuales la tarifa es de U$ 0.85 por minuto  para cada uno de los destinos."]
[]
[null,"Condiciones Comerciales:"]
[null,"Aplicable para abonados que soliciten servicio telefónico para uso residencial"]
[null,"La prestación de este servicio está sujeta al pago de IVA, de conformidad a la Ley."]
[null,"La prestación de este servicio esta sujeto a facilidades técnicas y de cobertura."]
[null,"Vigencia: desde el  30 de noviembre de 2011.\nTarifa a Serbia (fijo-Móvil) vigente desde el 10 de agosto de 2012.\nTarifa a  Islas Ascensión (fijo-Móvil) vigente desde el 1 de septiembre de 2012"]
[]
[]
[null,"PLAN COMERCIAL BASICO "]
[null,"El \"Plan Comercial Básico\" es un plan creado para el abonado comercial que le permite realizar comunicaciones telefónicas locales, nacionales, internacionales y a celulares."]
[null,"Detalle","Plan Comercial Básico","Observaciones"]
[null,"Derecho de Inscripción*","$ 49,90","Por una sola vez"]
[null,"Pensión Básica Mensual",12,"Mensual **"]
[null,"Llamada Local",2.196E-2,"Por minuto "]
[null,"Llamada de Larga Distancia Nacional",5.6000000000000001E-2,"Por minuto"]
[null,"Llamada a Redes Celular:"]
[null,"Llamadas a CLARO"," $   0.135 ***","Por minuto "]
[null,"Llamadas a MOVISTAR"," $   0.135 ***","Por minuto "]
[null,"Llamadas a CNT EP. (ex-ALEGRO)"," $   0.135 ***","Por minuto "]
[null,"Llamada de Larga Distancia Internacional"]
[null,"Paises de Destino ****"]
[null,"USA y Canadá (fijo o móvil)",0.09,"Por minuto"]
[null,"España e Italia (fijo)",0.09,"Por minuto"]
[null,"España e Italia (móvil)",0.3,"Por minuto"]
[null,"Argentina (fijo)",0.13,"Por minuto"]
[null,"Argentina (móvil)",0.2,"Por minuto"]
[null,"Chile",0.22,"Por minuto"]
[null,"Bolivia",0.22,"Por minuto"]
[null,"Colombia ",0.19,"Por minuto"]
[null,"Venezuela",0.22,"Por minuto"]
[null,"Perú",0.19,"Por minuto"]
[null,"México",0.19,"Por minuto"]
[null,"China",0.25,"Por minuto"]
[null,"Costa Rica",0.19,"Por minuto"]
[null,"Cuba",1,"Por minuto"]
[null,"Japón",0.3,"Por minuto"]
[null,"Corea del Norte",0.6,"Por minuto"]
[null,"Antártida",6.8,"Por minuto"]
[null,"Serbia Fijo",0.5,"Por minuto"]
[null,"Serbia Móvil",0.5,"Por minuto"]
[null,"Resto de América*****",0.22,"Por minuto"]
[null,"Países de Europa",0.35,"Por minuto"]
[null,"Móvil Marítimo",6.8,"Por minuto"]
[null,"Resto de Mundo******",0.39,"Por minuto"]
[]
[null,"Nota:"]
[null,"(*) Se aplica descuento del 80% con forma de pago Débito Bancario ó Tarjeta de Crédito.  Promoción válida hasta el 29 de febrero de 2012."]
[null,"(**) No incluye minutos libres"]
[null,"(***) El precio de la llamada incluye el cargo por interconexión."]
[null,"(****) La tarifa final depende de las condiciones de terminación que se mantengan con las "]
[null,"        otras redes a nivel mundial."]
[null,"(*****) Se excluye Granada, Guyana Francesa, Guyana República, Haití, Honduras y Surinam para los cuales la tarifa es de US$0,300 por minuto para cada uno de los destinos."]
[null,"(******) Se excluye Diego García, Islas Ascensión, Islas Malvinas, Islas Norfolk, Groelandia móvil, Guinea Bissau, Kiribati, Nauru, Santo Tomé, Salomón Islas, Tokelau, Tavalu, República de Vanuatu, Wallisand Futura, destinos para los cuales la tarifa es de U$ 0.85 por minuto  para cada uno de los destinos."]
[]
[null,"Condiciones Comerciales:"]
[null,"Aplicable para abonados que soliciten servicio telefónico para uso comercial"]
[null,"La prestación de este servicio está sujeta al pago de IVA, de conformidad a la Ley."]
[null,"La oferta especial para las llamadas de Larga Distancia Nacional es creada para el abonado comercial, y le permite realizar llamadas de Larga Distancia Nacional desde y hacia localidades previamente definidas en esta oferta."]
[null,"Detalle","Oferta especial para llamadas de Larga Distancia Nacional","Observaciones"]
[null,"Llamadas de Larga Distancia Nacional",0.04,"Por minuto"]
[]
[null,"Se aplica esta tarifa, como oferta especial para las llamadas de Larga Distancia Nacional que se originen y terminen dentro de las circunscripciones geográficas que a continuación se detallan:"]
[null,"Región Sur:"]
[null,"Galápagos"]
[null,"Los Rios"]
[null,"Manabí"]
[null,"Azuay (excepto Cuenca)"]
[null,"Cañar"]
[null,"El Oro"]
[null,"Loja"]
[null,"Morona Santiago"]
[null,"Zamora"]
[null,"Guayas*******: El Triunfo, Yaguachi, Balzar, Montañita, Posorja, Daule, Pedro Carbo, Isidro Ayora, Nobol, Santa Lucía, Milago, Naranjito, Bucay, Marcelino Maridueña, Balao, Jujan, Naranjal, General Villamil, Simón Bolívar, Salinas, La Libertad, Palestina, Salitre, Lomas de Sargentillo, Manglaralto, Santa Elena, Ancón, San Pablo, Ayangue, Punta Blanca, Punta Carnero, Ballenita, Colimes, El Emplame."]
[null,"Nota (******): Para destinos no especificados en la Provincia del Guayas se consideran como llamadas locales"]
[null,"Región Norte:"]
[null,"Bolivar"]
[null,"Chimborazo"]
[null,"Cotopaxi"]
[null,"Pastaza"]
[null,"Tunguragua"]
[null,"Carchi"]
[null,"Esmeraldas"]
[null,"Imbabura"]
[null,"Napo"]
[null,"Orellana"]
[null,"Sucumbios"]
[null,"Pichincha ********: Cayambe, Pedro Moncayo, Santo Domingo, Aloag, Mejia, Pedro Vicente Maldonado, La Bonita, Tiputini, San Miguel de los Bancos, Yaruqui, Chavezpamba, Selva Alegre, Nayón, Zambiza, Tanda, Miravalle."]
[null,"Nota (********): Para destinos no especificados en la Provincia de Pichincha se consideran como llamadas locales"]
[null,"La prestación de este servicio esta sujeto a facilidades técnicas y de cobertura."]
[null,"Condiciones para llamada de larga Distancia Nacional"]
[null,"Para las llamadas fuera de las Regiones enunciadas anteriormente se aplicará la tarifa de \"Llamada de Larga Distancia Nacional\"."]
[null,"Vigencia: desde el  30 de noviembre de 2011.\nTarifa a Serbia (fijo-Móvil) vigente desde el 10 de agosto de 2012.\nTarifa a  Islas Ascensión (fijo-Móvil) vigente desde el 1 de septiembre de 2012"]
[]
[]
[null,"PLAN COMERCIAL 200"]
[null,"El \"Plan Comercial 200\" es un plan creado para el abonado comercial que le permite realizar comunicaciones telefónicas locales, nacionales, internacionales y a celulares."]
[null,"Detalle","Plan Comercial 200","Observaciones"]
[null,"Derecho de Inscripción*","$ 49,90","Por una sola vez"]
[null,"Pensión Básica Mensual",13,"Mensual"]
[null,"Minutos Incluidos","200","Minutos locales que terminen en la res de Ecuadortelecom S.A. u otros operadores locales fijos."]
[null,"Llamada Local",0.02,"Por minuto "]
[null,"Llamada de Larga Distancia Nacional",5.6000000000000001E-2,"Por minuto"]
[null,"Llamada a Redes Celular:"]
[null,"Llamadas a CLARO"," $   0.135 *","Por minuto "]
[null,"Llamadas a MOVISTAR"," $   0.135 *","Por minuto "]
[null,"Llamadas a CNT EP. (ex-ALEGRO)"," $   0.135 *","Por minuto "]
[null,"Llamada de Larga Distancia Internacional"]
[null,"Paises de Destino **"]
[null,"USA y Canadá (fijo o móvil)",0.09,"Por minuto"]
[null,"España e Italia (fijo)",0.09,"Por minuto"]
[null,"España e Italia (móvil)",0.3,"Por minuto"]
[null,"Argentina (fijo)",0.13,"Por minuto"]
[null,"Argentina (móvil)",0.2,"Por minuto"]
[null,"Chile",0.22,"Por minuto"]
[null,"Bolivia",0.22,"Por minuto"]
[null,"Colombia ",0.19,"Por minuto"]
[null,"Venezuela",0.22,"Por minuto"]
[null,"Perú",0.19,"Por minuto"]
[null,"México",0.19,"Por minuto"]
[null,"China",0.25,"Por minuto"]
[null,"Costa Rica",0.19,"Por minuto"]
[null,"Cuba",1,"Por minuto"]
[null,"Japón",0.3,"Por minuto"]
[null,"Corea del Norte",0.6,"Por minuto"]
[null,"Antártida",6.8,"Por minuto"]
[null,"Serbia Fijo",0.5,"Por minuto"]
[null,"Serbia Móvil",0.5,"Por minuto"]
[null,"Resto de América***",0.22,"Por minuto"]
[null,"Países de Europa",0.35,"Por minuto"]
[null,"Móvil Marítimo",6.8,"Por minuto"]
[null,"Resto de Mundo****",0.39,"Por minuto"]
[]
[null,"Nota:"]
[null,"(*) El precio de la llamada incluye el cargo por interconexión."]
[null,"(**) La tarifa final depende de las condiciones de terminación que se mantengan con las "]
[null,"        otras redes a nivel mundial."]
[null,"(***) Se excluye Granada, Guyana Francesa, Guyana República, Haití, Honduras y Surinam para los cuales la tarifa es de US$0,300 por minuto para cada uno de los destinos."]
[null,"(******) Se excluye Diego García, Islas Ascensión, Islas Malvinas, Islas Norfolk, Groelandia móvil, Guinea Bissau, Kiribati, Nauru, Santo Tomé, Salomón Islas, Tokelau, Tavalu, República de Vanuatu, Wallisand Futura, destinos para los cuales la tarifa es de U$ 0.85 por minuto  para cada uno de los destinos."]
[]
[null,"Condiciones Comerciales:"]
[null,"Aplicable para abonados que soliciten servicio telefónico para uso comercial"]
[null,"La prestación de este servicio está sujeta al pago de IVA, de conformidad a la Ley."]
[null,"Los minutos locales incluidos en la Pensión Básica que terminan en la red de Ecuadortelecom S.A. u otro operador local fijo son para consumo mensual, y no serán acumulables de un mes a otro"]
[null,"La oferta especial para las llamadas de Larga Distancia Nacional es creada para el abonado comercial, y le permite realizar llamadas de Larga Distancia Nacional desde y hacia localidades previamente definidas en esta oferta."]
[null,"Detalle","Oferta especial para llamadas de Larga Distancia Nacional","Observaciones"]
[null,"Llamadas de Larga Distancia Nacional",3.9E-2,"Por minuto"]
[]
[null,"Se aplica esta tarifa, como oferta especial para las llamadas de Larga Distancia Nacional que se originen y terminen dentro de las circunscripciones geográficas que a continuación se detallan:"]
[null,"Región Sur:"]
[null,"Galápagos"]
[null,"Los Rios"]
[null,"Manabí"]
[null,"Azuay (excepto Cuenca)"]
[null,"Cañar"]
[null,"El Oro"]
[null,"Loja"]
[null,"Morona Santiago"]
[null,"Zamora"]
[null,"Guayas******: El Triunfo, Yaguachi, Balzar, Montañita, Posorja, Daule, Pedro Carbo, Isidro Ayora, Nobol, Santa Lucía, Milago, Naranjito, Bucay, Marcelino Maridueña, Balao, Jujan, Naranjal, General Villamil, Simón Bolívar, Salinas, La Libertad, Palestina, Salitre, Lomas de Sargentillo, Manglaralto, Santa Elena, Ancón, San Pablo, Ayangue, Punta Blanca, Punta Carnero, Ballenita, Colimes, El Emplame."]
[null,"Nota (******): Para destinos no especificados en la Provincia del Guayas se consideran como llamadas locales"]
[null,"Región Norte:"]
[null,"Bolivar"]
[null,"Chimborazo"]
[null,"Cotopaxi"]
[null,"Pastaza"]
[null,"Tunguragua"]
[null,"Carchi"]
[null,"Esmeraldas"]
[null,"Imbabura"]
[null,"Napo"]
[null,"Orellana"]
[null,"Sucumbios"]
[null,"Pichincha *******: Cayambe, Pedro Moncayo, Santo Domingo, Aloag, Mejia, Pedro Vicente Maldonado, La Bonita, Tiputini, San Miguel de los Bancos, Yaruqui, Chavezpamba, Selva Alegre, Nayón, Zambiza, Tanda, Miravalle."]
[null,"Nota (*******): Para destinos no especificados en la Provincia de Pichincha se consideran como llamadas locales"]
[null,"La prestación de este servicio esta sujeto a facilidades técnicas y de cobertura."]
[null,"Condiciones para llamada de larga Distancia Nacional"]
[null,"Para las llamadas fuera de las Regiones enunciadas anteriormente se aplicará la tarifa de \"Llamada de Larga Distancia Nacional\"."]
[null,"Vigencia: desde el  30 de noviembre de 2011.\nTarifa a Serbia (fijo-Móvil) vigente desde el 10 de agosto de 2012.\nTarifa a  Islas Ascensión (fijo-Móvil) vigente desde el 1 de septiembre de 2012"]
[]
[]
[null,"PLAN COMERCIAL 500"]
[null,"El \"Plan Comercial 500\" es un plan creado para el abonado comercial que le permite realizar comunicaciones locales, nacionales, internacionales y a celulares."]
[null,"Detalle","Plan Comercial 500","Observaciones"]
[null,"Derecho de Inscripción*","$ 49,90","Por una sola vez"]
[null,"Pensión Básica Mensual",15,"Mensual "]
[null,"Minutos incluídos",500,"500 minutos locales que termine en la red de Ecuadortelecom S.A. u otros operadores locales fijos"]
[null,"Llamada Local",0.02,"Por minuto "]
[null,"Llamada de Larga Distancia Nacional",5.6000000000000001E-2,"Por minuto **"]
[null,"Llamada a Redes Móviles Celular:"]
[null,"Llamadas a CLARO"," $   0.135 **","Por minuto "]
[null,"Llamadas a MOVISTAR"," $   0.135 **","Por minuto "]
[null,"Llamadas a CNT EP. (ex-ALEGRO)"," $   0.135 **","Por minuto "]
[null,"Llamada de Larga Distancia Internacional"]
[null,"Paises de Destino ***"]
[null,"USA y Canadá (fijo o móvil)",0.09,"Por minuto"]
[null,"España e Italia (fijo)",0.09,"Por minuto"]
[null,"España e Italia (móvil)",0.3,"Por minuto"]
[null,"Argentina (fijo)",0.13,"Por minuto"]
[null,"Argentina (móvil)",0.2,"Por minuto"]
[null,"Chile",0.22,"Por minuto"]
[null,"Bolivia",0.22,"Por minuto"]
[null,"Colombia",0.19,"Por minuto"]
[null,"Venezuela",0.22,"Por minuto"]
[null,"Perú",0.19,"Por minuto"]
[null,"México",0.19,"Por minuto"]
[null,"China",0.25,"Por minuto"]
[null,"Costa Rica",0.19,"Por minuto"]
[null,"Cuba",1,"Por minuto"]
[null,"Japón",0.3,"Por minuto"]
[null,"Corea del Norte",0.6,"Por minuto"]
[null,"Antártida",6.8,"Por minuto"]
[null,"Serbia Fijo",0.5,"Por minuto"]
[null,"Serbia Móvil",0.5,"Por minuto"]
[null,"Resto de América****",0.22,"Por minuto"]
[null,"Países de Europa",0.35,"Por minuto"]
[null,"Móvil Marítimo",6.8,"Por minuto"]
[null,"Resto de Mundo *****",0.39,"Por minuto"]
[]
[null,"Nota:"]
[null,"(*) Se aplica descuento del 80% con forma de pago Débito Bancario ó Tarjeta de Crédito.  Promoción válida hasta el 29 de febrero de 2012."]
[null,"(***) El precio de la llamada incluye el cargo por interconexión."]
[null,"(***) La tarifa final depende de las condiciones de terminación que se mantengan con las "]
[null,"        otras redes a nivel mundial."]
[null,"(*****) Se excluye Granada, Guyana Francesa, Guyana República, Haití, Honduras y Surinam para los cuales la tarifa es de US$0,300 por minuto para cada uno de los destinos."]
[null,"(******) Se excluye Diego García, Islas Ascensión, Islas Malvinas, Islas Norfolk, Groelandia móvil, Guinea Bissau, Kiribati, Nauru, Santo Tomé, Salomón Islas, Tokelau, Tavalu, República de Vanuatu, Wallisand Futura, destinos para los cuales la tarifa es de U$ 0.85 por minuto  para cada uno de los destinos."]
[]
[null,"Condiciones Comerciales:"]
[null,"Aplicable para abonados que soliciten servicio telefónico para uso comercial"]
[null,"La prestación de este servicio está sujeto al pago de IVA, de conformidad con la Ley."]
[null,"Los minutos locales incluidos que terminan en la red de Ecuadortelecom u otro operador local fijo incluidos en la Pensión Básica son para consumo mensual, y no serán acumulables de un mes a otro."]
[null,"La oferta especial para las llamadas de Larga Distancia Nacional es creada para el abonado comercial, y le permite realizar llamadas de Larga Distancia Nacional desde y hacia localidades previamente definidas en esta oferta."]
[null,"Detalle","Oferta especial para llamadas de Larga Distancia Nacional","Observaciones"]
[null,"Llamadas de Larga Distancia Nacional",3.9E-2,"Por minuto"]
[]
[null,"Se aplica esta tarifa como oferta especial para las llamadas de Larga Distancia Nacional para las llamadas que se originen y terminen dentro de las circunscripciones geográficas que a continuación se detallan:"]
[null,"Región Sur:"]
[null,"Galápagos"]
[null,"Los Rios"]
[null,"Manabí"]
[null,"Azuay (excepto Cuenca)"]
[null,"Cañar"]
[null,"El Oro"]
[null,"Loja"]
[null,"Morona Santiago"]
[null,"Zamora"]
[null,"Guayas******: El Triunfo, Yaguachi, Balzar, Montañita, Posorja, Daule, Pedro Carbo, Isidro Ayora, Nobol, Santa Lucía, Milago, Naranjito, Bucay, Marcelino Maridueña, Balao,Jujan, Naranjal, General Villamil, Simón Bolívar, Salinas, La Libertad, Palestina, Salitre, Lomas de Sargentillo, Manglaralto, Santa Elena, Ancón, San Pablo, Ayangue, Punta Blanca, Punta Carnero, Ballenita, Colimes, El Emplame."]
[null,"Nota (******): Para destinos no especificados en la Provincia del Guayas se consideran como llamadas locales"]
[null,"Región Norte:"]
[null,"Bolivar"]
[null,"Chimborazo"]
[null,"Cotopaxi"]
[null,"Pastaza"]
[null,"Tunguragua"]
[null,"Carchi"]
[null,"Esmeraldas"]
[null,"Imbabura"]
[null,"Napo"]
[null,"Orellana"]
[null,"Sucumbios"]
[null,"Pichincha *******: Cayambe, Pedro Moncayo, Santo Domingo, Aloag, Mejia, Pedro Vicente Maldonado, La Bonita, Tiputini, San Miguel de los Bancos, Yaruqui, Chavezpamba, Selva Alegre, Nayón, Zambiza, Tanda, Miravalle."]
[null,"Nota (*******): Para los destinos no especificados en la Provincia de Pichincha se consideran como llamadas locales."]
[null,"La prestación de este servicio esta sujeta  a facilidades técnicas y de cobertura"]
[null,"Condiciones para Lamadas de largas Distancia Nacional"]
[null,"Para las llamadas fuera de las Regiones enunciadas anteriormente se aplicará la tarifa de \"Llamada de Larga Distancia Nacional\"."]
[null,"Vigencia: desde el  30 de noviembre de 2011.\nTarifa a Serbia (fijo-Móvil) vigente desde el 10 de agosto de 2012.\nTarifa a  Islas Ascensión (fijo-Móvil) vigente desde el 1 de septiembre de 2012"]
[]
[]
[null,"PLAN COMERCIAL 2PLAY"]
[null,"El \"Plan Comercial 2Play, ha sido creado para el abonado comercial que junto con el servicio de telefonía, contrate el servicio de Acceso a Internet de Banda Ancha.(1)"]
[null,"Detalle","Plan Comercial 2PLAY","Observaciones"]
[null,"Derecho de Inscripción","$ 120.00 ","Por una sola vez"]
[null,"Pensión Básica Mensual*",12,"Mensual "]
[null,"Llamada Local",0.02,"Por minuto "]
[null,"Llamada de Larga Distancia Nacional",5.6000000000000001E-2,"Por minuto ***"]
[null,"Llamada a Redes Celulares:"]
[null,"Llamadas a CLARO"," $   0.135 **","Por minuto "]
[null,"Llamadas a MOVISTAR"," $   0.135 **","Por minuto "]
[null,"Llamadas a CNT EP. (ex-ALEGRO)"," $   0.135 **","Por minuto "]
[null,"Llamada de Larga Distancia Internacional"]
[null,"Paises de Destino ***"]
[null,"USA y Canadá (fijo o móvil)",0.09,"Por minuto"]
[null,"España e Italia (fijo)",0.09,"Por minuto"]
[null,"España e Italia (móvil)",0.3,"Por minuto"]
[null,"Argentina (fijo)",0.13,"Por minuto"]
[null,"Argentina (móvil)",0.2,"Por minuto"]
[null,"Chile",0.22,"Por minuto"]
[null,"Bolivia",0.22,"Por minuto"]
[null,"Colombia",0.19,"Por minuto"]
[null,"Venezuela",0.22,"Por minuto"]
[null,"Perú",0.19,"Por minuto"]
[null,"México",0.19,"Por minuto"]
[null,"China",0.25,"Por minuto"]
[null,"Costa Rica",0.19,"Por minuto"]
[null,"Cuba",1,"Por minuto"]
[null,"Japón",0.3,"Por minuto"]
[null,"Corea del Norte",0.6,"Por minuto"]
[null,"Antártida",6.8,"Por minuto"]
[null,"Serbia Fijo",0.5,"Por minuto"]
[null,"Serbia Móvil",0.5,"Por minuto"]
[null,"Resto de América****",0.22,"Por minuto"]
[null,"Países de Europa",0.35,"Por minuto"]
[null,"Móvil Marítimo",6.8,"Por minuto"]
[null,"Resto de Mundo ******",0.39,"Por minuto"]
[]
[null,"Nota:"]
[null,"(*) No incluye minutos libres. El valor de la Pensión Básica no incluye la mensualidad del servicio de Acceso a Internet de Banda Ancha."]
[null,"(**) El precio de la llamada incluye el cargo por interconexión. "]
[null,"(1) Ver Anexo I. Se anexa los planes del servicio de Internet de Banda Ancha."]
[null,"(***) La tarifa final depende de las condiciones comerciales para  la terminación que se mantengan con las otras redes a nivel mundial."]
[null,"(****) Se excluye Granada, Guyana Francesa, Guyana República, Haití, Honduras y Surinam para los cuales la tarifa es de US$0,300 por minuto para cada uno de los destinos."]
[null,"(******) Se excluye Diego García, Islas Ascensión, Islas Malvinas, Islas Norfolk, Groelandia móvil, Guinea Bissau, Kiribati, Nauru, Santo Tomé, Salomón Islas, Tokelau, Tavalu, República de Vanuatu, Wallisand Futura, destinos para los cuales la tarifa es de U$ 0.85 por minuto  para cada uno de los destinos."]
[]
[null,"Condiciones Comerciales:"]
[null,"Aplicable para abonados que soliciten servicio telefónico para uso comercial."]
[null,"La prestación de este servicio está sujeta al pago de IVA, de conformidad con la Ley."]
[null,"La Oferta Especial para las llamadas de Larga Distancia Nacional ha sido creada para el abonado comercial, y le permite realizar llamadas de Larga Distancia Nacional desde y hacia localidades previamente definidas en esta oferta"]
[]
[null,"DETALLE","Oferta Especial  para llamadas de larga Distancia Nacional","Observaciones"]
[null,"Lamada de Larga Distancia Nacional",0.04,"Por minuto"]
[]
[null,"Se aplica esta tarifa como Oferta especial para las llamadas de Larga Distancia Nacional que se originen y terminen dentro de las circunscripciones geográficas que a continuación se detallan:"]
[null,"Región Sur:"]
[null,"Galápagos"]
[null,"Los Rios"]
[null,"Manabí"]
[null,"Azuay (excepto Cuenca)"]
[null,"Cañar"]
[null,"El Oro"]
[null,"Loja"]
[null,"Morona Santiago"]
[null,"Zamora"]
[null,"Guayas*******: El Triunfo, Yaguachi, Balzar, Montañita, Posorja, Daule, Pedro Carbo, Isidro Ayora, Nobol, Santa Lucía, Milago, Naranjito, Bucay, Marcelino Maridueña, Balao,Jujan, Naranjal, General Villamil, Simón Bolívar, Salinas, La Libertad, Palestina, Salitre, Lomas de Sargentillo, Manglaralto, Santa Elena, Ancón, San Pablo, Ayangue, Punta Blanca, Punta Carnero, Ballenita, Colimes, El Emplame."]
[null,"Nota (*******): Para destinos no especificados en la Provincia del Guayas se consideran como llamadas locales"]
[null,"Región Norte:"]
[null,"Bolivar"]
[null,"Chimborazo"]
[null,"Cotopaxi"]
[null,"Pastaza"]
[null,"Tunguragua"]
[null,"Carchi"]
[null,"Esmeraldas"]
[null,"Imbabura"]
[null,"Napo"]
[null,"Orellana"]
[null,"Sucumbios"]
[null,"Pichincha ********: Cayambe, Pedro Moncayo, Santo Domingo, Aloag, Mejia, Pedro Vicente Maldonado, La Bonita, Tiputini, San Miguel de los Bancos, Yaruqui, Chavezpamba, Selva Alegre, Nayón, Zambiza, Tanda, Miravalle."]
[null,"Nota (********): Para los destinos no especificados en la Provincia de Pichincha se consideran como llamadas locales"]
[null,"La prestación de este servicio está sujeto a facilidades técnicas y de cobertura"]
[null,"Condiciones para Llamada de Larga Distnacia Nacional"]
[null,"Para las llamadas fuera de las Regiones enunciadas anteriormente se aplicará la tarifa de \"Llamada de Larga Distancia Nacional\"."]
[null,"Vigencia: desde el  30 de noviembre de 2011.\nTarifa a Serbia (fijo-Móvil) vigente desde el 10 de agosto de 2012.\nTarifa a  Islas Ascensión (fijo-Móvil) vigente desde el 1 de septiembre de 2012"]
[]
[]
[null,"PLAN CALL CENTER ISDN PRI 30"]
[null,"El \"Plan Comercial Call Center ISDN PRI 30\" esta orientado al abonado comercial cuya cuya actividad económica es la gestión de un centro de contactos, para realizar y recibir llamadas mediante troncales de diferentes canales de voz y señalización, gestionadas por su central telefónica."]
[null,"Detalle","\"Plan Comercial Call Center ISDN PRI 30","Observaciones"]
[null,"Derecho de Inscripción",1800,"Por una sola vez"]
[null,"Pensión Básica Mensual",420,"Mensual *"]
[null,"(*) No incluye minutos libres"]
[null,"Tarifas por volúmenes de consumo de tráfico mensual, para llamadas locales, nacionales y hacia redes celulares"]
[]
[null,"Minutos para el grupo de líneas, de llamadas locales","Precios por minuto"]
[null,"De 0 a 10.000",0.02]
[null,"De 10.001 a 31.250",1.9800000000000002E-2]
[null,"De 31.251 a 35.000",1.9599999999999999E-2]
[null,"De 35.001 a 38.750",1.9400000000000001E-2]
[null,"De 38.751 a 42.500",1.9300000000000001E-2]
[null,"De 42.501 a 46.250",1.9199999999999998E-2]
[null,"De 46.251 en adelante",1.9E-2]
[]
[null,"Minutos para el grupo de líneas, de llamadas nacionales ***","Precios por minuto"]
[null,"De 0 a 10.000",5.6000000000000001E-2]
[null,"De 10.001 a 26.250",5.5899999999999998E-2]
[null,"De 26.251 a 29.400",5.4600000000000003E-2]
[null,"De 29.401 a 32.550",5.45E-2]
[null,"De 32.551 a 35.700",5.4399999999999997E-2]
[null,"De 35.701 a 38.850",5.3999999999999999E-2]
[null,"De 38.851 a 48.850",4.7E-2]
[null,"De 48.851 a 58.850",0.04]
[null,"De 58.851 a 68.850",3.2000000000000001E-2]
[null,"De 68.851 en adelante",2.52E-2]
[null,"(***) Ver condiciones para las llamadas de Larga Distancia Nacional"]
[]
[null,"Minutos para el grupo de canales, de llamadas a redes móviles****","Precios por minuto"]
[null,"De 0 a 4.000",0.13500000000000001]
[null,"De 4.001 a 14.500",0.1303]
[null,"De 14.501 a 17.500",0.127]
[null,"De 17.501 a 20.500",0.1232]
[null,"De 20.501 a 23.500",0.11890000000000001]
[null,"De 23.501 a 26.500",0.11409999999999999]
[null,"De 26.501 a 30,010",0.11083999999999999]
[null,"De 30.011 a 35.520",0.1008]
[null,"De 35.521 a 42.030",9.3799999999999994E-2]
[null,"De 42.031 en adelante",8.72E-2]
[null,"(****) El precio de la llamada incluye el cargo por interconexión hacia las redes de Conecel, Movistar o CNT E.P(ex Telecsa)"]
[]
[null,"Llamada de Larga Distancia Internacional"]
[]
[null,"Paises de Destino ****","Precio por minuto"]
[null,"USA y Canadá (fijo o móvil)",0.09]
[null,"España e Italia (fijo)",0.09]
[null,"España (móvil)",0.21]
[null,"Italia (móvil)",0.23]
[null,"Chile (Fijo y Móvil)",0.22]
[null,"Bolivia (Fijo y Móvil)",0.22]
[null,"Colombia y Perú  (Fijo)",0.13]
[null,"Venezuela (Fijo y Móvil)",0.22]
[null,"Colombia y Perú  (Móvil)",0.19]
[null,"Argentina (fijo)",0.13]
[null,"Argentina (móvil)",0.2]
[null,"México (Fijo y Móvil)",0.13]
[null,"China (Fijo y Móvil)",0.25]
[null,"Costa Rica (Fijo y Móvil)",0.19]
[null,"Cuba (Fijo y Móvil)",1]
[null,"Japón (Fijo y Móvil)",0.3]
[null,"Corea del Norte",0.6]
[null,"Serbia ",0.5]
[null,"Antártida",6.8]
[null,"Resto de América",0.22]
[null,"Países de Europa",0.35]
[null,"Móvil Marítimo",6.8]
[null,"Resto de Mundo ******",0.39]
[]
[null,"Nota:"]
[null,"(****) La tarifa final depende de las condiciones de terminación que se mantengan con las "]
[null,"        otras redes a nivel mundial."]
[null,"(****) Se excluye Granada, Guyana Francesa, Guyana República, Haití, Honduras y Surinam para los cuales la tarifa es de US$0,300 por minuto para cada uno de los destinos."]
[null,"(******) Se excluye Diego García, Islas Ascensión, Islas Malvinas, Islas Norfolk, Groelandia móvil, Guinea Bissau, Kiribati, Nauru, Santo Tomé, Salomón Islas, Tokelau, Tavalu, República de Vanuatu, Wallisand Futura, destinos para los cuales la tarifa es de U$ 0.85 por minuto  para cada uno de los destinos."]
[]
[null,"Condiciones Comerciales:"]
[null,"Aplicable para áreas de cobertura y para abonados que tengan contratado el \"Plan Comercial Call Center ISDN PRI 30\" "]
[null,"La prestación de este servicio está sujeta al pago de IVA, de conformidad con la Ley."]
[null,"Las tarifas se calculan con base al consumo promedio anualizada del abonado."]
[null,"La oferta especial para las llamadas de Larga Distancia Nacional es creada para el abonado comercial, y le permite realizar llamadas de Larga Distancia Nacional desde y hacia localidades previamente definidas en esta oferta."]
[null,"Minutos para el grupo de líneas, de llamadas nacionales (oferta Especial)","Precios por minuto"]
[null,"De 0 a 2.000",0.04]
[null,"De 2.001 a 6.000",3.9800000000000002E-2]
[null,"De 6.001 a 7.200",3.9600000000000003E-2]
[null,"De 7.201 a 8.400",3.9399999999999998E-2]
[null,"De 8.401 a 9.600",3.9199999999999999E-2]
[null,"De 9.601 a 10.800",3.9E-2]
[null,"De 10.800 a 20.800",3.8800000000000001E-2]
[null,"De 20.801 a 30.800",3.49E-2]
[null,"De 30.801 a 40.800",2.9700000000000001E-2]
[null,"De 40.801 en adelante",2.52E-2]
[null,"Se aplica esta tarifa como Oferta especial para las llamadas de Larga Distancia Nacional que se originen y terminen dentro de las circunscripciones geográficas que a continuación se detallan:"]
[null,"Región Sur:"]
[null,"Galápagos"]
[null,"Los Rios"]
[null,"Manabí"]
[null,"Azuay (excepto Cuenca)"]
[null,"Cañar"]
[null,"El Oro"]
[null,"Loja"]
[null,"Morona Santiago"]
[null,"Zamora"]
[null,"Guayas*******: El Triunfo, Yaguachi, Balzar, Montañita, Posorja, Daule, Pedro Carbo, Isidro Ayora, Nobol, Santa Lucía, Milago, Naranjito, Bucay, Marcelino Maridueña, Balao, Jujan, Naranjal, General Villamil, Simón Bolívar, Salinas, La Libertad, Palestina, Salitre, Lomas de Sargentillo, Manglaralto, Santa Elena, Ancón, San Pablo, Ayangue, Punta Blanca, Punta Carnero, Ballenita, Colimes, El Emplame."]
[null,"Nota (*******): Para destinos no especificados en la Provincia del Guayas se consideran como llamadas locales"]
[null,"Región Norte:"]
[null,"Bolivar"]
[null,"Chimborazo"]
[null,"Cotopaxi"]
[null,"Pastaza"]
[null,"Tunguragua"]
[null,"Carchi"]
[null,"Esmeraldas"]
[null,"Imbabura"]
[null,"Napo"]
[null,"Orellana"]
[null,"Sucumbios"]
[null,"Pichincha ********: Cayambe, Pedro Moncayo, Santo Domingo, Aloag, Mejia, Pedro Vicente Maldonado, La Bonita, Tiputini, San Miguel de los Bancos, Yaruqui, Chavezpamba, Selva Alegre, Nayón, Zambiza, Tanda, Miravalle."]
[null,"Nota (********): Para los destinos no especificados en la Provincia de Pichincha se consideran como llamadas locales"]
[null,"Estas llamadas están sujetas al pago de IVA, de conformidad con la Ley."]
[null,"La prestación de este servicio está sujeto a facilidades técnicas y de cobertura"]
[null,"Condiciones para Llamada de Larga Distancia Nacional"]
[null,"Para las llamadas fuera de las Regiones enunciadas anteriormente se aplicará la tarifa de \"llamada de Larga Distancia Nacional\"."]
[null,"Vigencia: desde el  26 de septiembre de 2012."]
[]
[null,"PLAN CALL CENTER IP ISDN 60"]
[null,"El \"Plan Comercial Call Center IP ISDN 60\" esta orientado al abonado comercial cuya cuya actividad económica es la gestión de un centro de contactos, para realizar y recibir llamadas mediante troncales de diferentes canales de voz y señalización, gestionadas por su central telefónica."]
[null,"Detalle","\"Plan Comercial Call Center ISDN PRI 60","Observaciones"]
[null,"Derecho de Inscripción",3600,"Por una sola vez"]
[null,"Pensión Básica Mensual",840,"Mensual *"]
[null,"(*) No incluye minutos libres"]
[null,"Tarifas por volúmenes de consumo de tráfico mensual, para llamadas locales, nacionales y hacia redes celulares"]
[]
[null,"Minutos para el grupo de líneas, de llamadas locales","Precios por minuto"]
[null,"De 0 a 10.000",0.02]
[null,"De 10.001 a 31.250",1.9800000000000002E-2]
[null,"De 31.251 a 35.000",1.9599999999999999E-2]
[null,"De 35.001 a 38.750",1.9400000000000001E-2]
[null,"De 38.751 a 42.500",1.9300000000000001E-2]
[null,"De 42.501 a 46.250",1.9199999999999998E-2]
[null,"De 46.251 en adelante",1.9E-2]
[]
[null,"Minutos para el grupo de líneas, de llamadas nacionales ***","Precios por minuto"]
[null,"De 0 a 10.000",5.6000000000000001E-2]
[null,"De 10.001 a 26.250",5.5899999999999998E-2]
[null,"De 26.251 a 29.400",5.4600000000000003E-2]
[null,"De 29.401 a 32.550",5.45E-2]
[null,"De 32.551 a 35.700",5.4399999999999997E-2]
[null,"De 35.701 a 38.850",5.3999999999999999E-2]
[null,"De 38.851 a 48.850",4.7E-2]
[null,"De 48.851 a 58.850",0.04]
[null,"De 58.851 a 68.850",3.2000000000000001E-2]
[null,"De 68.851 en adelante",2.52E-2]
[null,"(***) Ver condiciones para las llamadas de Larga Distancia Nacional"]
[]
[null,"Minutos para el grupo de canales, de llamadas a redes móviles****","Precios por minuto"]
[null,"De 0 a 4.000",0.13500000000000001]
[null,"De 4.001 a 14.500",0.1303]
[null,"De 14.501 a 17.500",0.127]
[null,"De 17.501 a 20.500",0.1232]
[null,"De 20.501 a 23.500",0.11890000000000001]
[null,"De 23.501 a 26.500",0.11409999999999999]
[null,"De 26.501 a 30,010",0.11083999999999999]
[null,"De 30.011 a 35.520",0.1008]
[null,"De 35.521 a 42.030",9.3799999999999994E-2]
[null,"De 42.031 en adelante",8.72E-2]
[null,"(****) El precio de la llamada incluye el cargo por interconexión hacia las redes de Conecel, Movistar o CNT E.P(ex Telecsa)"]
[]
[null,"Llamada de Larga Distancia Internacional"]
[]
[null,"Paises de Destino ****","Precio por minuto"]
[null,"USA y Canadá (fijo o móvil)",0.09]
[null,"España e Italia (fijo)",0.09]
[null,"España (móvil)",0.21]
[null,"Italia (móvil)",0.23]
[null,"Chile (Fijo y Móvil)",0.22]
[null,"Bolivia (Fijo y Móvil)",0.22]
[null,"Colombia y Perú  (Fijo)",0.13]
[null,"Venezuela (Fijo y Móvil)",0.22]
[null,"Colombia y Perú  (Móvil)",0.19]
[null,"Argentina (fijo)",0.13]
[null,"Argentina (móvil)",0.2]
[null,"México (Fijo y Móvil)",0.13]
[null,"China (Fijo y Móvil)",0.25]
[null,"Costa Rica (Fijo y Móvil)",0.19]
[null,"Cuba (Fijo y Móvil)",1]
[null,"Japón (Fijo y Móvil)",0.3]
[null,"Corea del Norte",0.6]
[null,"Serbia ",0.5]
[null,"Antártida",6.8]
[null,"Resto de América",0.22]
[null,"Países de Europa",0.35]
[null,"Móvil Marítimo",6.8]
[null,"Resto de Mundo ******",0.39]
[]
[null,"Nota:"]
[null,"(****) La tarifa final depende de las condiciones de terminación que se mantengan con las "]
[null,"        otras redes a nivel mundial."]
[null,"(****) Se excluye Granada, Guyana Francesa, Guyana República, Haití, Honduras y Surinam para los cuales la tarifa es de US$0,300 por minuto para cada uno de los destinos."]
[null,"(******) Se excluye Diego García, Islas Ascensión, Islas Malvinas, Islas Norfolk, Groelandia móvil, Guinea Bissau, Kiribati, Nauru, Santo Tomé, Salomón Islas, Tokelau, Tavalu, República de Vanuatu, Wallisand Futura, destinos para los cuales la tarifa es de U$ 0.85 por minuto  para cada uno de los destinos."]
[]
[null,"Condiciones Comerciales:"]
[null,"Aplicable para áreas de cobertura y para abonados que tengan contratado el \"Plan Comercial Call Center IP ISDN 60\" "]
[null,"La prestación de este servicio está sujeta al pago de IVA, de conformidad con la Ley."]
[null,"Las tarifas se calculan con base al consumo promedio anualizada del abonado."]
[null,"La oferta especial para las llamadas de Larga Distancia Nacional es creada para el abonado comercial, y le permite realizar llamadas de Larga Distancia Nacional desde y hacia localidades previamente definidas en esta oferta."]
[null,"Minutos para el grupo de líneas, de llamadas nacionales (oferta Especial)","Precios por minuto"]
[null,"De 0 a 2.000",0.04]
[null,"De 2.001 a 6.000",3.9800000000000002E-2]
[null,"De 6.001 a 7.200",3.9600000000000003E-2]
[null,"De 7.201 a 8.400",3.9399999999999998E-2]
[null,"De 8.401 a 9.600",3.9199999999999999E-2]
[null,"De 9.601 a 10.800",3.9E-2]
[null,"De 10.800 a 20.800",3.8800000000000001E-2]
[null,"De 20.801 a 30.800",3.49E-2]
[null,"De 30.801 a 40.800",2.9700000000000001E-2]
[null,"De 40.801 en adelante",2.52E-2]
[null,"Se aplica esta tarifa como Oferta especial para las llamadas de Larga Distancia Nacional que se originen y terminen dentro de las circunscripciones geográficas que a continuación se detallan:"]
[null,"Región Sur:"]
[null,"Galápagos"]
[null,"Los Rios"]
[null,"Manabí"]
[null,"Azuay (excepto Cuenca)"]
[null,"Cañar"]
[null,"El Oro"]
[null,"Loja"]
[null,"Morona Santiago"]
[null,"Zamora"]
[null,"Guayas*******: El Triunfo, Yaguachi, Balzar, Montañita, Posorja, Daule, Pedro Carbo, Isidro Ayora, Nobol, Santa Lucía, Milago, Naranjito, Bucay, Marcelino Maridueña, Balao, Jujan, Naranjal, General Villamil, Simón Bolívar, Salinas, La Libertad, Palestina, Salitre, Lomas de Sargentillo, Manglaralto, Santa Elena, Ancón, San Pablo, Ayangue, Punta Blanca, Punta Carnero, Ballenita, Colimes, El Emplame."]
[null,"Nota (*******): Para destinos no especificados en la Provincia del Guayas se consideran como llamadas locales"]
[null,"Región Norte:"]
[null,"Bolivar"]
[null,"Chimborazo"]
[null,"Cotopaxi"]
[null,"Pastaza"]
[null,"Tunguragua"]
[null,"Carchi"]
[null,"Esmeraldas"]
[null,"Imbabura"]
[null,"Napo"]
[null,"Orellana"]
[null,"Sucumbios"]
[null,"Pichincha ********: Cayambe, Pedro Moncayo, Santo Domingo, Aloag, Mejia, Pedro Vicente Maldonado, La Bonita, Tiputini, San Miguel de los Bancos, Yaruqui, Chavezpamba, Selva Alegre, Nayón, Zambiza, Tanda, Miravalle."]
[null,"Nota (********): Para los destinos no especificados en la Provincia de Pichincha se consideran como llamadas locales"]
[null,"Estas llamadas están sujetas al pago de IVA, de conformidad con la Ley."]
[null,"La prestación de este servicio está sujeto a facilidades técnicas y de cobertura"]
[null,"Condiciones para Llamada de Larga Distancia Nacional"]
[null,"Para las llamadas fuera de las Regiones enunciadas anteriormente se aplicará la tarifa de \"llamada de Larga Distancia Nacional\"."]
[null,"Vigencia: desde el  26 de septiembre de 2012."]
[]
[]
[null,"PLAN CALL CENTER SIP 30"]
[null,"El \"Plan Comercial Call Center SIP 30 \" esta orientado al abonado comercial cuya cuya actividad económica es la gestión de un centro de contactos, para realizar y recibir llamadas mediante troncales de diferentes canales de voz y señalización, gestionadas por su central telefónica."]
[null,"Detalle","\"Plan Comercial Call Center SIP 30","Observaciones"]
[null,"Derecho de Inscripción",1800,"Por una sola vez"]
[null,"Pensión Básica Mensual",420,"Mensual *"]
[null,"(*) No incluye minutos libres"]
[null,"Tarifas por volúmenes de consumo de tráfico mensual, para llamadas locales, nacionales y hacia redes celulares"]
[]
[null,"Minutos para el grupo de líneas, de llamadas locales","Precios por minuto"]
[null,"De 0 a 10.000",0.02]
[null,"De 10.001 a 31.250",1.9800000000000002E-2]
[null,"De 31.251 a 35.000",1.9599999999999999E-2]
[null,"De 35.001 a 38.750",1.9400000000000001E-2]
[null,"De 38.751 a 42.500",1.9300000000000001E-2]
[null,"De 42.501 a 46.250",1.9199999999999998E-2]
[null,"De 46.251 en adelante",1.9E-2]
[]
[null,"Minutos para el grupo de líneas, de llamadas nacionales ***","Precios por minuto"]
[null,"De 0 a 10.000",5.6000000000000001E-2]
[null,"De 10.001 a 26.250",5.5899999999999998E-2]
[null,"De 26.251 a 29.400",5.4600000000000003E-2]
[null,"De 29.401 a 32.550",5.45E-2]
[null,"De 32.551 a 35.700",5.4399999999999997E-2]
[null,"De 35.701 a 38.850",5.3999999999999999E-2]
[null,"De 38.851 a 48.850",4.7E-2]
[null,"De 48.851 a 58.850",0.04]
[null,"De 58.851 a 68.850",3.2000000000000001E-2]
[null,"De 68.851 en adelante",2.52E-2]
[null,"(***) Ver condiciones para las llamadas de Larga Distancia Nacional"]
[]
[null,"Minutos para el grupo de canales, de llamadas a redes móviles****","Precios por minuto"]
[null,"De 0 a 4.000",0.13500000000000001]
[null,"De 4.001 a 14.500",0.1303]
[null,"De 14.501 a 17.500",0.127]
[null,"De 17.501 a 20.500",0.1232]
[null,"De 20.501 a 23.500",0.11890000000000001]
[null,"De 23.501 a 26.500",0.11409999999999999]
[null,"De 26.501 a 30,010",0.11083999999999999]
[null,"De 30.011 a 35.520",0.1008]
[null,"De 35.521 a 42.030",9.3799999999999994E-2]
[null,"De 42.031 en adelante",8.72E-2]
[null,"(****) El precio de la llamada incluye el cargo por interconexión hacia las redes de Conecel, Movistar o CNT E.P(ex Telecsa)"]
[]
[null,"Llamada de Larga Distancia Internacional"]
[]
[null,"Paises de Destino ****","Precio por minuto"]
[null,"USA y Canadá (fijo o móvil)",0.09]
[null,"España e Italia (fijo)",0.09]
[null,"España (móvil)",0.21]
[null,"Italia (móvil)",0.23]
[null,"Chile (Fijo y Móvil)",0.22]
[null,"Bolivia (Fijo y Móvil)",0.22]
[null,"Colombia y Perú  (Fijo)",0.13]
[null,"Venezuela (Fijo y Móvil)",0.22]
[null,"Colombia y Perú  (Móvil)",0.19]
[null,"Argentina (fijo)",0.13]
[null,"Argentina (móvil)",0.2]
[null,"México (Fijo y Móvil)",0.13]
[null,"China (Fijo y Móvil)",0.25]
[null,"Costa Rica (Fijo y Móvil)",0.19]
[null,"Cuba (Fijo y Móvil)",1]
[null,"Japón (Fijo y Móvil)",0.3]
[null,"Corea del Norte",0.6]
[null,"Serbia ",0.5]
[null,"Antártida",6.8]
[null,"Resto de América",0.22]
[null,"Países de Europa",0.35]
[null,"Móvil Marítimo",6.8]
[null,"Resto de Mundo ******",0.39]
[]
[null,"Nota:"]
[null,"(****) La tarifa final depende de las condiciones de terminación que se mantengan con las "]
[null,"        otras redes a nivel mundial."]
[null,"(****) Se excluye Granada, Guyana Francesa, Guyana República, Haití, Honduras y Surinam para los cuales la tarifa es de US$0,300 por minuto para cada uno de los destinos."]
[null,"(******) Se excluye Diego García, Islas Ascensión, Islas Malvinas, Islas Norfolk, Groelandia móvil, Guinea Bissau, Kiribati, Nauru, Santo Tomé, Salomón Islas, Tokelau, Tavalu, República de Vanuatu, Wallisand Futura, destinos para los cuales la tarifa es de U$ 0.85 por minuto  para cada uno de los destinos."]
[]
[null,"Condiciones Comerciales:"]
[null,"Aplicable para áreas de cobertura y para abonados que tengan contratado el \"Plan Comercial Call Center\" con un mínimo de 20 líneas"]
[null,"La prestación de este servicio está sujeta al pago de IVA, de conformidad con la Ley."]
[null,"Las tarifas se calculan con base al consumo promedio anualizada del abonado."]
[null,"La oferta especial para las llamadas de Larga Distancia Nacional es creada para el abonado comercial, y le permite realizar llamadas de Larga Distancia Nacional desde y hacia localidades previamente definidas en esta oferta."]
[null,"Minutos para el grupo de líneas, de llamadas nacionales (oferta Especial)","Precios por minuto"]
[null,"De 0 a 2.000",0.04]
[null,"De 2.001 a 6.000",3.9800000000000002E-2]
[null,"De 6.001 a 7.200",3.9600000000000003E-2]
[null,"De 7.201 a 8.400",3.9399999999999998E-2]
[null,"De 8.401 a 9.600",3.9199999999999999E-2]
[null,"De 9.601 a 10.800",3.9E-2]
[null,"De 10.800 a 20.800",3.8800000000000001E-2]
[null,"De 20.801 a 30.800",3.49E-2]
[null,"De 30.801 a 40.800",2.9700000000000001E-2]
[null,"De 40.801 en adelante",2.52E-2]
[null,"Se aplica esta tarifa como Oferta especial para las llamadas de Larga Distancia Nacional que se originen y terminen dentro de las circunscripciones geográficas que a continuación se detallan:"]
[null,"Región Sur:"]
[null,"Galápagos"]
[null,"Los Rios"]
[null,"Manabí"]
[null,"Azuay (excepto Cuenca)"]
[null,"Cañar"]
[null,"El Oro"]
[null,"Loja"]
[null,"Morona Santiago"]
[null,"Zamora"]
[null,"Guayas*******: El Triunfo, Yaguachi, Balzar, Montañita, Posorja, Daule, Pedro Carbo, Isidro Ayora, Nobol, Santa Lucía, Milago, Naranjito, Bucay, Marcelino Maridueña, Balao, Jujan, Naranjal, General Villamil, Simón Bolívar, Salinas, La Libertad, Palestina, Salitre, Lomas de Sargentillo, Manglaralto, Santa Elena, Ancón, San Pablo, Ayangue, Punta Blanca, Punta Carnero, Ballenita, Colimes, El Emplame."]
[null,"Nota (*******): Para destinos no especificados en la Provincia del Guayas se consideran como llamadas locales"]
[null,"Región Norte:"]
[null,"Bolivar"]
[null,"Chimborazo"]
[null,"Cotopaxi"]
[null,"Pastaza"]
[null,"Tunguragua"]
[null,"Carchi"]
[null,"Esmeraldas"]
[null,"Imbabura"]
[null,"Napo"]
[null,"Orellana"]
[null,"Sucumbios"]
[null,"Pichincha ********: Cayambe, Pedro Moncayo, Santo Domingo, Aloag, Mejia, Pedro Vicente Maldonado, La Bonita, Tiputini, San Miguel de los Bancos, Yaruqui, Chavezpamba, Selva Alegre, Nayón, Zambiza, Tanda, Miravalle."]
[null,"Nota (********): Para los destinos no especificados en la Provincia de Pichincha se consideran como llamadas locales"]
[null,"Estas llamadas están sujetas al pago de IVA, de conformidad con la Ley."]
[null,"La prestación de este servicio está sujeto a facilidades técnicas y de cobertura"]
[null,"Condiciones para Llamada de Larga Distancia Nacional"]
[null,"Para las llamadas fuera de las Regiones enunciadas anteriormente se aplicará la tarifa de \"llamada de Larga Distancia Nacional\"."]
[null,"Vigencia: desde el  26 de septiembre de 2012."]
[]
[]
[null,"PLAN CALL CENTER SIP 60"]
[null,"El \"Plan Comercial Call Center SIP 60\" esta orientado al abonado comercial cuya cuya actividad económica es la gestión de un centro de contactos, para realizar y recibir llamadas mediante troncales de diferentes canales de voz y señalización, gestionadas por su central telefónica."]
[null,"Detalle","\"Plan Comercial Call Center SIP 60","Observaciones"]
[null,"Derecho de Inscripción",3600,"Por una sola vez"]
[null,"Pensión Básica Mensual",840,"Mensual *"]
[null,"(*) No incluye minutos libres"]
[null,"Tarifas por volúmenes de consumo de tráfico mensual, para llamadas locales, nacionales y hacia redes celulares"]
[]
[null,"Minutos para el grupo de líneas, de llamadas locales","Precios por minuto"]
[null,"De 0 a 10.000",0.02]
[null,"De 10.001 a 31.250",1.9800000000000002E-2]
[null,"De 31.251 a 35.000",1.9599999999999999E-2]
[null,"De 35.001 a 38.750",1.9400000000000001E-2]
[null,"De 38.751 a 42.500",1.9300000000000001E-2]
[null,"De 42.501 a 46.250",1.9199999999999998E-2]
[null,"De 46.251 en adelante",1.9E-2]
[]
[null,"Minutos para el grupo de líneas, de llamadas nacionales ***","Precios por minuto"]
[null,"De 0 a 10.000",5.6000000000000001E-2]
[null,"De 10.001 a 26.250",5.5899999999999998E-2]
[null,"De 26.251 a 29.400",5.4600000000000003E-2]
[null,"De 29.401 a 32.550",5.45E-2]
[null,"De 32.551 a 35.700",5.4399999999999997E-2]
[null,"De 35.701 a 38.850",5.3999999999999999E-2]
[null,"De 38.851 a 48.850",4.7E-2]
[null,"De 48.851 a 58.850",0.04]
[null,"De 58.851 a 68.850",3.2000000000000001E-2]
[null,"De 68.851 en adelante",2.52E-2]
[null,"(***) Ver condiciones para las llamadas de Larga Distancia Nacional"]
[]
[null,"Minutos para el grupo de canales, de llamadas a redes móviles****","Precios por minuto"]
[null,"De 0 a 4.000",0.13500000000000001]
[null,"De 4.001 a 14.500",0.1303]
[null,"De 14.501 a 17.500",0.127]
[null,"De 17.501 a 20.500",0.1232]
[null,"De 20.501 a 23.500",0.11890000000000001]
[null,"De 23.501 a 26.500",0.11409999999999999]
[null,"De 26.501 a 30,010",0.11083999999999999]
[null,"De 30.011 a 35.520",0.1008]
[null,"De 35.521 a 42.030",9.3799999999999994E-2]
[null,"De 42.031 en adelante",8.72E-2]
[null,"(****) El precio de la llamada incluye el cargo por interconexión hacia las redes de Conecel, Movistar o CNT E.P(ex Telecsa)"]
[]
[null,"Llamada de Larga Distancia Internacional"]
[]
[null,"Paises de Destino ****","Precio por minuto"]
[null,"USA y Canadá (fijo o móvil)",0.09]
[null,"España e Italia (fijo)",0.09]
[null,"España (móvil)",0.21]
[null,"Italia (móvil)",0.23]
[null,"Chile (Fijo y Móvil)",0.22]
[null,"Bolivia (Fijo y Móvil)",0.22]
[null,"Colombia y Perú  (Fijo)",0.13]
[null,"Venezuela (Fijo y Móvil)",0.22]
[null,"Colombia y Perú  (Móvil)",0.19]
[null,"Argentina (fijo)",0.13]
[null,"Argentina (móvil)",0.2]
[null,"México (Fijo y Móvil)",0.13]
[null,"China (Fijo y Móvil)",0.25]
[null,"Costa Rica (Fijo y Móvil)",0.19]
[null,"Cuba (Fijo y Móvil)",1]
[null,"Japón (Fijo y Móvil)",0.3]
[null,"Corea del Norte",0.6]
[null,"Serbia ",0.5]
[null,"Antártida",6.8]
[null,"Resto de América",0.22]
[null,"Países de Europa",0.35]
[null,"Móvil Marítimo",6.8]
[null,"Resto de Mundo ******",0.39]
[]
[null,"Nota:"]
[null,"(****) La tarifa final depende de las condiciones de terminación que se mantengan con las "]
[null,"        otras redes a nivel mundial."]
[null,"(****) Se excluye Granada, Guyana Francesa, Guyana República, Haití, Honduras y Surinam para los cuales la tarifa es de US$0,300 por minuto para cada uno de los destinos."]
[null,"(******) Se excluye Diego García, Islas Ascensión, Islas Malvinas, Islas Norfolk, Groelandia móvil, Guinea Bissau, Kiribati, Nauru, Santo Tomé, Salomón Islas, Tokelau, Tavalu, República de Vanuatu, Wallisand Futura, destinos para los cuales la tarifa es de U$ 0.85 por minuto  para cada uno de los destinos."]
[]
[null,"Condiciones Comerciales:"]
[null,"Aplicable para áreas de cobertura y para abonados que tengan contratado el \"Plan Comercial Call Center\" con un mínimo de 20 líneas"]
[null,"La prestación de este servicio está sujeta al pago de IVA, de conformidad con la Ley."]
[null,"Las tarifas se calculan con base al consumo promedio anualizada del abonado."]
[null,"La oferta especial para las llamadas de Larga Distancia Nacional es creada para el abonado comercial, y le permite realizar llamadas de Larga Distancia Nacional desde y hacia localidades previamente definidas en esta oferta."]
[null,"Minutos para el grupo de líneas, de llamadas nacionales (oferta Especial)","Precios por minuto"]
[null,"De 0 a 2.000",0.04]
[null,"De 2.001 a 6.000",3.9800000000000002E-2]
[null,"De 6.001 a 7.200",3.9600000000000003E-2]
[null,"De 7.201 a 8.400",3.9399999999999998E-2]
[null,"De 8.401 a 9.600",3.9199999999999999E-2]
[null,"De 9.601 a 10.800",3.9E-2]
[null,"De 10.800 a 20.800",3.8800000000000001E-2]
[null,"De 20.801 a 30.800",3.49E-2]
[null,"De 30.801 a 40.800",2.9700000000000001E-2]
[null,"De 40.801 en adelante",2.52E-2]
[null,"Se aplica esta tarifa como Oferta especial para las llamadas de Larga Distancia Nacional que se originen y terminen dentro de las circunscripciones geográficas que a continuación se detallan:"]
[null,"Región Sur:"]
[null,"Galápagos"]
[null,"Los Rios"]
[null,"Manabí"]
[null,"Azuay (excepto Cuenca)"]
[null,"Cañar"]
[null,"El Oro"]
[null,"Loja"]
[null,"Morona Santiago"]
[null,"Zamora"]
[null,"Guayas*******: El Triunfo, Yaguachi, Balzar, Montañita, Posorja, Daule, Pedro Carbo, Isidro Ayora, Nobol, Santa Lucía, Milago, Naranjito, Bucay, Marcelino Maridueña, Balao, Jujan, Naranjal, General Villamil, Simón Bolívar, Salinas, La Libertad, Palestina, Salitre, Lomas de Sargentillo, Manglaralto, Santa Elena, Ancón, San Pablo, Ayangue, Punta Blanca, Punta Carnero, Ballenita, Colimes, El Emplame."]
[null,"Nota (*******): Para destinos no especificados en la Provincia del Guayas se consideran como llamadas locales"]
[null,"Región Norte:"]
[null,"Bolivar"]
[null,"Chimborazo"]
[null,"Cotopaxi"]
[null,"Pastaza"]
[null,"Tunguragua"]
[null,"Carchi"]
[null,"Esmeraldas"]
[null,"Imbabura"]
[null,"Napo"]
[null,"Orellana"]
[null,"Sucumbios"]
[null,"Pichincha ********: Cayambe, Pedro Moncayo, Santo Domingo, Aloag, Mejia, Pedro Vicente Maldonado, La Bonita, Tiputini, San Miguel de los Bancos, Yaruqui, Chavezpamba, Selva Alegre, Nayón, Zambiza, Tanda, Miravalle."]
[null,"Nota (********): Para los destinos no especificados en la Provincia de Pichincha se consideran como llamadas locales"]
[null,"Estas llamadas están sujetas al pago de IVA, de conformidad con la Ley."]
[null,"La prestación de este servicio está sujeto a facilidades técnicas y de cobertura"]
[null,"Condiciones para Llamada de Larga Distancia Nacional"]
[null,"Para las llamadas fuera de las Regiones enunciadas anteriormente se aplicará la tarifa de \"llamada de Larga Distancia Nacional\"."]
[null,"Vigencia: desde el  26 de septiembre de 2012."]
[]
[]
[null,"PLAN CALL CENTER SIP 120"]
[null,"El \"Plan Comercial Call Center SIP 120\" esta orientado al abonado comercial cuya cuya actividad económica es la gestión de un centro de contactos, para realizar y recibir llamadas mediante troncales de diferentes canales de voz y señalización, gestionadas por su central telefónica."]
[null,"Detalle","\"Plan Comercial Call Center SIP 120","Observaciones"]
[null,"Derecho de Inscripción",7200,"Por una sola vez"]
[null,"Pensión Básica Mensual",1680,"Mensual *"]
[null,"(*) No incluye minutos libres"]
[null,"Tarifas por volúmenes de consumo de tráfico mensual, para llamadas locales, nacionales y hacia redes celulares"]
[]
[null,"Minutos para el grupo de líneas, de llamadas locales","Precios por minuto"]
[null,"De 0 a 10.000",0.02]
[null,"De 10.001 a 31.250",1.9800000000000002E-2]
[null,"De 31.251 a 35.000",1.9599999999999999E-2]
[null,"De 35.001 a 38.750",1.9400000000000001E-2]
[null,"De 38.751 a 42.500",1.9300000000000001E-2]
[null,"De 42.501 a 46.250",1.9199999999999998E-2]
[null,"De 46.251 en adelante",1.9E-2]
[]
[null,"Minutos para el grupo de líneas, de llamadas nacionales ***","Precios por minuto"]
[null,"De 0 a 10.000",5.6000000000000001E-2]
[null,"De 10.001 a 26.250",5.5899999999999998E-2]
[null,"De 26.251 a 29.400",5.4600000000000003E-2]
[null,"De 29.401 a 32.550",5.45E-2]
[null,"De 32.551 a 35.700",5.4399999999999997E-2]
[null,"De 35.701 a 38.850",5.3999999999999999E-2]
[null,"De 38.851 a 48.850",4.7E-2]
[null,"De 48.851 a 58.850",0.04]
[null,"De 58.851 a 68.850",3.2000000000000001E-2]
[null,"De 68.851 en adelante",2.52E-2]
[null,"(***) Ver condiciones para las llamadas de Larga Distancia Nacional"]
[]
[null,"Minutos para el grupo de canales, de llamadas a redes móviles****","Precios por minuto"]
[null,"De 0 a 4.000",0.13500000000000001]
[null,"De 4.001 a 14.500",0.1303]
[null,"De 14.501 a 17.500",0.127]
[null,"De 17.501 a 20.500",0.1232]
[null,"De 20.501 a 23.500",0.11890000000000001]
[null,"De 23.501 a 26.500",0.11409999999999999]
[null,"De 26.501 a 30,010",0.11083999999999999]
[null,"De 30.011 a 35.520",0.1008]
[null,"De 35.521 a 42.030",9.3799999999999994E-2]
[null,"De 42.031 en adelante",8.72E-2]
[null,"(****) El precio de la llamada incluye el cargo por interconexión hacia las redes de Conecel, Movistar o CNT E.P(ex Telecsa)"]
[]
[null,"Llamada de Larga Distancia Internacional"]
[]
[null,"Paises de Destino ****","Precio por minuto"]
[null,"USA y Canadá (fijo o móvil)",0.09]
[null,"España e Italia (fijo)",0.09]
[null,"España (móvil)",0.21]
[null,"Italia (móvil)",0.23]
[null,"Chile (Fijo y Móvil)",0.22]
[null,"Bolivia (Fijo y Móvil)",0.22]
[null,"Colombia y Perú  (Fijo)",0.13]
[null,"Venezuela (Fijo y Móvil)",0.22]
[null,"Colombia y Perú  (Móvil)",0.19]
[null,"Argentina (fijo)",0.13]
[null,"Argentina (móvil)",0.2]
[null,"México (Fijo y Móvil)",0.13]
[null,"China (Fijo y Móvil)",0.25]
[null,"Costa Rica (Fijo y Móvil)",0.19]
[null,"Cuba (Fijo y Móvil)",1]
[null,"Japón (Fijo y Móvil)",0.3]
[null,"Corea del Norte",0.6]
[null,"Serbia ",0.5]
[null,"Antártida",6.8]
[null,"Resto de América",0.22]
[null,"Países de Europa",0.35]
[null,"Móvil Marítimo",6.8]
[null,"Resto de Mundo ******",0.39]
[]
[null,"Nota:"]
[null,"(****) La tarifa final depende de las condiciones de terminación que se mantengan con las "]
[null,"        otras redes a nivel mundial."]
[null,"(****) Se excluye Granada, Guyana Francesa, Guyana República, Haití, Honduras y Surinam para los cuales la tarifa es de US$0,300 por minuto para cada uno de los destinos."]
[null,"(******) Se excluye Diego García, Islas Ascensión, Islas Malvinas, Islas Norfolk, Groelandia móvil, Guinea Bissau, Kiribati, Nauru, Santo Tomé, Salomón Islas, Tokelau, Tavalu, República de Vanuatu, Wallisand Futura, destinos para los cuales la tarifa es de U$ 0.85 por minuto  para cada uno de los destinos."]
[]
[null,"Condiciones Comerciales:"]
[null,"Aplicable para áreas de cobertura y para abonados que tengan contratado el \"Plan Comercial Call Center\" con un mínimo de 20 líneas"]
[null,"La prestación de este servicio está sujeta al pago de IVA, de conformidad con la Ley."]
[null,"Las tarifas se calculan con base al consumo promedio anualizada del abonado."]
[null,"La oferta especial para las llamadas de Larga Distancia Nacional es creada para el abonado comercial, y le permite realizar llamadas de Larga Distancia Nacional desde y hacia localidades previamente definidas en esta oferta."]
[null,"Minutos para el grupo de líneas, de llamadas nacionales (oferta Especial)","Precios por minuto"]
[null,"De 0 a 2.000",0.04]
[null,"De 2.001 a 6.000",3.9800000000000002E-2]
[null,"De 6.001 a 7.200",3.9600000000000003E-2]
[null,"De 7.201 a 8.400",3.9399999999999998E-2]
[null,"De 8.401 a 9.600",3.9199999999999999E-2]
[null,"De 9.601 a 10.800",3.9E-2]
[null,"De 10.800 a 20.800",3.8800000000000001E-2]
[null,"De 20.801 a 30.800",3.49E-2]
[null,"De 30.801 a 40.800",2.9700000000000001E-2]
[null,"De 40.801 en adelante",2.52E-2]
[null,"Se aplica esta tarifa como Oferta especial para las llamadas de Larga Distancia Nacional que se originen y terminen dentro de las circunscripciones geográficas que a continuación se detallan:"]
[null,"Región Sur:"]
[null,"Galápagos"]
[null,"Los Rios"]
[null,"Manabí"]
[null,"Azuay (excepto Cuenca)"]
[null,"Cañar"]
[null,"El Oro"]
[null,"Loja"]
[null,"Morona Santiago"]
[null,"Zamora"]
[null,"Guayas*******: El Triunfo, Yaguachi, Balzar, Montañita, Posorja, Daule, Pedro Carbo, Isidro Ayora, Nobol, Santa Lucía, Milago, Naranjito, Bucay, Marcelino Maridueña, Balao, Jujan, Naranjal, General Villamil, Simón Bolívar, Salinas, La Libertad, Palestina, Salitre, Lomas de Sargentillo, Manglaralto, Santa Elena, Ancón, San Pablo, Ayangue, Punta Blanca, Punta Carnero, Ballenita, Colimes, El Emplame."]
[null,"Nota (*******): Para destinos no especificados en la Provincia del Guayas se consideran como llamadas locales"]
[null,"Región Norte:"]
[null,"Bolivar"]
[null,"Chimborazo"]
[null,"Cotopaxi"]
[null,"Pastaza"]
[null,"Tunguragua"]
[null,"Carchi"]
[null,"Esmeraldas"]
[null,"Imbabura"]
[null,"Napo"]
[null,"Orellana"]
[null,"Sucumbios"]
[null,"Pichincha ********: Cayambe, Pedro Moncayo, Santo Domingo, Aloag, Mejia, Pedro Vicente Maldonado, La Bonita, Tiputini, San Miguel de los Bancos, Yaruqui, Chavezpamba, Selva Alegre, Nayón, Zambiza, Tanda, Miravalle."]
[null,"Nota (********): Para los destinos no especificados en la Provincia de Pichincha se consideran como llamadas locales"]
[null,"Estas llamadas están sujetas al pago de IVA, de conformidad con la Ley."]
[null,"La prestación de este servicio está sujeto a facilidades técnicas y de cobertura"]
[null,"Condiciones para Llamada de Larga Distancia Nacional"]
[null,"Para las llamadas fuera de las Regiones enunciadas anteriormente se aplicará la tarifa de \"llamada de Larga Distancia Nacional\"."]
[null,"Vigencia: desde el  26 de septiembre de 2012."]
[]
[]
[null,"PLAN CALL CENTER SIP 300"]
[null,"El \"Plan Comercial Call Center SIP 300\" esta orientado al abonado comercial cuya cuya actividad económica es la gestión de un centro de contactos, para realizar y recibir llamadas mediante troncales de diferentes canales de voz y señalización, gestionadas por su central telefónica."]
[null,"Detalle","\"Plan Comercial Call Center SIP 300","Observaciones"]
[null,"Derecho de Inscripción",18000,"Por una sola vez"]
[null,"Pensión Básica Mensual",4200,"Mensual *"]
[null,"(*) No incluye minutos libres"]
[null,"Tarifas por volúmenes de consumo de tráfico mensual, para llamadas locales, nacionales y hacia redes celulares"]
[]
[null,"Minutos para el grupo de líneas, de llamadas locales","Precios por minuto"]
[null,"De 0 a 10.000",0.02]
[null,"De 10.001 a 31.250",1.9800000000000002E-2]
[null,"De 31.251 a 35.000",1.9599999999999999E-2]
[null,"De 35.001 a 38.750",1.9400000000000001E-2]
[null,"De 38.751 a 42.500",1.9300000000000001E-2]
[null,"De 42.501 a 46.250",1.9199999999999998E-2]
[null,"De 46.251 en adelante",1.9E-2]
[]
[null,"Minutos para el grupo de líneas, de llamadas nacionales ***","Precios por minuto"]
[null,"De 0 a 10.000",5.6000000000000001E-2]
[null,"De 10.001 a 26.250",5.5899999999999998E-2]
[null,"De 26.251 a 29.400",5.4600000000000003E-2]
[null,"De 29.401 a 32.550",5.45E-2]
[null,"De 32.551 a 35.700",5.4399999999999997E-2]
[null,"De 35.701 a 38.850",5.3999999999999999E-2]
[null,"De 38.851 a 48.850",4.7E-2]
[null,"De 48.851 a 58.850",0.04]
[null,"De 58.851 a 68.850",3.2000000000000001E-2]
[null,"De 68.851 en adelante",2.52E-2]
[null,"(***) Ver condiciones para las llamadas de Larga Distancia Nacional"]
[]
[null,"Minutos para el grupo de canales, de llamadas a redes móviles****","Precios por minuto"]
[null,"De 0 a 4.000",0.13500000000000001]
[null,"De 4.001 a 14.500",0.1303]
[null,"De 14.501 a 17.500",0.127]
[null,"De 17.501 a 20.500",0.1232]
[null,"De 20.501 a 23.500",0.11890000000000001]
[null,"De 23.501 a 26.500",0.11409999999999999]
[null,"De 26.501 a 30,010",0.11083999999999999]
[null,"De 30.011 a 35.520",0.1008]
[null,"De 35.521 a 42.030",9.3799999999999994E-2]
[null,"De 42.031 en adelante",8.72E-2]
[null,"(****) El precio de la llamada incluye el cargo por interconexión hacia las redes de Conecel, Movistar o CNT E.P(ex Telecsa)"]
[]
[null,"Llamada de Larga Distancia Internacional"]
[]
[null,"Paises de Destino ****","Precio por minuto"]
[null,"USA y Canadá (fijo o móvil)",0.09]
[null,"España e Italia (fijo)",0.09]
[null,"España (móvil)",0.21]
[null,"Italia (móvil)",0.23]
[null,"Chile (Fijo y Móvil)",0.22]
[null,"Bolivia (Fijo y Móvil)",0.22]
[null,"Colombia y Perú  (Fijo)",0.13]
[null,"Venezuela (Fijo y Móvil)",0.22]
[null,"Colombia y Perú  (Móvil)",0.19]
[null,"Argentina (fijo)",0.13]
[null,"Argentina (móvil)",0.2]
[null,"México (Fijo y Móvil)",0.13]
[null,"China (Fijo y Móvil)",0.25]
[null,"Costa Rica (Fijo y Móvil)",0.19]
[null,"Cuba (Fijo y Móvil)",1]
[null,"Japón (Fijo y Móvil)",0.3]
[null,"Corea del Norte",0.6]
[null,"Serbia ",0.5]
[null,"Antártida",6.8]
[null,"Resto de América",0.22]
[null,"Países de Europa",0.35]
[null,"Móvil Marítimo",6.8]
[null,"Resto de Mundo ******",0.39]
[]
[null,"Nota:"]
[null,"(****) La tarifa final depende de las condiciones de terminación que se mantengan con las "]
[null,"        otras redes a nivel mundial."]
[null,"(****) Se excluye Granada, Guyana Francesa, Guyana República, Haití, Honduras y Surinam para los cuales la tarifa es de US$0,300 por minuto para cada uno de los destinos."]
[null,"(******) Se excluye Diego García, Islas Ascensión, Islas Malvinas, Islas Norfolk, Groelandia móvil, Guinea Bissau, Kiribati, Nauru, Santo Tomé, Salomón Islas, Tokelau, Tavalu, República de Vanuatu, Wallisand Futura, destinos para los cuales la tarifa es de U$ 0.85 por minuto  para cada uno de los destinos."]
[]
[null,"Condiciones Comerciales:"]
[null,"Aplicable para áreas de cobertura y para abonados que tengan contratado el \"Plan Comercial Call Center\" con un mínimo de 20 líneas"]
[null,"La prestación de este servicio está sujeta al pago de IVA, de conformidad con la Ley."]
[null,"Las tarifas se calculan con base al consumo promedio anualizada del abonado."]
[null,"La oferta especial para las llamadas de Larga Distancia Nacional es creada para el abonado comercial, y le permite realizar llamadas de Larga Distancia Nacional desde y hacia localidades previamente definidas en esta oferta."]
[null,"Minutos para el grupo de líneas, de llamadas nacionales (oferta Especial)","Precios por minuto"]
[null,"De 0 a 2.000",0.04]
[null,"De 2.001 a 6.000",3.9800000000000002E-2]
[null,"De 6.001 a 7.200",3.9600000000000003E-2]
[null,"De 7.201 a 8.400",3.9399999999999998E-2]
[null,"De 8.401 a 9.600",3.9199999999999999E-2]
[null,"De 9.601 a 10.800",3.9E-2]
[null,"De 10.800 a 20.800",3.8800000000000001E-2]
[null,"De 20.801 a 30.800",3.49E-2]
[null,"De 30.801 a 40.800",2.9700000000000001E-2]
[null,"De 40.801 en adelante",2.52E-2]
[null,"Se aplica esta tarifa como Oferta especial para las llamadas de Larga Distancia Nacional que se originen y terminen dentro de las circunscripciones geográficas que a continuación se detallan:"]
[null,"Región Sur:"]
[null,"Galápagos"]
[null,"Los Rios"]
[null,"Manabí"]
[null,"Azuay (excepto Cuenca)"]
[null,"Cañar"]
[null,"El Oro"]
[null,"Loja"]
[null,"Morona Santiago"]
[null,"Zamora"]
[null,"Guayas*******: El Triunfo, Yaguachi, Balzar, Montañita, Posorja, Daule, Pedro Carbo, Isidro Ayora, Nobol, Santa Lucía, Milago, Naranjito, Bucay, Marcelino Maridueña, Balao, Jujan, Naranjal, General Villamil, Simón Bolívar, Salinas, La Libertad, Palestina, Salitre, Lomas de Sargentillo, Manglaralto, Santa Elena, Ancón, San Pablo, Ayangue, Punta Blanca, Punta Carnero, Ballenita, Colimes, El Emplame."]
[null,"Nota (*******): Para destinos no especificados en la Provincia del Guayas se consideran como llamadas locales"]
[null,"Región Norte:"]
[null,"Bolivar"]
[null,"Chimborazo"]
[null,"Cotopaxi"]
[null,"Pastaza"]
[null,"Tunguragua"]
[null,"Carchi"]
[null,"Esmeraldas"]
[null,"Imbabura"]
[null,"Napo"]
[null,"Orellana"]
[null,"Sucumbios"]
[null,"Pichincha ********: Cayambe, Pedro Moncayo, Santo Domingo, Aloag, Mejia, Pedro Vicente Maldonado, La Bonita, Tiputini, San Miguel de los Bancos, Yaruqui, Chavezpamba, Selva Alegre, Nayón, Zambiza, Tanda, Miravalle."]
[null,"Nota (********): Para los destinos no especificados en la Provincia de Pichincha se consideran como llamadas locales"]
[null,"Estas llamadas están sujetas al pago de IVA, de conformidad con la Ley."]
[null,"La prestación de este servicio está sujeto a facilidades técnicas y de cobertura"]
[null,"Condiciones para Llamada de Larga Distancia Nacional"]
[null,"Para las llamadas fuera de las Regiones enunciadas anteriormente se aplicará la tarifa de \"llamada de Larga Distancia Nacional\"."]
[null,"Vigencia: desde el  26 de septiembre de 2012."]
[]
[]
[null,"PLAN COMERCIAL CALL CENTER"]
[null,"El \"Plan Comercial Call Center\" es un Plan tarifario para el servicio de telefonía fja creado para empresas o Call Centers que manejan grandes volúmenes de minutos telefónicos salientes, y que permiten comunicaciones locales, nacionales, internacionales y a celulares."]
[null,"Detalle","Plan Comercial Call Center","Observaciones"]
[null,"Derecho de Inscripción*","$ 60.00","Por una sola vez"]
[null,"Pensión Básica Mensual",7,"Mensual *"]
[]
[null,"(*) No incluye minutos libres"]
[]
[null,"Tarifas por volúmenes de consumo de tráfico mensual, para llamadas locales, nacionales y hacia redes celulares"]
[]
[null,"Minutos para el grupo de líneas, de llamadas locales","Precios por minuto"]
[null,"De 0 a 10.000",0.02]
[null,"De 10.001 a 31.250",1.9800000000000002E-2]
[null,"De 31.251 a 35.000",1.9599999999999999E-2]
[null,"De 35.001 a 38.750",1.9400000000000001E-2]
[null,"De 38.751 a 42.500",1.9300000000000001E-2]
[null,"De 42.501 a 46.250",1.9199999999999998E-2]
[null,"De 46.251 en adelante",1.9E-2]
[]
[null,"Minutos para el grupo de líneas, de llamadas nacionales ***","Precios por minuto"]
[null,"De 0 a 10.000",5.6000000000000001E-2]
[null,"De 10.001 a 26.250",5.5899999999999998E-2]
[null,"De 26.251 a 29.400",5.4600000000000003E-2]
[null,"De 29.401 a 32.550",5.45E-2]
[null,"De 32.551 a 35.700",5.4399999999999997E-2]
[null,"De 35.701 a 38.850",5.3999999999999999E-2]
[null,"De 38.851 en adelante",4.7E-2]
[null,"(***) Ver condiciones para las llamadas de Larga Distancia Nacional"]
[]
[null,"Minutos para el grupo de líneas, de llamadas a redes móviles****","Precios por minuto"]
[null,"De 0 a 4.000",0.14000000000000001]
[null,"De 4.001 a 14.500",0.13389999999999999]
[null,"De 14.501 a 17.500",0.13289999999999999]
[null,"De 17.501 a 20.500",0.13189999999999999]
[null,"De 20.501 a 23.500",0.13089999999999999]
[null,"De 23.501 a 26.500",0.12989999999999999]
[null,"De 26.501 en adelante",0.12889999999999999]
[null,"(****) El precio de la llamada incluye el cargo por interconexión hacia las redes de Conecel, Movistar o CNT E.P(ex Telecsa)"]
[]
[null,"Llamada de Larga Distancia Internacional"]
[]
[null,"Paises de Destino ****","Precio por minuto"]
[null,"USA y Canadá (fijo o móvil)",0.09]
[null,"España e Italia (fijo)",0.09]
[null,"España e Italia (móvil)",0.3]
[null,"Argentina (fijo)",0.13]
[null,"Argentina (móvil)",0.2]
[null,"Chile",0.22]
[null,"Bolivia",0.22]
[null,"Colombia",0.19]
[null,"Venezuela",0.22]
[null,"Perú",0.19]
[null,"México",0.19]
[null,"China",0.25]
[null,"Costa Rica",0.19]
[null,"Cuba",1]
[null,"Japón",0.3]
[null,"Corea del Norte",0.6]
[null,"Antártida",6.8]
[null,"Serbia Fijo",0.5]
[null,"Serbia Móvil",0.5]
[null,"Resto de América",0.22]
[null,"Países de Europa",0.35]
[null,"Móvil Marítimo",6.8]
[null,"Resto de Mundo ******",0.39]
[]
[null,"Nota:"]
[null,"(****) La tarifa final depende de las condiciones de terminación que se mantengan con las "]
[null,"        otras redes a nivel mundial."]
[null,"(****) Se excluye Granada, Guyana Francesa, Guyana República, Haití, Honduras y Surinam para los cuales la tarifa es de US$0,300 por minuto para cada uno de los destinos."]
[null,"(******) Se excluye Diego García, Islas Ascensión, Islas Malvinas, Islas Norfolk, Groelandia móvil, Guinea Bissau, Kiribati, Nauru, Santo Tomé, Salomón Islas, Tokelau, Tavalu, República de Vanuatu, Wallisand Futura, destinos para los cuales la tarifa es de U$ 0.85 por minuto  para cada uno de los destinos."]
[]
[null,"Condiciones Comerciales:"]
[null,"Aplicable para áreas de cobertura y para abonados que tengan contratado el \"Plan Comercial Call Center\" con un mínimo de 20 líneas"]
[null,"La prestación de este servicio está sujeta al pago de IVA, de conformidad con la Ley."]
[null,"Las tarifas se calculan con base al consumo promedio anualizada del abonado."]
[null,"La oferta especial para las llamadas de Larga Distancia Nacional es creada para el abonado comercial, y le permite realizar llamadas de Larga Distancia Nacional desde y hacia localidades previamente definidas en esta oferta."]
[null,"Minutos para el grupo de líneas, de llamadas nacionales (oferta Especial)","Precios por minuto"]
[null,"De 0 a 2.000",0.04]
[null,"De 2.001 a 6.000",3.9800000000000002E-2]
[null,"De 6.001 a 7.200",3.9600000000000003E-2]
[null,"De 7.201 a 8.400",3.9399999999999998E-2]
[null,"De 8.401 a 9.600",3.9199999999999999E-2]
[null,"De 9.601 a 10.800",3.9E-2]
[null,"De 10.801 en adelante",3.8800000000000001E-2]
[null,"Se aplica esta tarifa como Oferta especial para las llamadas de Larga Distancia Nacional que se originen y terminen dentro de las circunscripciones geográficas que a continuación se detallan:"]
[null,"Región Sur:"]
[null,"Galápagos"]
[null,"Los Rios"]
[null,"Manabí"]
[null,"Azuay (excepto Cuenca)"]
[null,"Cañar"]
[null,"El Oro"]
[null,"Loja"]
[null,"Morona Santiago"]
[null,"Zamora"]
[null,"Guayas*******: El Triunfo, Yaguachi, Balzar, Montañita, Posorja, Daule, Pedro Carbo, Isidro Ayora, Nobol, Santa Lucía, Milago, Naranjito, Bucay, Marcelino Maridueña, Balao, Jujan, Naranjal, General Villamil, Simón Bolívar, Salinas, La Libertad, Palestina, Salitre, Lomas de Sargentillo, Manglaralto, Santa Elena, Ancón, San Pablo, Ayangue, Punta Blanca, Punta Carnero, Ballenita, Colimes, El Emplame."]
[null,"Nota (*******): Para destinos no especificados en la Provincia del Guayas se consideran como llamadas locales"]
[null,"Región Norte:"]
[null,"Bolivar"]
[null,"Chimborazo"]
[null,"Cotopaxi"]
[null,"Pastaza"]
[null,"Tunguragua"]
[null,"Carchi"]
[null,"Esmeraldas"]
[null,"Imbabura"]
[null,"Napo"]
[null,"Orellana"]
[null,"Sucumbios"]
[null,"Pichincha ********: Cayambe, Pedro Moncayo, Santo Domingo, Aloag, Mejia, Pedro Vicente Maldonado, La Bonita, Tiputini, San Miguel de los Bancos, Yaruqui, Chavezpamba, Selva Alegre, Nayón, Zambiza, Tanda, Miravalle."]
[null,"Nota (********): Para los destinos no especificados en la Provincia de Pichincha se consideran como llamadas locales"]
[null,"Estas llamadas están sujetas al pago de IVA, de conformidad con la Ley."]
[null,"La prestación de este servicio está sujeto a facilidades técnicas y de cobertura"]
[null,"Condiciones para Llamada de Larga Distancia Nacional"]
[null,"Para las llamadas fuera de las Regiones enunciadas anteriormente se aplicará la tarifa de \"llamada de Larga Distancia Nacional\"."]
[null,"Vigencia: desde el  26 de septiembre de 2012."]
[]
[null,"PLAN COMERCIAL FLEX"]
[null,"El Plan \"Comercial Flex\" es un plan tarifario para el servicio de telefonía fíja, creado para clientes comerciales que manejan grandes volúmenes de minutos salientes, a partir de 3 líneas telefónicas, y que permite comunicaciones locales, nacionales, internacionales y a celulares."]
[null,"Detalle","Plan  Comercial Flex ","Observaciones"]
[null,"Derecho de Inscripción*",49.9,"Por una sola vez"]
[null,"Pensión Básica Mensual","$ 7,00","Mensual **"]
[]
[null,"(**) No incluye minutos libres"]
[]
[null,"Tarifas por volúmenes de consumo de tráfico mensual, para llamadas locales, nacionales y hacia redes celulares"]
[]
[null,"Minutos por línea, para llamadas locales","Precios por minuto"]
[null,"De 0 a 333",0.02]
[null,"De 334 a 1.041",1.9800000000000002E-2]
[null,"De 1.042 a 1.166",1.9599999999999999E-2]
[null,"De 1.167 a 1.291",1.9400000000000001E-2]
[null,"De 1.292 a 1.416",1.9300000000000001E-2]
[null,"De 1.417 a 1.541",1.9199999999999998E-2]
[null,"De 1.542 en adelante",1.9E-2]
[]
[null,"Minutos por línea, de llamadas nacionales ***","Precios por minuto"]
[null,"De 0 a 333",5.6000000000000001E-2]
[null,"De 334 a 875",5.5899999999999998E-2]
[null,"De 876 a 980",5.4600000000000003E-2]
[null,"De 981 a 1.085",5.45E-2]
[null,"De 1.086 a 1.190",5.4399999999999997E-2]
[null,"De 1.191 a 1.295",5.3999999999999999E-2]
[null,"De 1.296 en adelante",4.7E-2]
[null,"(***) Ver condiciones para las llamadas de Larga Distancia Nacional"]
[]
[null,"Minutos por línea, de llamadas a redes móviles****","Precios por minuto"]
[null,"De 0 a 133","           $ 0.1350"]
[null,"De 134 a 483","           $ 0.1303"]
[null,"De 484 a 583","           $ 0.1270"]
[null,"De 584 a 683","           $ 0.1232"]
[null,"De 684 a 783","           $ 0.1189"]
[null,"De 784 a 883","           $ 0.1141"]
[null,"De 884 en adelante","           $ 0.1084"]
[null,"(****) El costo de la llamada incluye el cargo de interconexión"]
[]
[null,"Llamada de Larga Distancia Internacional"]
[]
[null,"Paises de Destino  *****","Precio por minuto"]
[null,"USA y Canadá (fijo o móvil)",0.09]
[null,"España e Italia (fijo)",0.09]
[null,"España e Italia (móvil)",0.3]
[null,"Argentina (fijo)",0.13]
[null,"Argentina (móvil)",0.2]
[null,"Chile",0.22]
[null,"Bolivia",0.22]
[null,"Colombia ",0.19]
[null,"Venezuela",0.22]
[null,"Perú",0.19]
[null,"México",0.19]
[null,"China",0.25]
[null,"Costa Rica",0.19]
[null,"Cuba",1]
[null,"Japón",0.3]
[null,"Corea del Norte",0.6]
[null,"Antártida",6.8]
[null,"Serbia",0.5]
[null,"Resto de América*****",0.22]
[null,"Países de Europa",0.35]
[null,"Móvil Marítimo",6.8]
[null,"Resto de Mundo ******",0.39]
[]
[null,"Nota:"]
[null,"(****) La tarifa final depende de las condiciones de terminación que se mantengan con las otras redes a nivel mundial"]
[null,"(*****) Se excluye Granada, Guyana Francesa, Guyana República, Haití, Honduras y Surinam para los cuales la tarifa es de US$0,300 por minuto para cada uno de los destinos."]
[null,"(******) Se excluye Diego García, Islas Ascensión, Islas Malvinas, Islas Norfolk, Groelandia móvil, Guinea Bissau, Kiribati, Nauru, Santo Tomé, Salomón Islas, Tokelau, Tavalu, República de Vanuatu, Wallisand Futura, destinos para los cuales la tarifa es de U$ 0.85 por minuto  para cada uno de los destinos."]
[]
[null,"Condiciones Comerciales:"]
[null,"Aplicable para áreas de cobertura y para abonados que tengan contratado el Plan Comercial FLEX, con un mínimo de 5 líneas"]
[null,"La prestación de este servicio está sujeta al pago de IVA, de conformidad con la Ley."]
[null,"La oferta especial para las llamadas de LDN es creada para el abonado comercial que tenga contratado el Plan Comercial FLEX, y permite realizar llamadas de LDN a menor costo, desde y hacia localidades previamente definidas en esta oferta."]
[null,"Minutos por línea, de llamadas nacionales (oferta Especial)","Precios por minuto"]
[null,"De 0 a 66",0.04]
[null,"De 67 a 200",3.9800000000000002E-2]
[null,"De 201 a 240",3.9600000000000003E-2]
[null,"De 241 a 280",3.9399999999999998E-2]
[null,"De 281 a 320",3.9199999999999999E-2]
[null,"De 321 a 360",3.9E-2]
[null,"De 361 en adelante",3.8800000000000001E-2]
[]
[null,"Se aplica esta tarifa como Oferta especial para las llamadas de LDN a las llamadas que se originen y terminen dentro de las circunscripciones geográficas que a continuación se detallan:"]
[null,"Región Sur:"]
[null,"Galápagos"]
[null,"Los Rios"]
[null,"Manabí"]
[null,"Azuay (excepto Cuenca)"]
[null,"Cañar"]
[null,"El Oro"]
[null,"Loja"]
[null,"Morona Santiago"]
[null,"Zamora"]
[null,"Guayas*******: El Triunfo, Yaguachi, Balzar, Montañita, Posorja, Daule, Pedro Carbo, Isidro Ayora, Nobol, Santa Lucía, Milago, Naranjito, Bucay, Marcelino Maridueña, Balao, Jujan, Naranjal, General Villamil, Simón Bolívar, Salinas, La Libertad, Palestina, Salitre, Lomas de Sargentillo, Manglaralto, Santa Elena, Ancón, San Pablo, Ayangue, Punta Blanca, Punta Carnero, Ballenita, Colimes, El Emplame."]
[null,"Nota (*******): Para destinos no especificados en la Provincia del Guayas se consideran como llamadas locales"]
[null,"Región Norte:"]
[null,"Bolivar"]
[null,"Chimborazo"]
[null,"Cotopaxi"]
[null,"Pastaza"]
[null,"Tunguragua"]
[null,"Carchi"]
[null,"Esmeraldas"]
[null,"Imbabura"]
[null,"Napo"]
[null,"Orellana"]
[null,"Sucumbios"]
[null,"Pichincha ********: Cayambe, Pedro Moncayo, Santo Domingo, Aloag, Mejia, Pedro Vicente Maldonado, La Bonita, Tiputini, San Miguel de los Bancos, Yaruqui, Chavezpamba, Selva Alegre, Nayón, Zambiza, Tanda, Miravalle."]
[null,"Nota (********): Para los destinos no especificados en la Provincia de Pichincha se consideran como llamadas locales"]
[null,"La prestación de este servicio está sujeto a facilidades técnicas y de cobertura."]
[null,"Condiciones para llamadas de Larga Distancia Nacional"]
[null,"Para las llamadas fuera de las Regiones enunciadas anteriormente se aplicará la tarifa de \"llamada de LDN\"."]
[null,"Vigencia: desde el  26 de septiembre de 2011."]
[]
[null,"PLAN TRONCAL COMERCIAL"]
[null,"El Plan \"Troncal Comercial\" está orientado al abonado comercial, para realizar y recibir llamadas mediante troncales de 30 canales de voz, en una interfaz (E1) asignándole numeración telefónica."]
[null,"Detalle","Plan Troncal Comercial ","Observaciones"]
[null,"Derecho de Inscripción",1.8,"Por una sola vez"]
[null,"Pensión Básica Mensual",210,"Mensual *"]
[]
[null,"(*) No incluye minutos libres"]
[]
[null,"Tarifas por volúmenes de consumo de tráfico mensual, para llamadas locales, nacionales y hacia redes celulares"]
[]
[null,"Minutos por la troncal de líneas, para llamadas locales","Precios por minuto"]
[null,"De 0 a 10.000",0.02]
[null,"De 10.001 a 31.250",1.9800000000000002E-2]
[null,"De 31.251 a 35.000",1.9599999999999999E-2]
[null,"De 35.001 a 38.750",1.9400000000000001E-2]
[null,"De 38.751 a 42.500",1.9300000000000001E-2]
[null,"De 42.501 a 46.250",1.9199999999999998E-2]
[null,"De 46.251 en adelante",1.9E-2]
[]
[null,"Minutos para el grupo de líneas, de llamadas nacionales **","Precios por minuto"]
[null,"De 0 a 10.000",5.6000000000000001E-2]
[null,"De 10.001 a 26.250",5.5899999999999998E-2]
[null,"De 26.251 a 29.400",5.4600000000000003E-2]
[null,"De 29.401 a 32.550",5.45E-2]
[null,"De 32.551 a 35.700",5.4399999999999997E-2]
[null,"De 35.701 a 38.850",5.3999999999999999E-2]
[null,"De 38.851 en adelante",4.7E-2]
[null,"(**) Ver condiciones para las llamadas de Larga Distancia Nacional"]
[]
[null,"Minutos para el grupo de líneas, de llamadas a redes móviles***","Precios por minuto"]
[null,"De 0 a 4.000",0.14000000000000001]
[null,"De 4.001 a 14.500",0.13389999999999999]
[null,"De 14.501 a 17.500",0.13289999999999999]
[null,"De 17.501 a 20.500",0.13189999999999999]
[null,"De 20.501 a 23.500",0.13089999999999999]
[null,"De 23.501 a 26.500",0.12989999999999999]
[null,"De 26.501  a 30.010",0.12889999999999999]
[null,"(****) El costo de la llamada incluye el cargo por interconexión hacia las redes de Conecel, Movistar o CNT E.P(ex Telecsa)"]
[]
[null,"Llamada de Larga Distancia Internacional"]
[]
[null,"Paises de Destino *****","Precio por minuto"]
[null,"USA y Canadá (fijo o móvil)",0.09]
[null,"España e Italia (fijo)",0.09]
[null,"España  (móvil)",0.21]
[null,"Italia  (móvil)",0.23]
[null,"Chile (fijo uy Móvil)",0.22]
[null,"Bolivia (fijo y Móvil)",0.22]
[null,"Colombia y Perú (fijo)",0.13]
[null,"Venezuela (fijo y Móvil)",0.22]
[null,"Colombia y Perú (móvil)",0.19]
[null,"Argentina Fijo",0.13]
[null,"Argentina Móvil",0.2]
[null,"México (fijo y Móvil)",0.13]
[null,"China (fijo y Móvil)",0.25]
[null,"Costa Rica (fijo y Móvil)",0.19]
[null,"Cuba (fijo y Móvil)",1]
[null,"Japón (Fijo y Móvil)",0.3]
[null,"Corea del Norte",0.6]
[null,"Antártida",6.8]
[null,"Serbia Fijo",0.5]
[null,"Serbia Móvil",0.5]
[null,"Resto de América(******)",0.22]
[null,"Países de Europa",0.35]
[null,"Móvil Marítimo",6.8]
[null,"Resto de Mundo *****",0.39]
[]
[null,"Nota:"]
[null,"(****) La tarifa final depende de las condiciones de terminación que se mantengan con las "]
[null,"        otras redes a nivel mundial."]
[null,"(****) Se excluye Granada, Guyana Francesa, Guyana República, Haití, Honduras y Surinam para los cuales la tarifa es de US$0,300 por minuto para cada uno de los destinos."]
[null,"(******) Se excluye Diego García, Islas Ascensión, Islas Malvinas, Islas Norfolk, Groelandia móvil, Guinea Bissau, Kiribati, Nauru, Santo Tomé, Salomón Islas, Tokelau, Tavalu, República de Vanuatu, Wallisand Futura, destinos para los cuales la tarifa es de U$ 0.85 por minuto  para cada uno de los destinos."]
[]
[null,"Condiciones Comerciales:"]
[null,"Aplicable para áreas de cobertura y para abonados que tengan contratado el Plan Troncal Comercial"]
[null,"La prestación de este servicio está sujeta al pago de IVA, de conformidad con la Ley."]
[null,"Las tarifas se calcularán con base al consumo promedio anualizada del abonado"]
[null,"La oferta especial para las llamadas de Larga Distancia Nacional es creada para el abonado comercial, y le permite realizar llamadas de Larga Distancia Nacional desde y hacia localidades previamente definidas en esta oferta."]
[null,"Minutos para el grupo de líneas, de llamadas nacionales (oferta Especial)","Precios por minuto"]
[null,"De 0 a 2.000",0.04]
[null,"De 2.001 a 6.000",3.9800000000000002E-2]
[null,"De 6.001 a 7.200",3.9600000000000003E-2]
[null,"De 7.201 a 8.400",3.9399999999999998E-2]
[null,"De 8.401 a 9.600",3.9199999999999999E-2]
[null,"De 9.601 a 10.800",3.9E-2]
[null,"De 10.801 en adelante",3.8800000000000001E-2]
[]
[null,"Se aplica esta tarifa como Oferta especial para las llamadas de Larga Distancia Nacional que se originen y terminen dentro de las circunscripciones geográficas que a continuación se detallan:"]
[null,"Región Sur:"]
[null,"Galápagos"]
[null,"Los Rios"]
[null,"Manabí"]
[null,"Azuay (excepto Cuenca)"]
[null,"Cañar"]
[null,"El Oro"]
[null,"Loja"]
[null,"Morona Santiago"]
[null,"Zamora"]
[null,"Guayas*******: El Triunfo, Yaguachi, Balzar, Montañita, Posorja, Daule, Pedro Carbo, Isidro Ayora, Nobol, Santa Lucía, Milago, Naranjito, Bucay, Marcelino Maridueña, Balao, Jujan, Naranjal, General Villamil, Simón Bolívar, Salinas, La Libertad, Palestina, Salitre, Lomas de Sargentillo, Manglaralto, Santa Elena, Ancón, San Pablo, Ayangue, Punta Blanca, Punta Carnero, Ballenita, Colimes, El Emplame."]
[null,"Nota (*******): Para destinos no especificados en la Provincia del Guayas se consideran como llamadas locales"]
[null,"Región Norte:"]
[null,"Bolivar"]
[null,"Chimborazo"]
[null,"Cotopaxi"]
[null,"Pastaza"]
[null,"Tunguragua"]
[null,"Carchi"]
[null,"Esmeraldas"]
[null,"Imbabura"]
[null,"Napo"]
[null,"Orellana"]
[null,"Sucumbios"]
[null,"Pichincha ********: Cayambe, Pedro Moncayo, Santo Domingo, Aloag, Mejia, Pedro Vicente Maldonado, La Bonita, Tiputini, San Miguel de los Bancos, Yaruqui, Chavezpamba, Selva Alegre, Nayón, Zambiza, Tanda, Miravalle."]
[null,"Nota (********): Para los destinos no especificados en la Provincia de Pichincha se consideran como llamadas locales"]
[null,"La prestación de este servicio está sujeto a facilidades técnicas y de cobertura"]
[null,"Condiciones para Llamadas de Larga Distancia Nacional"]
[null,"Para las llamadas fuera de las Regiones enunciadas anteriormente se aplicará la tarifa de \"llamada de Larga Distancia Nacional\"."]
[null,"Vigencia: desde el  26 de septiembre de 2012."]
[]
[]
[null,"PLAN TRONCAL COMERCIAL ISDN PRI"]
[null,"El Plan \"Troncal Comercial ISDN PRI\" está orientado al abonado comercial, para realizar y recibir llamadas mediante  troncales de 30 canales de voz, en una interfaz (E1) , asignándole numeración telefónica, la cual permitirá al cliente realizar y recibir llamadas gestionadas por su centralilla telefónica con troncal ISDN PRI. "]
[null,"Detalle","Plan Troncal Comercial ISDN PRI","Observaciones"]
[null,"Derecho de Inscripción",1.8,"Por una sola vez"]
[null,"Pensión Básica Mensual",210,"Mensual *"]
[]
[null,"(*) No incluye minutos libres"]
[]
[]
[null,"Tarifas por volúmenes de consumo de tráfico mensual, para llamadas locales, nacionales y hacia redes celulares"]
[]
[null,"Minutos por la troncal de líneas, para llamadas locales","Precios por minuto"]
[null,"De 0 a 10.000",0.02]
[null,"De 10.001 a 31.250",1.9800000000000002E-2]
[null,"De 31.251 a 35.000",1.9599999999999999E-2]
[null,"De 35.001 a 38.750",1.9400000000000001E-2]
[null,"De 38.751 a 42.500",1.9300000000000001E-2]
[null,"De 42.501 a 46.250",1.9199999999999998E-2]
[null,"De 46.251 en adelante",1.9E-2]
[]
[null,"Minutos para el grupo de líneas, de llamadas nacionales **","Precios por minuto"]
[null,"De 0 a 10.000",5.6000000000000001E-2]
[null,"De 10.001 a 26.250",5.5899999999999998E-2]
[null,"De 26.251 a 29.400",5.4600000000000003E-2]
[null,"De 29.401 a 32.550",5.45E-2]
[null,"De 32.551 a 35.700",5.4399999999999997E-2]
[null,"De 35.701 a 38.850",5.3999999999999999E-2]
[null,"De 38.851 en adelante",4.7E-2]
[null,"(**) Ver condiciones para las llamadas de Larga Distancia Nacional"]
[]
[null,"Minutos para el grupo de líneas, de llamadas a redes móviles","Precios por minuto"]
[null,"De 0 a 4.000",0.14000000000000001]
[null,"De 4.001 a 14.500",0.13389999999999999]
[null,"De 14.501 a 17.500",0.13289999999999999]
[null,"De 17.501 a 20.500",0.13189999999999999]
[null,"De 20.501 a 23.500",0.13089999999999999]
[null,"De 23.501 a 26.500",0.12989999999999999]
[null,"De 26.501  a 30.010",0.12889999999999999]
[null,"(***) El precio de la llamada incluye el cargo por interconexión hacia las redes de Claro, Movistar o CNT E.P(ex Telecsa)"]
[]
[null,"Llamada de Larga Distancia Internacional"]
[]
[null,"Paises de Destino *****","Precio por minuto"]
[null,"USA y Canadá (fijo o móvil)",0.09]
[null,"España e Italia (fijo)",0.09]
[null,"España  (móvil)",0.21]
[null,"Italia  (móvil)",0.23]
[null,"Chile (fijo uy Móvil)",0.22]
[null,"Bolivia (fijo y Móvil)",0.22]
[null,"Colombia y Perú (fijo)",0.13]
[null,"Venezuela (fijo y Móvil)",0.22]
[null,"Colombia y Perú (móvil)",0.19]
[null,"Argentina Fijo",0.13]
[null,"Argentina Móvil",0.2]
[null,"México (fijo y Móvil)",0.13]
[null,"China (fijo y Móvil)",0.25]
[null,"Costa Rica (fijo y Móvil)",0.19]
[null,"Cuba (fijo y Móvil)",1]
[null,"Japón (Fijo y Móvil)",0.3]
[null,"Corea del Norte",0.6]
[null,"Antártida",6.8]
[null,"Serbia Fijo",0.5]
[null,"Serbia Móvil",0.5]
[null,"Resto de América(******)",0.22]
[null,"Países de Europa",0.35]
[null,"Móvil Marítimo",6.8]
[null,"Resto de Mundo *****",0.39]
[]
[null,"Nota:"]
[null,"(****) La tarifa final depende de las condiciones de terminación que se mantengan con las "]
[null,"        otras redes a nivel mundial."]
[null,"(****) Se excluye Granada, Guyana Francesa, Guyana República, Haití, Honduras y Surinam para los cuales la tarifa es de US$0,300 por minuto para cada uno de los destinos."]
[null,"(******) Se excluye Diego García, Islas Ascensión, Islas Malvinas, Islas Norfolk, Groelandia móvil, Guinea Bissau, Kiribati, Nauru, Santo Tomé, Salomón Islas, Tokelau, Tavalu, República de Vanuatu, Wallisand Futura, destinos para los cuales la tarifa es de U$ 0.85 por minuto  para cada uno de los destinos."]
[]
[null,"Condiciones Comerciales:"]
[null,"Aplicable para áreas de cobertura y para abonados que tengan contratado el Plan Troncal Comercial ISDN PRI"]
[null,"La prestación de este servicio está sujeta al pago de IVA, de conformidad a la Ley."]
[null,"Las tarifas se calculan con base al consumo promedio anualizada del abonado."]
[null,"La oferta especial para las llamadas de Larga Distancia Nacional es creada para el abonado comercial, y le permite realizar llamadas de Larga Distancia Nacional desde y hacia localidades previamente definidas en esta oferta."]
[null,"Minutos para el grupo de líneas, de llamadas nacionales (oferta Especial)","Precios por minuto"]
[null,"De 0 a 2.000",0.04]
[null,"De 2.001 a 6.000",3.9800000000000002E-2]
[null,"De 6.001 a 7.200",3.9600000000000003E-2]
[null,"De 7.201 a 8.400",3.9399999999999998E-2]
[null,"De 8.401 a 9.600",3.9199999999999999E-2]
[null,"De 9.601 a 10.800",3.9E-2]
[null,"De 10.801 en adelante",3.8800000000000001E-2]
[]
[null,"Se aplica esta tarifa como Oferta especial para las llamadas de Larga Distancia Nacional que se originen y terminen dentro de las circunscripciones gerográficas que a continuación se detallan:"]
[null,"Región Sur:"]
[null,"Galápagos"]
[null,"Los Rios"]
[null,"Manabí"]
[null,"Azuay (excepto Cuenca)"]
[null,"Cañar"]
[null,"El Oro"]
[null,"Loja"]
[null,"Morona Santiago"]
[null,"Zamora"]
[null,"Guayas*******: El Triunfo, Yaguachi, Balzar, Montañita, Posorja, Daule, Pedro Carbo, Isidro Ayora, Nobol, Santa Lucía, Milago, Naranjito, Bucay, Marcelino Maridueña, Balao, Jujan, Naranjal, General Villamil, Simón Bolívar, Salinas, La Libertad, Palestina, Salitre, Lomas de Sargentillo, Manglaralto, Santa Elena, Ancón, San Pablo, Ayangue, Punta Blanca, Punta Carnero, Ballenita, Colimes, El Emplame."]
[null,"Nota (*******): Para destinos no especificados en la Provincia del Guayas se consideran como llamadas locales"]
[null,"Región Norte:"]
[null,"Bolivar"]
[null,"Chimborazo"]
[null,"Cotopaxi"]
[null,"Pastaza"]
[null,"Tunguragua"]
[null,"Carchi"]
[null,"Esmeraldas"]
[null,"Imbabura"]
[null,"Napo"]
[null,"Orellana"]
[null,"Sucumbios"]
[null,"Pichincha ********: Cayambe, Pedro Moncayo, Santo Domingo, Aloag, Mejia, Pedro Vicente Maldonado, La Bonita, Tiputini, San Miguel de los Bancos, Yaruqui, Chavezpamba, Selva Alegre, Nayón, Zambiza, Tanda, Miravalle."]
[null,"Nota (********): Para los destinos no especificados en la Provincia de Pichincha se consideran como llamadas locales"]
[null,"La prestación de este servicio está sujeto a facilidades técnicas y de cobertura"]
[null,"Condiciones para Llamadas de larga Distancia Nacional"]
[null,"Para las llamadas fuera de las Regiones enunciadas anteriormente se aplicará la tarifa de \"llamada de Larga Distancia Nacional\"."]
[null,"Vigencia: desde el  26 de septiembre de 2012."]
[]
[]
[null,"PLAN  TRONCAL IP COMERCIAL 60"]
[null,"El Plan \"Troncal IP Comercial 60\" está orientado al abonado comercial, para realizar y recibir llamadas mediante una troncal  IP de 60 canales de voz, asignándole numeración telefónica, la cual permitirá al cliente realizar y recibir llamadas gestionadas por su central telefónica  IP ó servidor de VoIP."]
[null,"Detalle","Plan Troncal IP Comercial 60","Observaciones"]
[null,"Derecho de Inscripción",3600,"Por una sola vez"]
[null,"Pensión Básica Mensual",420,"Mensual *"]
[]
[null,"(*) No incluye minutos libres"]
[]
[null,"Tarifas por volúmenes de consumo de tráfico mensual, para llamadas locales, nacionales y hacia redes celulares"]
[]
[null,"Minutos por la Troncal líneas, para llamadas locales","Precios por minuto"]
[null,"De 0 a 10.000",0.02]
[null,"De 10.001 a 31.250",1.9800000000000002E-2]
[null,"De 31.251 a 35.000",1.9599999999999999E-2]
[null,"De 35.001 a 38.750",1.9400000000000001E-2]
[null,"De 38.751 a 42.500",1.9300000000000001E-2]
[null,"De 42.501 a 46.250",1.9199999999999998E-2]
[null,"De 46.251 en adelante",1.9E-2]
[]
[null,"Minutos para el grupo de líneas, de llamadas nacionales ***","Precios por minuto"]
[null,"De 0 a 10.000",5.6000000000000001E-2]
[null,"De 10.001 a 26.250",5.5899999999999998E-2]
[null,"De 26.251 a 29.400",5.4600000000000003E-2]
[null,"De 29.401 a 32.550",5.45E-2]
[null,"De 32.551 a 35.700",5.4399999999999997E-2]
[null,"De 35.701 a 38.850",5.3999999999999999E-2]
[null,"De 38.851 en adelante",4.7E-2]
[null,"(***) Ver condiciones para las llamadas de Larga Distancia Nacional"]
[]
[null,"Minutos para el grupo de canales, de llamadas a redes móviles***","Precios por minuto"]
[null,"De 0 a 4.000",0.14000000000000001]
[null,"De 4.001 a 14.500",0.13389999999999999]
[null,"De 14.501 a 17.500",0.13289999999999999]
[null,"De 17.501 a 20.500",0.13189999999999999]
[null,"De 20.501 a 23.500",0.13089999999999999]
[null,"De 23.501 a 26.500",0.12989999999999999]
[null,"De 26.501 a 30.010",0.12889999999999999]
[null,"(***) El precio de la llamada incluye el cargo de uso por interconexión hacia las redes de Conecel, Movistar o CNT E.P(ex Telecsa)"]
[]
[null,"Llamada de Larga Distancia Internacional"]
[]
[null,"Paises de Destino *****","Precio por minuto"]
[null,"USA y Canadá (fijo o móvil)",0.09]
[null,"España e Italia (fijo)",0.09]
[null,"España  (móvil)",0.21]
[null,"Italia  (móvil)",0.23]
[null,"Chile (fijo y Móvil)",0.22]
[null,"Bolivia (fijo y Móvil)",0.22]
[null,"Colombia y Perú (fijo)",0.13]
[null,"Venezuela (fijo y Móvil)",0.22]
[null,"Colombia y Perú (móvil)",0.19]
[null,"Argentina Fijo",0.13]
[null,"Argentina Móvil",0.2]
[null,"México (fijo y Móvil)",0.13]
[null,"China (fijo y Móvil)",0.25]
[null,"Costa Rica (fijo y Móvil)",0.19]
[null,"Cuba (fijo y Móvil)",1]
[null,"Japón (Fijo y Móvil)",0.3]
[null,"Corea del Norte",0.6]
[null,"Antártida",6.8]
[null,"Serbia ",0.5]
[null,"Resto de América(******)",0.22]
[null,"Países de Europa",0.35]
[null,"Móvil Marítimo",6.8]
[null,"Resto de Mundo *****",0.39]
[]
[null,"Nota:"]
[null,"(****) La tarifa final depende de las condiciones de terminación que se mantengan con las "]
[null,"        otras redes a nivel mundial."]
[null,"(*****) Se excluye Granada, Guyana Francesa, Guyana República, Haití, Honduras y Surinam para los cuales la tarifa es de US$0,300 por minuto para cada uno de los destinos."]
[null,"(******) Se excluye Diego García, Islas Ascensión, Islas Malvinas, Islas Norfolk, Groelandia móvil, Guinea Bissau, Kiribati, Nauru, Santo Tomé, Salomón Islas, Tokelau, Tavalu, República de Vanuatu, Wallisand Futura, destinos para los cuales la tarifa es de U$ 0.85 por minuto  para cada uno de los destinos."]
[]
[null,"Condiciones Comerciales:"]
[null,"Aplicable para áreas de cobertura y para abonados que tengan contratado el Plan Troncal IP Comercial 60"]
[null,"La prestación de este servicio está sujeta al pago de IVA, de conformidad a la Ley."]
[null,"Las tarifas se calculan con base al consumo promedio anualizado del abonado."]
[null,"La oferta especial para las llamadas de Larga Distancia Nacional es creada para el abonado comercial, y le permite realizar llamadas de Larga Distancia Nacional desde y hacia localidades previamente definidas en esta oferta."]
[null,"Minutos para el grupo de líneas, de llamadas nacionales (oferta Especial)","Precios por minuto"]
[null,"De 0 a 2.000",0.04]
[null,"De 2.001 a 6.000",3.9800000000000002E-2]
[null,"De 6.001 a 7.200",3.9600000000000003E-2]
[null,"De 7.201 a 8.400",3.9399999999999998E-2]
[null,"De 8.401 a 9.600",3.9199999999999999E-2]
[null,"De 9.601 a 10.800",3.9E-2]
[null,"De 10.801 en adelante",3.8800000000000001E-2]
[]
[null,"Se aplica esta tarifa como Oferta especial para las llamadas de Larga Distancia Nacional se originen y terminen dentro de las circunscripciones geográficas que a continuación se detallan:"]
[null,"Región Sur:"]
[null,"Galápagos"]
[null,"Los Rios"]
[null,"Manabí"]
[null,"Azuay (excepto Cuenca)"]
[null,"Cañar"]
[null,"El Oro"]
[null,"Loja"]
[null,"Morona Santiago"]
[null,"Zamora"]
[null,"Guayas*******: El Triunfo, Yaguachi, Balzar, Montañita, Posorja, Daule, Pedro Carbo, Isidro Ayora, Nobol, Santa Lucía, Milago, Naranjito, Bucay, Marcelino Maridueña, Balao, Jujan, Naranjal, General Villamil, Simón Bolívar, Salinas, La Libertad, Palestina, Salitre, Lomas de Sargentillo, Manglaralto, Santa Elena, Ancón, San Pablo, Ayangue, Punta Blanca, Punta Carnero, Ballenita, Colimes, El Emplame."]
[null,"Nota (*******): Para destinos no especificados en la Provincia del Guayas se consideran como llamadas locales"]
[null,"Región Norte:"]
[null,"Bolivar"]
[null,"Chimborazo"]
[null,"Cotopaxi"]
[null,"Pastaza"]
[null,"Tunguragua"]
[null,"Carchi"]
[null,"Esmeraldas"]
[null,"Imbabura"]
[null,"Napo"]
[null,"Orellana"]
[null,"Sucumbios"]
[null,"Pichincha ********: Cayambe, Pedro Moncayo, Santo Domingo, Aloag, Mejia, Pedro Vicente Maldonado, La Bonita, Tiputini, San Miguel de los Bancos, Yaruqui, Chavezpamba, Selva Alegre, Nayón, Zambiza, Tanda, Miravalle."]
[null,"Nota (********): Para los destinos no especificados en la Provincia de Pichincha se consideran como llamadas locales"]
[null,"La pretación de este servicio esta sujeto a facilidades técnicas y de cobertura"]
[null,"Condiciones para Llamadas de Larga Distancia Nacional"]
[null,"Para las llamadas fuera de las Regiones enunciadas anteriormente se aplicará la tarifa de \"llamada de Larga Distancia Nacional\"."]
[null,"Vigencia: desde el  26 septiembre de 2012."]
[]
[null,"PLAN  TRONCAL IP COMERCIAL 30"]
[null,"El Plan \"Troncal IP Comercial 30\" está orientado al abonado comercial, para realizar y recibir llamadas mediante una troncal  IP de 30 canales de voz, asignándole numeración telefónica, la cual permitirá al cliente realizar y recibir llamadas gestionadas por su central telefónica  IP ó servidor de VoIP."]
[null,"Detalle","Plan Troncal IP Comercial 30","Observaciones"]
[null,"Derecho de Inscripción","$ 1,800","Por una sola vez"]
[null,"Pensión Básica Mensual",210,"Mensual *"]
[]
[null,"(*) No incluye minutos libres"]
[]
[]
[null,"Tarifas por volúmenes de consumo de tráfico mensual, para llamadas locales, nacionales y hacia redes celulares"]
[]
[null,"Minutos por la Troncal líneas, para llamadas locales","Precios por minuto"]
[null,"De 0 a 10.000",0.02]
[null,"De 10.001 a 31.250",1.9800000000000002E-2]
[null,"De 31.251 a 35.000",1.9599999999999999E-2]
[null,"De 35.001 a 38.750",1.9400000000000001E-2]
[null,"De 38.751 a 42.500",1.9300000000000001E-2]
[null,"De 42.501 a 46.250",1.9199999999999998E-2]
[null,"De 46.251 en adelante",1.9E-2]
[]
[null,"Minutos para el grupo de líneas, de llamadas nacionales ***","Precios por minuto"]
[null,"De 0 a 10.000",5.6000000000000001E-2]
[null,"De 10.001 a 26.250",5.5899999999999998E-2]
[null,"De 26.251 a 29.400",5.4600000000000003E-2]
[null,"De 29.401 a 32.550",5.45E-2]
[null,"De 32.551 a 35.700",5.4399999999999997E-2]
[null,"De 35.701 a 38.850",5.3999999999999999E-2]
[null,"De 38.851 en adelante",4.7E-2]
[null,"(***) Ver condiciones para las llamadas de Larga Distancia Nacional"]
[]
[null,"Minutos para el grupo de líneas, de llamadas a redes móviles***","Precios por minuto"]
[null,"De 0 a 4.000",0.14000000000000001]
[null,"De 4.001 a 14.500",0.13389999999999999]
[null,"De 14.501 a 17.500",0.13289999999999999]
[null,"De 17.501 a 20.500",0.13189999999999999]
[null,"De 20.501 a 23.500",0.13089999999999999]
[null,"De 23.501 a 26.500",0.12989999999999999]
[null,"De 26.501 a 30.010",0.12889999999999999]
[null,"(***) El precio de la llamada incluye el cargo de uso por interconexión hacia las redes de Conecel, Movistar o CNT E.P(ex Telecsa)"]
[]
[null,"Llamada de Larga Distancia Internacional"]
[]
[null,"Paises de Destino *****","Precio por minuto"]
[null,"USA y Canadá (fijo o móvil)",0.09]
[null,"España e Italia (fijo)",0.09]
[null,"España  (móvil)",0.21]
[null,"Italia  (móvil)",0.23]
[null,"Chile (fijo uy Móvil)",0.22]
[null,"Bolivia (fijo y Móvil)",0.22]
[null,"Colombia y Perú (fijo)",0.13]
[null,"Venezuela (fijo y Móvil)",0.22]
[null,"Colombia y Perú (móvil)",0.19]
[null,"Argentina Fijo",0.13]
[null,"Argentina Móvil",0.2]
[null,"México (fijo y Móvil)",0.13]
[null,"China (fijo y Móvil)",0.25]
[null,"Costa Rica (fijo y Móvil)",0.19]
[null,"Cuba (fijo y Móvil)",1]
[null,"Japón (Fijo y Móvil)",0.3]
[null,"Corea del Norte",0.6]
[null,"Antártida",6.8]
[null,"Serbia Fijo",0.5]
[null,"Serbia Móvil",0.5]
[null,"Resto de América(******)",0.22]
[null,"Países de Europa",0.35]
[null,"Móvil Marítimo",6.8]
[null,"Resto de Mundo *****",0.39]
[]
[null,"Nota:"]
[null,"(****) La tarifa final depende de las condiciones de terminación que se mantengan con las "]
[null,"        otras redes a nivel mundial."]
[null,"(*****) Se excluye Granada, Guyana Francesa, Guyana República, Haití, Honduras y Surinam para los cuales la tarifa es de US$0,300 por minuto para cada uno de los destinos."]
[null,"(******) Se excluye Diego García, Islas Ascensión, Islas Malvinas, Islas Norfolk, Groelandia móvil, Guinea Bissau, Kiribati, Nauru, Santo Tomé, Salomón Islas, Tokelau, Tavalu, República de Vanuatu, Wallisand Futura, destinos para los cuales la tarifa es de U$ 0.85 por minuto  para cada uno de los destinos."]
[]
[null,"Condiciones Comerciales:"]
[null,"Aplicable para áreas de cobertura y para abonados que tengan contratado el Plan Troncal IP Comercial 30."]
[null,"La prestación de este servicio está sujeta al pago de IVA, de conformidad a la Ley."]
[null,"Las tarifas se calculan con base al consumo promedio anualizado del abonado."]
[null,"La oferta especial para las llamadas de Larga Distancia Nacional es creada para el abonado comercial, y le permite realizar llamadas de Larga Distancia Nacional desde y hacia localidades previamente definidas en esta oferta."]
[null,"Minutos para el grupo de líneas, de llamadas nacionales (oferta Especial)","Precios por minuto"]
[null,"De 0 a 2.000",0.04]
[null,"De 2.001 a 6.000",3.9800000000000002E-2]
[null,"De 6.001 a 7.200",3.9600000000000003E-2]
[null,"De 7.201 a 8.400",3.9399999999999998E-2]
[null,"De 8.401 a 9.600",3.9199999999999999E-2]
[null,"De 9.601 a 10.800",3.9E-2]
[null,"De 10.801 en adelante",3.8800000000000001E-2]
[]
[null,"Se aplica esta tarifa como Oferta especial para las llamadas de Larga Distancia Nacional se originen y terminen dentro de las circunscripciones geográficas que a continuación se detallan:"]
[null,"Región Sur:"]
[null,"Galápagos"]
[null,"Los Rios"]
[null,"Manabí"]
[null,"Azuay (excepto Cuenca)"]
[null,"Cañar"]
[null,"El Oro"]
[null,"Loja"]
[null,"Morona Santiago"]
[null,"Zamora"]
[null,"Guayas*******: El Triunfo, Yaguachi, Balzar, Montañita, Posorja, Daule, Pedro Carbo, Isidro Ayora, Nobol, Santa Lucía, Milago, Naranjito, Bucay, Marcelino Maridueña, Balao, Jujan, Naranjal, General Villamil, Simón Bolívar, Salinas, La Libertad, Palestina, Salitre, Lomas de Sargentillo, Manglaralto, Santa Elena, Ancón, San Pablo, Ayangue, Punta Blanca, Punta Carnero, Ballenita, Colimes, El Emplame."]
[null,"Nota (*******): Para destinos no especificados en la Provincia del Guayas se consideran como llamadas locales"]
[null,"Región Norte:"]
[null,"Bolivar"]
[null,"Chimborazo"]
[null,"Cotopaxi"]
[null,"Pastaza"]
[null,"Tunguragua"]
[null,"Carchi"]
[null,"Esmeraldas"]
[null,"Imbabura"]
[null,"Napo"]
[null,"Orellana"]
[null,"Sucumbios"]
[null,"Pichincha ********: Cayambe, Pedro Moncayo, Santo Domingo, Aloag, Mejia, Pedro Vicente Maldonado, La Bonita, Tiputini, San Miguel de los Bancos, Yaruqui, Chavezpamba, Selva Alegre, Nayón, Zambiza, Tanda, Miravalle."]
[null,"Nota (********): Para los destinos no especificados en la Provincia de Pichincha se consideran como llamadas locales"]
[null,"La pretación de este servicio esta sujeto a facilidades técnicas y de cobertura"]
[null,"Condiciones para Llamadas de Larga Distancia Nacional"]
[null,"Para las llamadas fuera de las Regiones enunciadas anteriormente se aplicará la tarifa de \"llamada de Larga Distancia Nacional\"."]
[null,"Vigencia: desde el  26 de septiembre de 2012."]
[]
[null,"PLAN TRONCAL IP COMERCIAL 5"]
[null,"El Plan \"Troncal IP Comercial 5\" está orientado al abonado comercial, para realizar y recibir llamadas mediante una troncal  IP de 5 canales de voz, asignándole numeración telefónica, la cual permitirá al cliente realizar y recibir llamadas gestionadas por su central telefónica  IP ó servidor de VoIP."]
[null,"Detalle","Plan Troncal IP Comercial 5 ","Observaciones"]
[null,"Derecho de Inscripción","$ 528,00 ","Por una sola vez"]
[null,"Pensión Básica Mensual",35,"Mensual *"]
[]
[null,"(*) No incluye minutos libres"]
[]
[]
[null,"Tarifas por volúmenes de consumo de tráfico mensual, para llamadas locales, nacionales y hacia redes celulares"]
[]
[null,"Minutos por la troncal de líneas, para llamadas locales","Precios por minuto"]
[null,"De 0 a 1.665",0.02]
[null,"De 1.666 a 5.210",1.9800000000000002E-2]
[null,"De 5.211 a 5.835",1.9599999999999999E-2]
[null,"De 5.836 a 6.460",1.9400000000000001E-2]
[null,"De 6.461 a 7.085",1.9300000000000001E-2]
[null,"De 7.086 a 7.710",1.9199999999999998E-2]
[null,"De 7.711 en adelante",1.9E-2]
[]
[null,"Minutos para el grupo de líneas, de llamadas nacionales ***","Precios por minuto"]
[null,"De 0 a 1.665",5.6000000000000001E-2]
[null,"De 1.666 a 4.375",5.5899999999999998E-2]
[null,"De 4.376 a 4.900",5.4600000000000003E-2]
[null,"De 4.901 a 5.425",5.45E-2]
[null,"De 5.426 a 5.950",5.4399999999999997E-2]
[null,"De 5.951 a 6.475",5.3999999999999999E-2]
[null,"De 6.476 en adelante",4.7E-2]
[null,"(**) Ver condiciones para las llamadas de Larga Distancia Nacional"]
[]
[null,"Minutos para el grupo de líneas, de llamadas a redes móviles***","Precios por minuto"]
[null,"De 0 a 4.000",0.14000000000000001]
[null,"De 4.001 a 14.500",0.13389999999999999]
[null,"De 14.501 a 17.500",0.13289999999999999]
[null,"De 17.501 a 20.500",0.13189999999999999]
[null,"De 20.501 a 23.500",0.13089999999999999]
[null,"De 23.501 a 26.500",0.12989999999999999]
[null,"De 26.501 a 30.010",0.12889999999999999]
[null,"(****) El precio de la llamada incluye el cargo por interconexión hacia las redes de Porta, Movistar o Alegro"]
[null,"Llamada de Larga Distancia Internacional"]
[]
[null,"Paises de Destino *****","Precio por minuto"]
[null,"USA y Canadá (fijo o móvil)",0.09]
[null,"España e Italia (fijo)",0.09]
[null,"España  (móvil)",0.21]
[null,"Italia  (móvil)",0.23]
[null,"Chile (fijo uy Móvil)",0.22]
[null,"Bolivia (fijo y Móvil)",0.22]
[null,"Colombia y Perú (fijo)",0.13]
[null,"Venezuela (fijo y Móvil)",0.22]
[null,"Colombia y Perú (móvil)",0.19]
[null,"Argentina Fijo",0.13]
[null,"Argentina Móvil",0.2]
[null,"México (fijo y Móvil)",0.13]
[null,"China (fijo y Móvil)",0.25]
[null,"Costa Rica (fijo y Móvil)",0.19]
[null,"Cuba (fijo y Móvil)",1]
[null,"Japón (Fijo y Móvil)",0.3]
[null,"Corea del Norte",0.6]
[null,"Antártida",6.8]
[null,"Serbia Fijo",0.5]
[null,"Serbia Móvil",0.5]
[null,"Resto de América(******)",0.22]
[null,"Países de Europa",0.35]
[null,"Móvil Marítimo",6.8]
[null,"Resto de Mundo *****",0.39]
[]
[null,"Nota:"]
[null,"(****) La tarifa final depende de las condiciones de terminación que se mantengan con las "]
[null,"        otras redes a nivel mundial."]
[null,"(*****) Se excluye Granada, Guyana Francesa, Guyana República, Haití, Honduras y Surinam para los cuales la tarifa es de US$0,300 por minuto para cada uno de los destinos."]
[null,"(******) Se excluye Diego García, Islas Ascensión, Islas Malvinas, Islas Norfolk, Groelandia móvil, Guinea Bissau, Kiribati, Nauru, Santo Tomé, Salomón Islas, Tokelau, Tavalu, República de Vanuatu, Wallisand Futura, destinos para los cuales la tarifa es de U$ 0.85 por minuto  para cada uno de los destinos."]
[]
[null,"Condiciones Comerciales:"]
[null,"Aplicable para áreas de cobertura y para abonados que tengan contratado el Plan Troncal IP Comercial 5."]
[null,"La prestación de este servicio está sujeta al pago de IVA, de conformidad a la Ley."]
[null,"Las tarifas se calcularán con base al consumo promedio anualizada del abonado."]
[null,"La oferta especial para las llamadas de Larga Distancia Nacional es creada para el abonado comercial, y le permite realizar llamadas de Larga Distancia Nacional desde y hacia localidades previamente definidas en esta oferta."]
[null,"Minutos para el grupo de líneas, de llamadas nacionales (oferta Especial)","Precios por minuto"]
[null,"De 0 a 335",0.04]
[null,"De 336 a 1.000",3.9800000000000002E-2]
[null,"De 1.001 a 1.200",3.9600000000000003E-2]
[null,"De 1.201 a 1.400",3.9399999999999998E-2]
[null,"De 1.401 a 1.600",3.9199999999999999E-2]
[null,"De 1.601 a 1.800",3.9E-2]
[null,"De 1.801 en adelante",3.8800000000000001E-2]
[]
[null,"Se aplica esta tarifa como Oferta especial para las llamadas de Larga Distancia Nacional que se originen y terminen dentro de las circunscripciones geográficas que a continuación se detallan:"]
[null,"Región Sur:"]
[null,"Galápagos"]
[null,"Los Rios"]
[null,"Manabí"]
[null,"Azuay (excepto Cuenca)"]
[null,"Cañar"]
[null,"El Oro"]
[null,"Loja"]
[null,"Morona Santiago"]
[null,"Zamora"]
[null,"Guayas*******: El Triunfo, Yaguachi, Balzar, Montañita, Posorja, Daule, Pedro Carbo, Isidro Ayora, Nobol, Santa Lucía, Milago, Naranjito, Bucay, Marcelino Maridueña, Balao, Jujan, Naranjal, General Villamil, Simón Bolívar, Salinas, La Libertad, Palestina, Salitre, Lomas de Sargentillo, Manglaralto, Santa Elena, Ancón, San Pablo, Ayangue, Punta Blanca, Punta Carnero, Ballenita, Colimes, El Emplame."]
[null,"Nota (*******): Para destinos no especificados en la Provincia del Guayas se consideran como llamadas locales"]
[null,"Región Norte:"]
[null,"Bolivar"]
[null,"Chimborazo"]
[null,"Cotopaxi"]
[null,"Pastaza"]
[null,"Tunguragua"]
[null,"Carchi"]
[null,"Esmeraldas"]
[null,"Imbabura"]
[null,"Napo"]
[null,"Orellana"]
[null,"Sucumbios"]
[null,"Pichincha ********: Cayambe, Pedro Moncayo, Santo Domingo, Aloag, Mejia, Pedro Vicente Maldonado, La Bonita, Tiputini, San Miguel de los Bancos, Yaruqui, Chavezpamba, Selva Alegre, Nayón, Zambiza, Tanda, Miravalle."]
[null,"Nota (********): Para los destinos no especificados en la Provincia de Pichincha se consideran como llamadas locales"]
[null,"La prestación de este servicio esta sujeto a facilidades técnicas y de cobertura"]
[null,"Condiciones para Llamadas de Larga Distancia Nacional"]
[null,"Para las llamadas fuera de las Regiones enunciadas anteriormente se aplicará la tarifa de \"llamada de Larga Distancia Nacional\"."]
[null,"Vigencia: desde el  26 de septiembre de 2012."]
[]
[]
[null,"PLAN  TRONCAL  IP COMERCIAL 15"]
[null,"El Plan \"Troncal IP Comercial 15\" está orientado al abonado comercial, para realizar y recibir llamadas mediante una troncal  IP de 15 canales de voz, asignándole numeración telefónica, la cual permitirá al cliente realizar y recibir llamadas gestionadas por su central telefónica  IP ó servidor de VoIP."]
[null,"Detalle","Plan Troncal IP Comercial 15","Observaciones"]
[null,"Derecho de Inscripción",900,"Por una sola vez"]
[null,"Pensión Básica Mensual",105,"Mensual *"]
[]
[null,"(*) No incluye minutos libres"]
[]
[null,"Tarifas por volúmenes de consumo de tráfico mensual, para llamadas locales, nacionales y hacia redes celulares"]
[]
[null,"Minutos por la troncal de canales, para llamadas locales","Precios por minuto"]
[null,"De 0 a 10.000",0.02]
[null,"De 10.001 a 31.250",1.9800000000000002E-2]
[null,"De 31.250 a 35.000",1.9599999999999999E-2]
[null,"De 35.001 a 38.750",1.9400000000000001E-2]
[null,"De 38.751 a 42.500",1.9300000000000001E-2]
[null,"De 42.501 a 46.250",1.9199999999999998E-2]
[null,"De 46.251 en adelante",1.9E-2]
[null,"(**) Ver condiciones para las llamadas de Larga Distancia Nacional"]
[]
[null,"Minutos para el grupo de canales, de llamadas nacionales **","Precios por minuto"]
[null,"De 0 a 10.000",5.6000000000000001E-2]
[null,"De 10.001 a 26.250",5.5899999999999998E-2]
[null,"De 26.251 a 29.400",5.4600000000000003E-2]
[null,"De 29.401 a 32.550",5.45E-2]
[null,"De 32.551 a 35.700",5.4399999999999997E-2]
[null,"De 35.701 a 38.850",5.3999999999999999E-2]
[null,"De 38.851 en adelante",4.7E-2]
[]
[null,"Minutos para el grupo de canales, de llamadas a redes móviles***","Precios por minuto**"]
[null,"De 0 a 4.000",0.14000000000000001]
[null,"De 4.001 a 14.500",0.13389999999999999]
[null,"De 14.501 a 17.500",0.13289999999999999]
[null,"De 17.501 a 20.500",0.13189999999999999]
[null,"De 20.501 a 23.500",0.13089999999999999]
[null,"De 23.501 a 26.500",0.12989999999999999]
[null,"De 26.501 a 30.010",0.12889999999999999]
[null,"(***) El precio de la llamada incluye el cargo por interconexión hacia las redes móviles de Claro, Movistar o CNT E.P (ex - Alegro)"]
[]
[null,"Llamada de Larga Distancia Internacional"]
[]
[null,"Paises de Destino ****","Precio por minuto"]
[null,"USA y Canadá (fijo o móvil)",0.09]
[null,"España e Italia (fijo)",0.09]
[null,"España  (móvil)",0.21]
[null,"Italia  (móvil)",0.23]
[null,"Chile (fijo uy Móvil)",0.22]
[null,"Bolivia (fijo y Móvil)",0.22]
[null,"Colombia y Perú (fijo)",0.13]
[null,"Venezuela (fijo y Móvil)",0.22]
[null,"Colombia y Perú (móvil)",0.19]
[null,"Argentina Fijo",0.13]
[null,"Argentina Móvil",0.2]
[null,"México (fijo y Móvil)",0.13]
[null,"China (fijo y Móvil)",0.25]
[null,"Costa Rica (fijo y Móvil)",0.19]
[null,"Cuba (fijo y Móvil)",1]
[null,"Japón (Fijo y Móvil)",0.3]
[null,"Corea del Norte",0.6]
[null,"Antártida",6.8]
[null,"Serbia",0.5]
[null,"Resto de América(******)",0.22]
[null,"Países de Europa",0.35]
[null,"Móvil Marítimo",6.8]
[null,"Resto de Mundo *****",0.39]
[]
[null,"Nota:"]
[null,"(****) La tarifa final depende de las condiciones de terminación que se mantengan con las otras redes a nivel mundial."]
[null,"(*****) Se excluye Granada, Guyana Francesa, Guyana República, Haití, Honduras y Surinam para los cuales la tarifa es de US$0,300 por minuto para cada uno de los destinos."]
[null,"(******) Se excluye Diego García, Islas Ascensión, Islas Malvinas, Islas Norfolk, Groelandia móvil, Guinea Bissau, Kiribati, Nauru, Santo Tomé, Salomón Islas, Tokelau, Tavalu, República de Vanuatu, Wallisand Futura, destinos para los cuales la tarifa es de U$ 0.85 por minuto  para cada uno de los destinos."]
[null,"Condiciones Comerciales:"]
[null,"Aplicable para áreas de cobertura y para abonados que tengan contratado el Plan Troncal IP Comercial 15."]
[null,"La prestación de este servicio está sujeta al pago de IVA, de conformidad a la Ley."]
[null,"Las tarifas se calcularán con base al consumo promedio anualizada del abonado."]
[null,"La oferta especial para las llamadas de Larga Distancia Nacional es creada para el abonado comercial, y le permite realizar llamadas de Larga Distancia Nacional desde y hacia localidades previamente definidas en esta oferta."]
[null,"Minutos para el grupo de canales, de llamadas nacionales (oferta Especial)","Precios por minuto"]
[null,"De 0 a 2.000",0.04]
[null,"De 2.001 a 6.000",3.9800000000000002E-2]
[null,"De 6.001 a 7.200",3.9600000000000003E-2]
[null,"De 7.201 a 8.400",3.9399999999999998E-2]
[null,"De 8.401 a 9.600",3.9199999999999999E-2]
[null,"De 9.601 a 10.800",3.9E-2]
[null,"De 10.801 en adelante",3.8800000000000001E-2]
[]
[null,"Se aplica esta tarifa como Oferta especial para las llamadas de Larga Distancia Nacional que se originen y terminen dentro de las circunscripciones geográficas que a continuación se detallan:"]
[null,"Región Sur:"]
[null,"Galápagos"]
[null,"Los Rios"]
[null,"Manabí"]
[null,"Azuay (excepto Cuenca)"]
[null,"Cañar"]
[null,"El Oro"]
[null,"Loja"]
[null,"Morona Santiago"]
[null,"Zamora"]
[null,"Guayas*******: El Triunfo, Yaguachi, Balzar, Montañita, Posorja, Daule, Pedro Carbo, Isidro Ayora, Nobol, Santa Lucía, Milago, Naranjito, Bucay, Marcelino Maridueña, Balao, Jujan, Naranjal, General Villamil, Simón Bolívar, Salinas, La Libertad, Palestina, Salitre, Lomas de Sargentillo, Manglaralto, Santa Elena, Ancón, San Pablo, Ayangue, Punta Blanca, Punta Carnero, Ballenita, Colimes, El Emplame."]
[null,"Nota (*******): Para destinos no especificados en la Provincia del Guayas se consideran como llamadas locales"]
[null,"Región Norte:"]
[null,"Bolivar"]
[null,"Chimborazo"]
[null,"Cotopaxi"]
[null,"Pastaza"]
[null,"Tunguragua"]
[null,"Carchi"]
[null,"Esmeraldas"]
[null,"Imbabura"]
[null,"Napo"]
[null,"Orellana"]
[null,"Sucumbios"]
[null,"Pichincha ********: Cayambe, Pedro Moncayo, Santo Domingo, Aloag, Mejia, Pedro Vicente Maldonado, La Bonita, Tiputini, San Miguel de los Bancos, Yaruqui, Chavezpamba, Selva Alegre, Nayón, Zambiza, Tanda, Miravalle."]
[null,"Nota (********): Para los destinos no especificados en la Provincia de Pichincha se consideran como llamadas locales"]
[null,"La prestación de este servicio esta sujeto a facilidades técnicas y de cobertura"]
[null,"Condiciones para Llamadas de Larga Distancia Nacional"]
[null,"Para las llamadas fuera de las Regiones enunciadas anteriormente se aplicará la tarifa de \"llamada de Larga Distancia Nacional\"."]
[null,"Vigencia: desde el  26 de septiembre de 2012."]
[]
[]
[null,"TRONCAL COMERCIAL IP ISDN PRI"]
[null,"El Plan \"Troncal Comercial IP ISDN PRI\" está orientado al abonado comercial, para realizar y recibir llamadas mediante  una troncal IP ISDN PRI, asignándole numeración telefónica, la cual permitirá al cliente realizar y recibir llamadas gestionadas por su central telefónica."]
[null,"Detalle","Plan Troncal Comercial  IP ISDN PRI","Observaciones"]
[null,"Derecho de Inscripción",1800,"Por una sola vez"]
[null,"Pensión Básica Mensual",210,"Mensual *"]
[]
[null,"(*) No incluye minutos libres"]
[]
[]
[null,"Tarifas por volúmenes de consumo de tráfico mensual, para llamadas locales, nacionales y hacia redes celulares"]
[]
[null,"Minutos por la troncal de líneas, para llamadas locales","Precios por minuto"]
[null,"De 0 a 10.000",0.02]
[null,"De 10.001 a 31.250",1.9800000000000002E-2]
[null,"De 31.251 a 35.000",1.9599999999999999E-2]
[null,"De 35.001 a 38.750",1.9400000000000001E-2]
[null,"De 38.751 a 42.500",1.9300000000000001E-2]
[null,"De 42.501 a 46.250",1.9199999999999998E-2]
[null,"De 46.251 en adelante",1.9E-2]
[]
[null,"Minutos para el grupo de líneas, de llamadas nacionales **","Precios por minuto"]
[null,"De 0 a 10.000",5.6000000000000001E-2]
[null,"De 10.001 a 26.250",5.5899999999999998E-2]
[null,"De 26.251 a 29.400",5.4600000000000003E-2]
[null,"De 29.401 a 32.550",5.45E-2]
[null,"De 32.551 a 35.700",5.4399999999999997E-2]
[null,"De 35.701 a 38.850",5.3999999999999999E-2]
[null,"De 38.851 en adelante",4.7E-2]
[null,"(**) Ver condiciones para las llamadas de Larga Distancia Nacional"]
[]
[null,"Minutos para el grupo de líneas, de llamadas a redes móviles","Precios por minuto***"]
[null,"De 0 a 4.000",0.14000000000000001]
[null,"De 4.001 a 14.500",0.13389999999999999]
[null,"De 14.501 a 17.500",0.13289999999999999]
[null,"De 17.501 a 20.500",0.13189999999999999]
[null,"De 20.501 a 23.500",0.13089999999999999]
[null,"De 23.501 a 26.500",0.12989999999999999]
[null,"De 26.501 a 30.010",0.12889999999999999]
[null,"(***) El precio de la llamada incluye el cargo por interconexión hacia las redes móviles de Claro, Movistar o CNT E.P (ex - Alegro)"]
[]
[null,"Llamada de Larga Distancia Internacional"]
[]
[null,"Paises de Destino *****","Precio por minuto"]
[null,"USA y Canadá (fijo o móvil)",0.09]
[null,"España e Italia (fijo)",0.09]
[null,"España  (móvil)",0.21]
[null,"Italia  (móvil)",0.23]
[null,"Chile (fijo uy Móvil)",0.22]
[null,"Bolivia (fijo y Móvil)",0.22]
[null,"Colombia y Perú (fijo)",0.13]
[null,"Venezuela (fijo y Móvil)",0.22]
[null,"Colombia y Perú (móvil)",0.19]
[null,"Argentina Fijo",0.13]
[null,"Argentina Móvil",0.2]
[null,"México (fijo y Móvil)",0.13]
[null,"China (fijo y Móvil)",0.25]
[null,"Costa Rica (fijo y Móvil)",0.19]
[null,"Cuba (fijo y Móvil)",1]
[null,"Japón (Fijo y Móvil)",0.3]
[null,"Corea del Norte",0.6]
[null,"Antártida",6.8]
[null,"Serbia Fijo",0.5]
[null,"Serbia Móvil",0.5]
[null,"Resto de América(******)",0.22]
[null,"Países de Europa",0.35]
[null,"Móvil Marítimo",6.8]
[null,"Resto de Mundo *****",0.39]
[]
[null,"Nota:"]
[null,"(****) La tarifa final depende de las condiciones de terminación que se mantengan con las "]
[null,"        otras redes a nivel mundial."]
[null,"(*****) Se excluye Granada, Guyana Francesa, Guyana República, Haití, Honduras y Surinam para los cuales la tarifa es de US$0,300 por minuto para cada uno de los destinos."]
[null,"(******) Se excluye Diego García, Islas Ascensión, Islas Malvinas, Islas Norfolk, Groelandia móvil, Guinea Bissau, Kiribati, Nauru, Santo Tomé, Salomón Islas, Tokelau, Tavalu, República de Vanuatu, Wallisand Futura, destinos para los cuales la tarifa es de U$ 0.85 por minuto  para cada uno de los destinos."]
[]
[null,"Condiciones Comerciales:"]
[null,"Aplicable para áreas de cobertura y para abonados que tengan contratado el Plan Troncal Comercial IP ISDN PRI"]
[null,"La prestación de este servicio está sujeta al pago de IVA, de conformidad a la Ley."]
[null,"Las tarifas se calcularán con base al consumo promedio anualizada del abonado."]
[null,"La oferta especial para las llamadas de Larga Distancia Nacional es creada para el abonado comercial, y le permite realizar llamadas de Larga Distancia Nacional desde y hacia localidades previamente definidas en esta oferta."]
[null,"Minutos para el grupo de líneas, de llamadas nacionales (oferta Especial)","Precios por minuto"]
[null,"De 0 a 2.000",0.04]
[null,"De 2.001 a 6.000",3.9800000000000002E-2]
[null,"De 6.001 a 7.200",3.9600000000000003E-2]
[null,"De 7.201 a 8.400",3.9399999999999998E-2]
[null,"De 8.401 a 9.600",3.9199999999999999E-2]
[null,"De 9.601 a 10.800",3.9E-2]
[null,"De 10.801 en adelante",3.8800000000000001E-2]
[]
[null,"Se aplica esta tarifa como Oferta especial para las llamadas de Larga Distancia Nacional que se originen y terminen dentro de las circunscripciones geográficas que a continuación se detallan:"]
[null,"Región Sur:"]
[null,"Galápagos"]
[null,"Los Rios"]
[null,"Manabí"]
[null,"Azuay (excepto Cuenca)"]
[null,"Cañar"]
[null,"El Oro"]
[null,"Loja"]
[null,"Morona Santiago"]
[null,"Zamora"]
[null,"Guayas*******: El Triunfo, Yaguachi, Balzar, Montañita, Posorja, Daule, Pedro Carbo, Isidro Ayora, Nobol, Santa Lucía, Milago, Naranjito, Bucay, Marcelino Maridueña, Balao, Jujan, Naranjal, General Villamil, Simón Bolívar, Salinas, La Libertad, Palestina, Salitre, Lomas de Sargentillo, Manglaralto, Santa Elena, Ancón, San Pablo, Ayangue, Punta Blanca, Punta Carnero, Ballenita, Colimes, El Emplame."]
[null,"Nota (*******): Para destinos no especificados en la Provincia del Guayas se consideran como llamadas locales"]
[null,"Región Norte:"]
[null,"Bolivar"]
[null,"Chimborazo"]
[null,"Cotopaxi"]
[null,"Pastaza"]
[null,"Tunguragua"]
[null,"Carchi"]
[null,"Esmeraldas"]
[null,"Imbabura"]
[null,"Napo"]
[null,"Orellana"]
[null,"Sucumbios"]
[null,"Pichincha ********: Cayambe, Pedro Moncayo, Santo Domingo, Aloag, Mejia, Pedro Vicente Maldonado, La Bonita, Tiputini, San Miguel de los Bancos, Yaruqui, Chavezpamba, Selva Alegre, Nayón, Zambiza, Tanda, Miravalle."]
[null,"Nota (********): Para los destinos no especificados en la Provincia de Pichincha se consideran como llamadas locales"]
[null,"La prestación de este servicio esta sujeto a facilidades técnicas y de cobertura"]
[null,"Condiciones para Llamadas de Larga Distancia Nacional"]
[null,"Para las llamadas fuera de las Regiones enunciadas anteriormente se aplicará la tarifa de \"llamada de Larga Distancia Nacional\"."]
[null,"Vigencia: desde el  26 de septiembre de 2012."]
[]
[]
[null,"PLAN  TRONCAL COMERCIAL IP ISDN PRI 60"]
[null,"El Plan \"Troncal Comercial  IP ISDN PRI 60\" está orientado al abonado comercial, para realizar y recibir llamadas mediante una troncal  IP ISDN PRI 60, asignándole numeración telefónica, la cual permitirá al cliente realizar y recibir llamadas gestionadas por su central telefónica-"]
[null,"Detalle","Plan Troncal Comercial IP ISDN PRI 60 ","Observaciones"]
[null,"Derecho de Inscripción",3600,"Por una sola vez"]
[null,"Pensión Básica Mensual",420,"Mensual *"]
[]
[null,"(*) No incluye minutos libres"]
[]
[]
[null,"Tarifas por volúmenes de consumo de tráfico mensual, para llamadas locales, nacionales y hacia redes celulares"]
[]
[null,"Minutos por la Troncal de líneas, para llamadas locales","Precios por minuto"]
[null,"De 0 a 10.000",0.02]
[null,"De 10.001 a 31.250",1.9800000000000002E-2]
[null,"De 31.251 a 35.000",1.9599999999999999E-2]
[null,"De 35.001 a 38.750",1.9400000000000001E-2]
[null,"De 38.751 a 42.500",1.9300000000000001E-2]
[null,"De 42.501 a 46.250",1.9199999999999998E-2]
[null,"De 46.251 en adelante",1.9E-2]
[]
[null,"Minutos para el grupo de líneas, de llamadas nacionales **","Precios por minuto"]
[null,"De 0 a 10.000",5.6000000000000001E-2]
[null,"De 10.001 a 26.250",5.5899999999999998E-2]
[null,"De 26.251 a 29.400",5.4600000000000003E-2]
[null,"De 29.401 a 32.550",5.45E-2]
[null,"De 32.551 a 35.700",5.4399999999999997E-2]
[null,"De 35.701 a 38.850",5.3999999999999999E-2]
[null,"De 38.851 en adelante",4.7E-2]
[null,"(**) Ver condiciones para las llamadas de Larga Distancia Nacional"]
[]
[null,"Minutos para el grupo de líneas, de llamadas a redes móviles","Precios por minuto***"]
[null,"De 0 a 4.000",0.14000000000000001]
[null,"De 4.001 a 14.500",0.13389999999999999]
[null,"De 14.501 a 17.500",0.13289999999999999]
[null,"De 17.501 a 20.500",0.13189999999999999]
[null,"De 20.501 a 23.500",0.13089999999999999]
[null,"De 23.501 a 26.500",0.12989999999999999]
[null,"De 26.501 a 30.010",0.12889999999999999]
[null,"(***) El precio de la llamada incluye el cargo de uso por interconexión hacia las redes de Claro, Movistar o CNT E.P(ex Telecsa)"]
[]
[null,"Llamada de Larga Distancia Internacional"]
[]
[null,"Paises de Destino *****","Precio por minuto"]
[null,"USA y Canadá (fijo o móvil)",0.09]
[null,"España e Italia (fijo)",0.09]
[null,"España  (móvil)",0.21]
[null,"Italia  (móvil)",0.23]
[null,"Chile (fijo uy Móvil)",0.22]
[null,"Bolivia (fijo y Móvil)",0.22]
[null,"Colombia y Perú (fijo)",0.13]
[null,"Venezuela (fijo y Móvil)",0.22]
[null,"Colombia y Perú (móvil)",0.19]
[null,"Argentina Fijo",0.13]
[null,"Argentina Móvil",0.2]
[null,"México (fijo y Móvil)",0.13]
[null,"China (fijo y Móvil)",0.25]
[null,"Costa Rica (fijo y Móvil)",0.19]
[null,"Cuba (fijo y Móvil)",1]
[null,"Japón (Fijo y Móvil)",0.3]
[null,"Corea del Norte",0.6]
[null,"Antártida",6.8]
[null,"Serbia Fijo",0.5]
[null,"Serbia Móvil",0.5]
[null,"Resto de América(******)",0.22]
[null,"Países de Europa",0.35]
[null,"Móvil Marítimo",6.8]
[null,"Resto de Mundo *****",0.39]
[null,"Nota:"]
[null,"(****) La tarifa final depende de las condiciones de terminación que se mantengan con las "]
[null,"        otras redes a nivel mundial."]
[null,"(*****) Se excluye Granada, Guyana Francesa, Guyana República, Haití, Honduras y Surinam para los cuales la tarifa es de US$0,300 por minuto para cada uno de los destinos."]
[null,"(******) Se excluye Diego García, Islas Ascensión, Islas Malvinas, Islas Norfolk, Groelandia móvil, Guinea Bissau, Kiribati, Nauru, Santo Tomé, Salomón Islas, Tokelau, Tavalu, República de Vanuatu, Wallisand Futura, destinos para los cuales la tarifa es de U$ 0.85 por minuto  para cada uno de los destinos."]
[]
[null,"Condiciones Comerciales:"]
[null,"Aplicable para áreas de cobertura y para abonados que tengan contratado el Plan Troncal  Comercial IP SDN PRI 60."]
[null,"La prestación de este servicio está sujeta al pago de IVA, de conformidad a la Ley."]
[null,"Las tarifas se calculan con base al consumo promedio anualizado del abonado."]
[null,"La oferta especial para las llamadas de Larga Distancia Nacional es creada para el abonado comercial, y le permite realizar llamadas de Larga Distancia Nacional desde y hacia localidades previamente definidas en esta oferta."]
[null,"Minutos para el grupo de líneas, de llamadas nacionales (oferta Especial)","Precios por minuto"]
[null,"De 0 a 2.000",0.04]
[null,"De 2.001 a 6.000",3.9800000000000002E-2]
[null,"De 6.001 a 7.200",3.9600000000000003E-2]
[null,"De 7.201 a 8.400",3.9399999999999998E-2]
[null,"De 8.401 a 9.600",3.9199999999999999E-2]
[null,"De 9.601 a 10.800",3.9E-2]
[null,"De 10.801 en adelante",3.8800000000000001E-2]
[]
[null,"Se aplica esta tarifa como Oferta especial para las llamadas de Larga Distancia Nacional se originen y terminen dentro de las circunscripciones geográficas que a continuación se detallan:"]
[null,"Región Sur:"]
[null,"Galápagos"]
[null,"Los Rios"]
[null,"Manabí"]
[null,"Azuay (excepto Cuenca)"]
[null,"Cañar"]
[null,"El Oro"]
[null,"Loja"]
[null,"Morona Santiago"]
[null,"Zamora"]
[null,"Guayas*******: El Triunfo, Yaguachi, Balzar, Montañita, Posorja, Daule, Pedro Carbo, Isidro Ayora, Nobol, Santa Lucía, Milago, Naranjito, Bucay, Marcelino Maridueña, Balao, Jujan, Naranjal, General Villamil, Simón Bolívar, Salinas, La Libertad, Palestina, Salitre, Lomas de Sargentillo, Manglaralto, Santa Elena, Ancón, San Pablo, Ayangue, Punta Blanca, Punta Carnero, Ballenita, Colimes, El Emplame."]
[null,"Nota (*******): Para destinos no especificados en la Provincia del Guayas se consideran como llamadas locales"]
[null,"Región Norte:"]
[null,"Bolivar"]
[null,"Chimborazo"]
[null,"Cotopaxi"]
[null,"Pastaza"]
[null,"Tunguragua"]
[null,"Carchi"]
[null,"Esmeraldas"]
[null,"Imbabura"]
[null,"Napo"]
[null,"Orellana"]
[null,"Sucumbios"]
[null,"Pichincha ********: Cayambe, Pedro Moncayo, Santo Domingo, Aloag, Mejia, Pedro Vicente Maldonado, La Bonita, Tiputini, San Miguel de los Bancos, Yaruqui, Chavezpamba, Selva Alegre, Nayón, Zambiza, Tanda, Miravalle."]
[null,"Nota (********): Para los destinos no especificados en la Provincia de Pichincha se consideran como llamadas locales"]
[null,"La pretación de este servicio esta sujeto a facilidades técnicas y de cobertura"]
[null,"Condiciones para Llamadas de Larga Distancia Nacional"]
[null,"Para las llamadas fuera de las Regiones enunciadas anteriormente se aplicará la tarifa de \"llamada de Larga Distancia Nacional\"."]
[null,"Vigencia: desde el  26 de septiembre de 2012."]
[]
[]
[null,"TRONCAL UNIDIRECCIONAL DE ENTRADA"]
[null,"El Plan \"Troncal Unidireccional de Entrada\" está orientado al sector comercail, únicamente para recibir llamadas mediante 30 canales de voz, en una interfaz (E1) , asignando numeración telefónica."]
[null,"Detalle","Plan Troncal Unidireccional de Entrada","Observaciones"]
[null,"Derecho de Inscripción",1800,"Por una sola vez"]
[null,"Pensión Básica Mensual",350,"Mensual *"]
[]
[null,"(*) No incluye minutos libres"]
[]
[]
[null,"Condiciones Comerciales:"]
[null,"Aplicable para áreas de cobertura y para abonados que tuviesen contratado el Plan \"Troncal Unidireccional de Entrada\"."]
[null,"La prestación de este servicio está sujeta al pago de IVA, de conformidad a la Ley."]
[null,"La prestación de este servicio está sujeto a facilidades técnicas de la cobertura"]
[null,"Vigencia: Indefinida.  Cualquier cambio de condiciones se notificará con 15 días de anticipación"]
[]
[]
[null,"PLAN LOCUTORIO"]
[null,"El Plan Locutorio se aplica a la reventa del servicio y se comercializa bajo la modalidad de cabinas telefónicas. Permite comunicaciones locales, nacionales, internacionales y a celulares."]
[null,"DETALLE","Plan Locutorio","Observaciones"]
[null,"Derecho de Inscripción",0,"-"]
[null,"Pensión Básica Mensual",5,"Mensual *"]
[null,"Llamada Local",4.4999999999999998E-2,"Por minuto "]
[null,"Llamada de Larga Distancia Nacional",7.0000000000000007E-2,"Por minuto"]
[null,"Llamada a Redes Móviles Celular:"]
[null,"Llamadas a CLARO"," $   0.115 **","Por minuto"]
[null,"Llamadas a MOVISTAR"," $   0.115**","Por minuto"]
[null,"Llamadas a CNT EP. (ex-ALEGRO)"," $   0.115**","Por minuto"]
[null,"Nota:"]
[null,"(*) Incluye minutos a devengarse según plan tarifario."]
[null,"(**)El precio de la llamada incluye el cargo por interconexión"]
[null,"Llamada de Larga Distancia Internacional"]
[null,"PAIS DE DESTINO***","PRECIO POR MINUTO"]
[null,"USA ",0.05]
[null,"Canadá ",0.05]
[null,"España fijo",0.05]
[null,"España móvil",0.22]
[null,"Italia fijo",0.05]
[null,"Italia móvil",0.27500000000000002]
[null,"Argentina Fijo",0.2]
[null,"Argentina Móvil",0.22]
[null,"Bolivia (fijo)",0.2]
[null,"Bolivia (móvil)",0.22]
[null,"Costa Rica Fijo",0.19]
[null,"Costa Rica Móvil",0.3]
[null,"Chile fijo",8.8999999999999996E-2]
[null,"Chile móvil",0.22]
[null,"Perú fijo",8.8999999999999996E-2]
[null,"Perú móvil",0.19]
[null,"Colombia fijo",0.09]
[null,"Colombia móvil",0.16]
[null,"Brasil móvil",0.28000000000000003]
[null,"Brasil fijo",8.8999999999999996E-2]
[null,"China fijo y móvil",0.2]
[null,"Cuba",1]
[null,"Japón",0.3]
[null,"México",0.19]
[null,"Corea del Norte",0.6]
[null,"Venezuela (Fijo)",0.2]
[null,"Venezuela (Móvil)",0.22]
[null,"Antártica",6.8]
[null,"Resto de América fijo (****)",0.2]
[null,"Resto de América móvil (****)",0.22]
[null,"Resto Europa fijo",0.27]
[null,"Resto Europa móvil",0.3]
[null,"Resto del Mundo (*****)",0.39]
[null,"Islas Ascensión",0.85]
[null,"Serbia",0.5]
[null,"Móvil Marítimo",6.8]
[null,"Nota:"]
[null,"(****) La tarifa final depende de las condiciones de terminación que se mantengan con las  otras redes a nivel mundial. "]
[null,"(****) Se excluye Granada, Guyana Francesa, Guyana República, Haití, Honduras y Surinam para los cuales la tarifa es de US$0,300 por minuto para cada uno de los destinos."]
[null,"(*****) Se excluye Diego García, Islas Malvinas, Islas Norfolk, Groelandia móvil, Guinea Bissau, Kiribati, Niue, Sant Pierre and Miguelon Santo Tomé, Salomón Islas, Tokelau, Tavalu, República de Vanuatu, Wallisand Futura, destinos para los cuales la tarifa es de U$ 0.75 por minuto  para cada uno de ellos."]
[null,"Condiciones Comerciales:"]
[null,"Aplicable para abonados que soliciten servicio telefónico para uso comercial"]
[null,"La prestación de este servicio está sujeta al pago de IVA, de conformidad con  la Ley."]
[null,"Requiere de la firma de un contrato de reventa de telefonía pública"]
[null,"La oferta especial para las llamadas de Larga Distancia Nacional es creada para el abonado comercial que tenga contratado el plan Locutorio y le permite realizar llamadas de Larga Distancia Nacional desde y hacia localidades previamente definidas en esta oferta."]
[null,"DETALLE","Oferta especial para llamadas de Larga Distancia nacional","Observaciones"]
[null,"Llamadas de larga Distancia Nacional",0.05,"Por Minuto"]
[null,"Se aplica esta tarifa como Oferta especial para las llamadas de Larga Distancia Nacional que se originen y terminen dentro de las circunscripciones geográficas que a continuación se detallan:"]
[null,"Región Sur:"]
[null,"Galápagos"]
[null,"Los Rios"]
[null,"Manabí"]
[null,"Azuay (excepto Cuenca)"]
[null,"Cañar"]
[null,"El Oro"]
[null,"Loja"]
[null,"Morona Santiago"]
[null,"Zamora"]
[null,"Guayas*******: El Triunfo, Yaguachi, Balzar, Montañita, Posorja, Daule, Pedro Carbo, Isidro Ayora, Nobol, Santa Lucía, Milago, Naranjito, Bucay, Marcelino Maridueña, Balao, Jujan, Naranjal, General Villamil, Simón Bolívar, Salinas, La Libertad, Palestina, Salitre, Lomas de Sargentillo, Manglaralto, Santa Elena, Ancón, San Pablo, Ayangue, Punta Blanca, Punta Carnero, Ballenita, Colimes, El Emplame."]
[null,"Nota (*******): Para destinos no especificados en la Provincia del Guayas se consideran como llamadas locales"]
[null,"Región Norte:"]
[null,"Bolivar"]
[null,"Chimborazo"]
[null,"Cotopaxi"]
[null,"Pastaza"]
[null,"Tunguragua"]
[null,"Carchi"]
[null,"Esmeraldas"]
[null,"Imbabura"]
[null,"Napo"]
[null,"Orellana"]
[null,"Sucumbios"]
[null,"Pichincha ********: Cayambe, Pedro Moncayo, Santo Domingo, Aloag, Mejia, Pedro Vicente Maldonado, La Bonita, Tiputini, San Miguel de los Bancos, Yaruqui, Chavezpamba, Selva Alegre, Nayón, Zambiza, Tanda, Miravalle."]
[null,"Nota (********): Para los destinos no especificados en la Provincia de Pichincha se consideran como llamadas locales"]
[null,"La prestación de este servicio está sujeto a facilidades técnicas y de cobertura."]
[null,"Condiciones para Llamada de Larga Distancia Nacional"]
[null,"Para las llamadas fuera de las Regiones enunciadas anteriormente se aplicará la tarifa de \"llamada de Larga Distancia Nacional\"."]
[null,"Vigencia: desde el 3 de diciembre de 2012.  Cualquier cambio de condiciones se notificará con 15 días de anticipación."]
[]
[null,"Oferta Especial para las llamadas de Larga Distancia Nacional aplicable a los planes  Comerciales"]
[null,"La Oferta especial para las llamadas de Larga Distancia Nacional es creada para el abonado comercial, que le permite realizar llamadas de Larga Distancia Nacional desde y hacia localidades previamente definidas en esta oferta."]
[null,"Precios: Para el Plan Troncal Comercial IP SDN PRI, Troncal Comercial IP SDN PRI 60, la tarifa por volumen de consumo es la soguiente:"]
[]
[null,"Detalle","Oferta Especial para llamadas de Larga Distancia Nacional","Observaciones"]
[null,"Plan Comercail Básico",0.04,"Por minuto"]
[null,"Plan Comercial 200",3.9E-2,"Por minuto"]
[null,"Plan Comercial 500",3.9E-2,"Por minuto"]
[null,"Plan Comercial 2PLAY",0.04,"Por minuto"]
[null,"Plan Locutorio",0.05,"Por minuto"]
[]
[null,"Para el Plan Troncal Comercial, Plan Call Center, Troncal Comercail ISDN PRI, Plan Trioncal IP Comercail 30, Plan Troncal Comercail IP ISDN PRI y Troncal Comercial IP ISDN PRI 60 la tarifa por volumen de consumo es la siguiente:"]
[]
[]
[]
[null,"Minutos para el grupo de líneas de llamadas","Precios por minuto"]
[null,"De 0 a 2000","$ 0,0400"]
[null,"De 2001 a 6000","$ 0,0398"]
[null,"De 6001 a 7200","$ 0,0396"]
[null,"De 7201 a 8400","$ 0,0394"]
[null,"De 8401 a 9600","$ 0,0392"]
[null,"De 9601 a 10800","$ 0,0390"]
[null,"De 10801 en adelante","$ 0,0388"]
[]
[null,"Para el Plan Troncal IP Comercial 5, Plan Troncal IP Comercail 15, y Plan Comercail Flex, la tarifa por volumen de consumo es la siguiente:"]
[]
[null,"Minutos para el grupo de líneas, de llamadas  Nacional (Oferta Especial)","Precios por minuto"]
[null,"De 0 a 335",0.04]
[null,"De 336 a 1,000",3.9800000000000002E-2]
[null,"De 1,001 a 1,200",3.9600000000000003E-2]
[null,"De 1.201 a 1.400",3.9399999999999998E-2]
[null,"De 1.401 a 1.600",3.9199999999999999E-2]
[null,"De 1.601 a 1.800",3.9E-2]
[null,"De 1.801 en adelante",3.8800000000000001E-2]
[]
[]
[null,"Condiciones Comerciales:"]
[null,"Se aplica esta tarifa como Oferta especial para las llamadas de Larga Distancia Nacional a las llamadas que se originen y terminen dentro de las circunscripciones geográficas que a continuación se detallan:"]
[null,"Región Sur:"]
[null,"Galápagos"]
[null,"Los Rios"]
[null,"Manabí"]
[null,"Azuay (excepto Cuenca)"]
[null,"Cañar"]
[null,"El Oro"]
[null,"Loja"]
[null,"Morona Santiago"]
[null,"Zamora"]
[null,"Guayas*: El Triunfo, Yaguachi, Balzar, Montañita, Posorja, Daule, Pedro Carbo, Isidro Ayora, Nobol, Santa Lucía, Milago, Naranjito, Bucay, Marcelino Maridueña, Balao, Jujan, Naranjal, General Villamil, Simón Bolívar, Salinas, La Libertad, Palestina, Salitre, Lomas de Sargentillo, Manglaralto, Santa Elena, Ancón, San Pablo, Ayangue, Punta Blanca, Punta Carnero, Ballenita, Colimes, El Emplame."]
[null,"Nota (*): Para destinos no especificados en la Provincia del Guayas se consideran como llamadas locales"]
[null,"Región Norte:"]
[null,"Bolivar"]
[null,"Chimborazo"]
[null,"Cotopaxi"]
[null,"Pastaza"]
[null,"Tunguragua"]
[null,"Carchi"]
[null,"Esmeraldas"]
[null,"Imbabura"]
[null,"Napo"]
[null,"Orellana"]
[null,"Sucumbios"]
[null,"Pichincha **: Cayambe, Pedro Moncayo, Santo Domingo, Aloag, Mejia, Pedro Vicente Maldonado, La Bonita, Tiputini, San Miguel de los Bancos, Yaruqui, Chavezpamba, Selva Alegre, Nayón, Zambiza, Tanda, Miravalle"]
[null,"Nota (**): Para los destinos no especificados en la Provincia de Pichincha se consideran como llamadas locales"]
[null,"Para las llamadas fuera de las Regiones enunciadas anteriormente se aplicará la tarifa de \"llamada de Larga Distancia Nacional\"."]
[null,"Aplicable para abonados que tengan contratado con Ecuadortelecom cualquier Plan de Telefonía Residencial o comercial."]
[null,"La prestación de este servicio está sujeta al pago de IVA, de conformidad con la Ley"]
[null,"La prestación de este servicio está sujeto a facilidades técnicas y de cobertura"]
[]
[null,"Vigencia: Indefinida.  Cualquier cambio de condiciones se notificará con 15 días de anticipación"]
[]
[]
[null,"ANEXO I"]
[null,"Especificaciones de Planes del Servicio de Acceso a Internet Banda Ancha"]
[null,"Se especifica las características de los planes de Internet  que se pueden contratar junto con el Plan Residencial y Comercail 2 Play"]
[null,"Banda Ancha 1024/512 kbps"]
[null,"Precio Mensual",18]
[null,"Velocidad de Bajada (Down load)","1024 kbps"]
[null,"Velocidad de Subida (Up load)","512 kbps"]
[null,"Nivel de Compartición","8:1"]
[null,"IP Privada",1]
[null,"Disponibilidad (720 horas)",0.995]
[]
[]
[null,"ANEXO II"]
[null,"Se especifica las características de los planes de Internet  Banda Ancha Fija que se pueden contratar junto con los planes Voz 250 y Voz 550"]
[null,"Banda Ancha 1000"]
[null,"Precio Mensual",18]
[null,"Velocidad de Bajada (Down load)","1024 kbps"]
[null,"Velocidad de Subida (Up load)","512 kbps"]
[null,"Nivel de Compartición","8:1"]
[null,"IP Dinámica",1]
[null,"Disponibilidad (720 horas)",0.995]
[]
[null,"Banda Ancha 1500"]
[null,"Precio Mensual",24.9]
[null,"Velocidad de Bajada (Down load)","1544 kbps"]
[null,"Velocidad de Subida (Up load)","512 kbps"]
[null,"Nivel de Compartición","8:1"]
[null,"IP Dinámica",1]
[null,"Disponibilidad (720 horas)",0.995]
[]
[null,"Banda Ancha 2000"]
[null,"Precio Mensual",29.9]
[null,"Velocidad de Bajada (Down load)","2048 kbps"]
[null,"Velocidad de Subida (Up load)","800 kbps"]
[null,"Nivel de Compartición","8:1"]
[null,"IP Dinámica",1]
[null,"Disponibilidad (720 horas)",0.995]
[]
[null,"Banda Ancha 3400"]
[null,"Precio Mensual",49.9]
[null,"Velocidad de Bajada (Down load)","3456 kbps"]
[null,"Velocidad de Subida (Up load)","800 kbps"]
[null,"Nivel de Compartición","8:1"]
[null,"IP Dinámica",1]
[null,"Disponibilidad (720 horas)",0.995]
[]
[null,"Banda Ancha 6000"]
[null,"Precio Mensual",84.9]
[null,"Velocidad de Bajada (Down load)","6016 kbps"]
[null,"Velocidad de Subida (Up load)","1024 kbps"]
[null,"Nivel de Compartición","8:1"]
[null,"IP Dinámica",1]
[null,"Disponibilidad (720 horas)",0.995]
[]
[null,"Banda Ancha 8000"]
[null,"Precio Mensual",95]
[null,"Velocidad de Bajada (Down load)","8192 kbps"]
[null,"Velocidad de Subida (Up load)","1024 kbps"]
[null,"Nivel de Compartición","8:1"]
[null,"IP Dinámica",1]
[null,"Disponibilidad (720 horas)",0.995]
[]
[]
[null,"Banda Ancha 15000"]
[null,"Precio Mensual",145]
[null,"Velocidad de Bajada (Down load)","15040 kbps"]
[null,"Velocidad de Subida (Up load)","2048 kbps"]
[null,"Nivel de Compartición","8:1"]
[null,"IP Dinámica",1]
[null,"Disponibilidad (720 horas)",0.995]
[]
[null,{"$f":"+B789","v":"Elaborado: SENATEL-DGP, Publicación:  mayo  2013"}]
[null,"Notas:"]
[null,"Fuente: ECUADORTELECOM S.A."]
[null,"No se incluye valor de los impuestos"]

{"sheet":"Level 3Ecuador","index":7,"n_rows":200,"n_cols":6,"rows_kept":200,"cut":false,"hidden":false,"merged":[[193,1,193,3],[173,1,173,3],[180,1,180,3],[169,1,169,4],[128,1,128,3],[186,1,186,3],[139,1,139,3],[160,1,160,3],[126,1,126,3],[103,1,103,3],[105,1,105,5],[148,1,148,3],[137,1,137,3],[162,1,162,4],[114,1,114,3],[117,1,117,3],[150,1,150,3]]}
[]
[null,"    Servicio de Telefonía Fija"]
[null,"      Plan Tarifario LEVEL 3 ECUADOR S.A."]
[]
[]
[]
[]
[null,"      Fecha de publicación: mayo de 2013"]
[]
[]
[]
[]
[]
[]
[]
[]
[]
[]
[]
[]
[]
[]
[]
[]
[]
[]
[]
[]
[]
[]
[]
[]
[]
[]
[]
[]
[]
[]
[]
[]
[]
[]
[]
[]
[]
[]
[]
[]
[]
[]
[]
[]
[]
[]
[]
[]
[]
[]
[]
[]
[]
[]
[]
[]
[]
[]
[]
[]
[]
[]
[]
[]
[]
[]
[]
[]
[]
[]
[]
[]
[]
[]
[]
[]
[]
[]
[]
[]
[]
[]
[]
[]
[]
[]
[]
[]
[]
[]
[]
[]
[]
[]
[]
[null,{"$f":"+Resumen!A127","v":"Elaborado: SENATEL-DGP, Publicación:  mayo  2013"}]
[]
[null,"NUEVOS PLANES COMERCIALES CAT C"]
[null,"Nomenclatura","Unidad \nUS $","PLAN C1","PLAN C2","PLAN C3"]
[null,"Derecho de Inscripción","US $ ",0,0,0]
[null,"Pensión Básica Mensual","USD / mes",0,0,0]
[null,"Tarifa de uso Local","USD / min.",1.9E-2,0.02,0.02]
[null,"Tarifa de uso Larga Distancia Nacional","USD / min.",2.5000000000000001E-2,2.5000000000000001E-2,3.5000000000000003E-2]
[null,"Tarifa de uso a telefonía Móvil","USD / min.",0.11,0.113,0.12]
[null,"Vigencia: 14 de septiembre de 2010"]
[null,"Tarifas más impuestos aplicables de ley"]
[null,{"$f":"+B104","v":"Elaborado: SENATEL-DGP, Publicación:  mayo  2013"}]
[]
[]
[null,"TARIFAS - APLICABLES  A PARTIR DEL 14 DE JULIO DE 2009\nPARA CATEGORÍA C PLAN COMERCIAL Plus 1"]
[null,"Nomenclatura","Unidad \nUS $","Categoría C"]
[null,"Derecho de Inscripción","US $ ",0]
[null,"Pensión Básica Mensual","USD / mes",0]
[null,"Tarifa de uso Local","USD / min.",2.5000000000000001E-2]
[null,"Tarifa de uso Larga Distancia Nacional","USD / min.",2.5000000000000001E-2]
[null,"Tarifa de uso a telefonía Móvil","USD / min.",0.125]
[null,"Vigencia: 14 de julio de 2009"]
[null,"Tarifas más impuestos aplicables de ley"]
[null,{"$f":"+B115","v":"Elaborado: SENATEL-DGP, Publicación:  mayo  2013"}]
[]
[null,"TARIFAS - APLICABLES  A PARTIR DEL 21 DE MAYO DE 2009\nPARA CATEGORÍA C PLAN COMERCIAL Plus 3"]
[null,"Nomenclatura","Unidad \nUS $","Categoría C"]
[null,"Derecho de Inscripción","US $ ",0]
[null,"Pensión Básica Mensual","USD / mes",0]
[null,"Tarifa de uso Local","USD / min.",1.7999999999999999E-2]
[null,"Tarifa de uso Larga Distancia Nacional","USD / min.",0.04]
[null,"Tarifa de uso a telefonía Móvil","USD / min.",0.12]
[null,"Vigencia: 21 de mayo de 2009"]
[null,"Tarifas más impuestos aplicables de ley"]
[null,{"$f":"+B127","v":"Elaborado: SENATEL-DGP, Publicación:  mayo  2013"}]
[]
[null,"TARIFAS - APLICABLES  A PARTIR DEL 8 DE JUNIO DE 2009\nPARA CATEGORÍA C PLAN COMERCIAL Plus 2"]
[null,"Nomenclatura","Unidad \nUS $","Categoría C"]
[null,"Derecho de Inscripción","US $ ",0]
[null,"Pensión Básica Mensual","USD / mes",0]
[null,"Tarifa de uso Local","USD / min.",1.9E-2]
[null,"Tarifa de uso Larga Distancia Nacional","USD / min.",0.04]
[null,"Tarifa de uso a telefonía Móvil","USD / min.",0.11]
[null,"Vigencia: 8 de junio de 2009"]
[null,"Tarifas más impuestos aplicables de ley"]
[null,{"$f":"+B138","v":"Elaborado: SENATEL-DGP, Publicación:  mayo  2013"}]
[]
[null,"TARIFAS - APLICABLES  A PARTIR DEL 14 DE JULIO DE 2009\nPARA CATEGORÍA C PLAN COMERCIAL Plus 1"]
[null,"Nomenclatura","Unidad \nUS $","Categoría C"]
[null,"Derecho de Inscripción","US $ ",0]
[null,"Pensión Básica Mensual","USD / mes",0]
[null,"Tarifa de uso Local","USD / min.",2.5000000000000001E-2]
[null,"Tarifa de uso Larga Distancia Regional ","USD / min.",2.5000000000000001E-2]
[null,"Tarifa de uso Larga Distancia Nacional","USD / min.",2.5000000000000001E-2]
[null,"Tarifa de uso a telefonía Móvil","USD / min.",0.125]
[null,"Vigencia: 14 de julio de 2009"]
[null,"Tarifas más impuestos aplicables de ley"]
[null,{"$f":"+B149","v":"Elaborado: SENATEL-DGP, Publicación:  mayo  2013"}]
[]
[null,"TARIFAS - USO LOCAL, LARGA DISTANCIA NACIONAL Y MÓVIL"]
[null,"Nomenclatura","Unidad","Cat. A","Cat. B"]
[null,"Derecho de Inscripción","USD",38,88]
[null,"Pensión Básica Mensual","USD / mes",5.7,8.5]
[null,"Tarifa de uso Local","USD / min.",1.9E-2,1.9E-2]
[null,"Tarifa de uso Larga Distancia Nacional","USD / min.",0.02,0.04]
[null,"Tarifa de uso a telefonía Móvil","USD / min.",0.125,0.125]
[null,"Promoción: Abonados de categoría A registrados desde el 1 hasta el 30 de marzo de 2010, se les aplica 500 minutos libres incluidos dentro de la pensión básica mensual. "]
[null,"Tarifas más impuestos aplicables de ley"]
[null,{"$f":"+B161","v":"Elaborado: SENATEL-DGP, Publicación:  mayo  2013"}]
[]
[null,"TARIFAS \nAplicables para Categoría A"]
[null,"Nomenclatura","Unidad","Cat. A"]
[null,"Derecho de Inscripción","USD",38]
[null,"Pensión Básica Mensual","USD / mes",5.7]
[null,"Tarifa de uso Local","USD / min.",1.9E-2]
[null,"Tarifa de uso Larga Distancia Nacional","USD / min.",0.02]
[null,"Tarifa de usoLlamadas a Telefonía Móvil","USD / min.",0.125]
[null,"Promoción: Abonados de categoría A registrados desde el 1 hasta el 30 de marzo de 2010, se les aplica 500 minutos libres incluidos dentro de la pensión básica mensual. "]
[null,"Vigencia: "]
[null,"Tarifas más impuestos aplicables de ley"]
[null,{"$f":"+B172","v":"Elaborado: SENATEL-DGP, Publicación:  mayo  2013"}]
[]
[]
[null,"TARIFAS - Aplicables para Categoría A"]
[null,"Nomenclatura","Unidad","Cat. A"]
[null,"Derecho de Inscripción","USD",38]
[null,"Pensión Básica Mensual","USD / mes",5.7]
[null,"Tarifa de uso Local","USD / min.",1.9E-2]
[null,"Tarifa de uso Larga Distancia Nacional","USD / min.",0.02]
[null,"Tarifa de usoLlamadas a Telefonía Móvil","USD / min.",0.125]
[null,"Se aplica 500 minutos libres incluídos dentro de la pensión básica mensual, como promoción para todos los usuarios que se inscriban en esta categoría."]
[null,"Tarifas más impuestos aplicables de ley"]
[null,{"$f":"+B184","v":"Elaborado: SENATEL-DGP, Publicación:  mayo  2013"}]
[]
[null,"1. Fuente: Level 3 Ecuador"]
[null,"2. No se incluye valor de los impuestos"]
[null,{"$f":"+B161","v":"Elaborado: SENATEL-DGP, Publicación:  mayo  2013"}]

{"sheet":"Gráfico1","index":8,"n_rows":8,"n_cols":2,"rows_kept":8,"cut":false,"hidden":false,"merged":[]}
[]
[null,"    Servicio de Telefonía Fija"]
[null,"      Tarifas Telefonía Fija - Comparativo entre tipos de llamada - por Categoría"]
[]
[]
[]
[]
[null,"      Fecha de publicación: mayo de 2013"]

{"sheet":"Gráfico2","index":9,"n_rows":8,"n_cols":2,"rows_kept":8,"cut":false,"hidden":false,"merged":[]}
[]
[null,"    Servicio de Telefonía Fija"]
[null,"      Tarifas Telefonía Fija - Comparativo entre empresas - por Categoría"]
[]
[]
[]
[]
[null,"      Fecha de publicación: mayo de 2013"]

{"sheet":"Gráfico3","index":10,"n_rows":8,"n_cols":2,"rows_kept":8,"cut":false,"hidden":false,"merged":[]}
[]
[null,"    Servicio de Telefonía Fija"]
[null,"      Tarifas Telefonía Fija - Pensión Básica Mensual"]
[]
[]
[]
[]
[null,"      Fecha de publicación: mayo de 2013"]

{"sheet":"Gráfico4","index":11,"n_rows":8,"n_cols":2,"rows_kept":8,"cut":false,"hidden":false,"merged":[]}
[]
[null,"    Servicio de Telefonía Fija"]
[null,"     Evolución de Tarifas Fijo - Móvil Empresas Públicas"]
[]
[]
[]
[]
[null,"      Fecha de publicación: mayo de 2013"]

{"sheet":"Gráfico5","index":12,"n_rows":8,"n_cols":2,"rows_kept":8,"cut":false,"hidden":false,"merged":[]}
[]
[null,"    Servicio de Telefonía Fija"]
[null,"     Evolución de Tarifas Fijo - Móvil Empresas Privadas"]
[]
[]
[]
[]
[null,"      Fecha de publicación: mayo de 2013"]

{"sheet":"Gráfico6","index":13,"n_rows":8,"n_cols":2,"rows_kept":8,"cut":false,"hidden":false,"merged":[]}
[]
[null,"    Servicio de Telefonía Fija"]
[null,"     Derecho de Inscripción Promedio Ponderado - Categoría B Residencial 2000-2013"]
[]
[]
[]
[]
[null,"      Fecha de publicación: mayo de 2013"]

{"sheet":"Gráfico7","index":14,"n_rows":8,"n_cols":2,"rows_kept":8,"cut":false,"hidden":false,"merged":[]}
[]
[null,"    Servicio de Telefonía Fija"]
[null,"     Llamada de 3 minutos promedio ponderado Categoría B - Residencial 2000-2013"]
[]
[]
[]
[]
[null,"      Fecha de publicación: mayo de 2013"]